Workbook

Sheet Simulation
A1: Monte-Carlo application for Value-at-Risk
A3: Description | B3: Parameter | C3: Value
A5: Spot price at time 0 | B5: S0 | C5: 2000
A6: risk-free rate | B6: r | C6: 0.0015
A7: convenience yield (annualised) | B7: q | C7: 0.0001
A8: volatility in asset price | B8: σ | C8: 0.16
A9: time in years | B9: t | C9: =1/365 -> 0.002739726027
A12: Simulate Run | B12: random No | C12: Normally scaled random no (zt) | D12: Fixed Price (r-q-0.5σ^2)t | E12: Random Price (σ*(t^.5)*zt | F12: Change (exp(fixed+random) | G12: Simulated asset price =S0*change
A14: 1 | B14: =ROUND(1-RAND(),5) -> 0.80739 | C14: =NORMINV(B14,0,1) -> 0.868318495 | D14: =($C$6-$C$7-(0.5*($C$8^2)))*$C$9 -> -3.123287671e-05 | E14: =$C$8*($C$9^0.5) * C14 -> 0.007271978763 | F14: =EXP(D14+E14) -> 1.007267023 | G14: =C5*F14 -> 2014.534047
A15: 2 | B15: =ROUND(1-RAND(),5) -> 0.97702 | C15: =NORMINV(B15,0,1) -> 1.995760484 | D15: =($C$6-$C$7-(0.5*($C$8^2)))*$C$9 -> -3.123287671e-05 | E15: =$C$8*($C$9^0.5) * C15 -> 0.01671406049 | F15: =EXP(D15+E15) -> 1.016822763 | G15: =G14*F15 -> 2048.424076
A16: 3 | B16: 0.99683 | C16: 2.729658311 | D16: =($C$6-$C$7-(0.5*($C$8^2)))*$C$9 -> -3.123287671e-05 | E16: 0.02286029537 | F16: 1.02309164 | G16: =G15*F16 -> 2095.725547
A17: 4 | B17: 0.07152 | C17: -1.46456367 | D17: -3.123287671e-05 | E17: -0.01226540258 | F17: 0.9877786592 | G17: =G16*F17 -> 2070.112971
A18: 5 | B18: 0.861 | C18: 1.084823128 | D18: -3.123287671e-05 | E18: 0.009085158031 | F18: 1.009095036 | G18: =G17*F18 -> 2088.940723
A19: 6 | B19: 0.93678 | C19: 1.528292223 | D19: -3.123287671e-05 | E19: 0.01279911536 | F19: 1.01284974 | G19: 2115.783068
A20: 7 | B20: 0.46302 | C20: -0.09282825963 | D20: -3.123287671e-05 | E20: -0.0007774165085 | F20: 0.9991916775 | G20: 2114.072833
A21: 8 | B21: 0.57868 | C21: 0.1985177482 | D21: -3.123287671e-05 | E21: 0.001662543016 | F21: 1.001632641 | G21: 2117.524356 | H21: Date | I21: Terminal Price
A22: 9 | B22: 0.38712 | C22: -0.2868332531 | D22: -3.123287671e-05 | E22: -0.002402166183 | F22: 0.9975695593 | G22: 2112.377838
A23: 10 | B23: 0.35227 | C23: -0.3791991267 | D23: -3.123287671e-05 | E23: -0.00317571031 | F23: 0.9967981936 | G23: 2105.614413 | H23: 1 | I23: =G23 -> 2105.614413
A24: 11 | B24: 0.75766 | C24: 0.6987952459 | D24: -3.123287671e-05 | E24: 0.005852258379 | F24: 1.005838001 | G24: 2117.906991 | H24: 2 | I24: =G24 -> 2117.906991
A25: 12 | B25: 0.40736 | C25: -0.234341333 | D25: -3.123287671e-05 | E25: -0.001962557756 | F25: 0.9980081956 | G25: 2113.688535 | H25: 3 | I25: 2113.688535
A26: 13 | B26: 0.26148 | C26: -0.6387893153 | D26: -3.123287671e-05 | E26: -0.005349721746 | F26: 0.9946334968 | G26: 2102.345419 | H26: 4 | I26: 2102.345419
A27: 14 | B27: 0.84353 | C27: 1.009072219 | D27: -3.123287671e-05 | E27: 0.008450760629 | F27: 1.008455072 | G27: 2120.1209 | H27: 5 | I27: 2120.1209
A28: 15 | B28: 0.99519 | C28: 2.589197151 | D28: -3.123287671e-05 | E28: 0.02168396367 | F28: 1.021888852 | G28: 2166.527913 | H28: 6 | I28: 2166.527913
A29: 16 | B29: 0.20737 | C29: -0.8155806854 | D29: -3.123287671e-05 | E29: -0.006830311064 | F29: 0.9931619427 | G29: 2151.713071 | H29: 7 | I29: 2151.713071
A30: 17 | B30: 0.55145 | C30: 0.1293256198 | D30: -3.123287671e-05 | E30: 0.001083073971 | F30: 1.001052394 | G30: 2153.977522 | H30: 8 | I30: 2153.977522
A31: 18 | B31: 0.65617 | C31: 0.4020326468 | D31: -3.123287671e-05 | E31: 0.00336693608 | F31: 1.003341273 | G31: 2161.174549 | H31: 9 | I31: 2161.174549
A32: 19 | B32: 0.12127 | C32: -1.168661598 | D32: -3.123287671e-05 | E32: -0.009787287001 | F32: 0.9902295244 | G32: 2140.058845 | H32: 10 | I32: 2140.058845
A33: 20 | B33: 0.40871 | C33: -0.2308645909 | D33: -3.123287671e-05 | E33: -0.001933440796 | F33: 0.998037255 | G33: 2135.858456 | H33: 11 | I33: 2135.858456
A34: 21 | B34: 0.92045 | C34: 1.408104935 | D34: -3.123287671e-05 | E34: 0.01179257293 | F34: 1.011830777 | G34: 2161.12732 | H34: 12 | I34: 2161.12732
A35: 22 | B35: 0.08453 | C35: -1.375230485 | D35: -3.123287671e-05 | E35: -0.01151725656 | F35: 0.9885179384 | G35: 2136.313123 | H35: 13 | I35: 2136.313123
A36: 23 | B36: 0.17957 | C36: -0.9170050383 | D36: -3.123287671e-05 | E36: -0.007679717987 | F36: 0.9923187023 | G36: 2119.903466 | H36: 14 | I36: 2119.903466
A37: 24 | B37: 0.62554 | C37: 0.3200637561 | D37: -3.123287671e-05 | E37: 0.002680464427 | F37: 1.002652744 | G37: 2125.527027 | H37: 15 | I37: 2125.527027
A38: 25 | B38: 0.96456 | C38: 1.806245504 | D38: -3.123287671e-05 | E38: 0.01512691371 | F38: 1.015210196 | G38: 2157.85671 | H38: 16 | I38: 2157.85671
A39: 26 | B39: 0.38783 | C39: -0.2849793011 | D39: -3.123287671e-05 | E39: -0.002386639738 | F39: 0.9975850481 | G39: 2152.645589 | H39: 17 | I39: 2152.645589
A40: 27 | B40: 0.92557 | C40: 1.443569889 | D40: -3.123287671e-05 | E40: 0.01208958422 | F40: 1.012131346 | G40: 2178.760079 | H40: 18 | I40: 2178.760079
A41: 28 | B41: 0.67787 | C41: 0.4617508513 | D41: -3.123287671e-05 | E41: 0.00386706307 | F41: 1.003843196 | G41: 2187.133482 | H41: 19 | I41: 2187.133482
A42: 29 | B42: 0.26917 | C42: -0.6153251676 | D42: -3.123287671e-05 | E42: -0.005153214606 | F42: 0.9948289686 | G42: 2175.823746 | H42: 20 | I42: 2175.823746
A43: 30 | B43: 0.15171 | C43: -1.029127 | D43: -3.123287671e-05 | E43: -0.00861871506 | F43: 0.9913873552 | G43: 2157.084149 | H43: 21 | I43: 2157.084149
A44: 31 | B44: 0.20439 | C44: -0.8260424709 | D44: -3.123287671e-05 | E44: -0.006917926245 | F44: 0.9930749305 | G44: 2142.146191 | H44: 22 | I44: 2142.146191
A45: 32 | B45: 0.75527 | C45: 0.691167954 | D45: -3.123287671e-05 | E45: 0.005788381466 | F45: 1.005773753 | G45: 2154.514413 | H45: 23 | I45: 2154.514413
A46: 33 | B46: 0.13518 | C46: -1.102233895 | D46: -3.123287671e-05 | E46: -0.009230969419 | F46: 0.9907805598 | G46: 2134.650997 | H46: 24 | I46: 2134.650997
A47: 34 | B47: 0.66688 | C47: 0.4313140992 | D47: -3.123287671e-05 | E47: 0.003612161883 | F47: 1.003587348 | G47: 2142.308733 | H47: 25 | I47: 2142.308733
A48: 35 | B48: 0.30937 | C48: -0.4976368864 | D48: -3.123287671e-05 | E48: -0.004167600818 | F48: 0.9958099691 | G48: 2133.332393 | H48: 26 | I48: 2133.332393
A49: 36 | B49: 0.08085 | C49: -1.399376867 | D49: -3.123287671e-05 | E49: -0.01171947727 | F49: 0.9883180598 | G49: 2108.410932 | H49: 27 | I49: 2108.410932
A50: 37 | B50: 0.48763 | C50: -0.03101196196 | D50: -3.123287671e-05 | E50: -0.0002597184444 | F50: 0.999709091 | G50: 2107.797576 | H50: 28 | I50: 2107.797576
A51: 38 | B51: 0.67269 | C51: 0.4473532843 | D51: -3.123287671e-05 | E51: 0.003746486574 | F51: 1.003722164 | G51: 2115.643144 | H51: 29 | I51: 2115.643144
A52: 39 | B52: 0.70831 | C52: 0.5484543008 | D52: -3.123287671e-05 | E52: 0.004593185624 | F52: 1.004572374 | G52: 2125.316656 | H52: 30 | I52: 2125.316656
A53: 40 | B53: 0.54884 | C53: 0.1227311452 | D53: -3.123287671e-05 | E53: 0.001027846679 | F53: 1.000997111 | G53: 2127.435832 | H53: 31 | I53: 2127.435832
A54: 41 | B54: 0.58297 | C54: 0.209497355 | D54: -3.123287671e-05 | E54: 0.001754494837 | F54: 1.001724748 | G54: 2131.105122 | H54: 32 | I54: 2131.105122
A55: 42 | B55: 0.93645 | C55: 1.525638173 | D55: -3.123287671e-05 | E55: 0.01277688827 | F55: 1.012827227 | G55: 2158.441292 | H55: 33 | I55: 2158.441292
A56: 43 | B56: 0.35977 | C56: -0.3590736409 | D56: -3.123287671e-05 | E56: -0.003007163738 | F56: 0.9969662146 | G56: 2151.893044 | H56: 34 | I56: 2151.893044
A57: 44 | B57: 0.67845 | C57: 0.4633688536 | D57: -3.123287671e-05 | E57: 0.003880613488 | F57: 1.003856799 | G57: 2160.192463 | H57: 35 | I57: 2160.192463
A58: 45 | B58: 0.0103 | C58: -2.315236367 | D58: -3.123287671e-05 | E58: -0.01938960162 | F58: 0.980766535 | G58: 2118.644477 | H58: 36 | I58: 2118.644477
A59: 46 | B59: 0.00514 | C59: -2.566265867 | D59: -3.123287671e-05 | E59: -0.02149191914 | F59: 0.9787068182 | G59: 2073.531795 | H59: 37 | I59: 2073.531795
A60: 47 | B60: 0.63226 | C60: 0.3378449954 | D60: -3.123287671e-05 | E60: 0.002829378443 | F60: 1.002802064 | G60: 2079.341964 | H60: 38 | I60: 2079.341964
A61: 48 | B61: 0.21383 | C61: -0.7932022446 | D61: -3.123287671e-05 | E61: -0.006642896484 | F61: 0.9933480932 | G61: 2065.510375 | H61: 39 | I61: 2065.510375
A62: 49 | B62: 0.50333 | C62: 0.008347169085 | D62: -3.123287671e-05 | E62: 6.990572776e-05 | F62: 1.000038674 | G62: 2065.590256 | H62: 40 | I62: 2065.590256
A63: 50 | B63: 0.84603 | C63: 1.019554064 | D63: -3.123287671e-05 | E63: 0.008538543803 | F63: 1.008543601 | G63: 2083.237834 | H63: 41 | I63: 2083.237834
A64: 51 | B64: 0.15742 | C64: -1.00511807 | D64: -3.123287671e-05 | E64: -0.008417645485 | F64: 0.9915867131 | G64: 2065.710957 | H64: 42 | I64: 2065.710957
A65: 52 | B65: 0.41011 | C65: -0.2272620253 | D65: -3.123287671e-05 | E65: -0.001903270091 | F65: 0.998067367 | G65: 2061.718696 | H65: 43 | I65: 2061.718696
A66: 53 | B66: 0.31422 | C66: -0.483923728 | D66: -3.123287671e-05 | E66: -0.004052756095 | F66: 0.9959243392 | G66: 2053.31583 | H66: 44 | I66: 2053.31583
A67: 54 | B67: 0.95502 | C67: 1.695608748 | D67: -3.123287671e-05 | E67: 0.01420035491 | F67: 1.01426998 | G67: 2082.616605 | H67: 45 | I67: 2082.616605
A68: 55 | B68: 0.97838 | C68: 2.021384287 | D68: -3.123287671e-05 | E68: 0.01692865428 | F68: 1.01704099 | G68: 2118.106454 | H68: 46 | I68: 2118.106454
A69: 56 | B69: 0.20331 | C69: -0.8298563617 | D69: -3.123287671e-05 | E69: -0.006949866753 | F69: 0.9930432116 | G69: 2103.371236 | H69: 47 | I69: 2103.371236
A70: 57 | B70: 0.35006 | C70: -0.385158484 | D70: -3.123287671e-05 | E70: -0.003225618632 | F70: 0.9967484463 | G70: 2096.532012 | H70: 48 | I70: 2096.532012
A71: 58 | B71: 0.20076 | C71: -0.8389096717 | D71: -3.123287671e-05 | E71: -0.007025686257 | F71: 0.9929679225 | G71: 2081.789036 | H71: 49 | I71: 2081.789036
A72: 59 | B72: 0.01785 | C72: -2.100327975 | D72: -3.123287671e-05 | E72: -0.01758979052 | F72: 0.9825333189 | G72: 2045.427091 | H72: 50 | I72: 2045.427091
A73: 60 | B73: 0.55265 | C73: 0.1323594331 | D73: -3.123287671e-05 | E73: 0.001108481499 | F73: 1.001077829 | G73: 2047.631712 | H73: 51 | I73: 2047.631712
A74: 61 | B74: 0.70525 | C74: 0.5395607369 | D74: -3.123287671e-05 | E74: 0.004518703958 | F74: 1.004497555 | G74: 2056.841048 | H74: 52 | I74: 2056.841048
A75: 62 | B75: 0.11025 | C75: -1.225199667 | D75: -3.123287671e-05 | E75: -0.01026078105 | F75: 0.9897607676 | G75: 2035.780574 | H75: 53 | I75: 2035.780574
A76: 63 | B76: 0.53431 | C76: 0.08610870971 | D76: -3.123287671e-05 | E76: 0.0007211417376 | F76: 1.000690147 | G76: 2037.185562 | H76: 54 | I76: 2037.185562
A77: 64 | B77: 0.28177 | C77: -0.5775914215 | D77: -3.123287671e-05 | E77: -0.00483720268 | F77: 0.9951433961 | G77: 2027.291758 | H77: 55 | I77: 2027.291758
A78: 65 | B78: 0.57019 | C78: 0.1768579104 | D78: -3.123287671e-05 | E78: 0.001481146579 | F78: 1.001450965 | G78: 2030.233288 | H78: 56 | I78: 2030.233288
A79: 66 | B79: =ROUND(1-RAND(),5) -> 0.34201 | C79: =NORMINV(B79,0,1) -> -0.4069836455 | D79: -3.123287671e-05 | E79: =$C$8*($C$9^0.5) * C79 -> -0.003408399619 | F79: =EXP(D79+E79) -> 0.9965662763 | G79: 2023.262028 | H79: 57 | I79: 2023.262028
A80: 67 | B80: 0.30417 | C80: -0.5124444337 | D80: =($C$6-$C$7-(0.5*($C$8^2)))*$C$9 -> -3.123287671e-05 | E80: -0.004291610809 | F80: 0.9956864864 | G80: 2014.53466 | H80: 58 | I80: 2014.53466
A81: 68 | B81: 0.21891 | C81: -0.7758797333 | D81: -3.123287671e-05 | E81: -0.006497824216 | F81: 0.9934922109 | G81: 2001.424493 | H81: 59 | I81: 2001.424493
A82: 69 | B82: 0.29679 | C82: -0.5336553588 | D82: -3.123287671e-05 | E82: -0.0044692477 | F82: 0.9955096314 | G82: =G81*F82 -> 1992.437359 | H82: 60 | I82: 1992.437359
A83: 70 | B83: 0.52552 | C83: 0.06401284369 | D83: -3.123287671e-05 | E83: 0.0005360936598 | F83: 1.000504988 | G83: 1993.443517 | H83: 61 | I83: 1993.443517
A84: 71 | B84: 0.42487 | C84: -0.1894501781 | D84: -3.123287671e-05 | E84: -0.001586604086 | F84: 0.998383471 | G84: 1990.221058 | H84: 62 | I84: 1990.221058
A85: 72 | B85: 0.28545 | C85: -0.5667265201 | D85: -3.123287671e-05 | E85: -0.004746211491 | F85: 0.9952339495 | G85: 1980.735563 | H85: 63 | I85: 1980.735563
A86: 73 | B86: 0.58194 | C86: 0.2068589708 | D86: -3.123287671e-05 | E86: 0.001732398942 | F86: 1.001702614 | G86: 1984.107991 | H86: 64 | I86: 1984.107991
A87: 74 | B87: 0.20753 | C87: -0.815021506 | D87: -3.123287671e-05 | E87: -0.006825628059 | F87: 0.9931665937 | G87: 1970.549775 | H87: 65 | I87: 1970.549775
A88: 75 | B88: 0.3703 | C88: -0.3310588944 | D88: -3.123287671e-05 | E88: -0.002772546322 | F88: 0.9972001477 | G88: 1965.032527 | H88: 66 | I88: =G88 -> 1965.032527
A89: 76 | B89: 0.79644 | C89: 0.8289724443 | D89: -3.123287671e-05 | E89: 0.006942464137 | F89: 1.006935169 | G89: 1978.66036 | H89: 67 | I89: 1978.66036
A90: 77 | B90: 0.13085 | C90: -1.122382128 | D90: -3.123287671e-05 | E90: -0.009399706498 | F90: 0.9906133925 | G90: 1960.087451 | H90: 68 | I90: 1960.087451
A91: 78 | B91: 0.78112 | C91: 0.7759813462 | D91: -3.123287671e-05 | E91: 0.006498675201 | F91: 1.006488401 | G91: 1972.805285 | H91: 69 | I91: 1972.805285
A92: 79 | B92: 0.73229 | C92: 0.6197536322 | D92: -3.123287671e-05 | E92: 0.005190302035 | F92: 1.0051724 | G92: 1983.009424 | H92: 70 | I92: 1983.009424
A93: 80 | B93: 0.18182 | C93: -0.908450983 | D93: -3.123287671e-05 | E93: -0.007608079632 | F93: 0.9923897929 | G93: 1967.918311 | H93: 71 | I93: 1967.918311
A94: 81 | B94: 0.23213 | C94: -0.7318502082 | D94: -3.123287671e-05 | E94: -0.006129086507 | F94: 0.9938586165 | G94: 1955.83257 | H94: 72 | I94: 1955.83257
A95: 82 | B95: 0.56865 | C95: 0.172938206 | D95: -3.123287671e-05 | E95: 0.001448319907 | F95: 1.001418092 | G95: 1958.60612 | H95: 73 | I95: 1958.60612
A96: 83 | B96: 0.91316 | C96: 1.360473921 | D96: -3.123287671e-05 | E96: 0.01139367354 | F96: 1.011427238 | G96: 1980.987579 | H96: 74 | I96: 1980.987579
A97: 84 | B97: 0.21824 | C97: -0.7781509996 | D97: -3.123287671e-05 | E97: -0.006516845577 | F97: 0.9934733135 | G97: 1968.058294 | H97: 75 | I97: 1968.058294
A98: 85 | B98: 0.01275 | C98: -2.233742817 | D98: -3.123287671e-05 | E98: -0.01870711084 | F98: 0.9814361276 | G98: 1931.523511 | H98: 76 | I98: 1931.523511
A99: 86 | B99: 0.82145 | C99: 0.9209050535 | D99: -3.123287671e-05 | E99: 0.007712379767 | F99: 1.007710723 | G99: 1946.416953 | H99: 77 | I99: 1946.416953
A100: 87 | B100: 0.17211 | C100: -0.9458599956 | D100: -3.123287671e-05 | E100: -0.007921371986 | F100: 0.9920789334 | G100: 1930.999255 | H100: 78 | I100: 1930.999255
A101: 88 | B101: 0.10689 | C101: -1.24323839 | D101: -3.123287671e-05 | E101: -0.01041185143 | F101: 0.9896112554 | G101: 1910.938596 | H101: 79 | I101: 1910.938596
A102: 89 | B102: 0.41094 | C102: -0.2251276133 | D102: -3.123287671e-05 | E102: -0.001885394855 | F102: 0.9980852078 | G102: 1907.279546 | H102: 80 | I102: 1907.279546
A103: 90 | B103: 0.51724 | C103: 0.0432277305 | D103: -3.123287671e-05 | E103: 0.0003620228522 | F103: 1.000330845 | G103: 1907.910559 | H103: 81 | I103: 1907.910559
A104: 91 | B104: 0.05227 | C104: -1.623231156 | D104: -3.123287671e-05 | E104: -0.0135942083 | F104: 0.986466965 | G104: 1882.090739 | H104: 82 | I104: 1882.090739
A105: 92 | B105: 0.11999 | C105: -1.175036783 | D105: -3.123287671e-05 | E105: -0.009840677798 | F105: 0.9901766567 | G105: 1863.602316 | H105: 83 | I105: 1863.602316
A106: 93 | B106: 0.9402 | C106: 1.556454728 | D106: -3.123287671e-05 | E106: 0.01303497022 | F106: 1.013088654 | G106: 1887.994361 | H106: 84 | I106: 1887.994361
A107: 94 | B107: 0.55806 | C107: 0.1460524287 | D107: -3.123287671e-05 | E107: 0.001223157362 | F107: 1.001192635 | G107: 1890.246049 | H107: 85 | I107: 1890.246049
A108: 95 | B108: 0.40868 | C108: -0.2309418214 | D108: -3.123287671e-05 | E108: -0.001934087585 | F108: 0.9980366095 | G108: 1886.534758 | H108: 86 | I108: 1886.534758
A109: 96 | B109: 0.36657 | C109: -0.3409516245 | D109: -3.123287671e-05 | E109: -0.002855395787 | F109: 0.9971175336 | G109: 1881.096885 | H109: 87 | I109: 1881.096885
A110: 97 | B110: 0.34637 | C110: -0.3951394174 | D110: -3.123287671e-05 | E110: -0.003309206781 | F110: 0.9966651334 | G110: 1874.823678 | H110: 88 | I110: 1874.823678
A111: 98 | B111: 0.10235 | C111: -1.268274332 | D111: -3.123287671e-05 | E111: -0.01062152202 | F111: 0.9894037848 | G111: 1854.957643 | H111: 89 | I111: 1854.957643
A112: 99 | B112: 0.76769 | C112: 0.7312605859 | D112: -3.123287671e-05 | E112: 0.006124148549 | F112: 1.006111515 | G112: 1866.294245 | H112: 90 | I112: 1866.294245
A113: 100 | B113: 0.60255 | C113: 0.2599530364 | D113: -3.123287671e-05 | E113: 0.002177050208 | F113: 1.002148121 | G113: 1870.303271 | H113: 91 | I113: 1870.303271
A114: 101 | B114: 0.27687 | C114: -0.5921651555 | D114: -3.123287671e-05 | E114: -0.004959254536 | F114: 0.9950219444 | G114: 1860.992797 | H114: 92 | I114: 1860.992797
A115: 102 | B115: 0.41914 | C115: -0.204094055 | D115: -3.123287671e-05 | E115: -0.001709243373 | F115: 0.9982610375 | G115: 1857.7566 | H115: 93 | I115: 1857.7566
A116: 103 | B116: 0.6127 | C116: 0.286363144 | D116: -3.123287671e-05 | E116: 0.002398229122 | F116: 1.0023698 | G116: 1862.159112 | H116: 94 | I116: 1862.159112
A117: 104 | B117: 0.30433 | C117: -0.5119871541 | D117: -3.123287671e-05 | E117: -0.004287781193 | F117: 0.9956902995 | G117: 1854.133764 | H117: 95 | I117: 1854.133764
A118: 105 | B118: 0.86989 | C118: 1.125871298 | D118: -3.123287671e-05 | E118: 0.009428927535 | F118: 1.009441992 | G118: 1871.640479 | H118: 96 | I118: 1871.640479
A119: 106 | B119: 0.31411 | C119: -0.484233732 | D119: -3.123287671e-05 | E119: -0.004055352311 | F119: 0.9959217535 | G119: 1864.007468 | H119: 97 | I119: 1864.007468
A120: 107 | B120: 0.60235 | C120: 0.2594345175 | D120: -3.123287671e-05 | E120: 0.002172707725 | F120: 1.002143769 | G120: 1868.00347 | H120: 98 | I120: 1868.00347
A121: 108 | B121: 0.8891 | C121: 1.221755768 | D121: -3.123287671e-05 | E121: 0.01023193914 | F121: 1.010252911 | G121: 1887.155943 | H121: 99 | I121: 1887.155943
A122: 109 | B122: 0.04554 | C122: -1.68972802 | D122: -3.123287671e-05 | E122: -0.0141511051 | F122: 0.9859177576 | G122: 1860.580556 | H122: 100 | I122: 1860.580556
A123: 110 | B123: 0.15188 | C123: -1.028403634 | D123: -3.123287671e-05 | E123: -0.008612657023 | F123: 0.9913933611 | G123: 1844.567211 | H123: 101 | I123: 1844.567211
A124: 111 | B124: 0.07236 | C124: -1.458437466 | D124: -3.123287671e-05 | E124: -0.01221409695 | F124: 0.9878293391 | G124: 1822.117609 | H124: 102 | I124: 1822.117609
A125: 112 | B125: 0.20487 | C125: -0.8243512607 | D125: -3.123287671e-05 | E125: -0.006903762728 | F125: 0.993088996 | G125: 1809.524947 | H125: 103 | I125: 1809.524947
A126: 113 | B126: 0.6134 | C126: 0.2881917024 | D126: -3.123287671e-05 | E126: 0.002413542901 | F126: 1.00238515 | G126: 1813.840935 | H126: 104 | I126: 1813.840935
A127: 114 | B127: 0.09651 | C127: -1.301696958 | D127: -3.123287671e-05 | E127: -0.01090142924 | F127: 0.9891268822 | G127: 1794.118829 | H127: 105 | I127: 1794.118829
A128: 115 | B128: 0.88034 | C128: 1.176688148 | D128: -3.123287671e-05 | E128: 0.00985450762 | F128: 1.009871681 | G128: 1811.829799 | H128: 106 | I128: 1811.829799
A129: 116 | B129: 0.01524 | C129: -2.163796121 | D129: -3.123287671e-05 | E129: -0.01812132245 | F129: 0.9820112099 | G129: 1779.237173 | H129: 107 | I129: 1779.237173
A130: 117 | B130: 0.72963 | C130: 0.6116943511 | D130: -3.123287671e-05 | E130: 0.005122807307 | F130: 1.005104559 | G130: 1788.319393 | H130: 108 | I130: 1788.319393
A131: 118 | B131: 0.60513 | C131: 0.2666482527 | D131: -3.123287671e-05 | E131: 0.00223312119 | F131: 1.002204314 | G131: 1792.261411 | H131: 109 | I131: 1792.261411
A132: 119 | B132: 0.56755 | C132: 0.1701400466 | D132: -3.123287671e-05 | E132: 0.001424885929 | F132: 1.001394625 | G132: 1794.760943 | H132: 110 | I132: 1794.760943
A133: 120 | B133: 0.92362 | C133: 1.429850261 | D133: -3.123287671e-05 | E133: 0.01197468532 | F133: 1.01201506 | G133: 1816.325104 | H133: 111 | I133: 1816.325104
A134: 121 | B134: 0.03462 | C134: -1.816850551 | D134: -3.123287671e-05 | E134: -0.01521572868 | F134: 0.9848686849 | G134: 1788.841716 | H134: 112 | I134: 1788.841716
A135: 122 | B135: 0.08656 | C135: -1.362246834 | D135: -3.123287671e-05 | E135: -0.0114085213 | F135: 0.988625431 | G135: 1768.494413 | H135: 113 | I135: 1768.494413
A136: 123 | B136: 0.04073 | C136: -1.74227692 | D136: -3.123287671e-05 | E136: -0.01459119071 | F136: 0.9854839649 | G136: 1742.822886 | H136: 114 | I136: 1742.822886
A137: 124 | B137: 0.30787 | C137: -0.5018969654 | D137: -3.123287671e-05 | E137: -0.004203278054 | F137: 0.995774442 | G137: 1735.458486 | H137: 115 | I137: 1735.458486
A138: 125 | B138: 0.85579 | C138: 1.061594085 | D138: -3.123287671e-05 | E138: 0.008890619845 | F138: 1.008898747 | G138: 1750.901893 | H138: 116 | I138: 1750.901893
A139: 126 | B139: 0.69249 | C139: 0.5029207382 | D139: -3.123287671e-05 | E139: 0.004211851929 | F139: 1.00418937 | G139: 1758.237069 | H139: 117 | I139: 1758.237069
A140: 127 | B140: 0.76228 | C140: 0.7136558713 | D140: -3.123287671e-05 | E140: 0.005976712888 | F140: 1.005963189 | G140: 1768.72177 | H140: 118 | I140: 1768.72177
A141: 128 | B141: 0.94693 | C141: 1.615788726 | D141: -3.123287671e-05 | E141: 0.01353187956 | F141: 1.013592192 | G141: 1792.762576 | H141: 119 | I141: 1792.762576
A142: 129 | B142: 0.32649 | C142: -0.4496261906 | D142: -3.123287671e-05 | E142: -0.00376552167 | F142: 0.996210444 | G142: 1785.968801 | H142: 120 | I142: 1785.968801
A143: 130 | B143: =ROUND(1-RAND(),5) -> 0.85645 | C143: =NORMINV(B143,0,1) -> 1.064504979 | D143: -3.123287671e-05 | E143: =$C$8*($C$9^0.5) * C143 -> 0.008914997949 | F143: =EXP(D143+E143) -> 1.008923343 | G143: 1801.905613 | H143: 121 | I143: 1801.905613
A144: 131 | B144: 0.769 | C144: 0.7355575574 | D144: =($C$6-$C$7-(0.5*($C$8^2)))*$C$9 -> -3.123287671e-05 | E144: 0.006160134752 | F144: 1.006147722 | G144: 1812.983228 | H144: 122 | I144: 1812.983228
A145: 132 | B145: 0.42018 | C145: -0.2014330176 | D145: -3.123287671e-05 | E145: -0.001686957763 | F145: 0.9982832846 | G145: 1809.870852 | H145: 123 | I145: 1809.870852
A146: 133 | B146: 0.49638 | C146: -0.009074118879 | D146: -3.123287671e-05 | E146: -7.599377437e-05 | F146: 0.9998927791 | G146: =G145*F146 -> 1809.676796 | H146: 124 | I146: 1809.676796
A147: 134 | B147: 0.01245 | C147: -2.242950604 | D147: -3.123287671e-05 | E147: -0.01878422405 | F147: 0.9813604488 | G147: 1775.945233 | H147: 125 | I147: 1775.945233
A148: 135 | B148: 0.41654 | C148: -0.2107530196 | D148: -3.123287671e-05 | E148: -0.001765010755 | F148: 0.9982053686 | G148: 1772.758066 | H148: 126 | I148: 1772.758066
A149: 136 | B149: 0.22205 | C149: -0.7652881144 | D149: -3.123287671e-05 | E149: -0.006409121708 | F149: 0.99358034 | G149: 1761.377562 | H149: 127 | I149: 1761.377562
A150: 137 | B150: 0.08334 | C150: -1.382950644 | D150: -3.123287671e-05 | E150: -0.01158191122 | F150: 0.9884540282 | G150: 1741.040746 | H150: 128 | I150: 1741.040746
A151: 138 | B151: 0.29571 | C151: -0.536779404 | D151: -3.123287671e-05 | E151: -0.004495410899 | F151: 0.995483586 | G151: 1733.177485 | H151: 129 | I151: 1733.177485
A152: 139 | B152: 0.1362 | C152: -1.097552372 | D152: -3.123287671e-05 | E152: -0.009191762683 | F152: 0.9908194058 | G152: 1717.265886 | H152: 130 | I152: =G152 -> 1717.265886
A153: 140 | B153: 0.84625 | C153: 1.020481835 | D153: -3.123287671e-05 | E153: 0.008546313679 | F153: 1.008551437 | G153: 1731.950978 | H153: 131 | I153: 1731.950978
A154: 141 | B154: 0.93632 | C154: 1.524595582 | D154: -3.123287671e-05 | E154: 0.0127681568 | F154: 1.012818384 | G154: 1754.15179 | H154: 132 | I154: 1754.15179
A155: 142 | B155: 0.65231 | C155: 0.3915645302 | D155: -3.123287671e-05 | E155: 0.003279267878 | F155: 1.003253316 | G155: 1759.8586 | H155: 133 | I155: 1759.8586
A156: 143 | B156: 0.72052 | C156: 0.5843869569 | D156: -3.123287671e-05 | E156: 0.004894113813 | F156: 1.004874724 | G156: 1768.437424 | H156: 134 | I156: 1768.437424
A157: 144 | B157: 0.59529 | C157: 0.241174337 | D157: -3.123287671e-05 | E157: 0.00201978268 | F157: 1.001990528 | G157: 1771.957549 | H157: 135 | I157: 1771.957549
A158: 145 | B158: 0.74796 | C158: 0.66808396 | D158: -3.123287671e-05 | E158: 0.005595058031 | F158: 1.005579332 | G158: 1781.843889 | H158: 136 | I158: 1781.843889
A159: 146 | B159: 0.28204 | C159: -0.5767919622 | D159: -3.123287671e-05 | E159: -0.004830507382 | F159: 0.9951500589 | G159: 1773.202051 | H159: 137 | I159: 1773.202051
A160: 147 | B160: 0.47461 | C160: -0.0636863171 | D160: -3.123287671e-05 | E160: -0.0005333590706 | F160: 0.9994355674 | G160: 1772.201198 | H160: 138 | I160: 1772.201198
A161: 148 | B161: 0.38729 | C161: -0.2863892596 | D161: -3.123287671e-05 | E161: -0.002398447834 | F161: 0.9975732686 | G161: 1767.900541 | H161: 139 | I161: 1767.900541
A162: 149 | B162: 0.19583 | C162: -0.8566108271 | D162: -3.123287671e-05 | E162: -0.007173929588 | F162: 0.9928207325 | G162: 1755.20831 | H162: 140 | I162: 1755.20831
A163: 150 | B163: 0.06658 | C163: -1.501756525 | D163: -3.123287671e-05 | E163: -0.01257688465 | F163: 0.9874710318 | G163: 1733.217361 | H163: 141 | I163: 1733.217361
A164: 151 | B164: 0.05151 | C164: -1.630385724 | D164: -3.123287671e-05 | E164: -0.01365412625 | F164: 0.9864078597 | G164: 1709.659228 | H164: 142 | I164: 1709.659228
A165: 152 | B165: 0.49689 | C165: -0.007795692894 | D165: -3.123287671e-05 | E165: -6.528723447e-05 | F165: 0.9999034845 | G165: 1709.494219 | H165: 143 | I165: 1709.494219
A166: 153 | B166: 0.88253 | C166: 1.187729494 | D166: -3.123287671e-05 | E166: 0.009946976489 | F166: 1.009965067 | G166: 1726.529444 | H166: 144 | I166: 1726.529444
A167: 154 | B167: 0.53302 | C167: 0.0828635968 | D167: -3.123287671e-05 | E167: 0.0006939646221 | F167: 1.000662951 | G167: 1727.674049 | H167: 145 | I167: 1727.674049
A168: 155 | B168: 0.31513 | C168: -0.4813609294 | D168: -3.123287671e-05 | E168: -0.004031293214 | F168: 0.9959457148 | G168: 1720.669566 | H168: 146 | I168: 1720.669566
A169: 156 | B169: 0.02188 | C169: -2.016382443 | D169: -3.123287671e-05 | E169: -0.01688676492 | F169: 0.9832243079 | G169: 1691.804143 | H169: 147 | I169: 1691.804143
A170: 157 | B170: 0.67343 | C170: 0.4494043415 | D170: -3.123287671e-05 | E170: 0.003763663732 | F170: 1.003739405 | G170: 1698.130484 | H170: 148 | I170: 1698.130484
A171: 158 | B171: 0.70743 | C171: 0.5458922587 | D171: -3.123287671e-05 | E171: 0.004571729078 | F171: 1.00455082 | G171: 1705.85837 | H171: 149 | I171: 1705.85837
A172: 159 | B172: 0.80049 | C172: 0.8433727628 | D172: -3.123287671e-05 | E172: 0.007063063676 | F172: 1.007056612 | G172: 1717.895951 | H172: 150 | I172: 1717.895951
A173: 160 | B173: 0.94075 | C173: 1.56110067 | D173: -3.123287671e-05 | E173: 0.01307387898 | F173: 1.013128072 | G173: 1740.448614 | H173: 151 | I173: 1740.448614
A174: 161 | B174: 0.34992 | C174: -0.3855364587 | D174: -3.123287671e-05 | E174: -0.003228784088 | F174: 0.9967452911 | G174: 1734.78396 | H174: 152 | I174: 1734.78396
A175: 162 | B175: 0.27532 | C175: -0.5968013747 | D175: -3.123287671e-05 | E175: -0.004998081865 | F175: 0.9949833111 | G175: 1726.081089 | H175: 153 | I175: 1726.081089
A176: 163 | B176: 0.42114 | C176: -0.1989779411 | D176: -3.123287671e-05 | E176: -0.001666397031 | F176: 0.9983038103 | G176: 1723.153328 | H176: 154 | I176: 1723.153328
A177: 164 | B177: 0.00325 | C177: -2.721430761 | D177: -3.123287671e-05 | E177: -0.02279139143 | F177: 0.9774358418 | G177: 1684.271823 | H177: 155 | I177: 1684.271823
A178: 165 | B178: 0.71942 | C178: 0.581119377 | D178: -3.123287671e-05 | E178: 0.004866748541 | F178: 1.004847226 | G178: 1692.435869 | H178: 156 | I178: 1692.435869
A179: 166 | B179: 0.18474 | C179: -0.8974478297 | D179: -3.123287671e-05 | E179: -0.007515930614 | F179: 0.9924812448 | G179: 1679.710858 | H179: 157 | I179: 1679.710858
A180: 167 | B180: 0.09331 | C180: -1.320644283 | D180: -3.123287671e-05 | E180: -0.01106010898 | F180: 0.9889699403 | G180: 1661.183547 | H180: 158 | I180: 1661.183547
A181: 168 | B181: 0.19463 | C181: -0.8609601342 | D181: -3.123287671e-05 | E181: -0.007210354091 | F181: 0.9927845701 | G181: 1649.197393 | H181: 159 | I181: 1649.197393
A182: 169 | B182: 0.23599 | C182: -0.719261196 | D182: -3.123287671e-05 | E182: -0.006023656265 | F182: 0.9939634048 | G182: 1639.241856 | H182: 160 | I182: 1639.241856
A183: 170 | B183: 0.15822 | C183: -1.001800408 | D183: -3.123287671e-05 | E183: -0.00838986079 | F183: 0.9916142644 | G183: 1625.495608 | H183: 161 | I183: 1625.495608
A184: 171 | B184: 0.90797 | C184: 1.328357599 | D184: -3.123287671e-05 | E184: 0.01112470632 | F184: 1.011155234 | G184: 1643.628392 | H184: 162 | I184: 1643.628392
A185: 172 | B185: 0.38032 | C185: -0.3046404616 | D185: -3.123287671e-05 | E185: -0.002551297686 | F185: 0.9974208013 | G185: 1639.389147 | H185: 163 | I185: 1639.389147
A186: 173 | B186: 0.26479 | C186: -0.6286472797 | D186: -3.123287671e-05 | E186: -0.005264784401 | F186: 0.9947179819 | G186: 1630.729864 | H186: 164 | I186: 1630.729864
A187: 174 | B187: 0.62114 | C187: 0.3084762098 | D187: -3.123287671e-05 | E187: 0.002583421244 | F187: 1.002555448 | G187: 1634.89711 | H187: 165 | I187: 1634.89711
A188: 175 | B188: 0.60002 | C188: 0.253398871 | D188: -3.123287671e-05 | E188: 0.002122160497 | F188: 1.002093115 | G188: 1638.319138 | H188: 166 | I188: 1638.319138
A189: 176 | B189: 0.95038 | C189: 1.648549314 | D189: -3.123287671e-05 | E189: 0.01380624237 | F189: 1.013870322 | G189: 1661.043152 | H189: 167 | I189: 1661.043152
A190: 177 | B190: 0.42725 | C190: -0.1833798311 | D190: -3.123287671e-05 | E190: -0.001535766248 | F190: 0.998434228 | G190: 1658.442337 | H190: 168 | I190: 1658.442337
A191: 178 | B191: 0.91484 | C191: 1.371176314 | D191: -3.123287671e-05 | E191: 0.01148330376 | F191: 1.011517897 | G191: 1677.544105 | H191: 169 | I191: 1677.544105
A192: 179 | B192: 0.70469 | C192: 0.5379377869 | D192: -3.123287671e-05 | E192: 0.004505112104 | F192: 1.004483902 | G192: 1685.066048 | H192: 170 | I192: 1685.066048
A193: 180 | B193: 0.17778 | C193: -0.9238584855 | D193: -3.123287671e-05 | E193: -0.007737114118 | F193: 0.9922617486 | G193: 1672.026583 | H193: 171 | I193: 1672.026583
A194: 181 | B194: 0.14093 | C194: -1.076150396 | D194: -3.123287671e-05 | E194: -0.009012525786 | F194: 0.9909970131 | G194: 1656.97335 | H194: 172 | I194: 1656.97335
A195: 182 | B195: 0.7821 | C195: 0.7793051189 | D195: -3.123287671e-05 | E195: 0.006526511076 | F195: 1.006516418 | G195: 1667.770881 | H195: 173 | I195: 1667.770881
A196: 183 | B196: 0.73421 | C196: 0.6255959437 | D196: -3.123287671e-05 | E196: 0.005239230125 | F196: 1.005221582 | G196: 1676.479284 | H196: 174 | I196: 1676.479284
A197: 184 | B197: 0.4907 | C197: -0.02331375474 | D197: -3.123287671e-05 | E197: -0.0001952476313 | F197: 0.9997735451 | G197: 1676.099637 | H197: 175 | I197: 1676.099637
A198: 185 | B198: 0.45483 | C198: -0.113467409 | D198: -3.123287671e-05 | E198: -0.0009502649012 | F198: 0.9990189837 | G198: 1674.455356 | H198: 176 | I198: 1674.455356
A199: 186 | B199: 0.46192 | C199: -0.09559781579 | D199: -3.123287671e-05 | E199: -0.0008006109397 | F199: 0.9991685021 | G199: 1673.06305 | H199: 177 | I199: 1673.06305
A200: 187 | B200: 0.41685 | C200: -0.209958581 | D200: -3.123287671e-05 | E200: -0.001758357505 | F200: 0.99821201 | G200: 1670.07163 | H200: 178 | I200: 1670.07163
A201: 188 | B201: 0.64391 | C201: 0.3689298678 | D201: -3.123287671e-05 | E201: 0.003089707497 | F201: 1.003063157 | G201: 1675.187321 | H201: 179 | I201: 1675.187321
A202: 189 | B202: 0.5991 | C202: 0.2510182492 | D202: -3.123287671e-05 | E202: 0.002102223306 | F202: 1.002073136 | G202: 1678.660213 | H202: 180 | I202: 1678.660213
A203: 190 | B203: 0.30552 | C203: -0.5085894863 | D203: -3.123287671e-05 | E203: -0.004259326462 | F203: 0.995718632 | G203: 1671.473251 | H203: 181 | I203: 1671.473251
A204: 191 | B204: 0.06963 | C204: -1.478552335 | D204: -3.123287671e-05 | E204: -0.01238255461 | F204: 0.9876629457 | G204: 1650.852195 | H204: 182 | I204: 1650.852195
A205: 192 | B205: 0.13579 | C205: -1.099431264 | D205: -3.123287671e-05 | E205: -0.009207498 | F205: 0.9908038151 | G205: 1635.670652 | H205: 183 | I205: 1635.670652
... 284 more rows

Sheet Futures
C1: Strike | D1: 2020
A3: payoff for a long future | C3: Terminal Price - Strike Price
A4: Futures Scenario
B5: 1 | C5: 2 | D5: 3 | E5: 4 | F5: 5 | G5: 6 | H5: 7 | I5: 8 | J5: 9 | K5: 10 | L5: 11 | M5: 12 | N5: 13 | O5: 14 | P5: 15 | Q5: 16 | R5: 17 | S5: 18 | T5: 19 | U5: 20 | V5: 21 | W5: 22 | X5: 23 | Y5: 24 | Z5: 25 | AA5: 26 | AB5: 27 | AC5: 28 | AD5: 29 | AE5: 30 | AF5: 31 | AG5: 32 | AH5: 33 | AI5: 34 | AJ5: 35 | AK5: 36 | AL5: 37 | AM5: 38 | AN5: 39 | AO5: 40 | AP5: 41 | AQ5: 42 | AR5: 43 | AS5: 44 | AT5: 45 | AU5: 46 | AV5: 47 | AW5: 48 | AX5: 49 | AY5: 50 | AZ5: 51 | BA5: 52 | BB5: 53 | BC5: 54 | BD5: 55 | BE5: 56 | BF5: 57 | BG5: 58 | BH5: 59 | BI5: 60 | BJ5: 61 | BK5: 62 | BL5: 63 | BM5: 64 | BN5: 65 | BO5: 66 | BP5: 67 | BQ5: 68 | BR5: 69 | BS5: 70 | BT5: 71 | BU5: 72 | BV5: 73 | BW5: 74 | BX5: 75 | BY5: 76 | BZ5: 77 | CA5: 78 | CB5: 79 | CC5: 80 | CD5: 81 | CE5: 82 | CF5: 83 | CG5: 84 | CH5: 85 | CI5: 86 | CJ5: 87 | CK5: 88 | CL5: 89 | CM5: 90 | CN5: 91 | CO5: 92 | CP5: 93 | CQ5: 94 | CR5: 95 | CS5: 96 | CT5: 97 | CU5: 98 | CV5: 99 | CW5: 100 | CX5: 101 | CY5: 102 | CZ5: 103 | DA5: 104 | DB5: 105 | DC5: 106 | DD5: 107 | DE5: 108 | DF5: 109 | DG5: 110 | DH5: 111 | DI5: 112 | DJ5: 113 | DK5: 114 | DL5: 115 | DM5: 116 | DN5: 117 | DO5: 118 | DP5: 119 | DQ5: 120 | DR5: 121 | DS5: 122 | DT5: 123 | DU5: 124 | DV5: 125 | DW5: 126 | DX5: 127 | DY5: 128 | DZ5: 129 | EA5: 130 | EB5: 131 | EC5: 132 | ED5: 133 | EE5: 134 | EF5: 135 | EG5: 136 | EH5: 137 | EI5: 138 | EJ5: 139 | EK5: 140 | EL5: 141 | EM5: 142 | EN5: 143 | EO5: 144 | EP5: 145 | EQ5: 146 | ER5: 147 | ES5: 148 | ET5: 149 | EU5: 150 | EV5: 151 | EW5: 152 | EX5: 153 | EY5: 154 | EZ5: 155 | FA5: 156 | FB5: 157 | FC5: 158 | FD5: 159 | FE5: 160 | FF5: 161 | FG5: 162 | FH5: 163 | FI5: 164 | FJ5: 165 | FK5: 166 | FL5: 167 | FM5: 168 | FN5: 169 | FO5: 170 | FP5: 171 | FQ5: 172 | FR5: 173 | FS5: 174 | FT5: 175 | FU5: 176 | FV5: 177 | FW5: 178 | FX5: 179 | FY5: 180 | FZ5: 181 | GA5: 182 | GB5: 183 | GC5: 184 | GD5: 185 | GE5: 186 | GF5: 187 | GG5: 188 | GH5: 189 | GI5: 190 | GJ5: 191 | GK5: 192 | GL5: 193 | GM5: 194 | GN5: 195 | GO5: 196 | GP5: 197 | GQ5: 198 | GR5: 199 | GS5: 200 | GT5: 201 | GU5: 202 | GV5: 203 | GW5: 204 | GX5: 205 | GY5: 206 | GZ5: 207 | HA5: 208 | HB5: 209 | HC5: 210 | HD5: 211 | HE5: 212 | HF5: 213 | HG5: 214 | HH5: 215 | HI5: 216 | HJ5: 217 | HK5: 218 | HL5: 219 | HM5: 220 | HN5: 221 | HO5: 222 | HP5: 223 | HQ5: 224 | HR5: 225 | HS5: 226 | HT5: 227 | HU5: 228 | HV5: 229 | HW5: 230 | HX5: 231 | HY5: 232 | HZ5: 233 | IA5: 234 | IB5: 235 | IC5: 236 | ID5: 237 | IE5: 238 | IF5: 239 | IG5: 240 | IH5: 241 | II5: 242 | IJ5: 243 | IK5: 244 | IL5: 245 | IM5: 246 | IN5: 247 | IO5: 248 | IP5: 249 | IQ5: 250 | IR5: 251 | IS5: 252 | IT5: 253 | IU5: 254 | IV5: 255 | IW5: 256 | IX5: 257 | IY5: 258 | IZ5: 259 | JA5: 260 | JB5: 261 | JC5: 262 | JD5: 263 | JE5: 264 | JF5: 265 | JG5: 266 | JH5: 267 | JI5: 268 | JJ5: 269 | JK5: 270 | JL5: 271 | JM5: 272 | JN5: 273 | JO5: 274 | JP5: 275 | JQ5: 276 | JR5: 277 | JS5: 278 | JT5: 279 | JU5: 280 | JV5: 281 | JW5: 282 | JX5: 283 | JY5: 284 | JZ5: 285 | KA5: 286 | KB5: 287 | KC5: 288 | KD5: 289 | KE5: 290 | KF5: 291 | KG5: 292 | KH5: 293 | KI5: 294 | KJ5: 295 | KK5: 296 | KL5: 297 | KM5: 298 | KN5: 299 | KO5: 300 | KP5: 301 | KQ5: 302 | KR5: 303 | KS5: 304 | KT5: 305 | KU5: 306 | KV5: 307 | KW5: 308 | KX5: 309 | KY5: 310 | KZ5: 311 | LA5: 312 | LB5: 313 | LC5: 314 | LD5: 315 | LE5: 316 | LF5: 317 | LG5: 318 | LH5: 319 | LI5: 320 | LJ5: 321 | LK5: 322 | LL5: 323 | LM5: 324 | LN5: 325 | LO5: 326 | LP5: 327 | LQ5: 328 | LR5: 329 | LS5: 330 | LT5: 331 | LU5: 332 | LV5: 333 | LW5: 334 | LX5: 335 | LY5: 336 | LZ5: 337 | MA5: 338 | MB5: 339 | MC5: 340 | MD5: 341 | ME5: 342 | MF5: 343 | MG5: 344 | MH5: 345 | MI5: 346 | MJ5: 347 | MK5: 348 | ML5: 349 | MM5: 350 | MN5: 351 | MO5: 352 | MP5: 353 | MQ5: 354 | MR5: 355 | MS5: 356 | MT5: 357 | MU5: 358 | MV5: 359 | MW5: 360 | MX5: 361 | MY5: 362 | MZ5: 363 | NA5: 364 | NB5: 365
A7: 1 | B7: =Simulation!B392-Futures!$D$1 -> 8.874245837 | C7: =Simulation!C392-Futures!$D$1 -> 15.84878237 | D7: =Simulation!D392-Futures!$D$1 -> 2.300690399 | E7: =Simulation!E392-Futures!$D$1 -> 14.03177666 | F7: =Simulation!F392-Futures!$D$1 -> 7.230603531 | G7: =Simulation!G392-Futures!$D$1 -> -0.09870480105 | H7: =Simulation!H392-Futures!$D$1 -> -16.16637786 | I7: =Simulation!I392-Futures!$D$1 -> -19.71788229 | J7: =Simulation!J392-Futures!$D$1 -> -10.04453477 | K7: =Simulation!K392-Futures!$D$1 -> 15.14985951 | L7: =Simulation!L392-Futures!$D$1 -> 16.68233346 | M7: =Simulation!M392-Futures!$D$1 -> 22.41694515 | N7: =Simulation!N392-Futures!$D$1 -> -1.623150109 | O7: =Simulation!O392-Futures!$D$1 -> 34.30365917 | P7: =Simulation!P392-Futures!$D$1 -> 35.21181913 | Q7: =Simulation!Q392-Futures!$D$1 -> 28.57686672 | R7: =Simulation!R392-Futures!$D$1 -> -6.13887713 | S7: =Simulation!S392-Futures!$D$1 -> -45.90570929 | T7: =Simulation!T392-Futures!$D$1 -> -49.59622855 | U7: =Simulation!U392-Futures!$D$1 -> -62.40698833 | V7: =Simulation!V392-Futures!$D$1 -> -38.59845869 | W7: =Simulation!W392-Futures!$D$1 -> -32.05986893 | X7: =Simulation!X392-Futures!$D$1 -> -32.45746438 | Y7: =Simulation!Y392-Futures!$D$1 -> -35.84740925 | Z7: =Simulation!Z392-Futures!$D$1 -> -50.37715919 | AA7: =Simulation!AA392-Futures!$D$1 -> -31.06737164 | AB7: =Simulation!AB392-Futures!$D$1 -> -34.48307897 | AC7: =Simulation!AC392-Futures!$D$1 -> -52.9086945 | AD7: =Simulation!AD392-Futures!$D$1 -> -55.24965816 | AE7: =Simulation!AE392-Futures!$D$1 -> -59.9558828 | AF7: =Simulation!AF392-Futures!$D$1 -> -73.57017392 | AG7: =Simulation!AG392-Futures!$D$1 -> -96.46410433 | AH7: =Simulation!AH392-Futures!$D$1 -> -105.8088051 | AI7: =Simulation!AI392-Futures!$D$1 -> -117.9245991 | AJ7: =Simulation!AJ392-Futures!$D$1 -> -134.5736624 | AK7: =Simulation!AK392-Futures!$D$1 -> -153.041028 | AL7: =Simulation!AL392-Futures!$D$1 -> -143.1262122 | AM7: =Simulation!AM392-Futures!$D$1 -> -139.7554153 | AN7: =Simulation!AN392-Futures!$D$1 -> -137.1748764 | AO7: =Simulation!AO392-Futures!$D$1 -> -164.5095867 | AP7: =Simulation!AP392-Futures!$D$1 -> -177.131294 | AQ7: =Simulation!AQ392-Futures!$D$1 -> -176.4340356 | AR7: =Simulation!AR392-Futures!$D$1 -> -176.6115812 | AS7: =Simulation!AS392-Futures!$D$1 -> -196.8621733 | AT7: =Simulation!AT392-Futures!$D$1 -> -201.7599191 | AU7: =Simulation!AU392-Futures!$D$1 -> -196.2996418 | AV7: =Simulation!AV392-Futures!$D$1 -> -185.1293955 | AW7: =Simulation!AW392-Futures!$D$1 -> -207.0725714 | AX7: =Simulation!AX392-Futures!$D$1 -> -197.1624289 | AY7: =Simulation!AY392-Futures!$D$1 -> -199.4618382 | AZ7: =Simulation!AZ392-Futures!$D$1 -> -187.645817 | BA7: =Simulation!BA392-Futures!$D$1 -> -165.6256423 | BB7: =Simulation!BB392-Futures!$D$1 -> -181.4350451 | BC7: =Simulation!BC392-Futures!$D$1 -> -192.914231 | BD7: =Simulation!BD392-Futures!$D$1 -> -180.0833768 | BE7: =Simulation!BE392-Futures!$D$1 -> -174.8218872 | BF7: =Simulation!BF392-Futures!$D$1 -> -169.7772462 | BG7: =Simulation!BG392-Futures!$D$1 -> -161.3205096 | BH7: =Simulation!BH392-Futures!$D$1 -> -150.8431504 | BI7: =Simulation!BI392-Futures!$D$1 -> -132.770852 | BJ7: =Simulation!BJ392-Futures!$D$1 -> -128.7316373 | BK7: =Simulation!BK392-Futures!$D$1 -> -122.2544332 | BL7: =Simulation!BL392-Futures!$D$1 -> -100.4417006 | BM7: =Simulation!BM392-Futures!$D$1 -> -108.8303602 | BN7: =Simulation!BN392-Futures!$D$1 -> -94.9989053 | BO7: =Simulation!BO392-Futures!$D$1 -> -63.91888852 | BP7: =Simulation!BP392-Futures!$D$1 -> -58.16981077 | BQ7: =Simulation!BQ392-Futures!$D$1 -> -33.94277683 | BR7: =Simulation!BR392-Futures!$D$1 -> -30.21017625 | BS7: =Simulation!BS392-Futures!$D$1 -> -40.19183618 | BT7: =Simulation!BT392-Futures!$D$1 -> -48.73554097 | BU7: =Simulation!BU392-Futures!$D$1 -> -40.38415145 | BV7: =Simulation!BV392-Futures!$D$1 -> -67.44270513 | BW7: =Simulation!BW392-Futures!$D$1 -> -78.69585834 | BX7: =Simulation!BX392-Futures!$D$1 -> -69.71557253 | BY7: =Simulation!BY392-Futures!$D$1 -> -56.88520058 | BZ7: =Simulation!BZ392-Futures!$D$1 -> -66.93219646 | CA7: =Simulation!CA392-Futures!$D$1 -> -68.02225392 | CB7: =Simulation!CB392-Futures!$D$1 -> -58.10242919 | CC7: =Simulation!CC392-Futures!$D$1 -> -66.66063488 | CD7: =Simulation!CD392-Futures!$D$1 -> -34.36977297 | CE7: =Simulation!CE392-Futures!$D$1 -> -29.15736281 | CF7: =Simulation!CF392-Futures!$D$1 -> -49.77003029 | CG7: =Simulation!CG392-Futures!$D$1 -> -49.75463632 | CH7: =Simulation!CH392-Futures!$D$1 -> -24.79000553 | CI7: =Simulation!CI392-Futures!$D$1 -> -26.11422047 | CJ7: =Simulation!CJ392-Futures!$D$1 -> -21.89702713 | CK7: =Simulation!CK392-Futures!$D$1 -> -16.42807808 | CL7: =Simulation!CL392-Futures!$D$1 -> 15.37726906 | CM7: =Simulation!CM392-Futures!$D$1 -> 30.77710097 | CN7: =Simulation!CN392-Futures!$D$1 -> 23.63777817 | CO7: =Simulation!CO392-Futures!$D$1 -> 11.45256898 | CP7: =Simulation!CP392-Futures!$D$1 -> 22.40628407 | CQ7: =Simulation!CQ392-Futures!$D$1 -> 19.27927608 | CR7: =Simulation!CR392-Futures!$D$1 -> 44.97109435 | CS7: =Simulation!CS392-Futures!$D$1 -> 55.62398181 | CT7: =Simulation!CT392-Futures!$D$1 -> 32.002664 | CU7: =Simulation!CU392-Futures!$D$1 -> 11.63261974 | CV7: =Simulation!CV392-Futures!$D$1 -> 10.29790845 | CW7: =Simulation!CW392-Futures!$D$1 -> 7.146617347 | CX7: =Simulation!CX392-Futures!$D$1 -> -14.78428447 | CY7: =Simulation!CY392-Futures!$D$1 -> -26.90413871 | CZ7: =Simulation!CZ392-Futures!$D$1 -> -58.03865032 | DA7: =Simulation!DA392-Futures!$D$1 -> -59.55760329 | DB7: =Simulation!DB392-Futures!$D$1 -> -86.98904334 | DC7: =Simulation!DC392-Futures!$D$1 -> -90.90418803 | DD7: =Simulation!DD392-Futures!$D$1 -> -86.47917473 | DE7: =Simulation!DE392-Futures!$D$1 -> -72.79360643 | DF7: =Simulation!DF392-Futures!$D$1 -> -46.2961877 | DG7: =Simulation!DG392-Futures!$D$1 -> -59.69230851 | DH7: =Simulation!DH392-Futures!$D$1 -> -71.94455145 | DI7: =Simulation!DI392-Futures!$D$1 -> -49.50810864 | DJ7: =Simulation!DJ392-Futures!$D$1 -> -58.95279475 | DK7: =Simulation!DK392-Futures!$D$1 -> -75.08107666 | DL7: =Simulation!DL392-Futures!$D$1 -> -76.31340754 | DM7: =Simulation!DM392-Futures!$D$1 -> -63.54546071 | DN7: =Simulation!DN392-Futures!$D$1 -> -37.86379813 | DO7: =Simulation!DO392-Futures!$D$1 -> -37.00672064 | DP7: =Simulation!DP392-Futures!$D$1 -> -19.24578076 | DQ7: =Simulation!DQ392-Futures!$D$1 -> -27.00965648 | DR7: =Simulation!DR392-Futures!$D$1 -> -23.73872002 | DS7: =Simulation!DS392-Futures!$D$1 -> -12.46410582 | DT7: =Simulation!DT392-Futures!$D$1 -> -15.64211604 | DU7: =Simulation!DU392-Futures!$D$1 -> -23.64575742 | DV7: =Simulation!DV392-Futures!$D$1 -> -53.57372181 | DW7: =Simulation!DW392-Futures!$D$1 -> -35.0208712 | DX7: =Simulation!DX392-Futures!$D$1 -> -36.92083078 | DY7: =Simulation!DY392-Futures!$D$1 -> -21.90596018 | DZ7: =Simulation!DZ392-Futures!$D$1 -> -57.22476403 | EA7: =Simulation!EA392-Futures!$D$1 -> -83.24057301 | EB7: =Simulation!EB392-Futures!$D$1 -> -94.01041044 | EC7: =Simulation!EC392-Futures!$D$1 -> -99.03455471 | ED7: =Simulation!ED392-Futures!$D$1 -> -52.89261647 | EE7: =Simulation!EE392-Futures!$D$1 -> -52.16282715 | EF7: =Simulation!EF392-Futures!$D$1 -> -58.61504685 | EG7: =Simulation!EG392-Futures!$D$1 -> -74.9043158 | EH7: =Simulation!EH392-Futures!$D$1 -> -103.7484041 | EI7: =Simulation!EI392-Futures!$D$1 -> -96.82049213 | EJ7: =Simulation!EJ392-Futures!$D$1 -> -89.8661974 | EK7: =Simulation!EK392-Futures!$D$1 -> -88.8167455 | EL7: =Simulation!EL392-Futures!$D$1 -> -93.00554908 | EM7: =Simulation!EM392-Futures!$D$1 -> -139.5331454 | EN7: =Simulation!EN392-Futures!$D$1 -> -150.9473608 | EO7: =Simulation!EO392-Futures!$D$1 -> -161.4429359 | EP7: =Simulation!EP392-Futures!$D$1 -> -143.2220149 | EQ7: =Simulation!EQ392-Futures!$D$1 -> -169.1164254 | ER7: =Simulation!ER392-Futures!$D$1 -> -158.1783599 | ES7: =Simulation!ES392-Futures!$D$1 -> -176.248738 | ET7: =Simulation!ET392-Futures!$D$1 -> -143.0479571 | EU7: =Simulation!EU392-Futures!$D$1 -> -146.554857 | EV7: =Simulation!EV392-Futures!$D$1 -> -145.7002453 | EW7: =Simulation!EW392-Futures!$D$1 -> -153.8566228 | EX7: =Simulation!EX392-Futures!$D$1 -> -135.5941773 | EY7: =Simulation!EY392-Futures!$D$1 -> -134.9216132 | EZ7: =Simulation!EZ392-Futures!$D$1 -> -135.9871981 | FA7: =Simulation!FA392-Futures!$D$1 -> -145.748037 | FB7: =Simulation!FB392-Futures!$D$1 -> -154.922336 | FC7: =Simulation!FC392-Futures!$D$1 -> -167.3937557 | FD7: =Simulation!FD392-Futures!$D$1 -> -176.7441768 | FE7: =Simulation!FE392-Futures!$D$1 -> -169.3462416 | FF7: =Simulation!FF392-Futures!$D$1 -> -194.7842205 | FG7: =Simulation!FG392-Futures!$D$1 -> -195.6218669 | FH7: =Simulation!FH392-Futures!$D$1 -> -193.6195237 | FI7: =Simulation!FI392-Futures!$D$1 -> -201.3699281 | FJ7: =Simulation!FJ392-Futures!$D$1 -> -204.7698109 | FK7: =Simulation!FK392-Futures!$D$1 -> -189.287682 | FL7: =Simulation!FL392-Futures!$D$1 -> -208.2383052 | FM7: =Simulation!FM392-Futures!$D$1 -> -226.7106661 | FN7: =Simulation!FN392-Futures!$D$1 -> -221.6569679 | FO7: =Simulation!FO392-Futures!$D$1 -> -220.9606748 | FP7: =Simulation!FP392-Futures!$D$1 -> -206.1991473 | FQ7: =Simulation!FQ392-Futures!$D$1 -> -191.1857045 | FR7: =Simulation!FR392-Futures!$D$1 -> -192.0480574 | FS7: =Simulation!FS392-Futures!$D$1 -> -182.4407834 | FT7: =Simulation!FT392-Futures!$D$1 -> -188.9598379 | FU7: =Simulation!FU392-Futures!$D$1 -> -183.8083284 | FV7: =Simulation!FV392-Futures!$D$1 -> -199.1261761 | FW7: =Simulation!FW392-Futures!$D$1 -> -216.5994142 | FX7: =Simulation!FX392-Futures!$D$1 -> -199.1294255 | FY7: =Simulation!FY392-Futures!$D$1 -> -194.1791562 | FZ7: =Simulation!FZ392-Futures!$D$1 -> -217.3285064 | GA7: =Simulation!GA392-Futures!$D$1 -> -222.1121659 | GB7: =Simulation!GB392-Futures!$D$1 -> -233.0051675 | GC7: =Simulation!GC392-Futures!$D$1 -> -224.497154 | GD7: =Simulation!GD392-Futures!$D$1 -> -197.4357631 | GE7: =Simulation!GE392-Futures!$D$1 -> -212.2989848 | GF7: =Simulation!GF392-Futures!$D$1 -> -180.7003435 | GG7: =Simulation!GG392-Futures!$D$1 -> -165.8957773 | GH7: =Simulation!GH392-Futures!$D$1 -> -170.6404814 | GI7: =Simulation!GI392-Futures!$D$1 -> -158.4186071 | GJ7: =Simulation!GJ392-Futures!$D$1 -> -133.0614176 | GK7: =Simulation!GK392-Futures!$D$1 -> -160.1838519 | GL7: =Simulation!GL392-Futures!$D$1 -> -181.0635818 | GM7: =Simulation!GM392-Futures!$D$1 -> -190.3183447 | GN7: =Simulation!GN392-Futures!$D$1 -> -220.5864494 | GO7: =Simulation!GO392-Futures!$D$1 -> -214.2932077 | GP7: =Simulation!GP392-Futures!$D$1 -> -204.614871 | GQ7: =Simulation!GQ392-Futures!$D$1 -> -201.6887516 | GR7: =Simulation!GR392-Futures!$D$1 -> -233.4044977 | GS7: =Simulation!GS392-Futures!$D$1 -> -249.1887046 | GT7: =Simulation!GT392-Futures!$D$1 -> -254.3854246 | GU7: =Simulation!GU392-Futures!$D$1 -> -262.8541971 | GV7: =Simulation!GV392-Futures!$D$1 -> -262.9802651 | GW7: =Simulation!GW392-Futures!$D$1 -> -266.0281379 | GX7: =Simulation!GX392-Futures!$D$1 -> -256.4796814 | GY7: =Simulation!GY392-Futures!$D$1 -> -243.6885841 | GZ7: =Simulation!GZ392-Futures!$D$1 -> -243.2136358 | HA7: =Simulation!HA392-Futures!$D$1 -> -218.3274305 | HB7: =Simulation!HB392-Futures!$D$1 -> -204.2407154 | HC7: =Simulation!HC392-Futures!$D$1 -> -202.6529703 | HD7: =Simulation!HD392-Futures!$D$1 -> -209.0260518 | HE7: =Simulation!HE392-Futures!$D$1 -> -219.2489712 | HF7: =Simulation!HF392-Futures!$D$1 -> -221.5457111 | HG7: =Simulation!HG392-Futures!$D$1 -> -197.4309239 | HH7: =Simulation!HH392-Futures!$D$1 -> -194.2027794 | HI7: =Simulation!HI392-Futures!$D$1 -> -206.4225287 | HJ7: =Simulation!HJ392-Futures!$D$1 -> -210.1861298 | HK7: =Simulation!HK392-Futures!$D$1 -> -205.7780652 | HL7: =Simulation!HL392-Futures!$D$1 -> -208.3989612 | HM7: =Simulation!HM392-Futures!$D$1 -> -232.1996848 | HN7: =Simulation!HN392-Futures!$D$1 -> -213.4032799 | HO7: =Simulation!HO392-Futures!$D$1 -> -206.9937435 | HP7: =Simulation!HP392-Futures!$D$1 -> -197.10118 | HQ7: =Simulation!HQ392-Futures!$D$1 -> -204.7090062 | HR7: =Simulation!HR392-Futures!$D$1 -> -206.7256809 | HS7: =Simulation!HS392-Futures!$D$1 -> -237.6932025 | HT7: =Simulation!HT392-Futures!$D$1 -> -236.6989846 | HU7: =Simulation!HU392-Futures!$D$1 -> -216.7774533 | HV7: =Simulation!HV392-Futures!$D$1 -> -202.7885628 | HW7: =Simulation!HW392-Futures!$D$1 -> -199.9875386 | HX7: =Simulation!HX392-Futures!$D$1 -> -191.3656654 | HY7: =Simulation!HY392-Futures!$D$1 -> -171.6694117 | HZ7: =Simulation!HZ392-Futures!$D$1 -> -186.1013622 | IA7: =Simulation!IA392-Futures!$D$1 -> -189.1117092 | IB7: =Simulation!IB392-Futures!$D$1 -> -186.8207231 | IC7: =Simulation!IC392-Futures!$D$1 -> -191.0099779 | ID7: =Simulation!ID392-Futures!$D$1 -> -199.3438272 | IE7: =Simulation!IE392-Futures!$D$1 -> -185.8409966 | IF7: =Simulation!IF392-Futures!$D$1 -> -196.9870573 | IG7: =Simulation!IG392-Futures!$D$1 -> -188.8581237 | IH7: =Simulation!IH392-Futures!$D$1 -> -210.0470015 | II7: =Simulation!II392-Futures!$D$1 -> -203.0017657 | IJ7: =Simulation!IJ392-Futures!$D$1 -> -203.1477657 | IK7: =Simulation!IK392-Futures!$D$1 -> -228.6799813 | IL7: =Simulation!IL392-Futures!$D$1 -> -209.793162 | IM7: =Simulation!IM392-Futures!$D$1 -> -186.0676215 | IN7: =Simulation!IN392-Futures!$D$1 -> -206.8577616 | IO7: =Simulation!IO392-Futures!$D$1 -> -205.1983283 | IP7: =Simulation!IP392-Futures!$D$1 -> -209.3771267 | IQ7: =Simulation!IQ392-Futures!$D$1 -> -214.8067589 | IR7: =Simulation!IR392-Futures!$D$1 -> -222.297625 | IS7: =Simulation!IS392-Futures!$D$1 -> -209.2336796 | IT7: =Simulation!IT392-Futures!$D$1 -> -216.6056636 | IU7: =Simulation!IU392-Futures!$D$1 -> -235.2694706 | IV7: =Simulation!IV392-Futures!$D$1 -> -218.71832 | IW7: =Simulation!IW392-Futures!$D$1 -> -234.4333953 | IX7: =Simulation!IX392-Futures!$D$1 -> -247.0596259 | IY7: =Simulation!IY392-Futures!$D$1 -> -250.3185526 | IZ7: =Simulation!IZ392-Futures!$D$1 -> -267.8169751 | JA7: =Simulation!JA392-Futures!$D$1 -> -278.5567895 | JB7: =Simulation!JB392-Futures!$D$1 -> -286.6731126 | JC7: =Simulation!JC392-Futures!$D$1 -> -279.6169118 | JD7: =Simulation!JD392-Futures!$D$1 -> -269.8906572 | JE7: =Simulation!JE392-Futures!$D$1 -> -247.1119437 | JF7: =Simulation!JF392-Futures!$D$1 -> -258.9288444 | JG7: =Simulation!JG392-Futures!$D$1 -> -270.3944875 | JH7: =Simulation!JH392-Futures!$D$1 -> -280.4793574 | JI7: =Simulation!JI392-Futures!$D$1 -> -287.1459117 | JJ7: =Simulation!JJ392-Futures!$D$1 -> -285.1686573 | JK7: =Simulation!JK392-Futures!$D$1 -> -291.6475042 | JL7: =Simulation!JL392-Futures!$D$1 -> -286.8172598 | JM7: =Simulation!JM392-Futures!$D$1 -> -274.5428819 | JN7: =Simulation!JN392-Futures!$D$1 -> -249.4773423 | JO7: =Simulation!JO392-Futures!$D$1 -> -271.7170032 | JP7: =Simulation!JP392-Futures!$D$1 -> -281.8627147 | JQ7: =Simulation!JQ392-Futures!$D$1 -> -272.8007113 | JR7: =Simulation!JR392-Futures!$D$1 -> -248.4279407 | JS7: =Simulation!JS392-Futures!$D$1 -> -247.5232505 | JT7: =Simulation!JT392-Futures!$D$1 -> -211.346856 | JU7: =Simulation!JU392-Futures!$D$1 -> -219.2434963 | JV7: =Simulation!JV392-Futures!$D$1 -> -218.037915 | JW7: =Simulation!JW392-Futures!$D$1 -> -203.1714771 | JX7: =Simulation!JX392-Futures!$D$1 -> -169.8011051 | JY7: =Simulation!JY392-Futures!$D$1 -> -139.6825835 | JZ7: =Simulation!JZ392-Futures!$D$1 -> -141.5966766 | KA7: =Simulation!KA392-Futures!$D$1 -> -164.1543914 | KB7: =Simulation!KB392-Futures!$D$1 -> -149.0707849 | KC7: =Simulation!KC392-Futures!$D$1 -> -138.9110077 | KD7: =Simulation!KD392-Futures!$D$1 -> -115.2563056 | KE7: =Simulation!KE392-Futures!$D$1 -> -113.9156456 | KF7: =Simulation!KF392-Futures!$D$1 -> -130.6320512 | KG7: =Simulation!KG392-Futures!$D$1 -> -134.1872969 | KH7: =Simulation!KH392-Futures!$D$1 -> -129.0575419 | KI7: =Simulation!KI392-Futures!$D$1 -> -128.1515832 | KJ7: =Simulation!KJ392-Futures!$D$1 -> -146.8397881 | KK7: =Simulation!KK392-Futures!$D$1 -> -136.2465112 | KL7: =Simulation!KL392-Futures!$D$1 -> -152.4619585 | KM7: =Simulation!KM392-Futures!$D$1 -> -149.8319482 | KN7: =Simulation!KN392-Futures!$D$1 -> -141.083494 | KO7: =Simulation!KO392-Futures!$D$1 -> -133.7437466 | KP7: =Simulation!KP392-Futures!$D$1 -> -142.0555219 | KQ7: =Simulation!KQ392-Futures!$D$1 -> -143.347348 | KR7: =Simulation!KR392-Futures!$D$1 -> -146.4543234 | KS7: =Simulation!KS392-Futures!$D$1 -> -144.5187377 | KT7: =Simulation!KT392-Futures!$D$1 -> -145.7552032 | KU7: =Simulation!KU392-Futures!$D$1 -> -130.2543665 | KV7: =Simulation!KV392-Futures!$D$1 -> -118.4560121 | KW7: =Simulation!KW392-Futures!$D$1 -> -95.01145375 | KX7: =Simulation!KX392-Futures!$D$1 -> -118.6334771 | KY7: =Simulation!KY392-Futures!$D$1 -> -123.309013 | KZ7: =Simulation!KZ392-Futures!$D$1 -> -129.3302783 | LA7: =Simulation!LA392-Futures!$D$1 -> -142.2884935 | LB7: =Simulation!LB392-Futures!$D$1 -> -132.3558403 | LC7: =Simulation!LC392-Futures!$D$1 -> -135.591544 | LD7: =Simulation!LD392-Futures!$D$1 -> -150.7935009 | LE7: =Simulation!LE392-Futures!$D$1 -> -153.3742684 | LF7: =Simulation!LF392-Futures!$D$1 -> -145.6033626 | LG7: =Simulation!LG392-Futures!$D$1 -> -105.6094496 | LH7: =Simulation!LH392-Futures!$D$1 -> -94.25555088 | LI7: =Simulation!LI392-Futures!$D$1 -> -100.1739972 | LJ7: =Simulation!LJ392-Futures!$D$1 -> -108.479912 | LK7: =Simulation!LK392-Futures!$D$1 -> -118.0508136 | LL7: =Simulation!LL392-Futures!$D$1 -> -104.2638641 | LM7: =Simulation!LM392-Futures!$D$1 -> -119.2073415 | LN7: =Simulation!LN392-Futures!$D$1 -> -144.5588163 | LO7: =Simulation!LO392-Futures!$D$1 -> -136.1901692 | LP7: =Simulation!LP392-Futures!$D$1 -> -112.0491717 | LQ7: =Simulation!LQ392-Futures!$D$1 -> -116.2946198 | LR7: =Simulation!LR392-Futures!$D$1 -> -125.5063516 | LS7: =Simulation!LS392-Futures!$D$1 -> -141.8685491 | LT7: =Simulation!LT392-Futures!$D$1 -> -111.5100172 | LU7: =Simulation!LU392-Futures!$D$1 -> -106.5908292 | LV7: =Simulation!LV392-Futures!$D$1 -> -119.7897699 | LW7: =Simulation!LW392-Futures!$D$1 -> -121.1612984 | LX7: =Simulation!LX392-Futures!$D$1 -> -120.5486429 | LY7: =Simulation!LY392-Futures!$D$1 -> -139.4900998 | LZ7: =Simulation!LZ392-Futures!$D$1 -> -138.8177402 | MA7: =Simulation!MA392-Futures!$D$1 -> -135.886708 | MB7: =Simulation!MB392-Futures!$D$1 -> -157.9824654 | MC7: =Simulation!MC392-Futures!$D$1 -> -141.9376221 | MD7: =Simulation!MD392-Futures!$D$1 -> -147.9588385 | ME7: =Simulation!ME392-Futures!$D$1 -> -153.203589 | MF7: =Simulation!MF392-Futures!$D$1 -> -104.7321274 | MG7: =Simulation!MG392-Futures!$D$1 -> -83.5666033 | MH7: =Simulation!MH392-Futures!$D$1 -> -104.7224589 | MI7: =Simulation!MI392-Futures!$D$1 -> -126.0176074 | MJ7: =Simulation!MJ392-Futures!$D$1 -> -86.89426881 | MK7: =Simulation!MK392-Futures!$D$1 -> -87.24315753 | ML7: =Simulation!ML392-Futures!$D$1 -> -84.84443092 | MM7: =Simulation!MM392-Futures!$D$1 -> -98.21886551 | MN7: =Simulation!MN392-Futures!$D$1 -> -93.92942496 | MO7: =Simulation!MO392-Futures!$D$1 -> -65.21643673 | MP7: =Simulation!MP392-Futures!$D$1 -> -65.6763429 | MQ7: =Simulation!MQ392-Futures!$D$1 -> -74.55575279 | MR7: =Simulation!MR392-Futures!$D$1 -> -88.38442924 | MS7: =Simulation!MS392-Futures!$D$1 -> -93.67193288 | MT7: =Simulation!MT392-Futures!$D$1 -> -82.61322743 | MU7: =Simulation!MU392-Futures!$D$1 -> -100.6609593 | MV7: =Simulation!MV392-Futures!$D$1 -> -106.9680218 | MW7: =Simulation!MW392-Futures!$D$1 -> -94.99007213 | MX7: =Simulation!MX392-Futures!$D$1 -> -73.28387392 | MY7: =Simulation!MY392-Futures!$D$1 -> -75.4276205 | MZ7: =Simulation!MZ392-Futures!$D$1 -> -2020 | NA7: =Simulation!NA392-Futures!$D$1 -> -2020 | NB7: =Simulation!NB392-Futures!$D$1 -> -2012
A8: 2 | B8: =Simulation!B393-Futures!$D$1 -> 17.52836793 | C8: =Simulation!C393-Futures!$D$1 -> 24.11124757 | D8: =Simulation!D393-Futures!$D$1 -> 56.69751994 | E8: =Simulation!E393-Futures!$D$1 -> 51.93011432 | F8: =Simulation!F393-Futures!$D$1 -> 28.23711596 | G8: =Simulation!G393-Futures!$D$1 -> 18.44947752 | H8: =Simulation!H393-Futures!$D$1 -> 8.932012192 | I8: =Simulation!I393-Futures!$D$1 -> -16.80992442 | J8: =Simulation!J393-Futures!$D$1 -> -11.02062859 | K8: =Simulation!K393-Futures!$D$1 -> -11.60379332 | L8: =Simulation!L393-Futures!$D$1 -> -5.551693776 | M8: =Simulation!M393-Futures!$D$1 -> -14.27418997 | N8: =Simulation!N393-Futures!$D$1 -> -39.64006573 | O8: =Simulation!O393-Futures!$D$1 -> -72.93093528 | P8: =Simulation!P393-Futures!$D$1 -> -90.47121784 | Q8: =Simulation!Q393-Futures!$D$1 -> -114.3718244 | R8: =Simulation!R393-Futures!$D$1 -> -107.8886754 | S8: =Simulation!S393-Futures!$D$1 -> -135.5891788 | T8: =Simulation!T393-Futures!$D$1 -> -130.5422855 | U8: =Simulation!U393-Futures!$D$1 -> -145.8326072 | V8: =Simulation!V393-Futures!$D$1 -> -136.0748488 | W8: =Simulation!W393-Futures!$D$1 -> -136.2539085 | X8: =Simulation!X393-Futures!$D$1 -> -125.6916124 | Y8: =Simulation!Y393-Futures!$D$1 -> -137.370794 | Z8: =Simulation!Z393-Futures!$D$1 -> -131.4594801 | AA8: =Simulation!AA393-Futures!$D$1 -> -157.7403591 | AB8: =Simulation!AB393-Futures!$D$1 -> -133.2790752 | AC8: =Simulation!AC393-Futures!$D$1 -> -131.2015056 | AD8: =Simulation!AD393-Futures!$D$1 -> -143.0291771 | AE8: =Simulation!AE393-Futures!$D$1 -> -143.9745832 | AF8: =Simulation!AF393-Futures!$D$1 -> -174.857124 | AG8: =Simulation!AG393-Futures!$D$1 -> -180.3734142 | AH8: =Simulation!AH393-Futures!$D$1 -> -186.464652 | AI8: =Simulation!AI393-Futures!$D$1 -> -197.1381717 | AJ8: =Simulation!AJ393-Futures!$D$1 -> -203.8701575 | AK8: =Simulation!AK393-Futures!$D$1 -> -182.1867003 | AL8: =Simulation!AL393-Futures!$D$1 -> -186.7883084 | AM8: =Simulation!AM393-Futures!$D$1 -> -173.6087183 | AN8: =Simulation!AN393-Futures!$D$1 -> -177.3456367 | AO8: =Simulation!AO393-Futures!$D$1 -> -194.7502451 | AP8: =Simulation!AP393-Futures!$D$1 -> -222.9678482 | AQ8: =Simulation!AQ393-Futures!$D$1 -> -223.5442018 | AR8: =Simulation!AR393-Futures!$D$1 -> -245.3705586 | AS8: =Simulation!AS393-Futures!$D$1 -> -241.2629886 | AT8: =Simulation!AT393-Futures!$D$1 -> -226.8500283 | AU8: =Simulation!AU393-Futures!$D$1 -> -224.9496269 | AV8: =Simulation!AV393-Futures!$D$1 -> -246.1012863 | AW8: =Simulation!AW393-Futures!$D$1 -> -242.0694907 | AX8: =Simulation!AX393-Futures!$D$1 -> -243.2210719 | AY8: =Simulation!AY393-Futures!$D$1 -> -264.8584606 | AZ8: =Simulation!AZ393-Futures!$D$1 -> -236.6281571 | BA8: =Simulation!BA393-Futures!$D$1 -> -235.8649027 | BB8: =Simulation!BB393-Futures!$D$1 -> -224.8609439 | BC8: =Simulation!BC393-Futures!$D$1 -> -232.6252735 | BD8: =Simulation!BD393-Futures!$D$1 -> -241.2476745 | BE8: =Simulation!BE393-Futures!$D$1 -> -238.6371336 | BF8: =Simulation!BF393-Futures!$D$1 -> -253.8758707 | BG8: =Simulation!BG393-Futures!$D$1 -> -249.8578864 | BH8: =Simulation!BH393-Futures!$D$1 -> -268.8546407 | BI8: =Simulation!BI393-Futures!$D$1 -> -248.6746522 | BJ8: =Simulation!BJ393-Futures!$D$1 -> -255.3744862 | BK8: =Simulation!BK393-Futures!$D$1 -> -252.0683284 | BL8: =Simulation!BL393-Futures!$D$1 -> -253.6218259 | BM8: =Simulation!BM393-Futures!$D$1 -> -254.0796811 | BN8: =Simulation!BN393-Futures!$D$1 -> -260.4257933 | BO8: =Simulation!BO393-Futures!$D$1 -> -283.4538968 | BP8: =Simulation!BP393-Futures!$D$1 -> -289.8695099 | BQ8: =Simulation!BQ393-Futures!$D$1 -> -282.0391563 | BR8: =Simulation!BR393-Futures!$D$1 -> -264.8094555 | BS8: =Simulation!BS393-Futures!$D$1 -> -246.0400159 | BT8: =Simulation!BT393-Futures!$D$1 -> -225.3787007 | BU8: =Simulation!BU393-Futures!$D$1 -> -233.8638035 | BV8: =Simulation!BV393-Futures!$D$1 -> -229.8030232 | BW8: =Simulation!BW393-Futures!$D$1 -> -236.3731868 | BX8: =Simulation!BX393-Futures!$D$1 -> -234.3906024 | BY8: =Simulation!BY393-Futures!$D$1 -> -216.952107 | BZ8: =Simulation!BZ393-Futures!$D$1 -> -211.5577135 | CA8: =Simulation!CA393-Futures!$D$1 -> -201.0526071 | CB8: =Simulation!CB393-Futures!$D$1 -> -221.8189916 | CC8: =Simulation!CC393-Futures!$D$1 -> -242.5129904 | CD8: =Simulation!CD393-Futures!$D$1 -> -254.0699849 | CE8: =Simulation!CE393-Futures!$D$1 -> -246.3878303 | CF8: =Simulation!CF393-Futures!$D$1 -> -242.1446593 | CG8: =Simulation!CG393-Futures!$D$1 -> -224.908178 | CH8: =Simulation!CH393-Futures!$D$1 -> -248.5267991 | CI8: =Simulation!CI393-Futures!$D$1 -> -235.6036946 | CJ8: =Simulation!CJ393-Futures!$D$1 -> -253.0807549 | CK8: =Simulation!CK393-Futures!$D$1 -> -256.7727043 | CL8: =Simulation!CL393-Futures!$D$1 -> -256.8810727 | CM8: =Simulation!CM393-Futures!$D$1 -> -238.855914 | CN8: =Simulation!CN393-Futures!$D$1 -> -214.5789081 | CO8: =Simulation!CO393-Futures!$D$1 -> -191.109493 | CP8: =Simulation!CP393-Futures!$D$1 -> -188.4113019 | CQ8: =Simulation!CQ393-Futures!$D$1 -> -202.1614612 | CR8: =Simulation!CR393-Futures!$D$1 -> -178.3476103 | CS8: =Simulation!CS393-Futures!$D$1 -> -183.5153691 | CT8: =Simulation!CT393-Futures!$D$1 -> -199.273412 | CU8: =Simulation!CU393-Futures!$D$1 -> -177.5785033 | CV8: =Simulation!CV393-Futures!$D$1 -> -206.9443965 | CW8: =Simulation!CW393-Futures!$D$1 -> -202.6529846 | CX8: =Simulation!CX393-Futures!$D$1 -> -247.969171 | CY8: =Simulation!CY393-Futures!$D$1 -> -262.2809944 | CZ8: =Simulation!CZ393-Futures!$D$1 -> -289.9962755 | DA8: =Simulation!DA393-Futures!$D$1 -> -307.8866225 | DB8: =Simulation!DB393-Futures!$D$1 -> -290.1300811 | DC8: =Simulation!DC393-Futures!$D$1 -> -294.0813707 | DD8: =Simulation!DD393-Futures!$D$1 -> -300.512999 | DE8: =Simulation!DE393-Futures!$D$1 -> -319.5716518 | DF8: =Simulation!DF393-Futures!$D$1 -> -312.3917359 | DG8: =Simulation!DG393-Futures!$D$1 -> -299.2766443 | DH8: =Simulation!DH393-Futures!$D$1 -> -311.1554743 | DI8: =Simulation!DI393-Futures!$D$1 -> -293.897161 | DJ8: =Simulation!DJ393-Futures!$D$1 -> -296.1415125 | DK8: =Simulation!DK393-Futures!$D$1 -> -284.2652076 | DL8: =Simulation!DL393-Futures!$D$1 -> -282.6347695 | DM8: =Simulation!DM393-Futures!$D$1 -> -283.1339834 | DN8: =Simulation!DN393-Futures!$D$1 -> -260.657685 | DO8: =Simulation!DO393-Futures!$D$1 -> -252.936091 | DP8: =Simulation!DP393-Futures!$D$1 -> -237.7917413 | DQ8: =Simulation!DQ393-Futures!$D$1 -> -241.9245433 | DR8: =Simulation!DR393-Futures!$D$1 -> -251.691675 | DS8: =Simulation!DS393-Futures!$D$1 -> -255.8241638 | DT8: =Simulation!DT393-Futures!$D$1 -> -264.092462 | DU8: =Simulation!DU393-Futures!$D$1 -> -275.2658938 | DV8: =Simulation!DV393-Futures!$D$1 -> -277.1197322 | DW8: =Simulation!DW393-Futures!$D$1 -> -297.8494084 | DX8: =Simulation!DX393-Futures!$D$1 -> -307.1580188 | DY8: =Simulation!DY393-Futures!$D$1 -> -314.8488979 | DZ8: =Simulation!DZ393-Futures!$D$1 -> -339.8859108 | EA8: =Simulation!EA393-Futures!$D$1 -> -339.1760367 | EB8: =Simulation!EB393-Futures!$D$1 -> -316.3325932 | EC8: =Simulation!EC393-Futures!$D$1 -> -301.4667868 | ED8: =Simulation!ED393-Futures!$D$1 -> -305.6180864 | EE8: =Simulation!EE393-Futures!$D$1 -> -306.2057323 | EF8: =Simulation!EF393-Futures!$D$1 -> -319.4680501 | EG8: =Simulation!EG393-Futures!$D$1 -> -308.6423957 | EH8: =Simulation!EH393-Futures!$D$1 -> -277.6958791 | EI8: =Simulation!EI393-Futures!$D$1 -> -269.0955826 | EJ8: =Simulation!EJ393-Futures!$D$1 -> -254.2458511 | EK8: =Simulation!EK393-Futures!$D$1 -> -247.7518719 | EL8: =Simulation!EL393-Futures!$D$1 -> -262.3429604 | EM8: =Simulation!EM393-Futures!$D$1 -> -268.9630574 | EN8: =Simulation!EN393-Futures!$D$1 -> -257.3575668 | EO8: =Simulation!EO393-Futures!$D$1 -> -243.7902336 | EP8: =Simulation!EP393-Futures!$D$1 -> -239.0662036 | EQ8: =Simulation!EQ393-Futures!$D$1 -> -255.596028 | ER8: =Simulation!ER393-Futures!$D$1 -> -267.1311748 | ES8: =Simulation!ES393-Futures!$D$1 -> -276.8829989 | ET8: =Simulation!ET393-Futures!$D$1 -> -276.415461 | EU8: =Simulation!EU393-Futures!$D$1 -> -277.7980285 | EV8: =Simulation!EV393-Futures!$D$1 -> -273.6196812 | EW8: =Simulation!EW393-Futures!$D$1 -> -259.7911953 | EX8: =Simulation!EX393-Futures!$D$1 -> -249.9824791 | EY8: =Simulation!EY393-Futures!$D$1 -> -237.3225845 | EZ8: =Simulation!EZ393-Futures!$D$1 -> -244.7456973 | FA8: =Simulation!FA393-Futures!$D$1 -> -250.6274008 | FB8: =Simulation!FB393-Futures!$D$1 -> -266.0330552 | FC8: =Simulation!FC393-Futures!$D$1 -> -254.76147 | FD8: =Simulation!FD393-Futures!$D$1 -> -251.2224781 | FE8: =Simulation!FE393-Futures!$D$1 -> -253.2338637 | FF8: =Simulation!FF393-Futures!$D$1 -> -255.350267 | FG8: =Simulation!FG393-Futures!$D$1 -> -273.767227 | FH8: =Simulation!FH393-Futures!$D$1 -> -268.0826069 | FI8: =Simulation!FI393-Futures!$D$1 -> -241.1778161 | FJ8: =Simulation!FJ393-Futures!$D$1 -> -221.0416176 | FK8: =Simulation!FK393-Futures!$D$1 -> -221.0067908 | FL8: =Simulation!FL393-Futures!$D$1 -> -218.2492444 | FM8: =Simulation!FM393-Futures!$D$1 -> -218.0796974 | FN8: =Simulation!FN393-Futures!$D$1 -> -211.867564 | FO8: =Simulation!FO393-Futures!$D$1 -> -228.9617616 | FP8: =Simulation!FP393-Futures!$D$1 -> -226.176165 | FQ8: =Simulation!FQ393-Futures!$D$1 -> -189.5782966 | FR8: =Simulation!FR393-Futures!$D$1 -> -170.1744952 | FS8: =Simulation!FS393-Futures!$D$1 -> -169.2769478 | FT8: =Simulation!FT393-Futures!$D$1 -> -162.0999788 | FU8: =Simulation!FU393-Futures!$D$1 -> -166.8197958 | FV8: =Simulation!FV393-Futures!$D$1 -> -186.8419475 | FW8: =Simulation!FW393-Futures!$D$1 -> -189.5463456 | FX8: =Simulation!FX393-Futures!$D$1 -> -185.3207779 | FY8: =Simulation!FY393-Futures!$D$1 -> -167.6496694 | FZ8: =Simulation!FZ393-Futures!$D$1 -> -161.2543219 | GA8: =Simulation!GA393-Futures!$D$1 -> -168.1213973 | GB8: =Simulation!GB393-Futures!$D$1 -> -178.7547196 | GC8: =Simulation!GC393-Futures!$D$1 -> -178.8427602 | GD8: =Simulation!GD393-Futures!$D$1 -> -193.7991931 | GE8: =Simulation!GE393-Futures!$D$1 -> -194.9140534 | GF8: =Simulation!GF393-Futures!$D$1 -> -223.7393076 | GG8: =Simulation!GG393-Futures!$D$1 -> -233.3054692 | GH8: =Simulation!GH393-Futures!$D$1 -> -234.8441934 | GI8: =Simulation!GI393-Futures!$D$1 -> -205.9717359 | GJ8: =Simulation!GJ393-Futures!$D$1 -> -211.9679681 | GK8: =Simulation!GK393-Futures!$D$1 -> -231.0852088 | GL8: =Simulation!GL393-Futures!$D$1 -> -242.7730187 | GM8: =Simulation!GM393-Futures!$D$1 -> -223.5165572 | GN8: =Simulation!GN393-Futures!$D$1 -> -218.4526557 | GO8: =Simulation!GO393-Futures!$D$1 -> -223.7419784 | GP8: =Simulation!GP393-Futures!$D$1 -> -234.5915728 | GQ8: =Simulation!GQ393-Futures!$D$1 -> -224.0021584 | GR8: =Simulation!GR393-Futures!$D$1 -> -218.1722768 | GS8: =Simulation!GS393-Futures!$D$1 -> -240.8949054 | GT8: =Simulation!GT393-Futures!$D$1 -> -259.1578608 | GU8: =Simulation!GU393-Futures!$D$1 -> -279.0352505 | GV8: =Simulation!GV393-Futures!$D$1 -> -280.128466 | GW8: =Simulation!GW393-Futures!$D$1 -> -258.9436376 | GX8: =Simulation!GX393-Futures!$D$1 -> -265.3320206 | GY8: =Simulation!GY393-Futures!$D$1 -> -256.1017817 | GZ8: =Simulation!GZ393-Futures!$D$1 -> -251.0817086 | HA8: =Simulation!HA393-Futures!$D$1 -> -238.2089332 | HB8: =Simulation!HB393-Futures!$D$1 -> -233.789576 | HC8: =Simulation!HC393-Futures!$D$1 -> -256.4414122 | HD8: =Simulation!HD393-Futures!$D$1 -> -261.8239638 | HE8: =Simulation!HE393-Futures!$D$1 -> -230.8886125 | HF8: =Simulation!HF393-Futures!$D$1 -> -216.0616302 | HG8: =Simulation!HG393-Futures!$D$1 -> -228.1863578 | HH8: =Simulation!HH393-Futures!$D$1 -> -248.9746964 | HI8: =Simulation!HI393-Futures!$D$1 -> -241.836458 | HJ8: =Simulation!HJ393-Futures!$D$1 -> -235.5905161 | HK8: =Simulation!HK393-Futures!$D$1 -> -246.8384084 | HL8: =Simulation!HL393-Futures!$D$1 -> -232.3847087 | HM8: =Simulation!HM393-Futures!$D$1 -> -253.2448391 | HN8: =Simulation!HN393-Futures!$D$1 -> -232.9959181 | HO8: =Simulation!HO393-Futures!$D$1 -> -238.7674146 | HP8: =Simulation!HP393-Futures!$D$1 -> -251.6995473 | HQ8: =Simulation!HQ393-Futures!$D$1 -> -275.7400697 | HR8: =Simulation!HR393-Futures!$D$1 -> -288.1022561 | HS8: =Simulation!HS393-Futures!$D$1 -> -305.0880289 | HT8: =Simulation!HT393-Futures!$D$1 -> -314.5130756 | HU8: =Simulation!HU393-Futures!$D$1 -> -299.1452865 | HV8: =Simulation!HV393-Futures!$D$1 -> -281.0206869 | HW8: =Simulation!HW393-Futures!$D$1 -> -278.9241825 | HX8: =Simulation!HX393-Futures!$D$1 -> -293.3743045 | HY8: =Simulation!HY393-Futures!$D$1 -> -277.7775345 | HZ8: =Simulation!HZ393-Futures!$D$1 -> -282.9550872 | IA8: =Simulation!IA393-Futures!$D$1 -> -289.9445971 | IB8: =Simulation!IB393-Futures!$D$1 -> -283.2566931 | IC8: =Simulation!IC393-Futures!$D$1 -> -297.1282594 | ID8: =Simulation!ID393-Futures!$D$1 -> -293.4588049 | IE8: =Simulation!IE393-Futures!$D$1 -> -291.5184298 | IF8: =Simulation!IF393-Futures!$D$1 -> -319.2719971 | IG8: =Simulation!IG393-Futures!$D$1 -> -321.378451 | IH8: =Simulation!IH393-Futures!$D$1 -> -296.3610188 | II8: =Simulation!II393-Futures!$D$1 -> -264.0834337 | IJ8: =Simulation!IJ393-Futures!$D$1 -> -270.2306796 | IK8: =Simulation!IK393-Futures!$D$1 -> -259.4861743 | IL8: =Simulation!IL393-Futures!$D$1 -> -256.1341238 | IM8: =Simulation!IM393-Futures!$D$1 -> -219.3905317 | IN8: =Simulation!IN393-Futures!$D$1 -> -239.1091941 | IO8: =Simulation!IO393-Futures!$D$1 -> -222.3323912 | IP8: =Simulation!IP393-Futures!$D$1 -> -231.9423249 | IQ8: =Simulation!IQ393-Futures!$D$1 -> -223.2685067 | IR8: =Simulation!IR393-Futures!$D$1 -> -231.7776593 | IS8: =Simulation!IS393-Futures!$D$1 -> -222.6736732 | IT8: =Simulation!IT393-Futures!$D$1 -> -216.320243 | IU8: =Simulation!IU393-Futures!$D$1 -> -234.7948913 | IV8: =Simulation!IV393-Futures!$D$1 -> -220.0107559 | IW8: =Simulation!IW393-Futures!$D$1 -> -214.570069 | IX8: =Simulation!IX393-Futures!$D$1 -> -224.2510569 | IY8: =Simulation!IY393-Futures!$D$1 -> -227.3292385 | IZ8: =Simulation!IZ393-Futures!$D$1 -> -220.1211686 | JA8: =Simulation!JA393-Futures!$D$1 -> -208.0959178 | JB8: =Simulation!JB393-Futures!$D$1 -> -194.6119764 | JC8: =Simulation!JC393-Futures!$D$1 -> -215.3204993 | JD8: =Simulation!JD393-Futures!$D$1 -> -226.4411651 | JE8: =Simulation!JE393-Futures!$D$1 -> -244.2275654 | JF8: =Simulation!JF393-Futures!$D$1 -> -247.1254394 | JG8: =Simulation!JG393-Futures!$D$1 -> -255.9902125 | JH8: =Simulation!JH393-Futures!$D$1 -> -241.3694286 | JI8: =Simulation!JI393-Futures!$D$1 -> -232.6434016 | JJ8: =Simulation!JJ393-Futures!$D$1 -> -233.424996 | JK8: =Simulation!JK393-Futures!$D$1 -> -244.3386562 | JL8: =Simulation!JL393-Futures!$D$1 -> -241.878937 | JM8: =Simulation!JM393-Futures!$D$1 -> -232.0298816 | JN8: =Simulation!JN393-Futures!$D$1 -> -236.0203735 | JO8: =Simulation!JO393-Futures!$D$1 -> -256.1746604 | JP8: =Simulation!JP393-Futures!$D$1 -> -227.520317 | JQ8: =Simulation!JQ393-Futures!$D$1 -> -209.6072533 | JR8: =Simulation!JR393-Futures!$D$1 -> -193.6730985 | JS8: =Simulation!JS393-Futures!$D$1 -> -162.346457 | JT8: =Simulation!JT393-Futures!$D$1 -> -139.8619645 | JU8: =Simulation!JU393-Futures!$D$1 -> -117.3350928 | JV8: =Simulation!JV393-Futures!$D$1 -> -73.36543191 | JW8: =Simulation!JW393-Futures!$D$1 -> -88.6151127 | JX8: =Simulation!JX393-Futures!$D$1 -> -82.68069082 | JY8: =Simulation!JY393-Futures!$D$1 -> -94.27519966 | JZ8: =Simulation!JZ393-Futures!$D$1 -> -70.79697542 | KA8: =Simulation!KA393-Futures!$D$1 -> -48.72283219 | KB8: =Simulation!KB393-Futures!$D$1 -> -39.47949441 | KC8: =Simulation!KC393-Futures!$D$1 -> -37.15615537 | KD8: =Simulation!KD393-Futures!$D$1 -> -39.48648596 | KE8: =Simulation!KE393-Futures!$D$1 -> -42.48246181 | KF8: =Simulation!KF393-Futures!$D$1 -> -22.45783138 | KG8: =Simulation!KG393-Futures!$D$1 -> -12.23380466 | KH8: =Simulation!KH393-Futures!$D$1 -> -3.270295507 | KI8: =Simulation!KI393-Futures!$D$1 -> -8.233919118 | KJ8: =Simulation!KJ393-Futures!$D$1 -> 16.1981994 | KK8: =Simulation!KK393-Futures!$D$1 -> 35.08935356 | KL8: =Simulation!KL393-Futures!$D$1 -> 51.22211272 | KM8: =Simulation!KM393-Futures!$D$1 -> 53.48000647 | KN8: =Simulation!KN393-Futures!$D$1 -> 93.2350896 | KO8: =Simulation!KO393-Futures!$D$1 -> 70.03987293 | KP8: =Simulation!KP393-Futures!$D$1 -> 85.5648088 | KQ8: =Simulation!KQ393-Futures!$D$1 -> 101.2083658 | KR8: =Simulation!KR393-Futures!$D$1 -> 133.5815389 | KS8: =Simulation!KS393-Futures!$D$1 -> 127.6051398 | KT8: =Simulation!KT393-Futures!$D$1 -> 127.3406104 | KU8: =Simulation!KU393-Futures!$D$1 -> 96.49290529 | KV8: =Simulation!KV393-Futures!$D$1 -> 89.08043078 | KW8: =Simulation!KW393-Futures!$D$1 -> 70.51824998 | KX8: =Simulation!KX393-Futures!$D$1 -> 72.00818477 | KY8: =Simulation!KY393-Futures!$D$1 -> 65.3922262 | KZ8: =Simulation!KZ393-Futures!$D$1 -> 62.12564389 | LA8: =Simulation!LA393-Futures!$D$1 -> 64.13872907 | LB8: =Simulation!LB393-Futures!$D$1 -> 70.78848516 | LC8: =Simulation!LC393-Futures!$D$1 -> 74.25581505 | LD8: =Simulation!LD393-Futures!$D$1 -> 74.23348991 | LE8: =Simulation!LE393-Futures!$D$1 -> 70.568392 | LF8: =Simulation!LF393-Futures!$D$1 -> 54.96101842 | LG8: =Simulation!LG393-Futures!$D$1 -> 63.22902919 | LH8: =Simulation!LH393-Futures!$D$1 -> 52.84252029 | LI8: =Simulation!LI393-Futures!$D$1 -> 43.65584411 | LJ8: =Simulation!LJ393-Futures!$D$1 -> 46.82172166 | LK8: =Simulation!LK393-Futures!$D$1 -> 50.96667792 | LL8: =Simulation!LL393-Futures!$D$1 -> 57.22269972 | LM8: =Simulation!LM393-Futures!$D$1 -> 32.01615332 | LN8: =Simulation!LN393-Futures!$D$1 -> 40.13846265 | LO8: =Simulation!LO393-Futures!$D$1 -> 35.80625159 | LP8: =Simulation!LP393-Futures!$D$1 -> 44.55035086 | LQ8: =Simulation!LQ393-Futures!$D$1 -> 43.69264677 | LR8: =Simulation!LR393-Futures!$D$1 -> 30.21774532 | LS8: =Simulation!LS393-Futures!$D$1 -> 31.3894732 | LT8: =Simulation!LT393-Futures!$D$1 -> 52.0866583 | LU8: =Simulation!LU393-Futures!$D$1 -> -11.51850988 | LV8: =Simulation!LV393-Futures!$D$1 -> -17.34577833 | LW8: =Simulation!LW393-Futures!$D$1 -> -5.520575548 | LX8: =Simulation!LX393-Futures!$D$1 -> -9.201022247 | LY8: =Simulation!LY393-Futures!$D$1 -> -31.21163459 | LZ8: =Simulation!LZ393-Futures!$D$1 -> -36.37776754 | MA8: =Simulation!MA393-Futures!$D$1 -> -30.25823191 | MB8: =Simulation!MB393-Futures!$D$1 -> -50.16424546 | MC8: =Simulation!MC393-Futures!$D$1 -> -61.7097616 | MD8: =Simulation!MD393-Futures!$D$1 -> -65.88873821 | ME8: =Simulation!ME393-Futures!$D$1 -> -52.43425131 | MF8: =Simulation!MF393-Futures!$D$1 -> -42.51006394 | MG8: =Simulation!MG393-Futures!$D$1 -> -81.74683548 | MH8: =Simulation!MH393-Futures!$D$1 -> -67.87065508 | MI8: =Simulation!MI393-Futures!$D$1 -> -73.57605155 | MJ8: =Simulation!MJ393-Futures!$D$1 -> -59.90011171 | MK8: =Simulation!MK393-Futures!$D$1 -> -52.45472228 | ML8: =Simulation!ML393-Futures!$D$1 -> -48.10347791 | MM8: =Simulation!MM393-Futures!$D$1 -> -36.56601847 | MN8: =Simulation!MN393-Futures!$D$1 -> -14.16260885 | MO8: =Simulation!MO393-Futures!$D$1 -> -11.37976301 | MP8: =Simulation!MP393-Futures!$D$1 -> -49.94046237 | MQ8: =Simulation!MQ393-Futures!$D$1 -> -94.88900994 | MR8: =Simulation!MR393-Futures!$D$1 -> -84.79930919 | MS8: =Simulation!MS393-Futures!$D$1 -> -123.2664923 | MT8: =Simulation!MT393-Futures!$D$1 -> -136.8608423 | MU8: =Simulation!MU393-Futures!$D$1 -> -124.7532715 | MV8: =Simulation!MV393-Futures!$D$1 -> -155.1418559 | MW8: =Simulation!MW393-Futures!$D$1 -> -166.1676324 | MX8: =Simulation!MX393-Futures!$D$1 -> -168.9313277 | MY8: =Simulation!MY393-Futures!$D$1 -> -180.1510516 | MZ8: =Simulation!MZ393-Futures!$D$1 -> -2020 | NA8: =Simulation!NA393-Futures!$D$1 -> -2020 | NB8: =Simulation!NB393-Futures!$D$1 -> -2012
A9: 3 | B9: =Simulation!B394-Futures!$D$1 -> -7.726722351 | C9: =Simulation!C394-Futures!$D$1 -> 0.4387629444 | D9: =Simulation!D394-Futures!$D$1 -> 6.258929244 | E9: =Simulation!E394-Futures!$D$1 -> 3.915308593 | F9: =Simulation!F394-Futures!$D$1 -> -3.860880109 | G9: =Simulation!G394-Futures!$D$1 -> 18.13064599 | H9: =Simulation!H394-Futures!$D$1 -> 11.52330019 | I9: =Simulation!I394-Futures!$D$1 -> 23.29969866 | J9: =Simulation!J394-Futures!$D$1 -> 27.26524976 | K9: =Simulation!K394-Futures!$D$1 -> 13.1740643 | L9: =Simulation!L394-Futures!$D$1 -> 1.927736367 | M9: =Simulation!M394-Futures!$D$1 -> -0.8763431725 | N9: =Simulation!N394-Futures!$D$1 -> -19.32285568 | O9: =Simulation!O394-Futures!$D$1 -> -41.69817992 | P9: =Simulation!P394-Futures!$D$1 -> -33.73387396 | Q9: =Simulation!Q394-Futures!$D$1 -> -57.11750582 | R9: =Simulation!R394-Futures!$D$1 -> -40.57158679 | S9: =Simulation!S394-Futures!$D$1 -> -55.4846775 | T9: =Simulation!T394-Futures!$D$1 -> -54.9098713 | U9: =Simulation!U394-Futures!$D$1 -> -67.39965123 | V9: =Simulation!V394-Futures!$D$1 -> -60.70657681 | W9: =Simulation!W394-Futures!$D$1 -> -57.98412656 | X9: =Simulation!X394-Futures!$D$1 -> -50.96111327 | Y9: =Simulation!Y394-Futures!$D$1 -> -72.24257884 | Z9: =Simulation!Z394-Futures!$D$1 -> -93.83428901 | AA9: =Simulation!AA394-Futures!$D$1 -> -94.63247906 | AB9: =Simulation!AB394-Futures!$D$1 -> -68.71032975 | AC9: =Simulation!AC394-Futures!$D$1 -> -89.31615429 | AD9: =Simulation!AD394-Futures!$D$1 -> -91.61746925 | AE9: =Simulation!AE394-Futures!$D$1 -> -87.98743488 | AF9: =Simulation!AF394-Futures!$D$1 -> -96.66148682 | AG9: =Simulation!AG394-Futures!$D$1 -> -80.40223146 | AH9: =Simulation!AH394-Futures!$D$1 -> -58.52849976 | AI9: =Simulation!AI394-Futures!$D$1 -> -63.19780663 | AJ9: =Simulation!AJ394-Futures!$D$1 -> -76.05947492 | AK9: =Simulation!AK394-Futures!$D$1 -> -82.50006299 | AL9: =Simulation!AL394-Futures!$D$1 -> -88.29980599 | AM9: =Simulation!AM394-Futures!$D$1 -> -72.33576396 | AN9: =Simulation!AN394-Futures!$D$1 -> -86.76254664 | AO9: =Simulation!AO394-Futures!$D$1 -> -110.1631755 | AP9: =Simulation!AP394-Futures!$D$1 -> -101.8004969 | AQ9: =Simulation!AQ394-Futures!$D$1 -> -93.54710626 | AR9: =Simulation!AR394-Futures!$D$1 -> -120.8401902 | AS9: =Simulation!AS394-Futures!$D$1 -> -133.087436 | AT9: =Simulation!AT394-Futures!$D$1 -> -149.6847458 | AU9: =Simulation!AU394-Futures!$D$1 -> -150.0556748 | AV9: =Simulation!AV394-Futures!$D$1 -> -123.8104314 | AW9: =Simulation!AW394-Futures!$D$1 -> -142.288036 | AX9: =Simulation!AX394-Futures!$D$1 -> -143.6903641 | AY9: =Simulation!AY394-Futures!$D$1 -> -150.4568227 | AZ9: =Simulation!AZ394-Futures!$D$1 -> -153.9462683 | BA9: =Simulation!BA394-Futures!$D$1 -> -146.7488364 | BB9: =Simulation!BB394-Futures!$D$1 -> -145.9672083 | BC9: =Simulation!BC394-Futures!$D$1 -> -162.8920667 | BD9: =Simulation!BD394-Futures!$D$1 -> -150.554529 | BE9: =Simulation!BE394-Futures!$D$1 -> -150.9480474 | BF9: =Simulation!BF394-Futures!$D$1 -> -139.3653355 | BG9: =Simulation!BG394-Futures!$D$1 -> -165.5912695 | BH9: =Simulation!BH394-Futures!$D$1 -> -182.5919129 | BI9: =Simulation!BI394-Futures!$D$1 -> -181.468276 | BJ9: =Simulation!BJ394-Futures!$D$1 -> -185.0717023 | BK9: =Simulation!BK394-Futures!$D$1 -> -185.5823837 | BL9: =Simulation!BL394-Futures!$D$1 -> -192.5662841 | BM9: =Simulation!BM394-Futures!$D$1 -> -161.2422648 | BN9: =Simulation!BN394-Futures!$D$1 -> -164.5828288 | BO9: =Simulation!BO394-Futures!$D$1 -> -175.0221858 | BP9: =Simulation!BP394-Futures!$D$1 -> -157.1874659 | BQ9: =Simulation!BQ394-Futures!$D$1 -> -169.0080396 | BR9: =Simulation!BR394-Futures!$D$1 -> -156.4704716 | BS9: =Simulation!BS394-Futures!$D$1 -> -146.5907147 | BT9: =Simulation!BT394-Futures!$D$1 -> -134.3811873 | BU9: =Simulation!BU394-Futures!$D$1 -> -152.0476629 | BV9: =Simulation!BV394-Futures!$D$1 -> -150.0026446 | BW9: =Simulation!BW394-Futures!$D$1 -> -154.7638439 | BX9: =Simulation!BX394-Futures!$D$1 -> -147.5708782 | BY9: =Simulation!BY394-Futures!$D$1 -> -154.6786858 | BZ9: =Simulation!BZ394-Futures!$D$1 -> -168.3450809 | CA9: =Simulation!CA394-Futures!$D$1 -> -175.9126953 | CB9: =Simulation!CB394-Futures!$D$1 -> -191.5104526 | CC9: =Simulation!CC394-Futures!$D$1 -> -176.5827489 | CD9: =Simulation!CD394-Futures!$D$1 -> -157.9846736 | CE9: =Simulation!CE394-Futures!$D$1 -> -116.994785 | CF9: =Simulation!CF394-Futures!$D$1 -> -85.48300515 | CG9: =Simulation!CG394-Futures!$D$1 -> -84.86209089 | CH9: =Simulation!CH394-Futures!$D$1 -> -50.09602372 | CI9: =Simulation!CI394-Futures!$D$1 -> -52.61351836 | CJ9: =Simulation!CJ394-Futures!$D$1 -> -59.32205881 | CK9: =Simulation!CK394-Futures!$D$1 -> -71.47858656 | CL9: =Simulation!CL394-Futures!$D$1 -> -61.6494697 | CM9: =Simulation!CM394-Futures!$D$1 -> -44.70049451 | CN9: =Simulation!CN394-Futures!$D$1 -> -48.79288585 | CO9: =Simulation!CO394-Futures!$D$1 -> -34.37426492 | CP9: =Simulation!CP394-Futures!$D$1 -> -37.83951557 | CQ9: =Simulation!CQ394-Futures!$D$1 -> -18.78522581 | CR9: =Simulation!CR394-Futures!$D$1 -> -6.830331571 | CS9: =Simulation!CS394-Futures!$D$1 -> -33.92319485 | CT9: =Simulation!CT394-Futures!$D$1 -> -27.2912519 | CU9: =Simulation!CU394-Futures!$D$1 -> -35.23812216 | CV9: =Simulation!CV394-Futures!$D$1 -> -26.49062521 | CW9: =Simulation!CW394-Futures!$D$1 -> -31.61960368 | CX9: =Simulation!CX394-Futures!$D$1 -> -45.41377965 | CY9: =Simulation!CY394-Futures!$D$1 -> -64.94571558 | CZ9: =Simulation!CZ394-Futures!$D$1 -> -55.41683325 | DA9: =Simulation!DA394-Futures!$D$1 -> -63.66104997 | DB9: =Simulation!DB394-Futures!$D$1 -> -62.63235642 | DC9: =Simulation!DC394-Futures!$D$1 -> -75.96465816 | DD9: =Simulation!DD394-Futures!$D$1 -> -56.93669097 | DE9: =Simulation!DE394-Futures!$D$1 -> -39.3019258 | DF9: =Simulation!DF394-Futures!$D$1 -> -25.03412267 | DG9: =Simulation!DG394-Futures!$D$1 -> -32.73103557 | DH9: =Simulation!DH394-Futures!$D$1 -> -42.9201407 | DI9: =Simulation!DI394-Futures!$D$1 -> -30.16418449 | DJ9: =Simulation!DJ394-Futures!$D$1 -> -25.00850536 | DK9: =Simulation!DK394-Futures!$D$1 -> -27.04438795 | DL9: =Simulation!DL394-Futures!$D$1 -> -17.67329472 | DM9: =Simulation!DM394-Futures!$D$1 -> -25.7833082 | DN9: =Simulation!DN394-Futures!$D$1 -> -28.91302332 | DO9: =Simulation!DO394-Futures!$D$1 -> -28.91585765 | DP9: =Simulation!DP394-Futures!$D$1 -> -0.2445308773 | DQ9: =Simulation!DQ394-Futures!$D$1 -> -24.77907254 | DR9: =Simulation!DR394-Futures!$D$1 -> 9.775067923 | DS9: =Simulation!DS394-Futures!$D$1 -> 18.77810054 | DT9: =Simulation!DT394-Futures!$D$1 -> 4.485314861 | DU9: =Simulation!DU394-Futures!$D$1 -> 4.835245192 | DV9: =Simulation!DV394-Futures!$D$1 -> -3.857430252 | DW9: =Simulation!DW394-Futures!$D$1 -> -6.377184199 | DX9: =Simulation!DX394-Futures!$D$1 -> -26.18610313 | DY9: =Simulation!DY394-Futures!$D$1 -> -20.62285501 | DZ9: =Simulation!DZ394-Futures!$D$1 -> -10.21627324 | EA9: =Simulation!EA394-Futures!$D$1 -> -10.62709752 | EB9: =Simulation!EB394-Futures!$D$1 -> -17.36901656 | EC9: =Simulation!EC394-Futures!$D$1 -> -12.95546169 | ED9: =Simulation!ED394-Futures!$D$1 -> -7.102467248 | EE9: =Simulation!EE394-Futures!$D$1 -> -10.93295987 | EF9: =Simulation!EF394-Futures!$D$1 -> -9.460394237 | EG9: =Simulation!EG394-Futures!$D$1 -> -2.840767125 | EH9: =Simulation!EH394-Futures!$D$1 -> 8.611358496 | EI9: =Simulation!EI394-Futures!$D$1 -> 5.063710267 | EJ9: =Simulation!EJ394-Futures!$D$1 -> -12.34384082 | EK9: =Simulation!EK394-Futures!$D$1 -> -1.573188599 | EL9: =Simulation!EL394-Futures!$D$1 -> -8.098020071 | EM9: =Simulation!EM394-Futures!$D$1 -> 12.69278628 | EN9: =Simulation!EN394-Futures!$D$1 -> 20.72614071 | EO9: =Simulation!EO394-Futures!$D$1 -> 19.88133493 | EP9: =Simulation!EP394-Futures!$D$1 -> -1.01985572 | EQ9: =Simulation!EQ394-Futures!$D$1 -> -20.98923113 | ER9: =Simulation!ER394-Futures!$D$1 -> -23.74624433 | ES9: =Simulation!ES394-Futures!$D$1 -> -65.50328622 | ET9: =Simulation!ET394-Futures!$D$1 -> -29.3128262 | EU9: =Simulation!EU394-Futures!$D$1 -> -43.50535417 | EV9: =Simulation!EV394-Futures!$D$1 -> -56.89755561 | EW9: =Simulation!EW394-Futures!$D$1 -> -55.93223938 | EX9: =Simulation!EX394-Futures!$D$1 -> -51.18470863 | EY9: =Simulation!EY394-Futures!$D$1 -> -38.08222461 | EZ9: =Simulation!EZ394-Futures!$D$1 -> -30.64561332 | FA9: =Simulation!FA394-Futures!$D$1 -> -11.6323372 | FB9: =Simulation!FB394-Futures!$D$1 -> -2.706199339 | FC9: =Simulation!FC394-Futures!$D$1 -> -31.18759083 | FD9: =Simulation!FD394-Futures!$D$1 -> -56.77889061 | FE9: =Simulation!FE394-Futures!$D$1 -> -41.72587653 | FF9: =Simulation!FF394-Futures!$D$1 -> -33.88191317 | FG9: =Simulation!FG394-Futures!$D$1 -> -44.99342092 | FH9: =Simulation!FH394-Futures!$D$1 -> -41.93226712 | FI9: =Simulation!FI394-Futures!$D$1 -> -62.97705403 | FJ9: =Simulation!FJ394-Futures!$D$1 -> -58.55127685 | FK9: =Simulation!FK394-Futures!$D$1 -> -71.03099998 | FL9: =Simulation!FL394-Futures!$D$1 -> -83.25373046 | FM9: =Simulation!FM394-Futures!$D$1 -> -95.51497105 | FN9: =Simulation!FN394-Futures!$D$1 -> -67.67967111 | FO9: =Simulation!FO394-Futures!$D$1 -> -64.16664749 | FP9: =Simulation!FP394-Futures!$D$1 -> -30.52209596 | FQ9: =Simulation!FQ394-Futures!$D$1 -> -22.70408458 | FR9: =Simulation!FR394-Futures!$D$1 -> -25.83863222 | FS9: =Simulation!FS394-Futures!$D$1 -> -41.93061529 | FT9: =Simulation!FT394-Futures!$D$1 -> -47.24196187 | FU9: =Simulation!FU394-Futures!$D$1 -> -59.69893468 | FV9: =Simulation!FV394-Futures!$D$1 -> -52.6757161 | FW9: =Simulation!FW394-Futures!$D$1 -> -49.68329296 | FX9: =Simulation!FX394-Futures!$D$1 -> -58.28858857 | FY9: =Simulation!FY394-Futures!$D$1 -> -39.48289779 | FZ9: =Simulation!FZ394-Futures!$D$1 -> -50.26852334 | GA9: =Simulation!GA394-Futures!$D$1 -> -50.23866058 | GB9: =Simulation!GB394-Futures!$D$1 -> -64.23548329 | GC9: =Simulation!GC394-Futures!$D$1 -> -97.86219424 | GD9: =Simulation!GD394-Futures!$D$1 -> -120.8045706 | GE9: =Simulation!GE394-Futures!$D$1 -> -111.2257167 | GF9: =Simulation!GF394-Futures!$D$1 -> -141.5292325 | GG9: =Simulation!GG394-Futures!$D$1 -> -146.1107327 | GH9: =Simulation!GH394-Futures!$D$1 -> -136.0664614 | GI9: =Simulation!GI394-Futures!$D$1 -> -135.2661118 | GJ9: =Simulation!GJ394-Futures!$D$1 -> -144.8674626 | GK9: =Simulation!GK394-Futures!$D$1 -> -160.2310696 | GL9: =Simulation!GL394-Futures!$D$1 -> -175.6555337 | GM9: =Simulation!GM394-Futures!$D$1 -> -169.9565186 | GN9: =Simulation!GN394-Futures!$D$1 -> -184.4125583 | GO9: =Simulation!GO394-Futures!$D$1 -> -197.8420567 | GP9: =Simulation!GP394-Futures!$D$1 -> -211.3886433 | GQ9: =Simulation!GQ394-Futures!$D$1 -> -212.34181 | GR9: =Simulation!GR394-Futures!$D$1 -> -213.2735785 | GS9: =Simulation!GS394-Futures!$D$1 -> -218.5178956 | GT9: =Simulation!GT394-Futures!$D$1 -> -208.1286544 | GU9: =Simulation!GU394-Futures!$D$1 -> -197.0288589 | GV9: =Simulation!GV394-Futures!$D$1 -> -206.1591278 | GW9: =Simulation!GW394-Futures!$D$1 -> -210.7721816 | GX9: =Simulation!GX394-Futures!$D$1 -> -191.182223 | GY9: =Simulation!GY394-Futures!$D$1 -> -211.9124744 | GZ9: =Simulation!GZ394-Futures!$D$1 -> -219.259535 | HA9: =Simulation!HA394-Futures!$D$1 -> -215.7156514 | HB9: =Simulation!HB394-Futures!$D$1 -> -218.3383059 | HC9: =Simulation!HC394-Futures!$D$1 -> -214.4359607 | HD9: =Simulation!HD394-Futures!$D$1 -> -232.386244 | HE9: =Simulation!HE394-Futures!$D$1 -> -249.3407972 | HF9: =Simulation!HF394-Futures!$D$1 -> -227.3475387 | HG9: =Simulation!HG394-Futures!$D$1 -> -217.7317313 | HH9: =Simulation!HH394-Futures!$D$1 -> -220.380973 | HI9: =Simulation!HI394-Futures!$D$1 -> -234.3177945 | HJ9: =Simulation!HJ394-Futures!$D$1 -> -256.3379167 | HK9: =Simulation!HK394-Futures!$D$1 -> -275.987359 | HL9: =Simulation!HL394-Futures!$D$1 -> -293.7506737 | HM9: =Simulation!HM394-Futures!$D$1 -> -270.3506249 | HN9: =Simulation!HN394-Futures!$D$1 -> -279.8366474 | HO9: =Simulation!HO394-Futures!$D$1 -> -286.7397655 | HP9: =Simulation!HP394-Futures!$D$1 -> -296.1396056 | HQ9: =Simulation!HQ394-Futures!$D$1 -> -311.4928793 | HR9: =Simulation!HR394-Futures!$D$1 -> -307.7699799 | HS9: =Simulation!HS394-Futures!$D$1 -> -334.4189411 | HT9: =Simulation!HT394-Futures!$D$1 -> -314.0080653 | HU9: =Simulation!HU394-Futures!$D$1 -> -302.0624455 | HV9: =Simulation!HV394-Futures!$D$1 -> -298.1323096 | HW9: =Simulation!HW394-Futures!$D$1 -> -256.5824085 | HX9: =Simulation!HX394-Futures!$D$1 -> -252.8771973 | HY9: =Simulation!HY394-Futures!$D$1 -> -264.7047555 | HZ9: =Simulation!HZ394-Futures!$D$1 -> -268.8629944 | IA9: =Simulation!IA394-Futures!$D$1 -> -252.2340123 | IB9: =Simulation!IB394-Futures!$D$1 -> -263.5661684 | IC9: =Simulation!IC394-Futures!$D$1 -> -246.3036208 | ID9: =Simulation!ID394-Futures!$D$1 -> -252.3581453 | IE9: =Simulation!IE394-Futures!$D$1 -> -237.7742464 | IF9: =Simulation!IF394-Futures!$D$1 -> -245.9900521 | IG9: =Simulation!IG394-Futures!$D$1 -> -269.3134464 | IH9: =Simulation!IH394-Futures!$D$1 -> -272.9087593 | II9: =Simulation!II394-Futures!$D$1 -> -272.692997 | IJ9: =Simulation!IJ394-Futures!$D$1 -> -281.4020638 | IK9: =Simulation!IK394-Futures!$D$1 -> -282.2638895 | IL9: =Simulation!IL394-Futures!$D$1 -> -300.9367798 | IM9: =Simulation!IM394-Futures!$D$1 -> -284.9414639 | IN9: =Simulation!IN394-Futures!$D$1 -> -289.6369855 | IO9: =Simulation!IO394-Futures!$D$1 -> -289.8584756 | IP9: =Simulation!IP394-Futures!$D$1 -> -303.9194308 | IQ9: =Simulation!IQ394-Futures!$D$1 -> -295.5664614 | IR9: =Simulation!IR394-Futures!$D$1 -> -261.7064598 | IS9: =Simulation!IS394-Futures!$D$1 -> -277.2048949 | IT9: =Simulation!IT394-Futures!$D$1 -> -285.4633038 | IU9: =Simulation!IU394-Futures!$D$1 -> -272.7478692 | IV9: =Simulation!IV394-Futures!$D$1 -> -259.6382792 | IW9: =Simulation!IW394-Futures!$D$1 -> -252.4628219 | IX9: =Simulation!IX394-Futures!$D$1 -> -249.4104668 | IY9: =Simulation!IY394-Futures!$D$1 -> -234.25044 | IZ9: =Simulation!IZ394-Futures!$D$1 -> -217.3629925 | JA9: =Simulation!JA394-Futures!$D$1 -> -237.7983567 | JB9: =Simulation!JB394-Futures!$D$1 -> -248.2978157 | JC9: =Simulation!JC394-Futures!$D$1 -> -237.8819044 | JD9: =Simulation!JD394-Futures!$D$1 -> -239.8914982 | JE9: =Simulation!JE394-Futures!$D$1 -> -227.6777716 | JF9: =Simulation!JF394-Futures!$D$1 -> -242.0480538 | JG9: =Simulation!JG394-Futures!$D$1 -> -272.720799 | JH9: =Simulation!JH394-Futures!$D$1 -> -278.0966236 | JI9: =Simulation!JI394-Futures!$D$1 -> -285.8061503 | JJ9: =Simulation!JJ394-Futures!$D$1 -> -316.7793669 | JK9: =Simulation!JK394-Futures!$D$1 -> -300.1958689 | JL9: =Simulation!JL394-Futures!$D$1 -> -302.9242557 | JM9: =Simulation!JM394-Futures!$D$1 -> -299.7416399 | JN9: =Simulation!JN394-Futures!$D$1 -> -306.9642318 | JO9: =Simulation!JO394-Futures!$D$1 -> -320.8251626 | JP9: =Simulation!JP394-Futures!$D$1 -> -320.8710981 | JQ9: =Simulation!JQ394-Futures!$D$1 -> -339.9407361 | JR9: =Simulation!JR394-Futures!$D$1 -> -332.3907234 | JS9: =Simulation!JS394-Futures!$D$1 -> -324.3303222 | JT9: =Simulation!JT394-Futures!$D$1 -> -327.9683017 | JU9: =Simulation!JU394-Futures!$D$1 -> -332.0836383 | JV9: =Simulation!JV394-Futures!$D$1 -> -331.7972011 | JW9: =Simulation!JW394-Futures!$D$1 -> -298.8504589 | JX9: =Simulation!JX394-Futures!$D$1 -> -310.4152783 | JY9: =Simulation!JY394-Futures!$D$1 -> -309.6052017 | JZ9: =Simulation!JZ394-Futures!$D$1 -> -299.9024186 | KA9: =Simulation!KA394-Futures!$D$1 -> -313.6032574 | KB9: =Simulation!KB394-Futures!$D$1 -> -300.8669378 | KC9: =Simulation!KC394-Futures!$D$1 -> -326.7147821 | KD9: =Simulation!KD394-Futures!$D$1 -> -331.8359739 | KE9: =Simulation!KE394-Futures!$D$1 -> -339.0680432 | KF9: =Simulation!KF394-Futures!$D$1 -> -349.821502 | KG9: =Simulation!KG394-Futures!$D$1 -> -374.7988404 | KH9: =Simulation!KH394-Futures!$D$1 -> -391.303537 | KI9: =Simulation!KI394-Futures!$D$1 -> -395.9418723 | KJ9: =Simulation!KJ394-Futures!$D$1 -> -405.6781816 | KK9: =Simulation!KK394-Futures!$D$1 -> -410.1259975 | KL9: =Simulation!KL394-Futures!$D$1 -> -419.0350526 | KM9: =Simulation!KM394-Futures!$D$1 -> -419.7405211 | KN9: =Simulation!KN394-Futures!$D$1 -> -393.7761678 | KO9: =Simulation!KO394-Futures!$D$1 -> -378.6287383 | KP9: =Simulation!KP394-Futures!$D$1 -> -369.090604 | KQ9: =Simulation!KQ394-Futures!$D$1 -> -346.0332182 | KR9: =Simulation!KR394-Futures!$D$1 -> -370.8803741 | KS9: =Simulation!KS394-Futures!$D$1 -> -365.1177016 | KT9: =Simulation!KT394-Futures!$D$1 -> -365.8410186 | KU9: =Simulation!KU394-Futures!$D$1 -> -368.8766407 | KV9: =Simulation!KV394-Futures!$D$1 -> -373.7019343 | KW9: =Simulation!KW394-Futures!$D$1 -> -358.5726886 | KX9: =Simulation!KX394-Futures!$D$1 -> -353.3096802 | KY9: =Simulation!KY394-Futures!$D$1 -> -365.0561753 | KZ9: =Simulation!KZ394-Futures!$D$1 -> -360.0222431 | LA9: =Simulation!LA394-Futures!$D$1 -> -356.8999688 | LB9: =Simulation!LB394-Futures!$D$1 -> -374.7282845 | LC9: =Simulation!LC394-Futures!$D$1 -> -402.2335841 | LD9: =Simulation!LD394-Futures!$D$1 -> -374.536135 | LE9: =Simulation!LE394-Futures!$D$1 -> -384.8500228 | LF9: =Simulation!LF394-Futures!$D$1 -> -361.2315452 | LG9: =Simulation!LG394-Futures!$D$1 -> -359.2236357 | LH9: =Simulation!LH394-Futures!$D$1 -> -344.4225416 | LI9: =Simulation!LI394-Futures!$D$1 -> -346.7680028 | LJ9: =Simulation!LJ394-Futures!$D$1 -> -353.6639243 | LK9: =Simulation!LK394-Futures!$D$1 -> -338.0496137 | LL9: =Simulation!LL394-Futures!$D$1 -> -330.3207374 | LM9: =Simulation!LM394-Futures!$D$1 -> -326.6638859 | LN9: =Simulation!LN394-Futures!$D$1 -> -320.639376 | LO9: =Simulation!LO394-Futures!$D$1 -> -301.3892496 | LP9: =Simulation!LP394-Futures!$D$1 -> -336.8214497 | LQ9: =Simulation!LQ394-Futures!$D$1 -> -335.8063128 | LR9: =Simulation!LR394-Futures!$D$1 -> -321.6107555 | LS9: =Simulation!LS394-Futures!$D$1 -> -314.8396419 | LT9: =Simulation!LT394-Futures!$D$1 -> -321.9250709 | LU9: =Simulation!LU394-Futures!$D$1 -> -339.8381216 | LV9: =Simulation!LV394-Futures!$D$1 -> -327.4266415 | LW9: =Simulation!LW394-Futures!$D$1 -> -318.1336384 | LX9: =Simulation!LX394-Futures!$D$1 -> -330.2711046 | LY9: =Simulation!LY394-Futures!$D$1 -> -340.0904515 | LZ9: =Simulation!LZ394-Futures!$D$1 -> -346.793423 | MA9: =Simulation!MA394-Futures!$D$1 -> -358.7009668 | MB9: =Simulation!MB394-Futures!$D$1 -> -357.8106264 | MC9: =Simulation!MC394-Futures!$D$1 -> -345.5147778 | MD9: =Simulation!MD394-Futures!$D$1 -> -366.6010912 | ME9: =Simulation!ME394-Futures!$D$1 -> -396.0801162 | MF9: =Simulation!MF394-Futures!$D$1 -> -377.5657324 | MG9: =Simulation!MG394-Futures!$D$1 -> -378.0273235 | MH9: =Simulation!MH394-Futures!$D$1 -> -374.9371429 | MI9: =Simulation!MI394-Futures!$D$1 -> -381.7876139 | MJ9: =Simulation!MJ394-Futures!$D$1 -> -386.6214324 | MK9: =Simulation!MK394-Futures!$D$1 -> -385.7433045 | ML9: =Simulation!ML394-Futures!$D$1 -> -390.2756383 | MM9: =Simulation!MM394-Futures!$D$1 -> -380.2050423 | MN9: =Simulation!MN394-Futures!$D$1 -> -385.4398658 | MO9: =Simulation!MO394-Futures!$D$1 -> -379.2436425 | MP9: =Simulation!MP394-Futures!$D$1 -> -393.4831897 | MQ9: =Simulation!MQ394-Futures!$D$1 -> -401.6693208 | MR9: =Simulation!MR394-Futures!$D$1 -> -413.4782562 | MS9: =Simulation!MS394-Futures!$D$1 -> -432.3607027 | MT9: =Simulation!MT394-Futures!$D$1 -> -451.9327762 | MU9: =Simulation!MU394-Futures!$D$1 -> -439.7788503 | MV9: =Simulation!MV394-Futures!$D$1 -> -446.9524247 | MW9: =Simulation!MW394-Futures!$D$1 -> -429.0982628 | MX9: =Simulation!MX394-Futures!$D$1 -> -408.797984 | MY9: =Simulation!MY394-Futures!$D$1 -> -412.4999175 | MZ9: =Simulation!MZ394-Futures!$D$1 -> -2020 | NA9: =Simulation!NA394-Futures!$D$1 -> -2020 | NB9: =Simulation!NB394-Futures!$D$1 -> -2012
A10: 4 | B10: =Simulation!B395-Futures!$D$1 -> 54.08611835 | C10: =Simulation!C395-Futures!$D$1 -> 49.80607016 | D10: =Simulation!D395-Futures!$D$1 -> 44.08181468 | E10: =Simulation!E395-Futures!$D$1 -> 32.74682566 | F10: =Simulation!F395-Futures!$D$1 -> -24.38960136 | G10: =Simulation!G395-Futures!$D$1 -> -30.27842617 | H10: =Simulation!H395-Futures!$D$1 -> -18.06048762 | I10: =Simulation!I395-Futures!$D$1 -> -20.90958317 | J10: =Simulation!J395-Futures!$D$1 -> -33.95081279 | K10: =Simulation!K395-Futures!$D$1 -> -48.06871185 | L10: =Simulation!L395-Futures!$D$1 -> -34.78069181 | M10: =Simulation!M395-Futures!$D$1 -> -55.17350099 | N10: =Simulation!N395-Futures!$D$1 -> -49.33348607 | O10: =Simulation!O395-Futures!$D$1 -> -31.83437271 | P10: =Simulation!P395-Futures!$D$1 -> -12.86790268 | Q10: =Simulation!Q395-Futures!$D$1 -> -27.61623977 | R10: =Simulation!R395-Futures!$D$1 -> -27.94905979 | S10: =Simulation!S395-Futures!$D$1 -> -14.20319645 | T10: =Simulation!T395-Futures!$D$1 -> 6.381812951 | U10: =Simulation!U395-Futures!$D$1 -> -15.97332494 | V10: =Simulation!V395-Futures!$D$1 -> -2.907937579 | W10: =Simulation!W395-Futures!$D$1 -> 21.88855408 | X10: =Simulation!X395-Futures!$D$1 -> 18.06384383 | Y10: =Simulation!Y395-Futures!$D$1 -> 20.6617554 | Z10: =Simulation!Z395-Futures!$D$1 -> 28.97296371 | AA10: =Simulation!AA395-Futures!$D$1 -> 21.52697292 | AB10: =Simulation!AB395-Futures!$D$1 -> 35.86621277 | AC10: =Simulation!AC395-Futures!$D$1 -> 42.58124892 | AD10: =Simulation!AD395-Futures!$D$1 -> 30.01909773 | AE10: =Simulation!AE395-Futures!$D$1 -> 28.98222119 | AF10: =Simulation!AF395-Futures!$D$1 -> 40.60956786 | AG10: =Simulation!AG395-Futures!$D$1 -> 46.15944602 | AH10: =Simulation!AH395-Futures!$D$1 -> 34.49330526 | AI10: =Simulation!AI395-Futures!$D$1 -> 81.70120663 | AJ10: =Simulation!AJ395-Futures!$D$1 -> 66.55238605 | AK10: =Simulation!AK395-Futures!$D$1 -> 64.21141334 | AL10: =Simulation!AL395-Futures!$D$1 -> 54.27591117 | AM10: =Simulation!AM395-Futures!$D$1 -> 75.34150004 | AN10: =Simulation!AN395-Futures!$D$1 -> 108.9803314 | AO10: =Simulation!AO395-Futures!$D$1 -> 88.19406714 | AP10: =Simulation!AP395-Futures!$D$1 -> 95.65125572 | AQ10: =Simulation!AQ395-Futures!$D$1 -> 92.92462318 | AR10: =Simulation!AR395-Futures!$D$1 -> 125.6652003 | AS10: =Simulation!AS395-Futures!$D$1 -> 134.7076086 | AT10: =Simulation!AT395-Futures!$D$1 -> 154.731966 | AU10: =Simulation!AU395-Futures!$D$1 -> 143.5510501 | AV10: =Simulation!AV395-Futures!$D$1 -> 169.1959304 | AW10: =Simulation!AW395-Futures!$D$1 -> 197.712776 | AX10: =Simulation!AX395-Futures!$D$1 -> 192.7429611 | AY10: =Simulation!AY395-Futures!$D$1 -> 141.0749732 | AZ10: =Simulation!AZ395-Futures!$D$1 -> 126.2401663 | BA10: =Simulation!BA395-Futures!$D$1 -> 150.3347505 | BB10: =Simulation!BB395-Futures!$D$1 -> 170.393384 | BC10: =Simulation!BC395-Futures!$D$1 -> 168.888009 | BD10: =Simulation!BD395-Futures!$D$1 -> 164.0572865 | BE10: =Simulation!BE395-Futures!$D$1 -> 191.6403488 | BF10: =Simulation!BF395-Futures!$D$1 -> 163.5248095 | BG10: =Simulation!BG395-Futures!$D$1 -> 193.7839053 | BH10: =Simulation!BH395-Futures!$D$1 -> 185.9498559 | BI10: =Simulation!BI395-Futures!$D$1 -> 178.634209 | BJ10: =Simulation!BJ395-Futures!$D$1 -> 167.7155432 | BK10: =Simulation!BK395-Futures!$D$1 -> 174.2922616 | BL10: =Simulation!BL395-Futures!$D$1 -> 159.7248458 | BM10: =Simulation!BM395-Futures!$D$1 -> 168.9379569 | BN10: =Simulation!BN395-Futures!$D$1 -> 155.6958134 | BO10: =Simulation!BO395-Futures!$D$1 -> 161.0237291 | BP10: =Simulation!BP395-Futures!$D$1 -> 149.177057 | BQ10: =Simulation!BQ395-Futures!$D$1 -> 143.2899661 | BR10: =Simulation!BR395-Futures!$D$1 -> 134.5625139 | BS10: =Simulation!BS395-Futures!$D$1 -> 132.4797746 | BT10: =Simulation!BT395-Futures!$D$1 -> 103.7184667 | BU10: =Simulation!BU395-Futures!$D$1 -> 108.5917683 | BV10: =Simulation!BV395-Futures!$D$1 -> 114.0082575 | BW10: =Simulation!BW395-Futures!$D$1 -> 101.3734614 | BX10: =Simulation!BX395-Futures!$D$1 -> 94.51440834 | BY10: =Simulation!BY395-Futures!$D$1 -> 98.932063 | BZ10: =Simulation!BZ395-Futures!$D$1 -> 90.86104784 | CA10: =Simulation!CA395-Futures!$D$1 -> 94.3571362 | CB10: =Simulation!CB395-Futures!$D$1 -> 77.87520768 | CC10: =Simulation!CC395-Futures!$D$1 -> 75.42922176 | CD10: =Simulation!CD395-Futures!$D$1 -> 86.03817038 | CE10: =Simulation!CE395-Futures!$D$1 -> 91.9591422 | CF10: =Simulation!CF395-Futures!$D$1 -> 78.29990792 | CG10: =Simulation!CG395-Futures!$D$1 -> 83.16674954 | CH10: =Simulation!CH395-Futures!$D$1 -> 93.88911406 | CI10: =Simulation!CI395-Futures!$D$1 -> 48.75975234 | CJ10: =Simulation!CJ395-Futures!$D$1 -> 85.88807181 | CK10: =Simulation!CK395-Futures!$D$1 -> 99.39732119 | CL10: =Simulation!CL395-Futures!$D$1 -> 83.24891424 | CM10: =Simulation!CM395-Futures!$D$1 -> 85.57294387 | CN10: =Simulation!CN395-Futures!$D$1 -> 112.0532733 | CO10: =Simulation!CO395-Futures!$D$1 -> 113.993762 | CP10: =Simulation!CP395-Futures!$D$1 -> 114.6661432 | CQ10: =Simulation!CQ395-Futures!$D$1 -> 91.24200034 | CR10: =Simulation!CR395-Futures!$D$1 -> 116.2015177 | CS10: =Simulation!CS395-Futures!$D$1 -> 118.7923448 | CT10: =Simulation!CT395-Futures!$D$1 -> 109.1682734 | CU10: =Simulation!CU395-Futures!$D$1 -> 90.78378634 | CV10: =Simulation!CV395-Futures!$D$1 -> 94.3676606 | CW10: =Simulation!CW395-Futures!$D$1 -> 86.64518382 | CX10: =Simulation!CX395-Futures!$D$1 -> 101.2953467 | CY10: =Simulation!CY395-Futures!$D$1 -> 110.5865147 | CZ10: =Simulation!CZ395-Futures!$D$1 -> 129.6271208 | DA10: =Simulation!DA395-Futures!$D$1 -> 119.3613163 | DB10: =Simulation!DB395-Futures!$D$1 -> 109.3309528 | DC10: =Simulation!DC395-Futures!$D$1 -> 176.6259982 | DD10: =Simulation!DD395-Futures!$D$1 -> 164.9847905 | DE10: =Simulation!DE395-Futures!$D$1 -> 141.7976933 | DF10: =Simulation!DF395-Futures!$D$1 -> 163.437898 | DG10: =Simulation!DG395-Futures!$D$1 -> 181.6318174 | DH10: =Simulation!DH395-Futures!$D$1 -> 200.2731575 | DI10: =Simulation!DI395-Futures!$D$1 -> 191.3735633 | DJ10: =Simulation!DJ395-Futures!$D$1 -> 180.5507255 | DK10: =Simulation!DK395-Futures!$D$1 -> 171.1235992 | DL10: =Simulation!DL395-Futures!$D$1 -> 186.6212349 | DM10: =Simulation!DM395-Futures!$D$1 -> 185.9811622 | DN10: =Simulation!DN395-Futures!$D$1 -> 166.5389937 | DO10: =Simulation!DO395-Futures!$D$1 -> 185.1337078 | DP10: =Simulation!DP395-Futures!$D$1 -> 161.8777735 | DQ10: =Simulation!DQ395-Futures!$D$1 -> 160.1279012 | DR10: =Simulation!DR395-Futures!$D$1 -> 130.7765108 | DS10: =Simulation!DS395-Futures!$D$1 -> 116.4500796 | DT10: =Simulation!DT395-Futures!$D$1 -> 101.9864083 | DU10: =Simulation!DU395-Futures!$D$1 -> 90.24441996 | DV10: =Simulation!DV395-Futures!$D$1 -> 73.70487065 | DW10: =Simulation!DW395-Futures!$D$1 -> 63.20819714 | DX10: =Simulation!DX395-Futures!$D$1 -> 62.55843185 | DY10: =Simulation!DY395-Futures!$D$1 -> 75.66372891 | DZ10: =Simulation!DZ395-Futures!$D$1 -> 104.0436136 | EA10: =Simulation!EA395-Futures!$D$1 -> 132.2882882 | EB10: =Simulation!EB395-Futures!$D$1 -> 119.3050999 | EC10: =Simulation!EC395-Futures!$D$1 -> 77.96361198 | ED10: =Simulation!ED395-Futures!$D$1 -> 57.44131734 | EE10: =Simulation!EE395-Futures!$D$1 -> 89.23846985 | EF10: =Simulation!EF395-Futures!$D$1 -> 87.58550554 | EG10: =Simulation!EG395-Futures!$D$1 -> 92.46419919 | EH10: =Simulation!EH395-Futures!$D$1 -> 84.50432752 | EI10: =Simulation!EI395-Futures!$D$1 -> 92.21041934 | EJ10: =Simulation!EJ395-Futures!$D$1 -> 97.35640711 | EK10: =Simulation!EK395-Futures!$D$1 -> 121.1641259 | EL10: =Simulation!EL395-Futures!$D$1 -> 142.4239648 | EM10: =Simulation!EM395-Futures!$D$1 -> 152.2340828 | EN10: =Simulation!EN395-Futures!$D$1 -> 140.7879248 | EO10: =Simulation!EO395-Futures!$D$1 -> 156.086676 | EP10: =Simulation!EP395-Futures!$D$1 -> 143.5251312 | EQ10: =Simulation!EQ395-Futures!$D$1 -> 146.5992099 | ER10: =Simulation!ER395-Futures!$D$1 -> 160.4893205 | ES10: =Simulation!ES395-Futures!$D$1 -> 162.7637259 | ET10: =Simulation!ET395-Futures!$D$1 -> 148.325712 | EU10: =Simulation!EU395-Futures!$D$1 -> 138.0577856 | EV10: =Simulation!EV395-Futures!$D$1 -> 134.5273095 | EW10: =Simulation!EW395-Futures!$D$1 -> 135.6493312 | EX10: =Simulation!EX395-Futures!$D$1 -> 144.0437364 | EY10: =Simulation!EY395-Futures!$D$1 -> 191.7238299 | EZ10: =Simulation!EZ395-Futures!$D$1 -> 205.7675644 | FA10: =Simulation!FA395-Futures!$D$1 -> 178.533286 | FB10: =Simulation!FB395-Futures!$D$1 -> 177.4166723 | FC10: =Simulation!FC395-Futures!$D$1 -> 176.1015313 | FD10: =Simulation!FD395-Futures!$D$1 -> 129.2907888 | FE10: =Simulation!FE395-Futures!$D$1 -> 124.0731615 | FF10: =Simulation!FF395-Futures!$D$1 -> 119.7467015 | FG10: =Simulation!FG395-Futures!$D$1 -> 101.2731488 | FH10: =Simulation!FH395-Futures!$D$1 -> 113.5806406 | FI10: =Simulation!FI395-Futures!$D$1 -> 108.6047308 | FJ10: =Simulation!FJ395-Futures!$D$1 -> 125.1316828 | FK10: =Simulation!FK395-Futures!$D$1 -> 133.1157147 | FL10: =Simulation!FL395-Futures!$D$1 -> 135.2183975 | FM10: =Simulation!FM395-Futures!$D$1 -> 128.8010219 | FN10: =Simulation!FN395-Futures!$D$1 -> 119.0650147 | FO10: =Simulation!FO395-Futures!$D$1 -> 108.7607862 | FP10: =Simulation!FP395-Futures!$D$1 -> 137.9163996 | FQ10: =Simulation!FQ395-Futures!$D$1 -> 117.6051861 | FR10: =Simulation!FR395-Futures!$D$1 -> 138.0744413 | FS10: =Simulation!FS395-Futures!$D$1 -> 152.8597782 | FT10: =Simulation!FT395-Futures!$D$1 -> 112.9509797 | FU10: =Simulation!FU395-Futures!$D$1 -> 112.8046651 | FV10: =Simulation!FV395-Futures!$D$1 -> 112.246009 | FW10: =Simulation!FW395-Futures!$D$1 -> 119.5749218 | FX10: =Simulation!FX395-Futures!$D$1 -> 120.2994288 | FY10: =Simulation!FY395-Futures!$D$1 -> 108.5851447 | FZ10: =Simulation!FZ395-Futures!$D$1 -> 78.59886798 | GA10: =Simulation!GA395-Futures!$D$1 -> 95.43846554 | GB10: =Simulation!GB395-Futures!$D$1 -> 68.56967577 | GC10: =Simulation!GC395-Futures!$D$1 -> 44.08314837 | GD10: =Simulation!GD395-Futures!$D$1 -> 44.51015591 | GE10: =Simulation!GE395-Futures!$D$1 -> 75.08031005 | GF10: =Simulation!GF395-Futures!$D$1 -> 80.96206711 | GG10: =Simulation!GG395-Futures!$D$1 -> 82.65895516 | GH10: =Simulation!GH395-Futures!$D$1 -> 89.8808655 | GI10: =Simulation!GI395-Futures!$D$1 -> 97.20461264 | GJ10: =Simulation!GJ395-Futures!$D$1 -> 98.27466726 | GK10: =Simulation!GK395-Futures!$D$1 -> 98.7658377 | GL10: =Simulation!GL395-Futures!$D$1 -> 81.77753441 | GM10: =Simulation!GM395-Futures!$D$1 -> 59.92093678 | GN10: =Simulation!GN395-Futures!$D$1 -> 44.71716968 | GO10: =Simulation!GO395-Futures!$D$1 -> 46.82532798 | GP10: =Simulation!GP395-Futures!$D$1 -> 32.41887663 | GQ10: =Simulation!GQ395-Futures!$D$1 -> 73.22127134 | GR10: =Simulation!GR395-Futures!$D$1 -> 46.2736376 | GS10: =Simulation!GS395-Futures!$D$1 -> 29.55999229 | GT10: =Simulation!GT395-Futures!$D$1 -> 20.6188949 | GU10: =Simulation!GU395-Futures!$D$1 -> -21.79055867 | GV10: =Simulation!GV395-Futures!$D$1 -> -67.45417667 | GW10: =Simulation!GW395-Futures!$D$1 -> -82.77979321 | GX10: =Simulation!GX395-Futures!$D$1 -> -61.25875087 | GY10: =Simulation!GY395-Futures!$D$1 -> -54.23659261 | GZ10: =Simulation!GZ395-Futures!$D$1 -> -43.68711578 | HA10: =Simulation!HA395-Futures!$D$1 -> -67.341265 | HB10: =Simulation!HB395-Futures!$D$1 -> -83.55939281 | HC10: =Simulation!HC395-Futures!$D$1 -> -68.89394615 | HD10: =Simulation!HD395-Futures!$D$1 -> -67.03767433 | HE10: =Simulation!HE395-Futures!$D$1 -> -56.60296997 | HF10: =Simulation!HF395-Futures!$D$1 -> -58.60578125 | HG10: =Simulation!HG395-Futures!$D$1 -> -56.47260448 | HH10: =Simulation!HH395-Futures!$D$1 -> -66.25839634 | HI10: =Simulation!HI395-Futures!$D$1 -> -71.03200803 | HJ10: =Simulation!HJ395-Futures!$D$1 -> -69.29400256 | HK10: =Simulation!HK395-Futures!$D$1 -> -62.95084519 | HL10: =Simulation!HL395-Futures!$D$1 -> -50.62548204 | HM10: =Simulation!HM395-Futures!$D$1 -> -82.82887733 | HN10: =Simulation!HN395-Futures!$D$1 -> -104.4300489 | HO10: =Simulation!HO395-Futures!$D$1 -> -96.26217742 | HP10: =Simulation!HP395-Futures!$D$1 -> -92.33453349 | HQ10: =Simulation!HQ395-Futures!$D$1 -> -111.7034124 | HR10: =Simulation!HR395-Futures!$D$1 -> -116.861034 | HS10: =Simulation!HS395-Futures!$D$1 -> -122.0131025 | HT10: =Simulation!HT395-Futures!$D$1 -> -117.8156871 | HU10: =Simulation!HU395-Futures!$D$1 -> -85.77393483 | HV10: =Simulation!HV395-Futures!$D$1 -> -129.993142 | HW10: =Simulation!HW395-Futures!$D$1 -> -110.2105917 | HX10: =Simulation!HX395-Futures!$D$1 -> -100.5812076 | HY10: =Simulation!HY395-Futures!$D$1 -> -98.32710114 | HZ10: =Simulation!HZ395-Futures!$D$1 -> -131.1720268 | IA10: =Simulation!IA395-Futures!$D$1 -> -137.3187605 | IB10: =Simulation!IB395-Futures!$D$1 -> -132.6263705 | IC10: =Simulation!IC395-Futures!$D$1 -> -126.2411881 | ID10: =Simulation!ID395-Futures!$D$1 -> -121.5853668 | IE10: =Simulation!IE395-Futures!$D$1 -> -120.2231373 | IF10: =Simulation!IF395-Futures!$D$1 -> -117.1275938 | IG10: =Simulation!IG395-Futures!$D$1 -> -110.994888 | IH10: =Simulation!IH395-Futures!$D$1 -> -85.36878324 | II10: =Simulation!II395-Futures!$D$1 -> -107.2601859 | IJ10: =Simulation!IJ395-Futures!$D$1 -> -81.30978995 | IK10: =Simulation!IK395-Futures!$D$1 -> -74.45575374 | IL10: =Simulation!IL395-Futures!$D$1 -> -84.17857953 | IM10: =Simulation!IM395-Futures!$D$1 -> -111.1093471 | IN10: =Simulation!IN395-Futures!$D$1 -> -113.5573666 | IO10: =Simulation!IO395-Futures!$D$1 -> -102.1644649 | IP10: =Simulation!IP395-Futures!$D$1 -> -104.8237784 | IQ10: =Simulation!IQ395-Futures!$D$1 -> -105.961543 | IR10: =Simulation!IR395-Futures!$D$1 -> -107.7205145 | IS10: =Simulation!IS395-Futures!$D$1 -> -134.2523131 | IT10: =Simulation!IT395-Futures!$D$1 -> -155.5182551 | IU10: =Simulation!IU395-Futures!$D$1 -> -146.1828653 | IV10: =Simulation!IV395-Futures!$D$1 -> -157.0025198 | IW10: =Simulation!IW395-Futures!$D$1 -> -163.9690389 | IX10: =Simulation!IX395-Futures!$D$1 -> -134.2423553 | IY10: =Simulation!IY395-Futures!$D$1 -> -141.6732935 | IZ10: =Simulation!IZ395-Futures!$D$1 -> -181.7210143 | JA10: =Simulation!JA395-Futures!$D$1 -> -194.3812788 | JB10: =Simulation!JB395-Futures!$D$1 -> -182.6248623 | JC10: =Simulation!JC395-Futures!$D$1 -> -213.0175022 | JD10: =Simulation!JD395-Futures!$D$1 -> -228.8902019 | JE10: =Simulation!JE395-Futures!$D$1 -> -216.8880919 | JF10: =Simulation!JF395-Futures!$D$1 -> -225.6539949 | JG10: =Simulation!JG395-Futures!$D$1 -> -226.1202297 | JH10: =Simulation!JH395-Futures!$D$1 -> -202.1372306 | JI10: =Simulation!JI395-Futures!$D$1 -> -200.9834143 | JJ10: =Simulation!JJ395-Futures!$D$1 -> -176.922316 | JK10: =Simulation!JK395-Futures!$D$1 -> -133.6089548 | JL10: =Simulation!JL395-Futures!$D$1 -> -118.8407102 | JM10: =Simulation!JM395-Futures!$D$1 -> -116.5329268 | JN10: =Simulation!JN395-Futures!$D$1 -> -114.2053513 | JO10: =Simulation!JO395-Futures!$D$1 -> -114.4396958 | JP10: =Simulation!JP395-Futures!$D$1 -> -124.7264675 | JQ10: =Simulation!JQ395-Futures!$D$1 -> -111.5603822 | JR10: =Simulation!JR395-Futures!$D$1 -> -120.5113333 | JS10: =Simulation!JS395-Futures!$D$1 -> -96.99819021 | JT10: =Simulation!JT395-Futures!$D$1 -> -100.8205662 | JU10: =Simulation!JU395-Futures!$D$1 -> -84.98377004 | JV10: =Simulation!JV395-Futures!$D$1 -> -82.11453862 | JW10: =Simulation!JW395-Futures!$D$1 -> -79.81940199 | JX10: =Simulation!JX395-Futures!$D$1 -> -77.14129913 | JY10: =Simulation!JY395-Futures!$D$1 -> -75.79101897 | JZ10: =Simulation!JZ395-Futures!$D$1 -> -86.44310538 | KA10: =Simulation!KA395-Futures!$D$1 -> -101.7243314 | KB10: =Simulation!KB395-Futures!$D$1 -> -89.63024009 | KC10: =Simulation!KC395-Futures!$D$1 -> -81.35980635 | KD10: =Simulation!KD395-Futures!$D$1 -> -81.25512081 | KE10: =Simulation!KE395-Futures!$D$1 -> -83.11164461 | KF10: =Simulation!KF395-Futures!$D$1 -> -73.16548757 | KG10: =Simulation!KG395-Futures!$D$1 -> -69.03384353 | KH10: =Simulation!KH395-Futures!$D$1 -> -61.54550109 | KI10: =Simulation!KI395-Futures!$D$1 -> -49.42617044 | KJ10: =Simulation!KJ395-Futures!$D$1 -> -56.04192537 | KK10: =Simulation!KK395-Futures!$D$1 -> -75.74523754 | KL10: =Simulation!KL395-Futures!$D$1 -> -73.46237731 | KM10: =Simulation!KM395-Futures!$D$1 -> -63.38464787 | KN10: =Simulation!KN395-Futures!$D$1 -> -57.64847182 | KO10: =Simulation!KO395-Futures!$D$1 -> -68.83036995 | KP10: =Simulation!KP395-Futures!$D$1 -> -56.40528989 | KQ10: =Simulation!KQ395-Futures!$D$1 -> -54.99794621 | KR10: =Simulation!KR395-Futures!$D$1 -> -81.53886117 | KS10: =Simulation!KS395-Futures!$D$1 -> -74.95422125 | KT10: =Simulation!KT395-Futures!$D$1 -> -77.49851504 | KU10: =Simulation!KU395-Futures!$D$1 -> -48.75635335 | KV10: =Simulation!KV395-Futures!$D$1 -> -54.07715602 | KW10: =Simulation!KW395-Futures!$D$1 -> -63.37026102 | KX10: =Simulation!KX395-Futures!$D$1 -> -35.94845657 | KY10: =Simulation!KY395-Futures!$D$1 -> -43.98119079 | KZ10: =Simulation!KZ395-Futures!$D$1 -> -64.20975899 | LA10: =Simulation!LA395-Futures!$D$1 -> -67.9782313 | LB10: =Simulation!LB395-Futures!$D$1 -> -62.84972545 | LC10: =Simulation!LC395-Futures!$D$1 -> -73.46427239 | LD10: =Simulation!LD395-Futures!$D$1 -> -96.34311413 | LE10: =Simulation!LE395-Futures!$D$1 -> -91.38653271 | LF10: =Simulation!LF395-Futures!$D$1 -> -68.22209446 | LG10: =Simulation!LG395-Futures!$D$1 -> -51.11868195 | LH10: =Simulation!LH395-Futures!$D$1 -> -52.32147403 | LI10: =Simulation!LI395-Futures!$D$1 -> -79.11426488 | LJ10: =Simulation!LJ395-Futures!$D$1 -> -84.32790572 | LK10: =Simulation!LK395-Futures!$D$1 -> -67.70183892 | LL10: =Simulation!LL395-Futures!$D$1 -> -84.48871436 | LM10: =Simulation!LM395-Futures!$D$1 -> -104.3187952 | LN10: =Simulation!LN395-Futures!$D$1 -> -107.8150411 | LO10: =Simulation!LO395-Futures!$D$1 -> -128.1455019 | LP10: =Simulation!LP395-Futures!$D$1 -> -122.8654821 | LQ10: =Simulation!LQ395-Futures!$D$1 -> -128.7983499 | LR10: =Simulation!LR395-Futures!$D$1 -> -128.3534747 | LS10: =Simulation!LS395-Futures!$D$1 -> -114.5173949 | LT10: =Simulation!LT395-Futures!$D$1 -> -127.0444511 | LU10: =Simulation!LU395-Futures!$D$1 -> -145.8205273 | LV10: =Simulation!LV395-Futures!$D$1 -> -145.3650881 | LW10: =Simulation!LW395-Futures!$D$1 -> -142.4053219 | LX10: =Simulation!LX395-Futures!$D$1 -> -135.1470729 | LY10: =Simulation!LY395-Futures!$D$1 -> -109.6644368 | LZ10: =Simulation!LZ395-Futures!$D$1 -> -118.1235575 | MA10: =Simulation!MA395-Futures!$D$1 -> -115.7485975 | MB10: =Simulation!MB395-Futures!$D$1 -> -107.103193 | MC10: =Simulation!MC395-Futures!$D$1 -> -84.76725121 | MD10: =Simulation!MD395-Futures!$D$1 -> -94.2577715 | ME10: =Simulation!ME395-Futures!$D$1 -> -94.50467481 | MF10: =Simulation!MF395-Futures!$D$1 -> -77.54611825 | MG10: =Simulation!MG395-Futures!$D$1 -> -73.0071565 | MH10: =Simulation!MH395-Futures!$D$1 -> -53.96816509 | MI10: =Simulation!MI395-Futures!$D$1 -> -62.41963018 | MJ10: =Simulation!MJ395-Futures!$D$1 -> -55.82782697 | MK10: =Simulation!MK395-Futures!$D$1 -> -58.31759487 | ML10: =Simulation!ML395-Futures!$D$1 -> -71.41813461 | MM10: =Simulation!MM395-Futures!$D$1 -> -36.35805606 | MN10: =Simulation!MN395-Futures!$D$1 -> -28.16484622 | MO10: =Simulation!MO395-Futures!$D$1 -> -48.54393928 | MP10: =Simulation!MP395-Futures!$D$1 -> -51.89295998 | MQ10: =Simulation!MQ395-Futures!$D$1 -> -24.5144837 | MR10: =Simulation!MR395-Futures!$D$1 -> -12.71700137 | MS10: =Simulation!MS395-Futures!$D$1 -> 21.49901198 | MT10: =Simulation!MT395-Futures!$D$1 -> 12.91704162 | MU10: =Simulation!MU395-Futures!$D$1 -> 8.777634255 | MV10: =Simulation!MV395-Futures!$D$1 -> -14.0406406 | MW10: =Simulation!MW395-Futures!$D$1 -> -7.804194479 | MX10: =Simulation!MX395-Futures!$D$1 -> -24.2388127 | MY10: =Simulation!MY395-Futures!$D$1 -> -14.51102664 | MZ10: =Simulation!MZ395-Futures!$D$1 -> -2020 | NA10: =Simulation!NA395-Futures!$D$1 -> -2020 | NB10: =Simulation!NB395-Futures!$D$1 -> -2012
A11: 5 | B11: =Simulation!B396-Futures!$D$1 -> 18.4811297 | C11: =Simulation!C396-Futures!$D$1 -> 12.11673821 | D11: =Simulation!D396-Futures!$D$1 -> 34.34385705 | E11: =Simulation!E396-Futures!$D$1 -> 39.94756556 | F11: =Simulation!F396-Futures!$D$1 -> 31.51025527 | G11: =Simulation!G396-Futures!$D$1 -> 47.54165017 | H11: =Simulation!H396-Futures!$D$1 -> 61.90012945 | I11: =Simulation!I396-Futures!$D$1 -> 60.32295273 | J11: =Simulation!J396-Futures!$D$1 -> 69.06756992 | K11: =Simulation!K396-Futures!$D$1 -> 63.01113245 | L11: =Simulation!L396-Futures!$D$1 -> 43.72880005 | M11: =Simulation!M396-Futures!$D$1 -> 67.59546849 | N11: =Simulation!N396-Futures!$D$1 -> 89.90359628 | O11: =Simulation!O396-Futures!$D$1 -> 90.55065003 | P11: =Simulation!P396-Futures!$D$1 -> 97.02891883 | Q11: =Simulation!Q396-Futures!$D$1 -> 82.74376308 | R11: =Simulation!R396-Futures!$D$1 -> 70.32275729 | S11: =Simulation!S396-Futures!$D$1 -> 70.87112484 | T11: =Simulation!T396-Futures!$D$1 -> 84.12980855 | U11: =Simulation!U396-Futures!$D$1 -> 102.8078015 | V11: =Simulation!V396-Futures!$D$1 -> 113.785099 | W11: =Simulation!W396-Futures!$D$1 -> 138.072701 | X11: =Simulation!X396-Futures!$D$1 -> 139.3719769 | Y11: =Simulation!Y396-Futures!$D$1 -> 137.5068362 | Z11: =Simulation!Z396-Futures!$D$1 -> 139.1373636 | AA11: =Simulation!AA396-Futures!$D$1 -> 144.5040554 | AB11: =Simulation!AB396-Futures!$D$1 -> 140.7812743 | AC11: =Simulation!AC396-Futures!$D$1 -> 138.6510225 | AD11: =Simulation!AD396-Futures!$D$1 -> 160.7112328 | AE11: =Simulation!AE396-Futures!$D$1 -> 165.1644784 | AF11: =Simulation!AF396-Futures!$D$1 -> 172.1385539 | AG11: =Simulation!AG396-Futures!$D$1 -> 191.7112163 | AH11: =Simulation!AH396-Futures!$D$1 -> 196.1846079 | AI11: =Simulation!AI396-Futures!$D$1 -> 153.4457268 | AJ11: =Simulation!AJ396-Futures!$D$1 -> 158.2523219 | AK11: =Simulation!AK396-Futures!$D$1 -> 160.6467547 | AL11: =Simulation!AL396-Futures!$D$1 -> 146.8903498 | AM11: =Simulation!AM396-Futures!$D$1 -> 167.1839369 | AN11: =Simulation!AN396-Futures!$D$1 -> 190.6693937 | AO11: =Simulation!AO396-Futures!$D$1 -> 176.843218 | AP11: =Simulation!AP396-Futures!$D$1 -> 202.2613716 | AQ11: =Simulation!AQ396-Futures!$D$1 -> 220.8150847 | AR11: =Simulation!AR396-Futures!$D$1 -> 220.3104637 | AS11: =Simulation!AS396-Futures!$D$1 -> 218.2592135 | AT11: =Simulation!AT396-Futures!$D$1 -> 239.762549 | AU11: =Simulation!AU396-Futures!$D$1 -> 265.2421992 | AV11: =Simulation!AV396-Futures!$D$1 -> 301.1432277 | AW11: =Simulation!AW396-Futures!$D$1 -> 293.8755223 | AX11: =Simulation!AX396-Futures!$D$1 -> 288.515862 | AY11: =Simulation!AY396-Futures!$D$1 -> 275.1605559 | AZ11: =Simulation!AZ396-Futures!$D$1 -> 275.5871593 | BA11: =Simulation!BA396-Futures!$D$1 -> 291.1152958 | BB11: =Simulation!BB396-Futures!$D$1 -> 299.0537122 | BC11: =Simulation!BC396-Futures!$D$1 -> 307.8880755 | BD11: =Simulation!BD396-Futures!$D$1 -> 300.0858959 | BE11: =Simulation!BE396-Futures!$D$1 -> 300.7452385 | BF11: =Simulation!BF396-Futures!$D$1 -> 271.2457723 | BG11: =Simulation!BG396-Futures!$D$1 -> 303.4374843 | BH11: =Simulation!BH396-Futures!$D$1 -> 331.16434 | BI11: =Simulation!BI396-Futures!$D$1 -> 312.5605142 | BJ11: =Simulation!BJ396-Futures!$D$1 -> 323.7001882 | BK11: =Simulation!BK396-Futures!$D$1 -> 329.5385243 | BL11: =Simulation!BL396-Futures!$D$1 -> 330.4600895 | BM11: =Simulation!BM396-Futures!$D$1 -> 327.9303616 | BN11: =Simulation!BN396-Futures!$D$1 -> 322.8508297 | BO11: =Simulation!BO396-Futures!$D$1 -> 324.5665628 | BP11: =Simulation!BP396-Futures!$D$1 -> 339.9887806 | BQ11: =Simulation!BQ396-Futures!$D$1 -> 368.4561191 | BR11: =Simulation!BR396-Futures!$D$1 -> 346.5866482 | BS11: =Simulation!BS396-Futures!$D$1 -> 361.3079657 | BT11: =Simulation!BT396-Futures!$D$1 -> 372.2376626 | BU11: =Simulation!BU396-Futures!$D$1 -> 410.5523748 | BV11: =Simulation!BV396-Futures!$D$1 -> 406.7958904 | BW11: =Simulation!BW396-Futures!$D$1 -> 427.0631759 | BX11: =Simulation!BX396-Futures!$D$1 -> 408.6726946 | BY11: =Simulation!BY396-Futures!$D$1 -> 417.3885586 | BZ11: =Simulation!BZ396-Futures!$D$1 -> 442.6881099 | CA11: =Simulation!CA396-Futures!$D$1 -> 447.6381707 | CB11: =Simulation!CB396-Futures!$D$1 -> 430.6002055 | CC11: =Simulation!CC396-Futures!$D$1 -> 443.0061062 | CD11: =Simulation!CD396-Futures!$D$1 -> 436.9414063 | CE11: =Simulation!CE396-Futures!$D$1 -> 439.6395814 | CF11: =Simulation!CF396-Futures!$D$1 -> 430.6950133 | CG11: =Simulation!CG396-Futures!$D$1 -> 456.9183463 | CH11: =Simulation!CH396-Futures!$D$1 -> 456.1145741 | CI11: =Simulation!CI396-Futures!$D$1 -> 471.7785366 | CJ11: =Simulation!CJ396-Futures!$D$1 -> 466.5467142 | CK11: =Simulation!CK396-Futures!$D$1 -> 484.0910595 | CL11: =Simulation!CL396-Futures!$D$1 -> 487.2446603 | CM11: =Simulation!CM396-Futures!$D$1 -> 491.7497401 | CN11: =Simulation!CN396-Futures!$D$1 -> 505.5022492 | CO11: =Simulation!CO396-Futures!$D$1 -> 464.9210041 | CP11: =Simulation!CP396-Futures!$D$1 -> 442.4873919 | CQ11: =Simulation!CQ396-Futures!$D$1 -> 405.4940451 | CR11: =Simulation!CR396-Futures!$D$1 -> 439.4229917 | CS11: =Simulation!CS396-Futures!$D$1 -> 403.6847236 | CT11: =Simulation!CT396-Futures!$D$1 -> 405.6878181 | CU11: =Simulation!CU396-Futures!$D$1 -> 401.3683783 | CV11: =Simulation!CV396-Futures!$D$1 -> 386.0806686 | CW11: =Simulation!CW396-Futures!$D$1 -> 398.774772 | CX11: =Simulation!CX396-Futures!$D$1 -> 373.3701307 | CY11: =Simulation!CY396-Futures!$D$1 -> 360.3213631 | CZ11: =Simulation!CZ396-Futures!$D$1 -> 358.3225692 | DA11: =Simulation!DA396-Futures!$D$1 -> 347.6476086 | DB11: =Simulation!DB396-Futures!$D$1 -> 348.8980612 | DC11: =Simulation!DC396-Futures!$D$1 -> 363.75283 | DD11: =Simulation!DD396-Futures!$D$1 -> 394.0917405 | DE11: =Simulation!DE396-Futures!$D$1 -> 413.0903287 | DF11: =Simulation!DF396-Futures!$D$1 -> 402.6484776 | DG11: =Simulation!DG396-Futures!$D$1 -> 398.7316792 | DH11: =Simulation!DH396-Futures!$D$1 -> 370.893604 | DI11: =Simulation!DI396-Futures!$D$1 -> 403.1641915 | DJ11: =Simulation!DJ396-Futures!$D$1 -> 384.4556345 | DK11: =Simulation!DK396-Futures!$D$1 -> 388.954335 | DL11: =Simulation!DL396-Futures!$D$1 -> 378.4079489 | DM11: =Simulation!DM396-Futures!$D$1 -> 371.5557768 | DN11: =Simulation!DN396-Futures!$D$1 -> 400.5110695 | DO11: =Simulation!DO396-Futures!$D$1 -> 376.9370597 | DP11: =Simulation!DP396-Futures!$D$1 -> 382.8262588 | DQ11: =Simulation!DQ396-Futures!$D$1 -> 385.1733117 | DR11: =Simulation!DR396-Futures!$D$1 -> 396.2290753 | DS11: =Simulation!DS396-Futures!$D$1 -> 384.3521802 | DT11: =Simulation!DT396-Futures!$D$1 -> 359.0483162 | DU11: =Simulation!DU396-Futures!$D$1 -> 386.326315 | DV11: =Simulation!DV396-Futures!$D$1 -> 387.3951579 | DW11: =Simulation!DW396-Futures!$D$1 -> 417.5108518 | DX11: =Simulation!DX396-Futures!$D$1 -> 435.5176857 | DY11: =Simulation!DY396-Futures!$D$1 -> 436.4611993 | DZ11: =Simulation!DZ396-Futures!$D$1 -> 458.6990514 | EA11: =Simulation!EA396-Futures!$D$1 -> 465.5098787 | EB11: =Simulation!EB396-Futures!$D$1 -> 482.589276 | EC11: =Simulation!EC396-Futures!$D$1 -> 473.9664921 | ED11: =Simulation!ED396-Futures!$D$1 -> 478.4960658 | EE11: =Simulation!EE396-Futures!$D$1 -> 461.3835869 | EF11: =Simulation!EF396-Futures!$D$1 -> 449.6076776 | EG11: =Simulation!EG396-Futures!$D$1 -> 428.3761907 | EH11: =Simulation!EH396-Futures!$D$1 -> 404.0260029 | EI11: =Simulation!EI396-Futures!$D$1 -> 443.6778096 | EJ11: =Simulation!EJ396-Futures!$D$1 -> 430.7885036 | EK11: =Simulation!EK396-Futures!$D$1 -> 409.3488328 | EL11: =Simulation!EL396-Futures!$D$1 -> 398.5599789 | EM11: =Simulation!EM396-Futures!$D$1 -> 395.2587372 | EN11: =Simulation!EN396-Futures!$D$1 -> 407.8268509 | EO11: =Simulation!EO396-Futures!$D$1 -> 448.0434192 | EP11: =Simulation!EP396-Futures!$D$1 -> 457.1368648 | EQ11: =Simulation!EQ396-Futures!$D$1 -> 444.8209509 | ER11: =Simulation!ER396-Futures!$D$1 -> 443.3468067 | ES11: =Simulation!ES396-Futures!$D$1 -> 441.6512493 | ET11: =Simulation!ET396-Futures!$D$1 -> 435.0647304 | EU11: =Simulation!EU396-Futures!$D$1 -> 465.8464149 | EV11: =Simulation!EV396-Futures!$D$1 -> 478.6400732 | EW11: =Simulation!EW396-Futures!$D$1 -> 458.4000513 | EX11: =Simulation!EX396-Futures!$D$1 -> 443.3786087 | EY11: =Simulation!EY396-Futures!$D$1 -> 412.3978121 | EZ11: =Simulation!EZ396-Futures!$D$1 -> 371.527267 | FA11: =Simulation!FA396-Futures!$D$1 -> 382.7825412 | FB11: =Simulation!FB396-Futures!$D$1 -> 388.0334716 | FC11: =Simulation!FC396-Futures!$D$1 -> 399.6498693 | FD11: =Simulation!FD396-Futures!$D$1 -> 412.9919672 | FE11: =Simulation!FE396-Futures!$D$1 -> 421.4965972 | FF11: =Simulation!FF396-Futures!$D$1 -> 390.9539741 | FG11: =Simulation!FG396-Futures!$D$1 -> 400.629233 | FH11: =Simulation!FH396-Futures!$D$1 -> 395.9395947 | FI11: =Simulation!FI396-Futures!$D$1 -> 456.3287854 | FJ11: =Simulation!FJ396-Futures!$D$1 -> 482.2483202 | FK11: =Simulation!FK396-Futures!$D$1 -> 500.3083455 | FL11: =Simulation!FL396-Futures!$D$1 -> 475.2693169 | FM11: =Simulation!FM396-Futures!$D$1 -> 499.1219299 | FN11: =Simulation!FN396-Futures!$D$1 -> 493.4668326 | FO11: =Simulation!FO396-Futures!$D$1 -> 529.8139997 | FP11: =Simulation!FP396-Futures!$D$1 -> 579.4581652 | FQ11: =Simulation!FQ396-Futures!$D$1 -> 556.7841476 | FR11: =Simulation!FR396-Futures!$D$1 -> 515.57947 | FS11: =Simulation!FS396-Futures!$D$1 -> 540.1516826 | FT11: =Simulation!FT396-Futures!$D$1 -> 544.2859329 | FU11: =Simulation!FU396-Futures!$D$1 -> 560.0959172 | FV11: =Simulation!FV396-Futures!$D$1 -> 544.5557665 | FW11: =Simulation!FW396-Futures!$D$1 -> 543.3939014 | FX11: =Simulation!FX396-Futures!$D$1 -> 540.0429278 | FY11: =Simulation!FY396-Futures!$D$1 -> 554.485406 | FZ11: =Simulation!FZ396-Futures!$D$1 -> 541.5513747 | GA11: =Simulation!GA396-Futures!$D$1 -> 553.6030343 | GB11: =Simulation!GB396-Futures!$D$1 -> 575.9428984 | GC11: =Simulation!GC396-Futures!$D$1 -> 577.1341925 | GD11: =Simulation!GD396-Futures!$D$1 -> 568.2729852 | GE11: =Simulation!GE396-Futures!$D$1 -> 598.9878884 | GF11: =Simulation!GF396-Futures!$D$1 -> 601.7396569 | GG11: =Simulation!GG396-Futures!$D$1 -> 611.7362961 | GH11: =Simulation!GH396-Futures!$D$1 -> 604.4033131 | GI11: =Simulation!GI396-Futures!$D$1 -> 618.4024318 | GJ11: =Simulation!GJ396-Futures!$D$1 -> 618.102925 | GK11: =Simulation!GK396-Futures!$D$1 -> 608.4208799 | GL11: =Simulation!GL396-Futures!$D$1 -> 563.5988295 | GM11: =Simulation!GM396-Futures!$D$1 -> 546.958062 | GN11: =Simulation!GN396-Futures!$D$1 -> 534.3923922 | GO11: =Simulation!GO396-Futures!$D$1 -> 558.7274358 | GP11: =Simulation!GP396-Futures!$D$1 -> 551.9025404 | GQ11: =Simulation!GQ396-Futures!$D$1 -> 536.5779066 | GR11: =Simulation!GR396-Futures!$D$1 -> 497.8797448 | GS11: =Simulation!GS396-Futures!$D$1 -> 479.7159607 | GT11: =Simulation!GT396-Futures!$D$1 -> 487.8835786 | GU11: =Simulation!GU396-Futures!$D$1 -> 504.9671142 | GV11: =Simulation!GV396-Futures!$D$1 -> 526.1899802 | GW11: =Simulation!GW396-Futures!$D$1 -> 501.4429954 | GX11: =Simulation!GX396-Futures!$D$1 -> 511.5777703 | GY11: =Simulation!GY396-Futures!$D$1 -> 537.7148101 | GZ11: =Simulation!GZ396-Futures!$D$1 -> 547.5860034 | HA11: =Simulation!HA396-Futures!$D$1 -> 554.2131059 | HB11: =Simulation!HB396-Futures!$D$1 -> 552.5116488 | HC11: =Simulation!HC396-Futures!$D$1 -> 597.1911357 | HD11: =Simulation!HD396-Futures!$D$1 -> 622.5975434 | HE11: =Simulation!HE396-Futures!$D$1 -> 628.3846459 | HF11: =Simulation!HF396-Futures!$D$1 -> 645.2600737 | HG11: =Simulation!HG396-Futures!$D$1 -> 645.8707964 | HH11: =Simulation!HH396-Futures!$D$1 -> 622.4948881 | HI11: =Simulation!HI396-Futures!$D$1 -> 638.9899731 | HJ11: =Simulation!HJ396-Futures!$D$1 -> 628.5343917 | HK11: =Simulation!HK396-Futures!$D$1 -> 599.376045 | HL11: =Simulation!HL396-Futures!$D$1 -> 597.7648476 | HM11: =Simulation!HM396-Futures!$D$1 -> 592.7782464 | HN11: =Simulation!HN396-Futures!$D$1 -> 576.2248323 | HO11: =Simulation!HO396-Futures!$D$1 -> 562.1996544 | HP11: =Simulation!HP396-Futures!$D$1 -> 587.9625093 | HQ11: =Simulation!HQ396-Futures!$D$1 -> 595.7656479 | HR11: =Simulation!HR396-Futures!$D$1 -> 591.0690711 | HS11: =Simulation!HS396-Futures!$D$1 -> 567.0730933 | HT11: =Simulation!HT396-Futures!$D$1 -> 550.630095 | HU11: =Simulation!HU396-Futures!$D$1 -> 554.2414789 | HV11: =Simulation!HV396-Futures!$D$1 -> 592.7999208 | HW11: =Simulation!HW396-Futures!$D$1 -> 615.2944892 | HX11: =Simulation!HX396-Futures!$D$1 -> 636.7176248 | HY11: =Simulation!HY396-Futures!$D$1 -> 618.9678814 | HZ11: =Simulation!HZ396-Futures!$D$1 -> 568.1637095 | IA11: =Simulation!IA396-Futures!$D$1 -> 564.2578927 | IB11: =Simulation!IB396-Futures!$D$1 -> 556.7159135 | IC11: =Simulation!IC396-Futures!$D$1 -> 554.6922558 | ID11: =Simulation!ID396-Futures!$D$1 -> 571.5763655 | IE11: =Simulation!IE396-Futures!$D$1 -> 555.8043288 | IF11: =Simulation!IF396-Futures!$D$1 -> 604.9677292 | IG11: =Simulation!IG396-Futures!$D$1 -> 617.2347493 | IH11: =Simulation!IH396-Futures!$D$1 -> 593.5952673 | II11: =Simulation!II396-Futures!$D$1 -> 620.8229373 | IJ11: =Simulation!IJ396-Futures!$D$1 -> 603.0588666 | IK11: =Simulation!IK396-Futures!$D$1 -> 607.6636416 | IL11: =Simulation!IL396-Futures!$D$1 -> 601.3116561 | IM11: =Simulation!IM396-Futures!$D$1 -> 600.3437756 | IN11: =Simulation!IN396-Futures!$D$1 -> 592.0787182 | IO11: =Simulation!IO396-Futures!$D$1 -> 620.8933392 | IP11: =Simulation!IP396-Futures!$D$1 -> 619.2916769 | IQ11: =Simulation!IQ396-Futures!$D$1 -> 637.6184329 | IR11: =Simulation!IR396-Futures!$D$1 -> 653.2822431 | IS11: =Simulation!IS396-Futures!$D$1 -> 629.4603572 | IT11: =Simulation!IT396-Futures!$D$1 -> 627.7821752 | IU11: =Simulation!IU396-Futures!$D$1 -> 629.673187 | IV11: =Simulation!IV396-Futures!$D$1 -> 650.1400834 | IW11: =Simulation!IW396-Futures!$D$1 -> 670.9673342 | IX11: =Simulation!IX396-Futures!$D$1 -> 706.5740235 | IY11: =Simulation!IY396-Futures!$D$1 -> 721.1513278 | IZ11: =Simulation!IZ396-Futures!$D$1 -> 703.7450289 | JA11: =Simulation!JA396-Futures!$D$1 -> 677.2968145 | JB11: =Simulation!JB396-Futures!$D$1 -> 667.1893373 | JC11: =Simulation!JC396-Futures!$D$1 -> 628.8684052 | JD11: =Simulation!JD396-Futures!$D$1 -> 625.8108241 | JE11: =Simulation!JE396-Futures!$D$1 -> 646.5166432 | JF11: =Simulation!JF396-Futures!$D$1 -> 658.6006043 | JG11: =Simulation!JG396-Futures!$D$1 -> 617.8486017 | JH11: =Simulation!JH396-Futures!$D$1 -> 590.0691983 | JI11: =Simulation!JI396-Futures!$D$1 -> 576.7426461 | JJ11: =Simulation!JJ396-Futures!$D$1 -> 586.2312863 | JK11: =Simulation!JK396-Futures!$D$1 -> 561.3448295 | JL11: =Simulation!JL396-Futures!$D$1 -> 564.4217869 | JM11: =Simulation!JM396-Futures!$D$1 -> 587.1619029 | JN11: =Simulation!JN396-Futures!$D$1 -> 607.4877082 | JO11: =Simulation!JO396-Futures!$D$1 -> 609.4107801 | JP11: =Simulation!JP396-Futures!$D$1 -> 597.4609537 | JQ11: =Simulation!JQ396-Futures!$D$1 -> 619.4511709 | JR11: =Simulation!JR396-Futures!$D$1 -> 597.4855868 | JS11: =Simulation!JS396-Futures!$D$1 -> 655.4807207 | JT11: =Simulation!JT396-Futures!$D$1 -> 672.1235093 | JU11: =Simulation!JU396-Futures!$D$1 -> 625.8924144 | JV11: =Simulation!JV396-Futures!$D$1 -> 591.0127619 | JW11: =Simulation!JW396-Futures!$D$1 -> 599.3506923 | JX11: =Simulation!JX396-Futures!$D$1 -> 587.0027251 | JY11: =Simulation!JY396-Futures!$D$1 -> 624.3243438 | JZ11: =Simulation!JZ396-Futures!$D$1 -> 645.5243703 | KA11: =Simulation!KA396-Futures!$D$1 -> 680.6795345 | KB11: =Simulation!KB396-Futures!$D$1 -> 696.522629 | KC11: =Simulation!KC396-Futures!$D$1 -> 696.281541 | KD11: =Simulation!KD396-Futures!$D$1 -> 706.2391362 | KE11: =Simulation!KE396-Futures!$D$1 -> 695.2239303 | KF11: =Simulation!KF396-Futures!$D$1 -> 735.9279176 | KG11: =Simulation!KG396-Futures!$D$1 -> 741.9620046 | KH11: =Simulation!KH396-Futures!$D$1 -> 720.0410959 | KI11: =Simulation!KI396-Futures!$D$1 -> 690.0157969 | KJ11: =Simulation!KJ396-Futures!$D$1 -> 702.9560742 | KK11: =Simulation!KK396-Futures!$D$1 -> 715.91824 | KL11: =Simulation!KL396-Futures!$D$1 -> 735.5383812 | KM11: =Simulation!KM396-Futures!$D$1 -> 735.0329608 | KN11: =Simulation!KN396-Futures!$D$1 -> 730.1878158 | KO11: =Simulation!KO396-Futures!$D$1 -> 725.2987828 | KP11: =Simulation!KP396-Futures!$D$1 -> 703.1372724 | KQ11: =Simulation!KQ396-Futures!$D$1 -> 709.5648961 | KR11: =Simulation!KR396-Futures!$D$1 -> 722.952135 | KS11: =Simulation!KS396-Futures!$D$1 -> 721.8742416 | KT11: =Simulation!KT396-Futures!$D$1 -> 724.3807747 | KU11: =Simulation!KU396-Futures!$D$1 -> 733.0879986 | KV11: =Simulation!KV396-Futures!$D$1 -> 728.0197389 | KW11: =Simulation!KW396-Futures!$D$1 -> 749.7532256 | KX11: =Simulation!KX396-Futures!$D$1 -> 736.3556035 | KY11: =Simulation!KY396-Futures!$D$1 -> 739.7641842 | KZ11: =Simulation!KZ396-Futures!$D$1 -> 769.2353971 | LA11: =Simulation!LA396-Futures!$D$1 -> 763.2904259 | LB11: =Simulation!LB396-Futures!$D$1 -> 799.7040581 | LC11: =Simulation!LC396-Futures!$D$1 -> 803.4856222 | LD11: =Simulation!LD396-Futures!$D$1 -> 791.0588393 | LE11: =Simulation!LE396-Futures!$D$1 -> 766.8710266 | LF11: =Simulation!LF396-Futures!$D$1 -> 753.4530697 | LG11: =Simulation!LG396-Futures!$D$1 -> 763.3095097 | LH11: =Simulation!LH396-Futures!$D$1 -> 774.5958109 | LI11: =Simulation!LI396-Futures!$D$1 -> 789.5599621 | LJ11: =Simulation!LJ396-Futures!$D$1 -> 797.8741901 | LK11: =Simulation!LK396-Futures!$D$1 -> 833.1502337 | LL11: =Simulation!LL396-Futures!$D$1 -> 845.6593234 | LM11: =Simulation!LM396-Futures!$D$1 -> 819.2001229 | LN11: =Simulation!LN396-Futures!$D$1 -> 784.9760454 | LO11: =Simulation!LO396-Futures!$D$1 -> 774.2561439 | LP11: =Simulation!LP396-Futures!$D$1 -> 780.1740674 | LQ11: =Simulation!LQ396-Futures!$D$1 -> 787.0792588 | LR11: =Simulation!LR396-Futures!$D$1 -> 796.958749 | LS11: =Simulation!LS396-Futures!$D$1 -> 794.4852436 | LT11: =Simulation!LT396-Futures!$D$1 -> 819.3035078 | LU11: =Simulation!LU396-Futures!$D$1 -> 838.7997362 | LV11: =Simulation!LV396-Futures!$D$1 -> 790.053894 | LW11: =Simulation!LW396-Futures!$D$1 -> 779.2272415 | LX11: =Simulation!LX396-Futures!$D$1 -> 730.4590902 | LY11: =Simulation!LY396-Futures!$D$1 -> 725.5454212 | LZ11: =Simulation!LZ396-Futures!$D$1 -> 727.3603759 | MA11: =Simulation!MA396-Futures!$D$1 -> 717.8523494 | MB11: =Simulation!MB396-Futures!$D$1 -> 692.9025805 | MC11: =Simulation!MC396-Futures!$D$1 -> 693.6461946 | MD11: =Simulation!MD396-Futures!$D$1 -> 667.2306001 | ME11: =Simulation!ME396-Futures!$D$1 -> 732.6321357 | MF11: =Simulation!MF396-Futures!$D$1 -> 699.2526605 | MG11: =Simulation!MG396-Futures!$D$1 -> 702.8340601 | MH11: =Simulation!MH396-Futures!$D$1 -> 694.3994991 | MI11: =Simulation!MI396-Futures!$D$1 -> 644.1242965 | MJ11: =Simulation!MJ396-Futures!$D$1 -> 649.8929696 | MK11: =Simulation!MK396-Futures!$D$1 -> 630.0654438 | ML11: =Simulation!ML396-Futures!$D$1 -> 613.9014671 | MM11: =Simulation!MM396-Futures!$D$1 -> 604.610797 | MN11: =Simulation!MN396-Futures!$D$1 -> 613.6332605 | MO11: =Simulation!MO396-Futures!$D$1 -> 646.6181313 | MP11: =Simulation!MP396-Futures!$D$1 -> 672.8902421 | MQ11: =Simulation!MQ396-Futures!$D$1 -> 716.3898104 | MR11: =Simulation!MR396-Futures!$D$1 -> 730.4673293 | MS11: =Simulation!MS396-Futures!$D$1 -> 739.5757995 | MT11: =Simulation!MT396-Futures!$D$1 -> 741.9929237 | MU11: =Simulation!MU396-Futures!$D$1 -> 758.8370841 | MV11: =Simulation!MV396-Futures!$D$1 -> 717.4031248 | MW11: =Simulation!MW396-Futures!$D$1 -> 714.0324033 | MX11: =Simulation!MX396-Futures!$D$1 -> 709.6775004 | MY11: =Simulation!MY396-Futures!$D$1 -> 713.5874656 | MZ11: =Simulation!MZ396-Futures!$D$1 -> -2020 | NA11: =Simulation!NA396-Futures!$D$1 -> -2020 | NB11: =Simulation!NB396-Futures!$D$1 -> -2012
A12: 6 | B12: =Simulation!B397-Futures!$D$1 -> -19.11577007 | C12: =Simulation!C397-Futures!$D$1 -> -44.25804165 | D12: =Simulation!D397-Futures!$D$1 -> -68.09833161 | E12: =Simulation!E397-Futures!$D$1 -> -47.22812314 | F12: =Simulation!F397-Futures!$D$1 -> -50.02522618 | G12: =Simulation!G397-Futures!$D$1 -> -53.82992325 | H12: =Simulation!H397-Futures!$D$1 -> -70.3156777 | I12: =Simulation!I397-Futures!$D$1 -> -78.39646394 | J12: =Simulation!J397-Futures!$D$1 -> -49.43007246 | K12: =Simulation!K397-Futures!$D$1 -> -56.30049724 | L12: =Simulation!L397-Futures!$D$1 -> -68.42360798 | M12: =Simulation!M397-Futures!$D$1 -> -45.77566309 | N12: =Simulation!N397-Futures!$D$1 -> -47.83580375 | O12: =Simulation!O397-Futures!$D$1 -> -63.78756311 | P12: =Simulation!P397-Futures!$D$1 -> -37.16759091 | Q12: =Simulation!Q397-Futures!$D$1 -> -34.51851068 | R12: =Simulation!R397-Futures!$D$1 -> -50.83971315 | S12: =Simulation!S397-Futures!$D$1 -> -29.34798139 | T12: =Simulation!T397-Futures!$D$1 -> -39.51789962 | U12: =Simulation!U397-Futures!$D$1 -> -39.08405805 | V12: =Simulation!V397-Futures!$D$1 -> -33.84762415 | W12: =Simulation!W397-Futures!$D$1 -> -32.22207498 | X12: =Simulation!X397-Futures!$D$1 -> -17.10505451 | Y12: =Simulation!Y397-Futures!$D$1 -> -39.40063607 | Z12: =Simulation!Z397-Futures!$D$1 -> -49.05924787 | AA12: =Simulation!AA397-Futures!$D$1 -> -38.020552 | AB12: =Simulation!AB397-Futures!$D$1 -> -30.08273419 | AC12: =Simulation!AC397-Futures!$D$1 -> -31.3774815 | AD12: =Simulation!AD397-Futures!$D$1 -> -27.03726936 | AE12: =Simulation!AE397-Futures!$D$1 -> -29.12875244 | AF12: =Simulation!AF397-Futures!$D$1 -> -46.22273434 | AG12: =Simulation!AG397-Futures!$D$1 -> -30.33244044 | AH12: =Simulation!AH397-Futures!$D$1 -> -45.93079254 | AI12: =Simulation!AI397-Futures!$D$1 -> -62.33347282 | AJ12: =Simulation!AJ397-Futures!$D$1 -> -95.2802845 | AK12: =Simulation!AK397-Futures!$D$1 -> -88.04796579 | AL12: =Simulation!AL397-Futures!$D$1 -> -82.79613652 | AM12: =Simulation!AM397-Futures!$D$1 -> -73.90430759 | AN12: =Simulation!AN397-Futures!$D$1 -> -61.83440557 | AO12: =Simulation!AO397-Futures!$D$1 -> -40.16316348 | AP12: =Simulation!AP397-Futures!$D$1 -> -32.02953132 | AQ12: =Simulation!AQ397-Futures!$D$1 -> -38.15300041 | AR12: =Simulation!AR397-Futures!$D$1 -> -40.4129686 | AS12: =Simulation!AS397-Futures!$D$1 -> -5.246891424 | AT12: =Simulation!AT397-Futures!$D$1 -> 13.86435751 | AU12: =Simulation!AU397-Futures!$D$1 -> 26.09150584 | AV12: =Simulation!AV397-Futures!$D$1 -> 27.15705697 | AW12: =Simulation!AW397-Futures!$D$1 -> 49.46269577 | AX12: =Simulation!AX397-Futures!$D$1 -> 41.69019643 | AY12: =Simulation!AY397-Futures!$D$1 -> 29.99528287 | AZ12: =Simulation!AZ397-Futures!$D$1 -> 28.96574221 | BA12: =Simulation!BA397-Futures!$D$1 -> 45.71433298 | BB12: =Simulation!BB397-Futures!$D$1 -> 9.25312429 | BC12: =Simulation!BC397-Futures!$D$1 -> 31.15838218 | BD12: =Simulation!BD397-Futures!$D$1 -> 61.39023497 | BE12: =Simulation!BE397-Futures!$D$1 -> 52.55421625 | BF12: =Simulation!BF397-Futures!$D$1 -> 44.12520767 | BG12: =Simulation!BG397-Futures!$D$1 -> 68.29394432 | BH12: =Simulation!BH397-Futures!$D$1 -> 39.00431401 | BI12: =Simulation!BI397-Futures!$D$1 -> 35.37178061 | BJ12: =Simulation!BJ397-Futures!$D$1 -> 40.12376226 | BK12: =Simulation!BK397-Futures!$D$1 -> 56.09558109 | BL12: =Simulation!BL397-Futures!$D$1 -> 58.71282266 | BM12: =Simulation!BM397-Futures!$D$1 -> 28.07831662 | BN12: =Simulation!BN397-Futures!$D$1 -> 14.88278104 | BO12: =Simulation!BO397-Futures!$D$1 -> 8.935977158 | BP12: =Simulation!BP397-Futures!$D$1 -> 5.497986304 | BQ12: =Simulation!BQ397-Futures!$D$1 -> -6.470515464 | BR12: =Simulation!BR397-Futures!$D$1 -> -11.88993439 | BS12: =Simulation!BS397-Futures!$D$1 -> 8.302323542 | BT12: =Simulation!BT397-Futures!$D$1 -> 14.10343376 | BU12: =Simulation!BU397-Futures!$D$1 -> 12.98867314 | BV12: =Simulation!BV397-Futures!$D$1 -> 14.03670279 | BW12: =Simulation!BW397-Futures!$D$1 -> 7.671144856 | BX12: =Simulation!BX397-Futures!$D$1 -> 3.415091821 | BY12: =Simulation!BY397-Futures!$D$1 -> 4.539545835 | BZ12: =Simulation!BZ397-Futures!$D$1 -> 7.739024119 | CA12: =Simulation!CA397-Futures!$D$1 -> -4.196682686 | CB12: =Simulation!CB397-Futures!$D$1 -> -15.32289084 | CC12: =Simulation!CC397-Futures!$D$1 -> 8.111597594 | CD12: =Simulation!CD397-Futures!$D$1 -> 30.35739823 | CE12: =Simulation!CE397-Futures!$D$1 -> 8.390314642 | CF12: =Simulation!CF397-Futures!$D$1 -> 7.487977667 | CG12: =Simulation!CG397-Futures!$D$1 -> 14.99497933 | CH12: =Simulation!CH397-Futures!$D$1 -> 24.40016125 | CI12: =Simulation!CI397-Futures!$D$1 -> 10.84475172 | CJ12: =Simulation!CJ397-Futures!$D$1 -> 1.942548169 | CK12: =Simulation!CK397-Futures!$D$1 -> -10.17855348 | CL12: =Simulation!CL397-Futures!$D$1 -> 4.971727549 | CM12: =Simulation!CM397-Futures!$D$1 -> -1.633116464 | CN12: =Simulation!CN397-Futures!$D$1 -> -3.804996157 | CO12: =Simulation!CO397-Futures!$D$1 -> -10.18345901 | CP12: =Simulation!CP397-Futures!$D$1 -> -36.75672465 | CQ12: =Simulation!CQ397-Futures!$D$1 -> -40.19617505 | CR12: =Simulation!CR397-Futures!$D$1 -> -59.27346123 | CS12: =Simulation!CS397-Futures!$D$1 -> -55.90097439 | CT12: =Simulation!CT397-Futures!$D$1 -> -22.83479175 | CU12: =Simulation!CU397-Futures!$D$1 -> -19.3854634 | CV12: =Simulation!CV397-Futures!$D$1 -> -9.194577551 | CW12: =Simulation!CW397-Futures!$D$1 -> -16.55312851 | CX12: =Simulation!CX397-Futures!$D$1 -> 10.26032668 | CY12: =Simulation!CY397-Futures!$D$1 -> 26.0878627 | CZ12: =Simulation!CZ397-Futures!$D$1 -> 16.6154233 | DA12: =Simulation!DA397-Futures!$D$1 -> 23.36175327 | DB12: =Simulation!DB397-Futures!$D$1 -> 29.35682161 | DC12: =Simulation!DC397-Futures!$D$1 -> 14.01897441 | DD12: =Simulation!DD397-Futures!$D$1 -> -13.50904847 | DE12: =Simulation!DE397-Futures!$D$1 -> -1.530293557 | DF12: =Simulation!DF397-Futures!$D$1 -> -13.86107901 | DG12: =Simulation!DG397-Futures!$D$1 -> 3.413398982 | DH12: =Simulation!DH397-Futures!$D$1 -> 14.89403626 | DI12: =Simulation!DI397-Futures!$D$1 -> 18.17876787 | DJ12: =Simulation!DJ397-Futures!$D$1 -> 25.63773672 | DK12: =Simulation!DK397-Futures!$D$1 -> 11.68936099 | DL12: =Simulation!DL397-Futures!$D$1 -> 12.3726379 | DM12: =Simulation!DM397-Futures!$D$1 -> 26.37983979 | DN12: =Simulation!DN397-Futures!$D$1 -> 45.85700131 | DO12: =Simulation!DO397-Futures!$D$1 -> 62.01064372 | DP12: =Simulation!DP397-Futures!$D$1 -> 54.23379092 | DQ12: =Simulation!DQ397-Futures!$D$1 -> 83.11634957 | DR12: =Simulation!DR397-Futures!$D$1 -> 110.7277262 | DS12: =Simulation!DS397-Futures!$D$1 -> 97.69898802 | DT12: =Simulation!DT397-Futures!$D$1 -> 144.2104417 | DU12: =Simulation!DU397-Futures!$D$1 -> 133.3937562 | DV12: =Simulation!DV397-Futures!$D$1 -> 144.5402304 | DW12: =Simulation!DW397-Futures!$D$1 -> 161.3616845 | DX12: =Simulation!DX397-Futures!$D$1 -> 175.5807211 | DY12: =Simulation!DY397-Futures!$D$1 -> 179.4090852 | DZ12: =Simulation!DZ397-Futures!$D$1 -> 172.6594121 | EA12: =Simulation!EA397-Futures!$D$1 -> 190.2824265 | EB12: =Simulation!EB397-Futures!$D$1 -> 204.0999085 | EC12: =Simulation!EC397-Futures!$D$1 -> 217.7441354 | ED12: =Simulation!ED397-Futures!$D$1 -> 227.3799707 | EE12: =Simulation!EE397-Futures!$D$1 -> 246.0615085 | EF12: =Simulation!EF397-Futures!$D$1 -> 256.995291 | EG12: =Simulation!EG397-Futures!$D$1 -> 250.6275927 | EH12: =Simulation!EH397-Futures!$D$1 -> 234.2049289 | EI12: =Simulation!EI397-Futures!$D$1 -> 249.4135337 | EJ12: =Simulation!EJ397-Futures!$D$1 -> 256.2506515 | EK12: =Simulation!EK397-Futures!$D$1 -> 237.8309876 | EL12: =Simulation!EL397-Futures!$D$1 -> 227.0573091 | EM12: =Simulation!EM397-Futures!$D$1 -> 243.4720983 | EN12: =Simulation!EN397-Futures!$D$1 -> 206.3591906 | EO12: =Simulation!EO397-Futures!$D$1 -> 236.3559253 | EP12: =Simulation!EP397-Futures!$D$1 -> 245.3867473 | EQ12: =Simulation!EQ397-Futures!$D$1 -> 225.4004807 | ER12: =Simulation!ER397-Futures!$D$1 -> 198.2053058 | ES12: =Simulation!ES397-Futures!$D$1 -> 209.6600405 | ET12: =Simulation!ET397-Futures!$D$1 -> 210.5791287 | EU12: =Simulation!EU397-Futures!$D$1 -> 209.9747246 | EV12: =Simulation!EV397-Futures!$D$1 -> 215.9164663 | EW12: =Simulation!EW397-Futures!$D$1 -> 213.5544305 | EX12: =Simulation!EX397-Futures!$D$1 -> 193.5416807 | EY12: =Simulation!EY397-Futures!$D$1 -> 184.6384773 | EZ12: =Simulation!EZ397-Futures!$D$1 -> 175.7271474 | FA12: =Simulation!FA397-Futures!$D$1 -> 178.907445 | FB12: =Simulation!FB397-Futures!$D$1 -> 183.1336379 | FC12: =Simulation!FC397-Futures!$D$1 -> 179.9410668 | FD12: =Simulation!FD397-Futures!$D$1 -> 172.6483303 | FE12: =Simulation!FE397-Futures!$D$1 -> 212.9617222 | FF12: =Simulation!FF397-Futures!$D$1 -> 227.4947436 | FG12: =Simulation!FG397-Futures!$D$1 -> 230.0487298 | FH12: =Simulation!FH397-Futures!$D$1 -> 241.9468968 | FI12: =Simulation!FI397-Futures!$D$1 -> 264.3135307 | FJ12: =Simulation!FJ397-Futures!$D$1 -> 273.5146584 | FK12: =Simulation!FK397-Futures!$D$1 -> 271.0433108 | FL12: =Simulation!FL397-Futures!$D$1 -> 289.5286433 | FM12: =Simulation!FM397-Futures!$D$1 -> 292.5384528 | FN12: =Simulation!FN397-Futures!$D$1 -> 283.7685377 | FO12: =Simulation!FO397-Futures!$D$1 -> 321.0661324 | FP12: =Simulation!FP397-Futures!$D$1 -> 336.0243672 | FQ12: =Simulation!FQ397-Futures!$D$1 -> 362.0072669 | FR12: =Simulation!FR397-Futures!$D$1 -> 345.1379138 | FS12: =Simulation!FS397-Futures!$D$1 -> 345.8692061 | FT12: =Simulation!FT397-Futures!$D$1 -> 347.5793386 | FU12: =Simulation!FU397-Futures!$D$1 -> 350.8650654 | FV12: =Simulation!FV397-Futures!$D$1 -> 326.4698351 | FW12: =Simulation!FW397-Futures!$D$1 -> 324.5919137 | FX12: =Simulation!FX397-Futures!$D$1 -> 352.7914304 | FY12: =Simulation!FY397-Futures!$D$1 -> 358.1538339 | FZ12: =Simulation!FZ397-Futures!$D$1 -> 372.3916367 | GA12: =Simulation!GA397-Futures!$D$1 -> 371.9724109 | GB12: =Simulation!GB397-Futures!$D$1 -> 377.6188858 | GC12: =Simulation!GC397-Futures!$D$1 -> 411.7685505 | GD12: =Simulation!GD397-Futures!$D$1 -> 371.758836 | GE12: =Simulation!GE397-Futures!$D$1 -> 364.524105 | GF12: =Simulation!GF397-Futures!$D$1 -> 428.3109249 | GG12: =Simulation!GG397-Futures!$D$1 -> 423.6860343 | GH12: =Simulation!GH397-Futures!$D$1 -> 438.6915538 | GI12: =Simulation!GI397-Futures!$D$1 -> 429.1152076 | GJ12: =Simulation!GJ397-Futures!$D$1 -> 436.8207578 | GK12: =Simulation!GK397-Futures!$D$1 -> 458.4688387 | GL12: =Simulation!GL397-Futures!$D$1 -> 412.9762333 | GM12: =Simulation!GM397-Futures!$D$1 -> 423.7534752 | GN12: =Simulation!GN397-Futures!$D$1 -> 432.1048989 | GO12: =Simulation!GO397-Futures!$D$1 -> 450.3546668 | GP12: =Simulation!GP397-Futures!$D$1 -> 434.5737515 | GQ12: =Simulation!GQ397-Futures!$D$1 -> 450.553327 | GR12: =Simulation!GR397-Futures!$D$1 -> 460.1955101 | GS12: =Simulation!GS397-Futures!$D$1 -> 469.3360355 | GT12: =Simulation!GT397-Futures!$D$1 -> 455.8467159 | GU12: =Simulation!GU397-Futures!$D$1 -> 483.6866154 | GV12: =Simulation!GV397-Futures!$D$1 -> 463.3932241 | GW12: =Simulation!GW397-Futures!$D$1 -> 469.5538509 | GX12: =Simulation!GX397-Futures!$D$1 -> 455.4566839 | GY12: =Simulation!GY397-Futures!$D$1 -> 440.6920964 | GZ12: =Simulation!GZ397-Futures!$D$1 -> 451.6441329 | HA12: =Simulation!HA397-Futures!$D$1 -> 447.8573119 | HB12: =Simulation!HB397-Futures!$D$1 -> 446.0994431 | HC12: =Simulation!HC397-Futures!$D$1 -> 458.281809 | HD12: =Simulation!HD397-Futures!$D$1 -> 499.2180124 | HE12: =Simulation!HE397-Futures!$D$1 -> 542.6275581 | HF12: =Simulation!HF397-Futures!$D$1 -> 578.8987348 | HG12: =Simulation!HG397-Futures!$D$1 -> 608.6541522 | HH12: =Simulation!HH397-Futures!$D$1 -> 600.5918882 | HI12: =Simulation!HI397-Futures!$D$1 -> 607.728527 | HJ12: =Simulation!HJ397-Futures!$D$1 -> 621.9918132 | HK12: =Simulation!HK397-Futures!$D$1 -> 646.5012498 | HL12: =Simulation!HL397-Futures!$D$1 -> 657.6454272 | HM12: =Simulation!HM397-Futures!$D$1 -> 680.7926566 | HN12: =Simulation!HN397-Futures!$D$1 -> 669.2764459 | HO12: =Simulation!HO397-Futures!$D$1 -> 698.2141252 | HP12: =Simulation!HP397-Futures!$D$1 -> 697.751499 | HQ12: =Simulation!HQ397-Futures!$D$1 -> 697.2518685 | HR12: =Simulation!HR397-Futures!$D$1 -> 695.2957654 | HS12: =Simulation!HS397-Futures!$D$1 -> 653.8597656 | HT12: =Simulation!HT397-Futures!$D$1 -> 657.6036247 | HU12: =Simulation!HU397-Futures!$D$1 -> 640.7077677 | HV12: =Simulation!HV397-Futures!$D$1 -> 641.7821564 | HW12: =Simulation!HW397-Futures!$D$1 -> 620.1505943 | HX12: =Simulation!HX397-Futures!$D$1 -> 614.1166429 | HY12: =Simulation!HY397-Futures!$D$1 -> 606.9311319 | HZ12: =Simulation!HZ397-Futures!$D$1 -> 600.1903161 | IA12: =Simulation!IA397-Futures!$D$1 -> 616.7200464 | IB12: =Simulation!IB397-Futures!$D$1 -> 572.8066444 | IC12: =Simulation!IC397-Futures!$D$1 -> 579.007372 | ID12: =Simulation!ID397-Futures!$D$1 -> 591.3427439 | IE12: =Simulation!IE397-Futures!$D$1 -> 605.5218545 | IF12: =Simulation!IF397-Futures!$D$1 -> 601.6239272 | IG12: =Simulation!IG397-Futures!$D$1 -> 576.2175458 | IH12: =Simulation!IH397-Futures!$D$1 -> 560.0014824 | II12: =Simulation!II397-Futures!$D$1 -> 554.8870663 | IJ12: =Simulation!IJ397-Futures!$D$1 -> 572.6333016 | IK12: =Simulation!IK397-Futures!$D$1 -> 573.3167119 | IL12: =Simulation!IL397-Futures!$D$1 -> 545.4833805 | IM12: =Simulation!IM397-Futures!$D$1 -> 575.7808004 | IN12: =Simulation!IN397-Futures!$D$1 -> 596.4893938 | IO12: =Simulation!IO397-Futures!$D$1 -> 604.164216 | IP12: =Simulation!IP397-Futures!$D$1 -> 608.9036842 | IQ12: =Simulation!IQ397-Futures!$D$1 -> 577.7466974 | IR12: =Simulation!IR397-Futures!$D$1 -> 581.8820917 | IS12: =Simulation!IS397-Futures!$D$1 -> 560.1847223 | IT12: =Simulation!IT397-Futures!$D$1 -> 544.5519582 | IU12: =Simulation!IU397-Futures!$D$1 -> 558.8631519 | IV12: =Simulation!IV397-Futures!$D$1 -> 580.7860377 | IW12: =Simulation!IW397-Futures!$D$1 -> 562.6906245 | IX12: =Simulation!IX397-Futures!$D$1 -> 573.4049517 | IY12: =Simulation!IY397-Futures!$D$1 -> 613.0965202 | IZ12: =Simulation!IZ397-Futures!$D$1 -> 632.6693503 | JA12: =Simulation!JA397-Futures!$D$1 -> 656.6834356 | JB12: =Simulation!JB397-Futures!$D$1 -> 646.8665668 | JC12: =Simulation!JC397-Futures!$D$1 -> 658.4544492 | JD12: =Simulation!JD397-Futures!$D$1 -> 695.8788523 | JE12: =Simulation!JE397-Futures!$D$1 -> 677.5700308 | JF12: =Simulation!JF397-Futures!$D$1 -> 647.1057522 | JG12: =Simulation!JG397-Futures!$D$1 -> 607.20011 | JH12: =Simulation!JH397-Futures!$D$1 -> 582.0188309 | JI12: =Simulation!JI397-Futures!$D$1 -> 600.5788593 | JJ12: =Simulation!JJ397-Futures!$D$1 -> 629.5837561 | JK12: =Simulation!JK397-Futures!$D$1 -> 676.8514548 | JL12: =Simulation!JL397-Futures!$D$1 -> 655.6322829 | JM12: =Simulation!JM397-Futures!$D$1 -> 661.912016 | JN12: =Simulation!JN397-Futures!$D$1 -> 700.6775839 | JO12: =Simulation!JO397-Futures!$D$1 -> 701.5348182 | JP12: =Simulation!JP397-Futures!$D$1 -> 692.7315819 | JQ12: =Simulation!JQ397-Futures!$D$1 -> 700.5830106 | JR12: =Simulation!JR397-Futures!$D$1 -> 666.6614746 | JS12: =Simulation!JS397-Futures!$D$1 -> 651.258983 | JT12: =Simulation!JT397-Futures!$D$1 -> 643.9839332 | JU12: =Simulation!JU397-Futures!$D$1 -> 637.7339308 | JV12: =Simulation!JV397-Futures!$D$1 -> 659.3719343 | JW12: =Simulation!JW397-Futures!$D$1 -> 652.9568753 | JX12: =Simulation!JX397-Futures!$D$1 -> 637.2610593 | JY12: =Simulation!JY397-Futures!$D$1 -> 661.9797451 | JZ12: =Simulation!JZ397-Futures!$D$1 -> 662.0671384 | KA12: =Simulation!KA397-Futures!$D$1 -> 663.0689418 | KB12: =Simulation!KB397-Futures!$D$1 -> 650.7322877 | KC12: =Simulation!KC397-Futures!$D$1 -> 650.7795063 | KD12: =Simulation!KD397-Futures!$D$1 -> 643.1071393 | KE12: =Simulation!KE397-Futures!$D$1 -> 644.6027846 | KF12: =Simulation!KF397-Futures!$D$1 -> 652.0561083 | KG12: =Simulation!KG397-Futures!$D$1 -> 691.4103614 | KH12: =Simulation!KH397-Futures!$D$1 -> 682.1001273 | KI12: =Simulation!KI397-Futures!$D$1 -> 670.4336316 | KJ12: =Simulation!KJ397-Futures!$D$1 -> 653.0353417 | KK12: =Simulation!KK397-Futures!$D$1 -> 644.6676283 | KL12: =Simulation!KL397-Futures!$D$1 -> 657.1464856 | KM12: =Simulation!KM397-Futures!$D$1 -> 681.9736815 | KN12: =Simulation!KN397-Futures!$D$1 -> 651.3388733 | KO12: =Simulation!KO397-Futures!$D$1 -> 631.0052269 | KP12: =Simulation!KP397-Futures!$D$1 -> 682.3399146 | KQ12: =Simulation!KQ397-Futures!$D$1 -> 689.5498519 | KR12: =Simulation!KR397-Futures!$D$1 -> 685.9468873 | KS12: =Simulation!KS397-Futures!$D$1 -> 675.5307633 | KT12: =Simulation!KT397-Futures!$D$1 -> 640.7775804 | KU12: =Simulation!KU397-Futures!$D$1 -> 662.3925506 | KV12: =Simulation!KV397-Futures!$D$1 -> 665.0734398 | KW12: =Simulation!KW397-Futures!$D$1 -> 640.7788062 | KX12: =Simulation!KX397-Futures!$D$1 -> 634.1759628 | KY12: =Simulation!KY397-Futures!$D$1 -> 616.4310349 | KZ12: =Simulation!KZ397-Futures!$D$1 -> 621.2551508 | LA12: =Simulation!LA397-Futures!$D$1 -> 596.4173017 | LB12: =Simulation!LB397-Futures!$D$1 -> 599.4693855 | LC12: =Simulation!LC397-Futures!$D$1 -> 629.047369 | LD12: =Simulation!LD397-Futures!$D$1 -> 632.2939663 | LE12: =Simulation!LE397-Futures!$D$1 -> 633.1619865 | LF12: =Simulation!LF397-Futures!$D$1 -> 626.8801963 | LG12: =Simulation!LG397-Futures!$D$1 -> 624.4064394 | LH12: =Simulation!LH397-Futures!$D$1 -> 606.09219 | LI12: =Simulation!LI397-Futures!$D$1 -> 583.5477858 | LJ12: =Simulation!LJ397-Futures!$D$1 -> 597.8881927 | LK12: =Simulation!LK397-Futures!$D$1 -> 591.7440573 | LL12: =Simulation!LL397-Futures!$D$1 -> 611.7637452 | LM12: =Simulation!LM397-Futures!$D$1 -> 626.1189978 | LN12: =Simulation!LN397-Futures!$D$1 -> 613.0523637 | LO12: =Simulation!LO397-Futures!$D$1 -> 594.7185058 | LP12: =Simulation!LP397-Futures!$D$1 -> 606.2056696 | LQ12: =Simulation!LQ397-Futures!$D$1 -> 596.9103589 | LR12: =Simulation!LR397-Futures!$D$1 -> 574.6109604 | LS12: =Simulation!LS397-Futures!$D$1 -> 587.0634195 | LT12: =Simulation!LT397-Futures!$D$1 -> 610.2892259 | LU12: =Simulation!LU397-Futures!$D$1 -> 609.1202372 | LV12: =Simulation!LV397-Futures!$D$1 -> 600.2882035 | LW12: =Simulation!LW397-Futures!$D$1 -> 615.0900187 | LX12: =Simulation!LX397-Futures!$D$1 -> 588.0110378 | LY12: =Simulation!LY397-Futures!$D$1 -> 606.6066727 | LZ12: =Simulation!LZ397-Futures!$D$1 -> 592.5969604 | MA12: =Simulation!MA397-Futures!$D$1 -> 618.7261068 | MB12: =Simulation!MB397-Futures!$D$1 -> 594.8232207 | MC12: =Simulation!MC397-Futures!$D$1 -> 640.7871697 | MD12: =Simulation!MD397-Futures!$D$1 -> 673.3932558 | ME12: =Simulation!ME397-Futures!$D$1 -> 643.2528526 | MF12: =Simulation!MF397-Futures!$D$1 -> 696.9174328 | MG12: =Simulation!MG397-Futures!$D$1 -> 709.0945278 | MH12: =Simulation!MH397-Futures!$D$1 -> 696.207858 | MI12: =Simulation!MI397-Futures!$D$1 -> 712.2324413 | MJ12: =Simulation!MJ397-Futures!$D$1 -> 703.2603291 | MK12: =Simulation!MK397-Futures!$D$1 -> 678.5998338 | ML12: =Simulation!ML397-Futures!$D$1 -> 684.7315622 | MM12: =Simulation!MM397-Futures!$D$1 -> 671.8837809 | MN12: =Simulation!MN397-Futures!$D$1 -> 689.4444925 | MO12: =Simulation!MO397-Futures!$D$1 -> 686.0915527 | MP12: =Simulation!MP397-Futures!$D$1 -> 692.7974867 | MQ12: =Simulation!MQ397-Futures!$D$1 -> 722.8450449 | MR12: =Simulation!MR397-Futures!$D$1 -> 716.5757939 | MS12: =Simulation!MS397-Futures!$D$1 -> 730.8783961 | MT12: =Simulation!MT397-Futures!$D$1 -> 720.3939247 | MU12: =Simulation!MU397-Futures!$D$1 -> 719.0435694 | MV12: =Simulation!MV397-Futures!$D$1 -> 702.1816911 | MW12: =Simulation!MW397-Futures!$D$1 -> 712.3908633 | MX12: =Simulation!MX397-Futures!$D$1 -> 717.2351938 | MY12: =Simulation!MY397-Futures!$D$1 -> 722.6890728 | MZ12: =Simulation!MZ397-Futures!$D$1 -> -2020 | NA12: =Simulation!NA397-Futures!$D$1 -> -2020 | NB12: =Simulation!NB397-Futures!$D$1 -> -2012
A13: 7 | B13: =Simulation!B398-Futures!$D$1 -> 59.75381356 | C13: =Simulation!C398-Futures!$D$1 -> 58.12001357 | D13: =Simulation!D398-Futures!$D$1 -> 79.67529318 | E13: =Simulation!E398-Futures!$D$1 -> 89.92166589 | F13: =Simulation!F398-Futures!$D$1 -> 64.41866033 | G13: =Simulation!G398-Futures!$D$1 -> 38.66174262 | H13: =Simulation!H398-Futures!$D$1 -> 28.34332427 | I13: =Simulation!I398-Futures!$D$1 -> 31.73103373 | J13: =Simulation!J398-Futures!$D$1 -> 42.88172316 | K13: =Simulation!K398-Futures!$D$1 -> 61.11186807 | L13: =Simulation!L398-Futures!$D$1 -> 65.69883893 | M13: =Simulation!M398-Futures!$D$1 -> 63.04795135 | N13: =Simulation!N398-Futures!$D$1 -> 78.61063025 | O13: =Simulation!O398-Futures!$D$1 -> 67.72261227 | P13: =Simulation!P398-Futures!$D$1 -> 55.31936065 | Q13: =Simulation!Q398-Futures!$D$1 -> 64.20132657 | R13: =Simulation!R398-Futures!$D$1 -> 51.834076 | S13: =Simulation!S398-Futures!$D$1 -> 73.05880789 | T13: =Simulation!T398-Futures!$D$1 -> 86.76225673 | U13: =Simulation!U398-Futures!$D$1 -> 111.512034 | V13: =Simulation!V398-Futures!$D$1 -> 119.1407716 | W13: =Simulation!W398-Futures!$D$1 -> 120.0697875 | X13: =Simulation!X398-Futures!$D$1 -> 121.3816681 | Y13: =Simulation!Y398-Futures!$D$1 -> 80.82491059 | Z13: =Simulation!Z398-Futures!$D$1 -> 91.45691474 | AA13: =Simulation!AA398-Futures!$D$1 -> 56.32057153 | AB13: =Simulation!AB398-Futures!$D$1 -> 43.48741468 | AC13: =Simulation!AC398-Futures!$D$1 -> 82.33897258 | AD13: =Simulation!AD398-Futures!$D$1 -> 71.92412871 | AE13: =Simulation!AE398-Futures!$D$1 -> 62.34662245 | AF13: =Simulation!AF398-Futures!$D$1 -> 80.62928176 | AG13: =Simulation!AG398-Futures!$D$1 -> 79.93658955 | AH13: =Simulation!AH398-Futures!$D$1 -> 56.21934725 | AI13: =Simulation!AI398-Futures!$D$1 -> 38.25006175 | AJ13: =Simulation!AJ398-Futures!$D$1 -> 30.63834124 | AK13: =Simulation!AK398-Futures!$D$1 -> 53.06093305 | AL13: =Simulation!AL398-Futures!$D$1 -> 35.64825802 | AM13: =Simulation!AM398-Futures!$D$1 -> 24.98833132 | AN13: =Simulation!AN398-Futures!$D$1 -> 46.32338106 | AO13: =Simulation!AO398-Futures!$D$1 -> 24.46457557 | AP13: =Simulation!AP398-Futures!$D$1 -> 10.60828249 | AQ13: =Simulation!AQ398-Futures!$D$1 -> 9.650349664 | AR13: =Simulation!AR398-Futures!$D$1 -> 15.34615551 | AS13: =Simulation!AS398-Futures!$D$1 -> 20.59861389 | AT13: =Simulation!AT398-Futures!$D$1 -> -4.335291572 | AU13: =Simulation!AU398-Futures!$D$1 -> -6.141747615 | AV13: =Simulation!AV398-Futures!$D$1 -> 8.120979792 | AW13: =Simulation!AW398-Futures!$D$1 -> -23.94399912 | AX13: =Simulation!AX398-Futures!$D$1 -> -22.17750428 | AY13: =Simulation!AY398-Futures!$D$1 -> -17.02585248 | AZ13: =Simulation!AZ398-Futures!$D$1 -> -30.08394053 | BA13: =Simulation!BA398-Futures!$D$1 -> -2.653160575 | BB13: =Simulation!BB398-Futures!$D$1 -> -13.80200376 | BC13: =Simulation!BC398-Futures!$D$1 -> -14.91032752 | BD13: =Simulation!BD398-Futures!$D$1 -> -39.68823091 | BE13: =Simulation!BE398-Futures!$D$1 -> -31.67828146 | BF13: =Simulation!BF398-Futures!$D$1 -> -34.30238163 | BG13: =Simulation!BG398-Futures!$D$1 -> -27.46989166 | BH13: =Simulation!BH398-Futures!$D$1 -> -42.05551553 | BI13: =Simulation!BI398-Futures!$D$1 -> -23.92425902 | BJ13: =Simulation!BJ398-Futures!$D$1 -> -28.45716517 | BK13: =Simulation!BK398-Futures!$D$1 -> -26.05659462 | BL13: =Simulation!BL398-Futures!$D$1 -> -5.637822519 | BM13: =Simulation!BM398-Futures!$D$1 -> -0.6008171312 | BN13: =Simulation!BN398-Futures!$D$1 -> 18.86187965 | BO13: =Simulation!BO398-Futures!$D$1 -> 12.13535943 | BP13: =Simulation!BP398-Futures!$D$1 -> 33.67268819 | BQ13: =Simulation!BQ398-Futures!$D$1 -> 43.05479539 | BR13: =Simulation!BR398-Futures!$D$1 -> 46.46772115 | BS13: =Simulation!BS398-Futures!$D$1 -> 20.67711825 | BT13: =Simulation!BT398-Futures!$D$1 -> 1.437397625 | BU13: =Simulation!BU398-Futures!$D$1 -> 6.051247274 | BV13: =Simulation!BV398-Futures!$D$1 -> 18.5675013 | BW13: =Simulation!BW398-Futures!$D$1 -> 32.60893013 | BX13: =Simulation!BX398-Futures!$D$1 -> 18.64456808 | BY13: =Simulation!BY398-Futures!$D$1 -> 20.30360787 | BZ13: =Simulation!BZ398-Futures!$D$1 -> 0.9983644239 | CA13: =Simulation!CA398-Futures!$D$1 -> -6.317217645 | CB13: =Simulation!CB398-Futures!$D$1 -> -22.10839183 | CC13: =Simulation!CC398-Futures!$D$1 -> -22.59983141 | CD13: =Simulation!CD398-Futures!$D$1 -> -18.12765989 | CE13: =Simulation!CE398-Futures!$D$1 -> 21.84313252 | CF13: =Simulation!CF398-Futures!$D$1 -> 38.27112074 | CG13: =Simulation!CG398-Futures!$D$1 -> 49.01960954 | CH13: =Simulation!CH398-Futures!$D$1 -> 30.03735054 | CI13: =Simulation!CI398-Futures!$D$1 -> 36.88755283 | CJ13: =Simulation!CJ398-Futures!$D$1 -> 32.00723615 | CK13: =Simulation!CK398-Futures!$D$1 -> 51.07636404 | CL13: =Simulation!CL398-Futures!$D$1 -> 47.51870074 | CM13: =Simulation!CM398-Futures!$D$1 -> 43.09769092 | CN13: =Simulation!CN398-Futures!$D$1 -> 61.37245477 | CO13: =Simulation!CO398-Futures!$D$1 -> 51.93391359 | CP13: =Simulation!CP398-Futures!$D$1 -> 27.48233701 | CQ13: =Simulation!CQ398-Futures!$D$1 -> 14.02290482 | CR13: =Simulation!CR398-Futures!$D$1 -> -26.16329483 | CS13: =Simulation!CS398-Futures!$D$1 -> -34.30590294 | CT13: =Simulation!CT398-Futures!$D$1 -> -14.24809796 | CU13: =Simulation!CU398-Futures!$D$1 -> -33.29142401 | CV13: =Simulation!CV398-Futures!$D$1 -> -7.176850645 | CW13: =Simulation!CW398-Futures!$D$1 -> -12.01972585 | CX13: =Simulation!CX398-Futures!$D$1 -> -14.25089085 | CY13: =Simulation!CY398-Futures!$D$1 -> -23.45038915 | CZ13: =Simulation!CZ398-Futures!$D$1 -> -20.50228841 | DA13: =Simulation!DA398-Futures!$D$1 -> -16.35575466 | DB13: =Simulation!DB398-Futures!$D$1 -> -42.0658126 | DC13: =Simulation!DC398-Futures!$D$1 -> -60.05481923 | DD13: =Simulation!DD398-Futures!$D$1 -> -92.66390822 | DE13: =Simulation!DE398-Futures!$D$1 -> -130.0896969 | DF13: =Simulation!DF398-Futures!$D$1 -> -142.2889517 | DG13: =Simulation!DG398-Futures!$D$1 -> -123.6369441 | DH13: =Simulation!DH398-Futures!$D$1 -> -152.0086484 | DI13: =Simulation!DI398-Futures!$D$1 -> -146.5054904 | DJ13: =Simulation!DJ398-Futures!$D$1 -> -155.1388479 | DK13: =Simulation!DK398-Futures!$D$1 -> -164.4966035 | DL13: =Simulation!DL398-Futures!$D$1 -> -166.1689119 | DM13: =Simulation!DM398-Futures!$D$1 -> -159.1432185 | DN13: =Simulation!DN398-Futures!$D$1 -> -122.7400202 | DO13: =Simulation!DO398-Futures!$D$1 -> -145.067304 | DP13: =Simulation!DP398-Futures!$D$1 -> -147.7655402 | DQ13: =Simulation!DQ398-Futures!$D$1 -> -163.8079439 | DR13: =Simulation!DR398-Futures!$D$1 -> -190.166103 | DS13: =Simulation!DS398-Futures!$D$1 -> -206.8846653 | DT13: =Simulation!DT398-Futures!$D$1 -> -201.809049 | DU13: =Simulation!DU398-Futures!$D$1 -> -186.0086682 | DV13: =Simulation!DV398-Futures!$D$1 -> -187.2636986 | DW13: =Simulation!DW398-Futures!$D$1 -> -196.1605019 | DX13: =Simulation!DX398-Futures!$D$1 -> -196.1094951 | DY13: =Simulation!DY398-Futures!$D$1 -> -182.9175394 | DZ13: =Simulation!DZ398-Futures!$D$1 -> -206.6734987 | EA13: =Simulation!EA398-Futures!$D$1 -> -207.2257599 | EB13: =Simulation!EB398-Futures!$D$1 -> -222.348255 | EC13: =Simulation!EC398-Futures!$D$1 -> -208.4789235 | ED13: =Simulation!ED398-Futures!$D$1 -> -219.757383 | EE13: =Simulation!EE398-Futures!$D$1 -> -199.6132207 | EF13: =Simulation!EF398-Futures!$D$1 -> -207.9228497 | EG13: =Simulation!EG398-Futures!$D$1 -> -234.7433639 | EH13: =Simulation!EH398-Futures!$D$1 -> -232.6252015 | EI13: =Simulation!EI398-Futures!$D$1 -> -250.450537 | EJ13: =Simulation!EJ398-Futures!$D$1 -> -238.6083595 | EK13: =Simulation!EK398-Futures!$D$1 -> -223.1767629 | EL13: =Simulation!EL398-Futures!$D$1 -> -219.009566 | EM13: =Simulation!EM398-Futures!$D$1 -> -211.059342 | EN13: =Simulation!EN398-Futures!$D$1 -> -221.0615896 | EO13: =Simulation!EO398-Futures!$D$1 -> -221.5943599 | EP13: =Simulation!EP398-Futures!$D$1 -> -213.1251634 | EQ13: =Simulation!EQ398-Futures!$D$1 -> -191.946237 | ER13: =Simulation!ER398-Futures!$D$1 -> -195.4941309 | ES13: =Simulation!ES398-Futures!$D$1 -> -207.8902738 | ET13: =Simulation!ET398-Futures!$D$1 -> -201.1760968 | EU13: =Simulation!EU398-Futures!$D$1 -> -218.5611672 | EV13: =Simulation!EV398-Futures!$D$1 -> -223.6320255 | EW13: =Simulation!EW398-Futures!$D$1 -> -229.1721397 | EX13: =Simulation!EX398-Futures!$D$1 -> -244.2741426 | EY13: =Simulation!EY398-Futures!$D$1 -> -258.460564 | EZ13: =Simulation!EZ398-Futures!$D$1 -> -240.4985396 | FA13: =Simulation!FA398-Futures!$D$1 -> -264.4535217 | FB13: =Simulation!FB398-Futures!$D$1 -> -248.4162496 | FC13: =Simulation!FC398-Futures!$D$1 -> -204.3087889 | FD13: =Simulation!FD398-Futures!$D$1 -> -213.5994621 | FE13: =Simulation!FE398-Futures!$D$1 -> -230.4886041 | FF13: =Simulation!FF398-Futures!$D$1 -> -208.7123818 | FG13: =Simulation!FG398-Futures!$D$1 -> -213.9546593 | FH13: =Simulation!FH398-Futures!$D$1 -> -222.1158671 | FI13: =Simulation!FI398-Futures!$D$1 -> -221.121288 | FJ13: =Simulation!FJ398-Futures!$D$1 -> -207.0004113 | FK13: =Simulation!FK398-Futures!$D$1 -> -203.3754854 | FL13: =Simulation!FL398-Futures!$D$1 -> -201.927043 | FM13: =Simulation!FM398-Futures!$D$1 -> -196.5150571 | FN13: =Simulation!FN398-Futures!$D$1 -> -194.2426413 | FO13: =Simulation!FO398-Futures!$D$1 -> -201.123031 | FP13: =Simulation!FP398-Futures!$D$1 -> -217.0956169 | FQ13: =Simulation!FQ398-Futures!$D$1 -> -212.319763 | FR13: =Simulation!FR398-Futures!$D$1 -> -227.3423693 | FS13: =Simulation!FS398-Futures!$D$1 -> -234.5128308 | FT13: =Simulation!FT398-Futures!$D$1 -> -232.5762674 | FU13: =Simulation!FU398-Futures!$D$1 -> -205.8494366 | FV13: =Simulation!FV398-Futures!$D$1 -> -190.0545452 | FW13: =Simulation!FW398-Futures!$D$1 -> -208.0345214 | FX13: =Simulation!FX398-Futures!$D$1 -> -222.3600923 | FY13: =Simulation!FY398-Futures!$D$1 -> -238.0208673 | FZ13: =Simulation!FZ398-Futures!$D$1 -> -223.2579135 | GA13: =Simulation!GA398-Futures!$D$1 -> -206.7648348 | GB13: =Simulation!GB398-Futures!$D$1 -> -239.5797442 | GC13: =Simulation!GC398-Futures!$D$1 -> -255.9182984 | GD13: =Simulation!GD398-Futures!$D$1 -> -264.1379837 | GE13: =Simulation!GE398-Futures!$D$1 -> -245.3479389 | GF13: =Simulation!GF398-Futures!$D$1 -> -259.6950613 | GG13: =Simulation!GG398-Futures!$D$1 -> -265.9243576 | GH13: =Simulation!GH398-Futures!$D$1 -> -279.0413645 | GI13: =Simulation!GI398-Futures!$D$1 -> -269.1716772 | GJ13: =Simulation!GJ398-Futures!$D$1 -> -266.2440823 | GK13: =Simulation!GK398-Futures!$D$1 -> -285.9907663 | GL13: =Simulation!GL398-Futures!$D$1 -> -285.8294143 | GM13: =Simulation!GM398-Futures!$D$1 -> -297.9611363 | GN13: =Simulation!GN398-Futures!$D$1 -> -289.8652003 | GO13: =Simulation!GO398-Futures!$D$1 -> -280.0126808 | GP13: =Simulation!GP398-Futures!$D$1 -> -286.6362652 | GQ13: =Simulation!GQ398-Futures!$D$1 -> -285.8769129 | GR13: =Simulation!GR398-Futures!$D$1 -> -271.4558605 | GS13: =Simulation!GS398-Futures!$D$1 -> -282.8912739 | GT13: =Simulation!GT398-Futures!$D$1 -> -281.8739808 | GU13: =Simulation!GU398-Futures!$D$1 -> -307.5773229 | GV13: =Simulation!GV398-Futures!$D$1 -> -317.7913384 | GW13: =Simulation!GW398-Futures!$D$1 -> -306.9040017 | GX13: =Simulation!GX398-Futures!$D$1 -> -280.5896255 | GY13: =Simulation!GY398-Futures!$D$1 -> -277.5342228 | GZ13: =Simulation!GZ398-Futures!$D$1 -> -278.3737996 | HA13: =Simulation!HA398-Futures!$D$1 -> -272.2461682 | HB13: =Simulation!HB398-Futures!$D$1 -> -266.4642698 | HC13: =Simulation!HC398-Futures!$D$1 -> -258.3965429 | HD13: =Simulation!HD398-Futures!$D$1 -> -253.6316522 | HE13: =Simulation!HE398-Futures!$D$1 -> -271.3134899 | HF13: =Simulation!HF398-Futures!$D$1 -> -275.799543 | HG13: =Simulation!HG398-Futures!$D$1 -> -251.7388591 | HH13: =Simulation!HH398-Futures!$D$1 -> -254.677712 | HI13: =Simulation!HI398-Futures!$D$1 -> -260.3557414 | HJ13: =Simulation!HJ398-Futures!$D$1 -> -257.251167 | HK13: =Simulation!HK398-Futures!$D$1 -> -269.4976527 | HL13: =Simulation!HL398-Futures!$D$1 -> -257.1112039 | HM13: =Simulation!HM398-Futures!$D$1 -> -276.4887711 | HN13: =Simulation!HN398-Futures!$D$1 -> -293.5351896 | HO13: =Simulation!HO398-Futures!$D$1 -> -287.8308036 | HP13: =Simulation!HP398-Futures!$D$1 -> -276.0777364 | HQ13: =Simulation!HQ398-Futures!$D$1 -> -290.9107674 | HR13: =Simulation!HR398-Futures!$D$1 -> -269.5589794 | HS13: =Simulation!HS398-Futures!$D$1 -> -260.552839 | HT13: =Simulation!HT398-Futures!$D$1 -> -242.3501525 | HU13: =Simulation!HU398-Futures!$D$1 -> -231.5208167 | HV13: =Simulation!HV398-Futures!$D$1 -> -242.3781319 | HW13: =Simulation!HW398-Futures!$D$1 -> -214.0014031 | HX13: =Simulation!HX398-Futures!$D$1 -> -197.9477381 | HY13: =Simulation!HY398-Futures!$D$1 -> -210.8281744 | HZ13: =Simulation!HZ398-Futures!$D$1 -> -168.2561641 | IA13: =Simulation!IA398-Futures!$D$1 -> -171.4414177 | IB13: =Simulation!IB398-Futures!$D$1 -> -188.5683379 | IC13: =Simulation!IC398-Futures!$D$1 -> -184.0298884 | ID13: =Simulation!ID398-Futures!$D$1 -> -186.9695853 | IE13: =Simulation!IE398-Futures!$D$1 -> -198.2104386 | IF13: =Simulation!IF398-Futures!$D$1 -> -192.48686 | IG13: =Simulation!IG398-Futures!$D$1 -> -200.9549538 | IH13: =Simulation!IH398-Futures!$D$1 -> -222.3129697 | II13: =Simulation!II398-Futures!$D$1 -> -221.5469916 | IJ13: =Simulation!IJ398-Futures!$D$1 -> -237.1782198 | IK13: =Simulation!IK398-Futures!$D$1 -> -229.9975042 | IL13: =Simulation!IL398-Futures!$D$1 -> -226.9298219 | IM13: =Simulation!IM398-Futures!$D$1 -> -223.4537829 | IN13: =Simulation!IN398-Futures!$D$1 -> -207.6883041 | IO13: =Simulation!IO398-Futures!$D$1 -> -193.8087073 | IP13: =Simulation!IP398-Futures!$D$1 -> -211.3029314 | IQ13: =Simulation!IQ398-Futures!$D$1 -> -191.7054878 | IR13: =Simulation!IR398-Futures!$D$1 -> -206.423907 | IS13: =Simulation!IS398-Futures!$D$1 -> -192.996287 | IT13: =Simulation!IT398-Futures!$D$1 -> -188.3722142 | IU13: =Simulation!IU398-Futures!$D$1 -> -194.6016219 | IV13: =Simulation!IV398-Futures!$D$1 -> -188.8026522 | IW13: =Simulation!IW398-Futures!$D$1 -> -204.5114601 | IX13: =Simulation!IX398-Futures!$D$1 -> -194.4845355 | IY13: =Simulation!IY398-Futures!$D$1 -> -212.557971 | IZ13: =Simulation!IZ398-Futures!$D$1 -> -198.91317 | JA13: =Simulation!JA398-Futures!$D$1 -> -205.1625544 | JB13: =Simulation!JB398-Futures!$D$1 -> -211.6562019 | JC13: =Simulation!JC398-Futures!$D$1 -> -186.5077495 | JD13: =Simulation!JD398-Futures!$D$1 -> -192.937449 | JE13: =Simulation!JE398-Futures!$D$1 -> -166.5875673 | JF13: =Simulation!JF398-Futures!$D$1 -> -160.7348604 | JG13: =Simulation!JG398-Futures!$D$1 -> -137.6927149 | JH13: =Simulation!JH398-Futures!$D$1 -> -140.0121028 | JI13: =Simulation!JI398-Futures!$D$1 -> -106.0918206 | JJ13: =Simulation!JJ398-Futures!$D$1 -> -118.008264 | JK13: =Simulation!JK398-Futures!$D$1 -> -118.2441372 | JL13: =Simulation!JL398-Futures!$D$1 -> -124.6995395 | JM13: =Simulation!JM398-Futures!$D$1 -> -103.7364904 | JN13: =Simulation!JN398-Futures!$D$1 -> -93.12528467 | JO13: =Simulation!JO398-Futures!$D$1 -> -97.14272183 | JP13: =Simulation!JP398-Futures!$D$1 -> -103.9459341 | JQ13: =Simulation!JQ398-Futures!$D$1 -> -128.9244936 | JR13: =Simulation!JR398-Futures!$D$1 -> -137.8194021 | JS13: =Simulation!JS398-Futures!$D$1 -> -150.1873962 | JT13: =Simulation!JT398-Futures!$D$1 -> -121.6694521 | JU13: =Simulation!JU398-Futures!$D$1 -> -121.2687596 | JV13: =Simulation!JV398-Futures!$D$1 -> -116.6941681 | JW13: =Simulation!JW398-Futures!$D$1 -> -130.7367748 | JX13: =Simulation!JX398-Futures!$D$1 -> -137.084682 | JY13: =Simulation!JY398-Futures!$D$1 -> -131.796461 | JZ13: =Simulation!JZ398-Futures!$D$1 -> -130.9378975 | KA13: =Simulation!KA398-Futures!$D$1 -> -128.8425246 | KB13: =Simulation!KB398-Futures!$D$1 -> -133.137992 | KC13: =Simulation!KC398-Futures!$D$1 -> -125.2129101 | KD13: =Simulation!KD398-Futures!$D$1 -> -123.8740635 | KE13: =Simulation!KE398-Futures!$D$1 -> -106.3238839 | KF13: =Simulation!KF398-Futures!$D$1 -> -119.8497499 | KG13: =Simulation!KG398-Futures!$D$1 -> -110.4186745 | KH13: =Simulation!KH398-Futures!$D$1 -> -118.6279282 | KI13: =Simulation!KI398-Futures!$D$1 -> -103.2700204 | KJ13: =Simulation!KJ398-Futures!$D$1 -> -107.2683754 | KK13: =Simulation!KK398-Futures!$D$1 -> -103.3889173 | KL13: =Simulation!KL398-Futures!$D$1 -> -73.0025281 | KM13: =Simulation!KM398-Futures!$D$1 -> -49.10263789 | KN13: =Simulation!KN398-Futures!$D$1 -> -45.0817017 | KO13: =Simulation!KO398-Futures!$D$1 -> -68.05914353 | KP13: =Simulation!KP398-Futures!$D$1 -> -56.19812899 | KQ13: =Simulation!KQ398-Futures!$D$1 -> -41.36357248 | KR13: =Simulation!KR398-Futures!$D$1 -> -59.92390171 | KS13: =Simulation!KS398-Futures!$D$1 -> -53.16157518 | KT13: =Simulation!KT398-Futures!$D$1 -> -29.82460177 | KU13: =Simulation!KU398-Futures!$D$1 -> -40.82947385 | KV13: =Simulation!KV398-Futures!$D$1 -> -23.86022607 | KW13: =Simulation!KW398-Futures!$D$1 -> -29.54013233 | KX13: =Simulation!KX398-Futures!$D$1 -> -52.47259219 | KY13: =Simulation!KY398-Futures!$D$1 -> -51.91757718 | KZ13: =Simulation!KZ398-Futures!$D$1 -> -48.28542338 | LA13: =Simulation!LA398-Futures!$D$1 -> -43.51161453 | LB13: =Simulation!LB398-Futures!$D$1 -> -23.60376903 | LC13: =Simulation!LC398-Futures!$D$1 -> -17.1533263 | LD13: =Simulation!LD398-Futures!$D$1 -> -43.51697752 | LE13: =Simulation!LE398-Futures!$D$1 -> 0.1197887988 | LF13: =Simulation!LF398-Futures!$D$1 -> -0.2587984662 | LG13: =Simulation!LG398-Futures!$D$1 -> 5.312494813 | LH13: =Simulation!LH398-Futures!$D$1 -> -15.25153952 | LI13: =Simulation!LI398-Futures!$D$1 -> 14.86023211 | LJ13: =Simulation!LJ398-Futures!$D$1 -> 34.57158762 | LK13: =Simulation!LK398-Futures!$D$1 -> 31.4001313 | LL13: =Simulation!LL398-Futures!$D$1 -> -1.806680402 | LM13: =Simulation!LM398-Futures!$D$1 -> 3.49656993 | LN13: =Simulation!LN398-Futures!$D$1 -> -10.42629058 | LO13: =Simulation!LO398-Futures!$D$1 -> -9.130889602 | LP13: =Simulation!LP398-Futures!$D$1 -> -5.331688209 | LQ13: =Simulation!LQ398-Futures!$D$1 -> 8.546320996 | LR13: =Simulation!LR398-Futures!$D$1 -> -4.635603009 | LS13: =Simulation!LS398-Futures!$D$1 -> 5.681183042 | LT13: =Simulation!LT398-Futures!$D$1 -> 46.31428953 | LU13: =Simulation!LU398-Futures!$D$1 -> 53.32281809 | LV13: =Simulation!LV398-Futures!$D$1 -> 43.65819248 | LW13: =Simulation!LW398-Futures!$D$1 -> 59.00852706 | LX13: =Simulation!LX398-Futures!$D$1 -> 51.92644822 | LY13: =Simulation!LY398-Futures!$D$1 -> 14.76519108 | LZ13: =Simulation!LZ398-Futures!$D$1 -> 15.87067636 | MA13: =Simulation!MA398-Futures!$D$1 -> -15.87595189 | MB13: =Simulation!MB398-Futures!$D$1 -> -24.18804803 | MC13: =Simulation!MC398-Futures!$D$1 -> -37.82624201 | MD13: =Simulation!MD398-Futures!$D$1 -> -55.0302433 | ME13: =Simulation!ME398-Futures!$D$1 -> -28.30192607 | MF13: =Simulation!MF398-Futures!$D$1 -> -30.94822997 | MG13: =Simulation!MG398-Futures!$D$1 -> -30.05845607 | MH13: =Simulation!MH398-Futures!$D$1 -> -5.622812818 | MI13: =Simulation!MI398-Futures!$D$1 -> -32.38921134 | MJ13: =Simulation!MJ398-Futures!$D$1 -> -0.3856360839 | MK13: =Simulation!MK398-Futures!$D$1 -> 10.73474174 | ML13: =Simulation!ML398-Futures!$D$1 -> 10.63508286 | MM13: =Simulation!MM398-Futures!$D$1 -> -6.223776125 | MN13: =Simulation!MN398-Futures!$D$1 -> -13.01285561 | MO13: =Simulation!MO398-Futures!$D$1 -> -32.17322841 | MP13: =Simulation!MP398-Futures!$D$1 -> -32.65468037 | MQ13: =Simulation!MQ398-Futures!$D$1 -> -45.29861801 | MR13: =Simulation!MR398-Futures!$D$1 -> -60.75925492 | MS13: =Simulation!MS398-Futures!$D$1 -> -43.03081615 | MT13: =Simulation!MT398-Futures!$D$1 -> -43.40588174 | MU13: =Simulation!MU398-Futures!$D$1 -> 7.216796598 | MV13: =Simulation!MV398-Futures!$D$1 -> 31.15054901 | MW13: =Simulation!MW398-Futures!$D$1 -> 30.40999213 | MX13: =Simulation!MX398-Futures!$D$1 -> 19.35864138 | MY13: =Simulation!MY398-Futures!$D$1 -> -19.49511227 | MZ13: =Simulation!MZ398-Futures!$D$1 -> -2020 | NA13: =Simulation!NA398-Futures!$D$1 -> -2020 | NB13: =Simulation!NB398-Futures!$D$1 -> -2012
A14: 8 | B14: =Simulation!B399-Futures!$D$1 -> -84.3897682 | C14: =Simulation!C399-Futures!$D$1 -> -127.006153 | D14: =Simulation!D399-Futures!$D$1 -> -146.3506903 | E14: =Simulation!E399-Futures!$D$1 -> -134.0670539 | F14: =Simulation!F399-Futures!$D$1 -> -118.4389802 | G14: =Simulation!G399-Futures!$D$1 -> -110.2434341 | H14: =Simulation!H399-Futures!$D$1 -> -111.0905891 | I14: =Simulation!I399-Futures!$D$1 -> -104.1246295 | J14: =Simulation!J399-Futures!$D$1 -> -116.7417511 | K14: =Simulation!K399-Futures!$D$1 -> -105.9170369 | L14: =Simulation!L399-Futures!$D$1 -> -84.63840286 | M14: =Simulation!M399-Futures!$D$1 -> -66.3794137 | N14: =Simulation!N399-Futures!$D$1 -> -87.83422304 | O14: =Simulation!O399-Futures!$D$1 -> -94.9565359 | P14: =Simulation!P399-Futures!$D$1 -> -65.80944042 | Q14: =Simulation!Q399-Futures!$D$1 -> -47.45755111 | R14: =Simulation!R399-Futures!$D$1 -> -20.26787133 | S14: =Simulation!S399-Futures!$D$1 -> -41.12651872 | T14: =Simulation!T399-Futures!$D$1 -> -48.4037034 | U14: =Simulation!U399-Futures!$D$1 -> -56.60789032 | V14: =Simulation!V399-Futures!$D$1 -> -69.29303164 | W14: =Simulation!W399-Futures!$D$1 -> -65.76400236 | X14: =Simulation!X399-Futures!$D$1 -> -45.08168605 | Y14: =Simulation!Y399-Futures!$D$1 -> -30.65854357 | Z14: =Simulation!Z399-Futures!$D$1 -> -21.87831786 | AA14: =Simulation!AA399-Futures!$D$1 -> -7.502742746 | AB14: =Simulation!AB399-Futures!$D$1 -> -7.061465226 | AC14: =Simulation!AC399-Futures!$D$1 -> -18.45662057 | AD14: =Simulation!AD399-Futures!$D$1 -> -38.17917116 | AE14: =Simulation!AE399-Futures!$D$1 -> -45.64493999 | AF14: =Simulation!AF399-Futures!$D$1 -> -54.55860922 | AG14: =Simulation!AG399-Futures!$D$1 -> -74.45082564 | AH14: =Simulation!AH399-Futures!$D$1 -> -74.78113139 | AI14: =Simulation!AI399-Futures!$D$1 -> -55.7505364 | AJ14: =Simulation!AJ399-Futures!$D$1 -> -54.72429879 | AK14: =Simulation!AK399-Futures!$D$1 -> -76.71270219 | AL14: =Simulation!AL399-Futures!$D$1 -> -76.30129576 | AM14: =Simulation!AM399-Futures!$D$1 -> -58.34332085 | AN14: =Simulation!AN399-Futures!$D$1 -> -48.5372316 | AO14: =Simulation!AO399-Futures!$D$1 -> -36.86947178 | AP14: =Simulation!AP399-Futures!$D$1 -> -25.36134278 | AQ14: =Simulation!AQ399-Futures!$D$1 -> -19.84997291 | AR14: =Simulation!AR399-Futures!$D$1 -> -18.45650142 | AS14: =Simulation!AS399-Futures!$D$1 -> -21.72238286 | AT14: =Simulation!AT399-Futures!$D$1 -> -11.40896325 | AU14: =Simulation!AU399-Futures!$D$1 -> 0.2652741806 | AV14: =Simulation!AV399-Futures!$D$1 -> -4.132493479 | AW14: =Simulation!AW399-Futures!$D$1 -> 12.05135216 | AX14: =Simulation!AX399-Futures!$D$1 -> 29.07717418 | AY14: =Simulation!AY399-Futures!$D$1 -> 29.15943066 | AZ14: =Simulation!AZ399-Futures!$D$1 -> 25.27137773 | BA14: =Simulation!BA399-Futures!$D$1 -> 22.29712673 | BB14: =Simulation!BB399-Futures!$D$1 -> 26.16187985 | BC14: =Simulation!BC399-Futures!$D$1 -> -1.314356155 | BD14: =Simulation!BD399-Futures!$D$1 -> 10.22602947 | BE14: =Simulation!BE399-Futures!$D$1 -> 20.62923619 | BF14: =Simulation!BF399-Futures!$D$1 -> 14.39784702 | BG14: =Simulation!BG399-Futures!$D$1 -> -8.444999459 | BH14: =Simulation!BH399-Futures!$D$1 -> -13.53181569 | BI14: =Simulation!BI399-Futures!$D$1 -> -24.67625155 | BJ14: =Simulation!BJ399-Futures!$D$1 -> -60.91961209 | BK14: =Simulation!BK399-Futures!$D$1 -> -54.6088691 | BL14: =Simulation!BL399-Futures!$D$1 -> -60.49954837 | BM14: =Simulation!BM399-Futures!$D$1 -> -66.15904622 | BN14: =Simulation!BN399-Futures!$D$1 -> -77.41237277 | BO14: =Simulation!BO399-Futures!$D$1 -> -77.95954274 | BP14: =Simulation!BP399-Futures!$D$1 -> -51.06455214 | BQ14: =Simulation!BQ399-Futures!$D$1 -> -76.42828396 | BR14: =Simulation!BR399-Futures!$D$1 -> -69.33854028 | BS14: =Simulation!BS399-Futures!$D$1 -> -72.65932525 | BT14: =Simulation!BT399-Futures!$D$1 -> -72.35994575 | BU14: =Simulation!BU399-Futures!$D$1 -> -55.7975606 | BV14: =Simulation!BV399-Futures!$D$1 -> -39.56288307 | BW14: =Simulation!BW399-Futures!$D$1 -> -47.0115415 | BX14: =Simulation!BX399-Futures!$D$1 -> -25.20615903 | BY14: =Simulation!BY399-Futures!$D$1 -> -17.52620992 | BZ14: =Simulation!BZ399-Futures!$D$1 -> -6.128680455 | CA14: =Simulation!CA399-Futures!$D$1 -> -17.99996189 | CB14: =Simulation!CB399-Futures!$D$1 -> -39.34434496 | CC14: =Simulation!CC399-Futures!$D$1 -> -36.1191391 | CD14: =Simulation!CD399-Futures!$D$1 -> -54.33309785 | CE14: =Simulation!CE399-Futures!$D$1 -> -27.91344887 | CF14: =Simulation!CF399-Futures!$D$1 -> -37.67439932 | CG14: =Simulation!CG399-Futures!$D$1 -> 13.17811356 | CH14: =Simulation!CH399-Futures!$D$1 -> -11.56700774 | CI14: =Simulation!CI399-Futures!$D$1 -> -30.55485936 | CJ14: =Simulation!CJ399-Futures!$D$1 -> -24.81774625 | CK14: =Simulation!CK399-Futures!$D$1 -> -19.21155157 | CL14: =Simulation!CL399-Futures!$D$1 -> -53.73216022 | CM14: =Simulation!CM399-Futures!$D$1 -> -41.63374764 | CN14: =Simulation!CN399-Futures!$D$1 -> -57.38137613 | CO14: =Simulation!CO399-Futures!$D$1 -> -44.46477431 | CP14: =Simulation!CP399-Futures!$D$1 -> -59.77278239 | CQ14: =Simulation!CQ399-Futures!$D$1 -> -56.79953903 | CR14: =Simulation!CR399-Futures!$D$1 -> -50.96435715 | CS14: =Simulation!CS399-Futures!$D$1 -> -51.0498282 | CT14: =Simulation!CT399-Futures!$D$1 -> -39.92580607 | CU14: =Simulation!CU399-Futures!$D$1 -> -19.9030878 | CV14: =Simulation!CV399-Futures!$D$1 -> -40.01687891 | CW14: =Simulation!CW399-Futures!$D$1 -> -16.61591853 | CX14: =Simulation!CX399-Futures!$D$1 -> -0.8758941295 | CY14: =Simulation!CY399-Futures!$D$1 -> -21.36306069 | CZ14: =Simulation!CZ399-Futures!$D$1 -> 6.683294567 | DA14: =Simulation!DA399-Futures!$D$1 -> 3.876063571 | DB14: =Simulation!DB399-Futures!$D$1 -> 28.93277464 | DC14: =Simulation!DC399-Futures!$D$1 -> 9.263657346 | DD14: =Simulation!DD399-Futures!$D$1 -> -15.41798769 | DE14: =Simulation!DE399-Futures!$D$1 -> 2.237114868 | DF14: =Simulation!DF399-Futures!$D$1 -> 17.74979284 | DG14: =Simulation!DG399-Futures!$D$1 -> 22.90321145 | DH14: =Simulation!DH399-Futures!$D$1 -> 28.4906951 | DI14: =Simulation!DI399-Futures!$D$1 -> 9.644596279 | DJ14: =Simulation!DJ399-Futures!$D$1 -> -1.318791964 | DK14: =Simulation!DK399-Futures!$D$1 -> -1.333954943 | DL14: =Simulation!DL399-Futures!$D$1 -> 3.278864073 | DM14: =Simulation!DM399-Futures!$D$1 -> 23.61397646 | DN14: =Simulation!DN399-Futures!$D$1 -> -5.400180173 | DO14: =Simulation!DO399-Futures!$D$1 -> -27.37660558 | DP14: =Simulation!DP399-Futures!$D$1 -> -31.80916565 | DQ14: =Simulation!DQ399-Futures!$D$1 -> -28.48936669 | DR14: =Simulation!DR399-Futures!$D$1 -> -19.77821734 | DS14: =Simulation!DS399-Futures!$D$1 -> 2.400017772 | DT14: =Simulation!DT399-Futures!$D$1 -> -20.84401388 | DU14: =Simulation!DU399-Futures!$D$1 -> -15.49246614 | DV14: =Simulation!DV399-Futures!$D$1 -> -21.90059662 | DW14: =Simulation!DW399-Futures!$D$1 -> -18.99587663 | DX14: =Simulation!DX399-Futures!$D$1 -> -9.961578634 | DY14: =Simulation!DY399-Futures!$D$1 -> 9.735159794 | DZ14: =Simulation!DZ399-Futures!$D$1 -> 15.66387183 | EA14: =Simulation!EA399-Futures!$D$1 -> 29.52168905 | EB14: =Simulation!EB399-Futures!$D$1 -> 27.13294761 | EC14: =Simulation!EC399-Futures!$D$1 -> 11.33088056 | ED14: =Simulation!ED399-Futures!$D$1 -> 25.26709863 | EE14: =Simulation!EE399-Futures!$D$1 -> 17.01003542 | EF14: =Simulation!EF399-Futures!$D$1 -> 0.2556365334 | EG14: =Simulation!EG399-Futures!$D$1 -> 7.259922615 | EH14: =Simulation!EH399-Futures!$D$1 -> 9.29506061 | EI14: =Simulation!EI399-Futures!$D$1 -> 24.27421393 | EJ14: =Simulation!EJ399-Futures!$D$1 -> 35.41586013 | EK14: =Simulation!EK399-Futures!$D$1 -> 37.12631398 | EL14: =Simulation!EL399-Futures!$D$1 -> 52.47266514 | EM14: =Simulation!EM399-Futures!$D$1 -> 57.54005945 | EN14: =Simulation!EN399-Futures!$D$1 -> 53.9019533 | EO14: =Simulation!EO399-Futures!$D$1 -> 36.3977284 | EP14: =Simulation!EP399-Futures!$D$1 -> 78.63495389 | EQ14: =Simulation!EQ399-Futures!$D$1 -> 102.1440357 | ER14: =Simulation!ER399-Futures!$D$1 -> 94.80988929 | ES14: =Simulation!ES399-Futures!$D$1 -> 94.81309419 | ET14: =Simulation!ET399-Futures!$D$1 -> 87.68770001 | EU14: =Simulation!EU399-Futures!$D$1 -> 67.94064765 | EV14: =Simulation!EV399-Futures!$D$1 -> 57.68003074 | EW14: =Simulation!EW399-Futures!$D$1 -> 37.4526042 | EX14: =Simulation!EX399-Futures!$D$1 -> 22.97162925 | EY14: =Simulation!EY399-Futures!$D$1 -> 41.2177863 | EZ14: =Simulation!EZ399-Futures!$D$1 -> 27.66923088 | FA14: =Simulation!FA399-Futures!$D$1 -> 38.76421413 | FB14: =Simulation!FB399-Futures!$D$1 -> 47.53622577 | FC14: =Simulation!FC399-Futures!$D$1 -> 23.17377739 | FD14: =Simulation!FD399-Futures!$D$1 -> 47.88539447 | FE14: =Simulation!FE399-Futures!$D$1 -> 67.41035108 | FF14: =Simulation!FF399-Futures!$D$1 -> 70.9455727 | FG14: =Simulation!FG399-Futures!$D$1 -> 88.01382064 | FH14: =Simulation!FH399-Futures!$D$1 -> 113.1932553 | FI14: =Simulation!FI399-Futures!$D$1 -> 119.7222714 | FJ14: =Simulation!FJ399-Futures!$D$1 -> 109.2823901 | FK14: =Simulation!FK399-Futures!$D$1 -> 92.8190552 | FL14: =Simulation!FL399-Futures!$D$1 -> 66.65861987 | FM14: =Simulation!FM399-Futures!$D$1 -> 41.04376832 | FN14: =Simulation!FN399-Futures!$D$1 -> 33.88325583 | FO14: =Simulation!FO399-Futures!$D$1 -> 28.70558619 | FP14: =Simulation!FP399-Futures!$D$1 -> 33.36376563 | FQ14: =Simulation!FQ399-Futures!$D$1 -> 21.87925676 | FR14: =Simulation!FR399-Futures!$D$1 -> 13.59993722 | FS14: =Simulation!FS399-Futures!$D$1 -> 48.4887766 | FT14: =Simulation!FT399-Futures!$D$1 -> 53.52597244 | FU14: =Simulation!FU399-Futures!$D$1 -> 73.76332063 | FV14: =Simulation!FV399-Futures!$D$1 -> 63.0792452 | FW14: =Simulation!FW399-Futures!$D$1 -> 50.89438674 | FX14: =Simulation!FX399-Futures!$D$1 -> 40.45621022 | FY14: =Simulation!FY399-Futures!$D$1 -> 49.96386958 | FZ14: =Simulation!FZ399-Futures!$D$1 -> 53.02966196 | GA14: =Simulation!GA399-Futures!$D$1 -> 45.38285125 | GB14: =Simulation!GB399-Futures!$D$1 -> 35.98686049 | GC14: =Simulation!GC399-Futures!$D$1 -> 29.54154799 | GD14: =Simulation!GD399-Futures!$D$1 -> 35.59104914 | GE14: =Simulation!GE399-Futures!$D$1 -> 32.53400866 | GF14: =Simulation!GF399-Futures!$D$1 -> 45.26633687 | GG14: =Simulation!GG399-Futures!$D$1 -> 60.57425781 | GH14: =Simulation!GH399-Futures!$D$1 -> 55.3984831 | GI14: =Simulation!GI399-Futures!$D$1 -> 37.74316601 | GJ14: =Simulation!GJ399-Futures!$D$1 -> 45.89591403 | GK14: =Simulation!GK399-Futures!$D$1 -> 47.47159312 | GL14: =Simulation!GL399-Futures!$D$1 -> 46.69084126 | GM14: =Simulation!GM399-Futures!$D$1 -> 84.04091009 | GN14: =Simulation!GN399-Futures!$D$1 -> 100.1121584 | GO14: =Simulation!GO399-Futures!$D$1 -> 124.9984354 | GP14: =Simulation!GP399-Futures!$D$1 -> 159.5903242 | GQ14: =Simulation!GQ399-Futures!$D$1 -> 150.56694 | GR14: =Simulation!GR399-Futures!$D$1 -> 149.2537188 | GS14: =Simulation!GS399-Futures!$D$1 -> 130.7674069 | GT14: =Simulation!GT399-Futures!$D$1 -> 146.6411901 | GU14: =Simulation!GU399-Futures!$D$1 -> 173.9645048 | GV14: =Simulation!GV399-Futures!$D$1 -> 172.4940678 | GW14: =Simulation!GW399-Futures!$D$1 -> 184.2074578 | GX14: =Simulation!GX399-Futures!$D$1 -> 160.2184081 | GY14: =Simulation!GY399-Futures!$D$1 -> 139.8621402 | GZ14: =Simulation!GZ399-Futures!$D$1 -> 137.2163033 | HA14: =Simulation!HA399-Futures!$D$1 -> 153.5702676 | HB14: =Simulation!HB399-Futures!$D$1 -> 195.0324314 | HC14: =Simulation!HC399-Futures!$D$1 -> 215.2027572 | HD14: =Simulation!HD399-Futures!$D$1 -> 206.913986 | HE14: =Simulation!HE399-Futures!$D$1 -> 236.2229865 | HF14: =Simulation!HF399-Futures!$D$1 -> 245.9857198 | HG14: =Simulation!HG399-Futures!$D$1 -> 219.1234873 | HH14: =Simulation!HH399-Futures!$D$1 -> 207.8328869 | HI14: =Simulation!HI399-Futures!$D$1 -> 195.1464139 | HJ14: =Simulation!HJ399-Futures!$D$1 -> 201.7876695 | HK14: =Simulation!HK399-Futures!$D$1 -> 207.3330757 | HL14: =Simulation!HL399-Futures!$D$1 -> 220.3416514 | HM14: =Simulation!HM399-Futures!$D$1 -> 216.5281969 | HN14: =Simulation!HN399-Futures!$D$1 -> 218.2680043 | HO14: =Simulation!HO399-Futures!$D$1 -> 226.5122471 | HP14: =Simulation!HP399-Futures!$D$1 -> 195.9015237 | HQ14: =Simulation!HQ399-Futures!$D$1 -> 192.1334604 | HR14: =Simulation!HR399-Futures!$D$1 -> 193.9659197 | HS14: =Simulation!HS399-Futures!$D$1 -> 192.1823842 | HT14: =Simulation!HT399-Futures!$D$1 -> 208.339673 | HU14: =Simulation!HU399-Futures!$D$1 -> 243.6236998 | HV14: =Simulation!HV399-Futures!$D$1 -> 230.7827272 | HW14: =Simulation!HW399-Futures!$D$1 -> 267.4128604 | HX14: =Simulation!HX399-Futures!$D$1 -> 261.8818837 | HY14: =Simulation!HY399-Futures!$D$1 -> 255.8952798 | HZ14: =Simulation!HZ399-Futures!$D$1 -> 229.5698502 | IA14: =Simulation!IA399-Futures!$D$1 -> 215.2869661 | IB14: =Simulation!IB399-Futures!$D$1 -> 215.3987539 | IC14: =Simulation!IC399-Futures!$D$1 -> 217.997357 | ID14: =Simulation!ID399-Futures!$D$1 -> 220.340283 | IE14: =Simulation!IE399-Futures!$D$1 -> 210.0311251 | IF14: =Simulation!IF399-Futures!$D$1 -> 184.3636773 | IG14: =Simulation!IG399-Futures!$D$1 -> 211.104249 | IH14: =Simulation!IH399-Futures!$D$1 -> 186.1507212 | II14: =Simulation!II399-Futures!$D$1 -> 151.756706 | IJ14: =Simulation!IJ399-Futures!$D$1 -> 177.2259581 | IK14: =Simulation!IK399-Futures!$D$1 -> 185.5376529 | IL14: =Simulation!IL399-Futures!$D$1 -> 220.5158111 | IM14: =Simulation!IM399-Futures!$D$1 -> 213.6990581 | IN14: =Simulation!IN399-Futures!$D$1 -> 208.6192569 | IO14: =Simulation!IO399-Futures!$D$1 -> 196.2247217 | IP14: =Simulation!IP399-Futures!$D$1 -> 182.0993203 | IQ14: =Simulation!IQ399-Futures!$D$1 -> 177.2160586 | IR14: =Simulation!IR399-Futures!$D$1 -> 180.8108641 | IS14: =Simulation!IS399-Futures!$D$1 -> 200.8685133 | IT14: =Simulation!IT399-Futures!$D$1 -> 204.0999277 | IU14: =Simulation!IU399-Futures!$D$1 -> 204.5058488 | IV14: =Simulation!IV399-Futures!$D$1 -> 215.0549412 | IW14: =Simulation!IW399-Futures!$D$1 -> 224.0973942 | IX14: =Simulation!IX399-Futures!$D$1 -> 251.9939609 | IY14: =Simulation!IY399-Futures!$D$1 -> 255.0680888 | IZ14: =Simulation!IZ399-Futures!$D$1 -> 260.1952338 | JA14: =Simulation!JA399-Futures!$D$1 -> 259.1837547 | JB14: =Simulation!JB399-Futures!$D$1 -> 250.1987761 | JC14: =Simulation!JC399-Futures!$D$1 -> 220.6177784 | JD14: =Simulation!JD399-Futures!$D$1 -> 215.1388347 | JE14: =Simulation!JE399-Futures!$D$1 -> 239.4114626 | JF14: =Simulation!JF399-Futures!$D$1 -> 257.0859672 | JG14: =Simulation!JG399-Futures!$D$1 -> 239.6951451 | JH14: =Simulation!JH399-Futures!$D$1 -> 228.0096202 | JI14: =Simulation!JI399-Futures!$D$1 -> 227.9950943 | JJ14: =Simulation!JJ399-Futures!$D$1 -> 226.840131 | JK14: =Simulation!JK399-Futures!$D$1 -> 197.1346376 | JL14: =Simulation!JL399-Futures!$D$1 -> 177.2755565 | JM14: =Simulation!JM399-Futures!$D$1 -> 140.2328248 | JN14: =Simulation!JN399-Futures!$D$1 -> 156.300165 | JO14: =Simulation!JO399-Futures!$D$1 -> 161.3979507 | JP14: =Simulation!JP399-Futures!$D$1 -> 146.6394337 | JQ14: =Simulation!JQ399-Futures!$D$1 -> 173.6268386 | JR14: =Simulation!JR399-Futures!$D$1 -> 203.0753165 | JS14: =Simulation!JS399-Futures!$D$1 -> 202.992818 | JT14: =Simulation!JT399-Futures!$D$1 -> 221.7383373 | JU14: =Simulation!JU399-Futures!$D$1 -> 216.2630155 | JV14: =Simulation!JV399-Futures!$D$1 -> 193.4331572 | JW14: =Simulation!JW399-Futures!$D$1 -> 178.3605566 | JX14: =Simulation!JX399-Futures!$D$1 -> 164.2004644 | JY14: =Simulation!JY399-Futures!$D$1 -> 158.0396064 | JZ14: =Simulation!JZ399-Futures!$D$1 -> 148.4937385 | KA14: =Simulation!KA399-Futures!$D$1 -> 176.2991711 | KB14: =Simulation!KB399-Futures!$D$1 -> 183.2545373 | KC14: =Simulation!KC399-Futures!$D$1 -> 193.2622825 | KD14: =Simulation!KD399-Futures!$D$1 -> 214.4821373 | KE14: =Simulation!KE399-Futures!$D$1 -> 222.1634795 | KF14: =Simulation!KF399-Futures!$D$1 -> 256.8110312 | KG14: =Simulation!KG399-Futures!$D$1 -> 262.5459407 | KH14: =Simulation!KH399-Futures!$D$1 -> 276.7763027 | KI14: =Simulation!KI399-Futures!$D$1 -> 274.9652432 | KJ14: =Simulation!KJ399-Futures!$D$1 -> 265.473416 | KK14: =Simulation!KK399-Futures!$D$1 -> 270.1609231 | KL14: =Simulation!KL399-Futures!$D$1 -> 262.9840655 | KM14: =Simulation!KM399-Futures!$D$1 -> 250.3097202 | KN14: =Simulation!KN399-Futures!$D$1 -> 242.6243934 | KO14: =Simulation!KO399-Futures!$D$1 -> 214.5652941 | KP14: =Simulation!KP399-Futures!$D$1 -> 214.5091065 | KQ14: =Simulation!KQ399-Futures!$D$1 -> 206.4104101 | KR14: =Simulation!KR399-Futures!$D$1 -> 196.8682634 | KS14: =Simulation!KS399-Futures!$D$1 -> 189.8360345 | KT14: =Simulation!KT399-Futures!$D$1 -> 201.6294847 | KU14: =Simulation!KU399-Futures!$D$1 -> 193.9216851 | KV14: =Simulation!KV399-Futures!$D$1 -> 250.3522801 | KW14: =Simulation!KW399-Futures!$D$1 -> 250.807653 | KX14: =Simulation!KX399-Futures!$D$1 -> 263.330218 | KY14: =Simulation!KY399-Futures!$D$1 -> 269.4333594 | KZ14: =Simulation!KZ399-Futures!$D$1 -> 278.4802918 | LA14: =Simulation!LA399-Futures!$D$1 -> 247.9675987 | LB14: =Simulation!LB399-Futures!$D$1 -> 254.8457744 | LC14: =Simulation!LC399-Futures!$D$1 -> 295.9095825 | LD14: =Simulation!LD399-Futures!$D$1 -> 298.0017388 | LE14: =Simulation!LE399-Futures!$D$1 -> 316.4595557 | LF14: =Simulation!LF399-Futures!$D$1 -> 342.1073403 | LG14: =Simulation!LG399-Futures!$D$1 -> 338.5487014 | LH14: =Simulation!LH399-Futures!$D$1 -> 350.9179741 | LI14: =Simulation!LI399-Futures!$D$1 -> 363.5299882 | LJ14: =Simulation!LJ399-Futures!$D$1 -> 359.8304341 | LK14: =Simulation!LK399-Futures!$D$1 -> 352.690169 | LL14: =Simulation!LL399-Futures!$D$1 -> 367.7968191 | LM14: =Simulation!LM399-Futures!$D$1 -> 357.3955905 | LN14: =Simulation!LN399-Futures!$D$1 -> 382.7823991 | LO14: =Simulation!LO399-Futures!$D$1 -> 390.4548281 | LP14: =Simulation!LP399-Futures!$D$1 -> 363.7833498 | LQ14: =Simulation!LQ399-Futures!$D$1 -> 315.1255794 | LR14: =Simulation!LR399-Futures!$D$1 -> 323.0223476 | LS14: =Simulation!LS399-Futures!$D$1 -> 268.3629824 | LT14: =Simulation!LT399-Futures!$D$1 -> 259.6264594 | LU14: =Simulation!LU399-Futures!$D$1 -> 265.7935419 | LV14: =Simulation!LV399-Futures!$D$1 -> 250.1498589 | LW14: =Simulation!LW399-Futures!$D$1 -> 241.353266 | LX14: =Simulation!LX399-Futures!$D$1 -> 250.6337447 | LY14: =Simulation!LY399-Futures!$D$1 -> 230.722687 | LZ14: =Simulation!LZ399-Futures!$D$1 -> 220.8954181 | MA14: =Simulation!MA399-Futures!$D$1 -> 234.2876209 | MB14: =Simulation!MB399-Futures!$D$1 -> 240.2711646 | MC14: =Simulation!MC399-Futures!$D$1 -> 237.1648639 | MD14: =Simulation!MD399-Futures!$D$1 -> 229.4415635 | ME14: =Simulation!ME399-Futures!$D$1 -> 227.4720721 | MF14: =Simulation!MF399-Futures!$D$1 -> 247.8700888 | MG14: =Simulation!MG399-Futures!$D$1 -> 224.038992 | MH14: =Simulation!MH399-Futures!$D$1 -> 238.0317895 | MI14: =Simulation!MI399-Futures!$D$1 -> 214.135566 | MJ14: =Simulation!MJ399-Futures!$D$1 -> 204.2195665 | MK14: =Simulation!MK399-Futures!$D$1 -> 221.0708552 | ML14: =Simulation!ML399-Futures!$D$1 -> 194.2673444 | MM14: =Simulation!MM399-Futures!$D$1 -> 186.5578581 | MN14: =Simulation!MN399-Futures!$D$1 -> 194.8023857 | MO14: =Simulation!MO399-Futures!$D$1 -> 217.2356347 | MP14: =Simulation!MP399-Futures!$D$1 -> 211.2372623 | MQ14: =Simulation!MQ399-Futures!$D$1 -> 197.9658276 | MR14: =Simulation!MR399-Futures!$D$1 -> 230.4203866 | MS14: =Simulation!MS399-Futures!$D$1 -> 210.7981384 | MT14: =Simulation!MT399-Futures!$D$1 -> 164.1019354 | MU14: =Simulation!MU399-Futures!$D$1 -> 151.8007028 | MV14: =Simulation!MV399-Futures!$D$1 -> 131.5390243 | MW14: =Simulation!MW399-Futures!$D$1 -> 137.2541333 | MX14: =Simulation!MX399-Futures!$D$1 -> 175.078261 | MY14: =Simulation!MY399-Futures!$D$1 -> 173.3427694 | MZ14: =Simulation!MZ399-Futures!$D$1 -> -2020 | NA14: =Simulation!NA399-Futures!$D$1 -> -2020 | NB14: =Simulation!NB399-Futures!$D$1 -> -2012
A15: 9 | B15: =Simulation!B400-Futures!$D$1 -> -125.3216725 | C15: =Simulation!C400-Futures!$D$1 -> -132.400976 | D15: =Simulation!D400-Futures!$D$1 -> -123.6700535 | E15: =Simulation!E400-Futures!$D$1 -> -141.7354682 | F15: =Simulation!F400-Futures!$D$1 -> -148.1038879 | G15: =Simulation!G400-Futures!$D$1 -> -162.1112544 | H15: =Simulation!H400-Futures!$D$1 -> -162.0826972 | I15: =Simulation!I400-Futures!$D$1 -> -182.3789368 | J15: =Simulation!J400-Futures!$D$1 -> -188.7377138 | K15: =Simulation!K400-Futures!$D$1 -> -209.507141 | L15: =Simulation!L400-Futures!$D$1 -> -237.0956285 | M15: =Simulation!M400-Futures!$D$1 -> -237.2894128 | N15: =Simulation!N400-Futures!$D$1 -> -262.8632172 | O15: =Simulation!O400-Futures!$D$1 -> -292.514194 | P15: =Simulation!P400-Futures!$D$1 -> -264.9244832 | Q15: =Simulation!Q400-Futures!$D$1 -> -287.8217414 | R15: =Simulation!R400-Futures!$D$1 -> -309.477685 | S15: =Simulation!S400-Futures!$D$1 -> -336.7567554 | T15: =Simulation!T400-Futures!$D$1 -> -343.7829259 | U15: =Simulation!U400-Futures!$D$1 -> -338.4069521 | V15: =Simulation!V400-Futures!$D$1 -> -358.7068252 | W15: =Simulation!W400-Futures!$D$1 -> -325.4601164 | X15: =Simulation!X400-Futures!$D$1 -> -332.4474486 | Y15: =Simulation!Y400-Futures!$D$1 -> -342.9823869 | Z15: =Simulation!Z400-Futures!$D$1 -> -368.5758963 | AA15: =Simulation!AA400-Futures!$D$1 -> -387.8376802 | AB15: =Simulation!AB400-Futures!$D$1 -> -399.4185292 | AC15: =Simulation!AC400-Futures!$D$1 -> -410.912858 | AD15: =Simulation!AD400-Futures!$D$1 -> -399.3853649 | AE15: =Simulation!AE400-Futures!$D$1 -> -386.8204656 | AF15: =Simulation!AF400-Futures!$D$1 -> -415.3192331 | AG15: =Simulation!AG400-Futures!$D$1 -> -425.8619291 | AH15: =Simulation!AH400-Futures!$D$1 -> -417.2388664 | AI15: =Simulation!AI400-Futures!$D$1 -> -420.9687882 | AJ15: =Simulation!AJ400-Futures!$D$1 -> -424.6371993 | AK15: =Simulation!AK400-Futures!$D$1 -> -448.0062288 | AL15: =Simulation!AL400-Futures!$D$1 -> -445.6534464 | AM15: =Simulation!AM400-Futures!$D$1 -> -453.377274 | AN15: =Simulation!AN400-Futures!$D$1 -> -480.0741698 | AO15: =Simulation!AO400-Futures!$D$1 -> -487.8160317 | AP15: =Simulation!AP400-Futures!$D$1 -> -505.6634371 | AQ15: =Simulation!AQ400-Futures!$D$1 -> -510.7999881 | AR15: =Simulation!AR400-Futures!$D$1 -> -521.5674522 | AS15: =Simulation!AS400-Futures!$D$1 -> -529.8605668 | AT15: =Simulation!AT400-Futures!$D$1 -> -533.0253734 | AU15: =Simulation!AU400-Futures!$D$1 -> -547.2319571 | AV15: =Simulation!AV400-Futures!$D$1 -> -541.5697485 | AW15: =Simulation!AW400-Futures!$D$1 -> -517.097177 | AX15: =Simulation!AX400-Futures!$D$1 -> -515.4122833 | AY15: =Simulation!AY400-Futures!$D$1 -> -546.9820811 | AZ15: =Simulation!AZ400-Futures!$D$1 -> -538.2150417 | BA15: =Simulation!BA400-Futures!$D$1 -> -519.0592193 | BB15: =Simulation!BB400-Futures!$D$1 -> -509.6987849 | BC15: =Simulation!BC400-Futures!$D$1 -> -483.8917263 | BD15: =Simulation!BD400-Futures!$D$1 -> -465.1196165 | BE15: =Simulation!BE400-Futures!$D$1 -> -451.7809729 | BF15: =Simulation!BF400-Futures!$D$1 -> -434.1836258 | BG15: =Simulation!BG400-Futures!$D$1 -> -442.8352947 | BH15: =Simulation!BH400-Futures!$D$1 -> -469.3607924 | BI15: =Simulation!BI400-Futures!$D$1 -> -471.461554 | BJ15: =Simulation!BJ400-Futures!$D$1 -> -473.6094498 | BK15: =Simulation!BK400-Futures!$D$1 -> -444.6781865 | BL15: =Simulation!BL400-Futures!$D$1 -> -447.9473508 | BM15: =Simulation!BM400-Futures!$D$1 -> -447.9373781 | BN15: =Simulation!BN400-Futures!$D$1 -> -449.088272 | BO15: =Simulation!BO400-Futures!$D$1 -> -459.5674699 | BP15: =Simulation!BP400-Futures!$D$1 -> -451.931879 | BQ15: =Simulation!BQ400-Futures!$D$1 -> -442.0751997 | BR15: =Simulation!BR400-Futures!$D$1 -> -432.0412004 | BS15: =Simulation!BS400-Futures!$D$1 -> -426.9418031 | BT15: =Simulation!BT400-Futures!$D$1 -> -432.4068566 | BU15: =Simulation!BU400-Futures!$D$1 -> -449.0771522 | BV15: =Simulation!BV400-Futures!$D$1 -> -446.502291 | BW15: =Simulation!BW400-Futures!$D$1 -> -457.9826437 | BX15: =Simulation!BX400-Futures!$D$1 -> -458.5797352 | BY15: =Simulation!BY400-Futures!$D$1 -> -461.1164781 | BZ15: =Simulation!BZ400-Futures!$D$1 -> -470.6091654 | CA15: =Simulation!CA400-Futures!$D$1 -> -472.6359071 | CB15: =Simulation!CB400-Futures!$D$1 -> -486.9230265 | CC15: =Simulation!CC400-Futures!$D$1 -> -486.6226159 | CD15: =Simulation!CD400-Futures!$D$1 -> -481.6817882 | CE15: =Simulation!CE400-Futures!$D$1 -> -493.4153629 | CF15: =Simulation!CF400-Futures!$D$1 -> -504.5246485 | CG15: =Simulation!CG400-Futures!$D$1 -> -506.6517955 | CH15: =Simulation!CH400-Futures!$D$1 -> -527.6348884 | CI15: =Simulation!CI400-Futures!$D$1 -> -509.3497513 | CJ15: =Simulation!CJ400-Futures!$D$1 -> -515.4113082 | CK15: =Simulation!CK400-Futures!$D$1 -> -529.9167408 | CL15: =Simulation!CL400-Futures!$D$1 -> -536.7760447 | CM15: =Simulation!CM400-Futures!$D$1 -> -543.1280366 | CN15: =Simulation!CN400-Futures!$D$1 -> -522.7827376 | CO15: =Simulation!CO400-Futures!$D$1 -> -506.8005408 | CP15: =Simulation!CP400-Futures!$D$1 -> -529.3259795 | CQ15: =Simulation!CQ400-Futures!$D$1 -> -497.7539396 | CR15: =Simulation!CR400-Futures!$D$1 -> -497.338287 | CS15: =Simulation!CS400-Futures!$D$1 -> -486.3381695 | CT15: =Simulation!CT400-Futures!$D$1 -> -491.0108321 | CU15: =Simulation!CU400-Futures!$D$1 -> -484.7548538 | CV15: =Simulation!CV400-Futures!$D$1 -> -477.9605867 | CW15: =Simulation!CW400-Futures!$D$1 -> -480.3349801 | CX15: =Simulation!CX400-Futures!$D$1 -> -493.4618779 | CY15: =Simulation!CY400-Futures!$D$1 -> -500.1019862 | CZ15: =Simulation!CZ400-Futures!$D$1 -> -489.5544402 | DA15: =Simulation!DA400-Futures!$D$1 -> -496.6471372 | DB15: =Simulation!DB400-Futures!$D$1 -> -508.7206656 | DC15: =Simulation!DC400-Futures!$D$1 -> -504.3688964 | DD15: =Simulation!DD400-Futures!$D$1 -> -510.7664568 | DE15: =Simulation!DE400-Futures!$D$1 -> -500.0721486 | DF15: =Simulation!DF400-Futures!$D$1 -> -483.3724213 | DG15: =Simulation!DG400-Futures!$D$1 -> -498.2035148 | DH15: =Simulation!DH400-Futures!$D$1 -> -483.6891374 | DI15: =Simulation!DI400-Futures!$D$1 -> -478.4004523 | DJ15: =Simulation!DJ400-Futures!$D$1 -> -495.1355962 | DK15: =Simulation!DK400-Futures!$D$1 -> -484.5367526 | DL15: =Simulation!DL400-Futures!$D$1 -> -470.6277677 | DM15: =Simulation!DM400-Futures!$D$1 -> -455.45817 | DN15: =Simulation!DN400-Futures!$D$1 -> -485.4889773 | DO15: =Simulation!DO400-Futures!$D$1 -> -466.6987666 | DP15: =Simulation!DP400-Futures!$D$1 -> -475.9841328 | DQ15: =Simulation!DQ400-Futures!$D$1 -> -469.5949687 | DR15: =Simulation!DR400-Futures!$D$1 -> -475.5277675 | DS15: =Simulation!DS400-Futures!$D$1 -> -487.1239195 | DT15: =Simulation!DT400-Futures!$D$1 -> -490.3407425 | DU15: =Simulation!DU400-Futures!$D$1 -> -488.8401136 | DV15: =Simulation!DV400-Futures!$D$1 -> -503.6314571 | DW15: =Simulation!DW400-Futures!$D$1 -> -498.759548 | DX15: =Simulation!DX400-Futures!$D$1 -> -503.8247681 | DY15: =Simulation!DY400-Futures!$D$1 -> -502.9442035 | DZ15: =Simulation!DZ400-Futures!$D$1 -> -483.4949056 | EA15: =Simulation!EA400-Futures!$D$1 -> -472.8096464 | EB15: =Simulation!EB400-Futures!$D$1 -> -476.3924147 | EC15: =Simulation!EC400-Futures!$D$1 -> -461.5551473 | ED15: =Simulation!ED400-Futures!$D$1 -> -452.3321851 | EE15: =Simulation!EE400-Futures!$D$1 -> -463.1383655 | EF15: =Simulation!EF400-Futures!$D$1 -> -454.3106893 | EG15: =Simulation!EG400-Futures!$D$1 -> -462.5922444 | EH15: =Simulation!EH400-Futures!$D$1 -> -481.0972196 | EI15: =Simulation!EI400-Futures!$D$1 -> -459.1811279 | EJ15: =Simulation!EJ400-Futures!$D$1 -> -456.027948 | EK15: =Simulation!EK400-Futures!$D$1 -> -470.2338343 | EL15: =Simulation!EL400-Futures!$D$1 -> -494.9331658 | EM15: =Simulation!EM400-Futures!$D$1 -> -485.7196818 | EN15: =Simulation!EN400-Futures!$D$1 -> -486.9401604 | EO15: =Simulation!EO400-Futures!$D$1 -> -491.6641003 | EP15: =Simulation!EP400-Futures!$D$1 -> -465.5615889 | EQ15: =Simulation!EQ400-Futures!$D$1 -> -484.9106507 | ER15: =Simulation!ER400-Futures!$D$1 -> -469.6219443 | ES15: =Simulation!ES400-Futures!$D$1 -> -467.7333783 | ET15: =Simulation!ET400-Futures!$D$1 -> -483.3655802 | EU15: =Simulation!EU400-Futures!$D$1 -> -474.4897248 | EV15: =Simulation!EV400-Futures!$D$1 -> -464.266973 | EW15: =Simulation!EW400-Futures!$D$1 -> -475.9273461 | EX15: =Simulation!EX400-Futures!$D$1 -> -490.3854388 | EY15: =Simulation!EY400-Futures!$D$1 -> -493.5590896 | EZ15: =Simulation!EZ400-Futures!$D$1 -> -483.5684076 | FA15: =Simulation!FA400-Futures!$D$1 -> -482.2570551 | FB15: =Simulation!FB400-Futures!$D$1 -> -500.6924096 | FC15: =Simulation!FC400-Futures!$D$1 -> -487.2687545 | FD15: =Simulation!FD400-Futures!$D$1 -> -466.389727 | FE15: =Simulation!FE400-Futures!$D$1 -> -451.0937125 | FF15: =Simulation!FF400-Futures!$D$1 -> -448.8909524 | FG15: =Simulation!FG400-Futures!$D$1 -> -450.6832066 | FH15: =Simulation!FH400-Futures!$D$1 -> -425.8323369 | FI15: =Simulation!FI400-Futures!$D$1 -> -417.1999813 | FJ15: =Simulation!FJ400-Futures!$D$1 -> -419.0388983 | FK15: =Simulation!FK400-Futures!$D$1 -> -400.6486774 | FL15: =Simulation!FL400-Futures!$D$1 -> -385.1486953 | FM15: =Simulation!FM400-Futures!$D$1 -> -384.9941672 | FN15: =Simulation!FN400-Futures!$D$1 -> -367.3953341 | FO15: =Simulation!FO400-Futures!$D$1 -> -382.8164075 | FP15: =Simulation!FP400-Futures!$D$1 -> -403.0590971 | FQ15: =Simulation!FQ400-Futures!$D$1 -> -418.7745042 | FR15: =Simulation!FR400-Futures!$D$1 -> -423.8588588 | FS15: =Simulation!FS400-Futures!$D$1 -> -421.812038 | FT15: =Simulation!FT400-Futures!$D$1 -> -427.5769829 | FU15: =Simulation!FU400-Futures!$D$1 -> -423.8740727 | FV15: =Simulation!FV400-Futures!$D$1 -> -407.5944829 | FW15: =Simulation!FW400-Futures!$D$1 -> -373.0977842 | FX15: =Simulation!FX400-Futures!$D$1 -> -400.4162023 | FY15: =Simulation!FY400-Futures!$D$1 -> -382.1759473 | FZ15: =Simulation!FZ400-Futures!$D$1 -> -386.8134348 | GA15: =Simulation!GA400-Futures!$D$1 -> -400.144287 | GB15: =Simulation!GB400-Futures!$D$1 -> -383.9953603 | GC15: =Simulation!GC400-Futures!$D$1 -> -393.6689398 | GD15: =Simulation!GD400-Futures!$D$1 -> -398.9684058 | GE15: =Simulation!GE400-Futures!$D$1 -> -410.7512175 | GF15: =Simulation!GF400-Futures!$D$1 -> -399.5754497 | GG15: =Simulation!GG400-Futures!$D$1 -> -403.5346619 | GH15: =Simulation!GH400-Futures!$D$1 -> -392.0388874 | GI15: =Simulation!GI400-Futures!$D$1 -> -378.4334063 | GJ15: =Simulation!GJ400-Futures!$D$1 -> -381.2195692 | GK15: =Simulation!GK400-Futures!$D$1 -> -365.3530905 | GL15: =Simulation!GL400-Futures!$D$1 -> -351.2446949 | GM15: =Simulation!GM400-Futures!$D$1 -> -383.853424 | GN15: =Simulation!GN400-Futures!$D$1 -> -371.3691947 | GO15: =Simulation!GO400-Futures!$D$1 -> -350.0656068 | GP15: =Simulation!GP400-Futures!$D$1 -> -346.6637518 | GQ15: =Simulation!GQ400-Futures!$D$1 -> -347.7039428 | GR15: =Simulation!GR400-Futures!$D$1 -> -338.1522676 | GS15: =Simulation!GS400-Futures!$D$1 -> -342.4723843 | GT15: =Simulation!GT400-Futures!$D$1 -> -322.5575181 | GU15: =Simulation!GU400-Futures!$D$1 -> -309.5243314 | GV15: =Simulation!GV400-Futures!$D$1 -> -274.3568287 | GW15: =Simulation!GW400-Futures!$D$1 -> -270.7878738 | GX15: =Simulation!GX400-Futures!$D$1 -> -251.2147269 | GY15: =Simulation!GY400-Futures!$D$1 -> -234.7366334 | GZ15: =Simulation!GZ400-Futures!$D$1 -> -227.2404165 | HA15: =Simulation!HA400-Futures!$D$1 -> -214.8851704 | HB15: =Simulation!HB400-Futures!$D$1 -> -222.3373872 | HC15: =Simulation!HC400-Futures!$D$1 -> -221.2293454 | HD15: =Simulation!HD400-Futures!$D$1 -> -216.4481024 | HE15: =Simulation!HE400-Futures!$D$1 -> -215.970418 | HF15: =Simulation!HF400-Futures!$D$1 -> -203.8201455 | HG15: =Simulation!HG400-Futures!$D$1 -> -211.560473 | HH15: =Simulation!HH400-Futures!$D$1 -> -239.250352 | HI15: =Simulation!HI400-Futures!$D$1 -> -250.1943899 | HJ15: =Simulation!HJ400-Futures!$D$1 -> -254.2880429 | HK15: =Simulation!HK400-Futures!$D$1 -> -267.913851 | HL15: =Simulation!HL400-Futures!$D$1 -> -260.109709 | HM15: =Simulation!HM400-Futures!$D$1 -> -278.0147794 | HN15: =Simulation!HN400-Futures!$D$1 -> -268.4960778 | HO15: =Simulation!HO400-Futures!$D$1 -> -299.6206714 | HP15: =Simulation!HP400-Futures!$D$1 -> -294.9890504 | HQ15: =Simulation!HQ400-Futures!$D$1 -> -293.0236741 | HR15: =Simulation!HR400-Futures!$D$1 -> -282.6792288 | HS15: =Simulation!HS400-Futures!$D$1 -> -285.6654296 | HT15: =Simulation!HT400-Futures!$D$1 -> -272.8000843 | HU15: =Simulation!HU400-Futures!$D$1 -> -258.8775767 | HV15: =Simulation!HV400-Futures!$D$1 -> -276.8606156 | HW15: =Simulation!HW400-Futures!$D$1 -> -282.2935406 | HX15: =Simulation!HX400-Futures!$D$1 -> -268.4084741 | HY15: =Simulation!HY400-Futures!$D$1 -> -285.5765324 | HZ15: =Simulation!HZ400-Futures!$D$1 -> -308.1945906 | IA15: =Simulation!IA400-Futures!$D$1 -> -302.3480994 | IB15: =Simulation!IB400-Futures!$D$1 -> -308.071577 | IC15: =Simulation!IC400-Futures!$D$1 -> -294.6949421 | ID15: =Simulation!ID400-Futures!$D$1 -> -302.2995549 | IE15: =Simulation!IE400-Futures!$D$1 -> -283.2695649 | IF15: =Simulation!IF400-Futures!$D$1 -> -275.3213456 | IG15: =Simulation!IG400-Futures!$D$1 -> -280.6302968 | IH15: =Simulation!IH400-Futures!$D$1 -> -281.4121012 | II15: =Simulation!II400-Futures!$D$1 -> -279.8539855 | IJ15: =Simulation!IJ400-Futures!$D$1 -> -278.6464246 | IK15: =Simulation!IK400-Futures!$D$1 -> -253.4306245 | IL15: =Simulation!IL400-Futures!$D$1 -> -259.7592476 | IM15: =Simulation!IM400-Futures!$D$1 -> -272.8765385 | IN15: =Simulation!IN400-Futures!$D$1 -> -286.3299985 | IO15: =Simulation!IO400-Futures!$D$1 -> -291.2427116 | IP15: =Simulation!IP400-Futures!$D$1 -> -281.4500054 | IQ15: =Simulation!IQ400-Futures!$D$1 -> -254.0717934 | IR15: =Simulation!IR400-Futures!$D$1 -> -253.5940556 | IS15: =Simulation!IS400-Futures!$D$1 -> -228.9859922 | IT15: =Simulation!IT400-Futures!$D$1 -> -237.5251312 | IU15: =Simulation!IU400-Futures!$D$1 -> -263.6142643 | IV15: =Simulation!IV400-Futures!$D$1 -> -237.9053337 | IW15: =Simulation!IW400-Futures!$D$1 -> -223.6137842 | IX15: =Simulation!IX400-Futures!$D$1 -> -219.0572988 | IY15: =Simulation!IY400-Futures!$D$1 -> -203.1519375 | IZ15: =Simulation!IZ400-Futures!$D$1 -> -168.7011875 | JA15: =Simulation!JA400-Futures!$D$1 -> -161.4209416 | JB15: =Simulation!JB400-Futures!$D$1 -> -159.9178573 | JC15: =Simulation!JC400-Futures!$D$1 -> -150.5668802 | JD15: =Simulation!JD400-Futures!$D$1 -> -167.2599177 | JE15: =Simulation!JE400-Futures!$D$1 -> -147.2267805 | JF15: =Simulation!JF400-Futures!$D$1 -> -151.5529038 | JG15: =Simulation!JG400-Futures!$D$1 -> -175.9674779 | JH15: =Simulation!JH400-Futures!$D$1 -> -188.332022 | JI15: =Simulation!JI400-Futures!$D$1 -> -182.7452747 | JJ15: =Simulation!JJ400-Futures!$D$1 -> -152.7149535 | JK15: =Simulation!JK400-Futures!$D$1 -> -137.6374078 | JL15: =Simulation!JL400-Futures!$D$1 -> -117.2381148 | JM15: =Simulation!JM400-Futures!$D$1 -> -101.4620439 | JN15: =Simulation!JN400-Futures!$D$1 -> -118.1103092 | JO15: =Simulation!JO400-Futures!$D$1 -> -120.3873686 | JP15: =Simulation!JP400-Futures!$D$1 -> -115.4339602 | JQ15: =Simulation!JQ400-Futures!$D$1 -> -129.0707204 | JR15: =Simulation!JR400-Futures!$D$1 -> -143.0924031 | JS15: =Simulation!JS400-Futures!$D$1 -> -147.6918078 | JT15: =Simulation!JT400-Futures!$D$1 -> -170.389443 | JU15: =Simulation!JU400-Futures!$D$1 -> -169.7347413 | JV15: =Simulation!JV400-Futures!$D$1 -> -174.4667827 | JW15: =Simulation!JW400-Futures!$D$1 -> -182.6265527 | JX15: =Simulation!JX400-Futures!$D$1 -> -183.5130173 | JY15: =Simulation!JY400-Futures!$D$1 -> -180.2392704 | JZ15: =Simulation!JZ400-Futures!$D$1 -> -187.1622287 | KA15: =Simulation!KA400-Futures!$D$1 -> -161.6593696 | KB15: =Simulation!KB400-Futures!$D$1 -> -160.1321476 | KC15: =Simulation!KC400-Futures!$D$1 -> -147.6161255 | KD15: =Simulation!KD400-Futures!$D$1 -> -147.1646629 | KE15: =Simulation!KE400-Futures!$D$1 -> -147.897481 | KF15: =Simulation!KF400-Futures!$D$1 -> -132.9297842 | KG15: =Simulation!KG400-Futures!$D$1 -> -158.7759619 | KH15: =Simulation!KH400-Futures!$D$1 -> -160.1581394 | KI15: =Simulation!KI400-Futures!$D$1 -> -140.8533944 | KJ15: =Simulation!KJ400-Futures!$D$1 -> -130.1898128 | KK15: =Simulation!KK400-Futures!$D$1 -> -166.2594281 | KL15: =Simulation!KL400-Futures!$D$1 -> -157.7725253 | KM15: =Simulation!KM400-Futures!$D$1 -> -139.609845 | KN15: =Simulation!KN400-Futures!$D$1 -> -138.4951768 | KO15: =Simulation!KO400-Futures!$D$1 -> -131.70247 | KP15: =Simulation!KP400-Futures!$D$1 -> -155.3174601 | KQ15: =Simulation!KQ400-Futures!$D$1 -> -154.821234 | KR15: =Simulation!KR400-Futures!$D$1 -> -181.0517985 | KS15: =Simulation!KS400-Futures!$D$1 -> -193.407607 | KT15: =Simulation!KT400-Futures!$D$1 -> -202.4991215 | KU15: =Simulation!KU400-Futures!$D$1 -> -206.750526 | KV15: =Simulation!KV400-Futures!$D$1 -> -214.4125169 | KW15: =Simulation!KW400-Futures!$D$1 -> -220.8375449 | KX15: =Simulation!KX400-Futures!$D$1 -> -224.60891 | KY15: =Simulation!KY400-Futures!$D$1 -> -197.3920634 | KZ15: =Simulation!KZ400-Futures!$D$1 -> -178.5044915 | LA15: =Simulation!LA400-Futures!$D$1 -> -184.0205469 | LB15: =Simulation!LB400-Futures!$D$1 -> -197.9609783 | LC15: =Simulation!LC400-Futures!$D$1 -> -203.3242393 | LD15: =Simulation!LD400-Futures!$D$1 -> -200.4707655 | LE15: =Simulation!LE400-Futures!$D$1 -> -204.922015 | LF15: =Simulation!LF400-Futures!$D$1 -> -196.8496532 | LG15: =Simulation!LG400-Futures!$D$1 -> -185.2495806 | LH15: =Simulation!LH400-Futures!$D$1 -> -185.0950342 | LI15: =Simulation!LI400-Futures!$D$1 -> -193.3822246 | LJ15: =Simulation!LJ400-Futures!$D$1 -> -180.480915 | LK15: =Simulation!LK400-Futures!$D$1 -> -183.1086341 | LL15: =Simulation!LL400-Futures!$D$1 -> -173.0237403 | LM15: =Simulation!LM400-Futures!$D$1 -> -167.5758663 | LN15: =Simulation!LN400-Futures!$D$1 -> -168.6518128 | LO15: =Simulation!LO400-Futures!$D$1 -> -176.0401372 | LP15: =Simulation!LP400-Futures!$D$1 -> -175.2552183 | LQ15: =Simulation!LQ400-Futures!$D$1 -> -198.4046438 | LR15: =Simulation!LR400-Futures!$D$1 -> -201.9854585 | LS15: =Simulation!LS400-Futures!$D$1 -> -225.5438382 | LT15: =Simulation!LT400-Futures!$D$1 -> -213.7499805 | LU15: =Simulation!LU400-Futures!$D$1 -> -237.655445 | LV15: =Simulation!LV400-Futures!$D$1 -> -244.5688869 | LW15: =Simulation!LW400-Futures!$D$1 -> -233.3594267 | LX15: =Simulation!LX400-Futures!$D$1 -> -232.5981554 | LY15: =Simulation!LY400-Futures!$D$1 -> -196.7060168 | LZ15: =Simulation!LZ400-Futures!$D$1 -> -196.9195003 | MA15: =Simulation!MA400-Futures!$D$1 -> -178.9473211 | MB15: =Simulation!MB400-Futures!$D$1 -> -146.5363874 | MC15: =Simulation!MC400-Futures!$D$1 -> -166.5438006 | MD15: =Simulation!MD400-Futures!$D$1 -> -188.6471806 | ME15: =Simulation!ME400-Futures!$D$1 -> -198.7842764 | MF15: =Simulation!MF400-Futures!$D$1 -> -206.2167808 | MG15: =Simulation!MG400-Futures!$D$1 -> -175.239103 | MH15: =Simulation!MH400-Futures!$D$1 -> -181.7137895 | MI15: =Simulation!MI400-Futures!$D$1 -> -147.7446739 | MJ15: =Simulation!MJ400-Futures!$D$1 -> -115.1299185 | MK15: =Simulation!MK400-Futures!$D$1 -> -112.3245174 | ML15: =Simulation!ML400-Futures!$D$1 -> -125.0022134 | MM15: =Simulation!MM400-Futures!$D$1 -> -122.9432572 | MN15: =Simulation!MN400-Futures!$D$1 -> -109.7296555 | MO15: =Simulation!MO400-Futures!$D$1 -> -113.5760995 | MP15: =Simulation!MP400-Futures!$D$1 -> -131.7467794 | MQ15: =Simulation!MQ400-Futures!$D$1 -> -125.1858282 | MR15: =Simulation!MR400-Futures!$D$1 -> -132.5069011 | MS15: =Simulation!MS400-Futures!$D$1 -> -130.1864212 | MT15: =Simulation!MT400-Futures!$D$1 -> -106.9241138 | MU15: =Simulation!MU400-Futures!$D$1 -> -146.9980491 | MV15: =Simulation!MV400-Futures!$D$1 -> -183.2980147 | MW15: =Simulation!MW400-Futures!$D$1 -> -168.646416 | MX15: =Simulation!MX400-Futures!$D$1 -> -174.719629 | MY15: =Simulation!MY400-Futures!$D$1 -> -183.1656846 | MZ15: =Simulation!MZ400-Futures!$D$1 -> -2020 | NA15: =Simulation!NA400-Futures!$D$1 -> -2020 | NB15: =Simulation!NB400-Futures!$D$1 -> -2012
A16: 10 | B16: =Simulation!B401-Futures!$D$1 -> -41.82488431 | C16: =Simulation!C401-Futures!$D$1 -> -28.33861721 | D16: =Simulation!D401-Futures!$D$1 -> -57.69810723 | E16: =Simulation!E401-Futures!$D$1 -> -69.29318845 | F16: =Simulation!F401-Futures!$D$1 -> -66.7958391 | G16: =Simulation!G401-Futures!$D$1 -> -43.49741427 | H16: =Simulation!H401-Futures!$D$1 -> -60.04671737 | I16: =Simulation!I401-Futures!$D$1 -> -87.90084492 | J16: =Simulation!J401-Futures!$D$1 -> -60.72188491 | K16: =Simulation!K401-Futures!$D$1 -> -91.62747705 | L16: =Simulation!L401-Futures!$D$1 -> -87.22014315 | M16: =Simulation!M401-Futures!$D$1 -> -82.25755658 | N16: =Simulation!N401-Futures!$D$1 -> -66.40821812 | O16: =Simulation!O401-Futures!$D$1 -> -72.70367204 | P16: =Simulation!P401-Futures!$D$1 -> -55.10471641 | Q16: =Simulation!Q401-Futures!$D$1 -> -50.15113989 | R16: =Simulation!R401-Futures!$D$1 -> -39.13521588 | S16: =Simulation!S401-Futures!$D$1 -> -59.07343956 | T16: =Simulation!T401-Futures!$D$1 -> -49.16137482 | U16: =Simulation!U401-Futures!$D$1 -> -61.85153593 | V16: =Simulation!V401-Futures!$D$1 -> -38.94452714 | W16: =Simulation!W401-Futures!$D$1 -> -50.02306551 | X16: =Simulation!X401-Futures!$D$1 -> -50.88493197 | Y16: =Simulation!Y401-Futures!$D$1 -> -50.85342504 | Z16: =Simulation!Z401-Futures!$D$1 -> -54.68192802 | AA16: =Simulation!AA401-Futures!$D$1 -> -45.18011843 | AB16: =Simulation!AB401-Futures!$D$1 -> -49.12037767 | AC16: =Simulation!AC401-Futures!$D$1 -> -25.60996758 | AD16: =Simulation!AD401-Futures!$D$1 -> 8.246051442 | AE16: =Simulation!AE401-Futures!$D$1 -> -13.66074573 | AF16: =Simulation!AF401-Futures!$D$1 -> -2.2524323 | AG16: =Simulation!AG401-Futures!$D$1 -> -2.858054301 | AH16: =Simulation!AH401-Futures!$D$1 -> 11.12515467 | AI16: =Simulation!AI401-Futures!$D$1 -> 13.58120561 | AJ16: =Simulation!AJ401-Futures!$D$1 -> 25.79775241 | AK16: =Simulation!AK401-Futures!$D$1 -> 41.50763375 | AL16: =Simulation!AL401-Futures!$D$1 -> 44.1082389 | AM16: =Simulation!AM401-Futures!$D$1 -> 60.00666448 | AN16: =Simulation!AN401-Futures!$D$1 -> 42.34621888 | AO16: =Simulation!AO401-Futures!$D$1 -> -8.885818953 | AP16: =Simulation!AP401-Futures!$D$1 -> 0.276738333 | AQ16: =Simulation!AQ401-Futures!$D$1 -> -8.882795274 | AR16: =Simulation!AR401-Futures!$D$1 -> -13.68912646 | AS16: =Simulation!AS401-Futures!$D$1 -> 6.223174907 | AT16: =Simulation!AT401-Futures!$D$1 -> 5.587779904 | AU16: =Simulation!AU401-Futures!$D$1 -> -17.99473154 | AV16: =Simulation!AV401-Futures!$D$1 -> -16.65441702 | AW16: =Simulation!AW401-Futures!$D$1 -> -41.20129429 | AX16: =Simulation!AX401-Futures!$D$1 -> -54.66752293 | AY16: =Simulation!AY401-Futures!$D$1 -> -37.92820217 | AZ16: =Simulation!AZ401-Futures!$D$1 -> -62.21562095 | BA16: =Simulation!BA401-Futures!$D$1 -> -59.18660765 | BB16: =Simulation!BB401-Futures!$D$1 -> -72.8945909 | BC16: =Simulation!BC401-Futures!$D$1 -> -78.59525626 | BD16: =Simulation!BD401-Futures!$D$1 -> -103.7096151 | BE16: =Simulation!BE401-Futures!$D$1 -> -105.2715141 | BF16: =Simulation!BF401-Futures!$D$1 -> -76.74519669 | BG16: =Simulation!BG401-Futures!$D$1 -> -85.29602706 | BH16: =Simulation!BH401-Futures!$D$1 -> -99.0414271 | BI16: =Simulation!BI401-Futures!$D$1 -> -118.4146422 | BJ16: =Simulation!BJ401-Futures!$D$1 -> -89.83049564 | BK16: =Simulation!BK401-Futures!$D$1 -> -74.5435057 | BL16: =Simulation!BL401-Futures!$D$1 -> -81.01066458 | BM16: =Simulation!BM401-Futures!$D$1 -> -84.51411897 | BN16: =Simulation!BN401-Futures!$D$1 -> -90.30093245 | BO16: =Simulation!BO401-Futures!$D$1 -> -72.42571384 | BP16: =Simulation!BP401-Futures!$D$1 -> -69.87226684 | BQ16: =Simulation!BQ401-Futures!$D$1 -> -56.560545 | BR16: =Simulation!BR401-Futures!$D$1 -> -46.2563325 | BS16: =Simulation!BS401-Futures!$D$1 -> -46.18124383 | BT16: =Simulation!BT401-Futures!$D$1 -> -30.46934166 | BU16: =Simulation!BU401-Futures!$D$1 -> -62.22894584 | BV16: =Simulation!BV401-Futures!$D$1 -> -66.42586433 | BW16: =Simulation!BW401-Futures!$D$1 -> -83.02847808 | BX16: =Simulation!BX401-Futures!$D$1 -> -91.65207198 | BY16: =Simulation!BY401-Futures!$D$1 -> -121.7335481 | BZ16: =Simulation!BZ401-Futures!$D$1 -> -123.5697369 | CA16: =Simulation!CA401-Futures!$D$1 -> -115.5139958 | CB16: =Simulation!CB401-Futures!$D$1 -> -111.3781541 | CC16: =Simulation!CC401-Futures!$D$1 -> -92.61264048 | CD16: =Simulation!CD401-Futures!$D$1 -> -104.3875301 | CE16: =Simulation!CE401-Futures!$D$1 -> -118.0425228 | CF16: =Simulation!CF401-Futures!$D$1 -> -125.2844384 | CG16: =Simulation!CG401-Futures!$D$1 -> -127.1231904 | CH16: =Simulation!CH401-Futures!$D$1 -> -140.9331797 | CI16: =Simulation!CI401-Futures!$D$1 -> -170.3362342 | CJ16: =Simulation!CJ401-Futures!$D$1 -> -177.2806484 | CK16: =Simulation!CK401-Futures!$D$1 -> -147.2737143 | CL16: =Simulation!CL401-Futures!$D$1 -> -142.3663869 | CM16: =Simulation!CM401-Futures!$D$1 -> -127.6507059 | CN16: =Simulation!CN401-Futures!$D$1 -> -101.8385022 | CO16: =Simulation!CO401-Futures!$D$1 -> -123.0092802 | CP16: =Simulation!CP401-Futures!$D$1 -> -143.2385512 | CQ16: =Simulation!CQ401-Futures!$D$1 -> -144.4363811 | CR16: =Simulation!CR401-Futures!$D$1 -> -148.9375594 | CS16: =Simulation!CS401-Futures!$D$1 -> -137.1537347 | CT16: =Simulation!CT401-Futures!$D$1 -> -151.6397445 | CU16: =Simulation!CU401-Futures!$D$1 -> -155.7068413 | CV16: =Simulation!CV401-Futures!$D$1 -> -149.0491334 | CW16: =Simulation!CW401-Futures!$D$1 -> -160.5225296 | CX16: =Simulation!CX401-Futures!$D$1 -> -167.1695198 | CY16: =Simulation!CY401-Futures!$D$1 -> -171.6981915 | CZ16: =Simulation!CZ401-Futures!$D$1 -> -164.5323485 | DA16: =Simulation!DA401-Futures!$D$1 -> -195.3664879 | DB16: =Simulation!DB401-Futures!$D$1 -> -189.8472053 | DC16: =Simulation!DC401-Futures!$D$1 -> -185.6783548 | DD16: =Simulation!DD401-Futures!$D$1 -> -179.2735783 | DE16: =Simulation!DE401-Futures!$D$1 -> -181.1994664 | DF16: =Simulation!DF401-Futures!$D$1 -> -212.4944499 | DG16: =Simulation!DG401-Futures!$D$1 -> -208.4107517 | DH16: =Simulation!DH401-Futures!$D$1 -> -217.757972 | DI16: =Simulation!DI401-Futures!$D$1 -> -205.2230938 | DJ16: =Simulation!DJ401-Futures!$D$1 -> -189.2843298 | DK16: =Simulation!DK401-Futures!$D$1 -> -177.860653 | DL16: =Simulation!DL401-Futures!$D$1 -> -162.7782002 | DM16: =Simulation!DM401-Futures!$D$1 -> -163.0732374 | DN16: =Simulation!DN401-Futures!$D$1 -> -145.6891587 | DO16: =Simulation!DO401-Futures!$D$1 -> -160.2451731 | DP16: =Simulation!DP401-Futures!$D$1 -> -166.5816373 | DQ16: =Simulation!DQ401-Futures!$D$1 -> -179.0021996 | DR16: =Simulation!DR401-Futures!$D$1 -> -156.2581341 | DS16: =Simulation!DS401-Futures!$D$1 -> -175.8682331 | DT16: =Simulation!DT401-Futures!$D$1 -> -183.284749 | DU16: =Simulation!DU401-Futures!$D$1 -> -196.5540826 | DV16: =Simulation!DV401-Futures!$D$1 -> -172.2985092 | DW16: =Simulation!DW401-Futures!$D$1 -> -179.0406529 | DX16: =Simulation!DX401-Futures!$D$1 -> -179.5062448 | DY16: =Simulation!DY401-Futures!$D$1 -> -157.7969019 | DZ16: =Simulation!DZ401-Futures!$D$1 -> -160.5825885 | EA16: =Simulation!EA401-Futures!$D$1 -> -149.4260387 | EB16: =Simulation!EB401-Futures!$D$1 -> -141.6431635 | EC16: =Simulation!EC401-Futures!$D$1 -> -163.4714466 | ED16: =Simulation!ED401-Futures!$D$1 -> -138.4104771 | EE16: =Simulation!EE401-Futures!$D$1 -> -108.593463 | EF16: =Simulation!EF401-Futures!$D$1 -> -132.8493421 | EG16: =Simulation!EG401-Futures!$D$1 -> -125.1449681 | EH16: =Simulation!EH401-Futures!$D$1 -> -146.8281496 | EI16: =Simulation!EI401-Futures!$D$1 -> -181.9614994 | EJ16: =Simulation!EJ401-Futures!$D$1 -> -196.6192153 | EK16: =Simulation!EK401-Futures!$D$1 -> -195.4027154 | EL16: =Simulation!EL401-Futures!$D$1 -> -189.8054623 | EM16: =Simulation!EM401-Futures!$D$1 -> -212.3993993 | EN16: =Simulation!EN401-Futures!$D$1 -> -207.3194779 | EO16: =Simulation!EO401-Futures!$D$1 -> -203.2367548 | EP16: =Simulation!EP401-Futures!$D$1 -> -199.9312539 | EQ16: =Simulation!EQ401-Futures!$D$1 -> -200.2608878 | ER16: =Simulation!ER401-Futures!$D$1 -> -199.9818898 | ES16: =Simulation!ES401-Futures!$D$1 -> -219.547591 | ET16: =Simulation!ET401-Futures!$D$1 -> -212.114029 | EU16: =Simulation!EU401-Futures!$D$1 -> -203.4364424 | EV16: =Simulation!EV401-Futures!$D$1 -> -197.3883724 | EW16: =Simulation!EW401-Futures!$D$1 -> -184.5549308 | EX16: =Simulation!EX401-Futures!$D$1 -> -137.7346313 | EY16: =Simulation!EY401-Futures!$D$1 -> -144.0317524 | EZ16: =Simulation!EZ401-Futures!$D$1 -> -117.6440044 | FA16: =Simulation!FA401-Futures!$D$1 -> -104.9650395 | FB16: =Simulation!FB401-Futures!$D$1 -> -115.7053324 | FC16: =Simulation!FC401-Futures!$D$1 -> -105.9929833 | FD16: =Simulation!FD401-Futures!$D$1 -> -90.41394732 | FE16: =Simulation!FE401-Futures!$D$1 -> -85.48554584 | FF16: =Simulation!FF401-Futures!$D$1 -> -68.34546551 | FG16: =Simulation!FG401-Futures!$D$1 -> -67.32950549 | FH16: =Simulation!FH401-Futures!$D$1 -> -43.22047021 | FI16: =Simulation!FI401-Futures!$D$1 -> -55.5500999 | FJ16: =Simulation!FJ401-Futures!$D$1 -> -42.72866853 | FK16: =Simulation!FK401-Futures!$D$1 -> 0.7233725575 | FL16: =Simulation!FL401-Futures!$D$1 -> -13.12325859 | FM16: =Simulation!FM401-Futures!$D$1 -> 1.36325937 | FN16: =Simulation!FN401-Futures!$D$1 -> 0.05315419739 | FO16: =Simulation!FO401-Futures!$D$1 -> -41.11220771 | FP16: =Simulation!FP401-Futures!$D$1 -> -65.961515 | FQ16: =Simulation!FQ401-Futures!$D$1 -> -67.70985693 | FR16: =Simulation!FR401-Futures!$D$1 -> -53.45801164 | FS16: =Simulation!FS401-Futures!$D$1 -> -52.81276514 | FT16: =Simulation!FT401-Futures!$D$1 -> -44.20943782 | FU16: =Simulation!FU401-Futures!$D$1 -> -29.05750448 | FV16: =Simulation!FV401-Futures!$D$1 -> -33.17843772 | FW16: =Simulation!FW401-Futures!$D$1 -> -51.19611939 | FX16: =Simulation!FX401-Futures!$D$1 -> -22.62759392 | FY16: =Simulation!FY401-Futures!$D$1 -> -30.83916727 | FZ16: =Simulation!FZ401-Futures!$D$1 -> -45.89339033 | GA16: =Simulation!GA401-Futures!$D$1 -> -60.77008427 | GB16: =Simulation!GB401-Futures!$D$1 -> -58.50208837 | GC16: =Simulation!GC401-Futures!$D$1 -> -41.99330503 | GD16: =Simulation!GD401-Futures!$D$1 -> -60.87463897 | GE16: =Simulation!GE401-Futures!$D$1 -> -74.52346275 | GF16: =Simulation!GF401-Futures!$D$1 -> -67.65709624 | GG16: =Simulation!GG401-Futures!$D$1 -> -90.64245661 | GH16: =Simulation!GH401-Futures!$D$1 -> -80.44456992 | GI16: =Simulation!GI401-Futures!$D$1 -> -103.385395 | GJ16: =Simulation!GJ401-Futures!$D$1 -> -80.52676696 | GK16: =Simulation!GK401-Futures!$D$1 -> -91.31724097 | GL16: =Simulation!GL401-Futures!$D$1 -> -110.448503 | GM16: =Simulation!GM401-Futures!$D$1 -> -126.9251906 | GN16: =Simulation!GN401-Futures!$D$1 -> -154.1984756 | GO16: =Simulation!GO401-Futures!$D$1 -> -157.1441582 | GP16: =Simulation!GP401-Futures!$D$1 -> -154.5163699 | GQ16: =Simulation!GQ401-Futures!$D$1 -> -176.1879174 | GR16: =Simulation!GR401-Futures!$D$1 -> -161.4513282 | GS16: =Simulation!GS401-Futures!$D$1 -> -194.4481034 | GT16: =Simulation!GT401-Futures!$D$1 -> -180.3635153 | GU16: =Simulation!GU401-Futures!$D$1 -> -205.1673721 | GV16: =Simulation!GV401-Futures!$D$1 -> -186.0749414 | GW16: =Simulation!GW401-Futures!$D$1 -> -192.2988478 | GX16: =Simulation!GX401-Futures!$D$1 -> -209.0096642 | GY16: =Simulation!GY401-Futures!$D$1 -> -213.6289579 | GZ16: =Simulation!GZ401-Futures!$D$1 -> -231.1118843 | HA16: =Simulation!HA401-Futures!$D$1 -> -201.1179001 | HB16: =Simulation!HB401-Futures!$D$1 -> -199.9645866 | HC16: =Simulation!HC401-Futures!$D$1 -> -219.8719104 | HD16: =Simulation!HD401-Futures!$D$1 -> -205.8490131 | HE16: =Simulation!HE401-Futures!$D$1 -> -210.9480289 | HF16: =Simulation!HF401-Futures!$D$1 -> -208.7312906 | HG16: =Simulation!HG401-Futures!$D$1 -> -193.1789485 | HH16: =Simulation!HH401-Futures!$D$1 -> -199.2488438 | HI16: =Simulation!HI401-Futures!$D$1 -> -203.1914179 | HJ16: =Simulation!HJ401-Futures!$D$1 -> -196.5901973 | HK16: =Simulation!HK401-Futures!$D$1 -> -177.9470334 | HL16: =Simulation!HL401-Futures!$D$1 -> -137.337692 | HM16: =Simulation!HM401-Futures!$D$1 -> -152.707407 | HN16: =Simulation!HN401-Futures!$D$1 -> -150.0458663 | HO16: =Simulation!HO401-Futures!$D$1 -> -171.4629774 | HP16: =Simulation!HP401-Futures!$D$1 -> -177.2782672 | HQ16: =Simulation!HQ401-Futures!$D$1 -> -178.2834956 | HR16: =Simulation!HR401-Futures!$D$1 -> -185.0473986 | HS16: =Simulation!HS401-Futures!$D$1 -> -184.7109593 | HT16: =Simulation!HT401-Futures!$D$1 -> -197.5435727 | HU16: =Simulation!HU401-Futures!$D$1 -> -177.2435182 | HV16: =Simulation!HV401-Futures!$D$1 -> -199.9106705 | HW16: =Simulation!HW401-Futures!$D$1 -> -220.9253706 | HX16: =Simulation!HX401-Futures!$D$1 -> -226.6367414 | HY16: =Simulation!HY401-Futures!$D$1 -> -237.8905354 | HZ16: =Simulation!HZ401-Futures!$D$1 -> -222.5368136 | IA16: =Simulation!IA401-Futures!$D$1 -> -213.5986559 | IB16: =Simulation!IB401-Futures!$D$1 -> -206.7307493 | IC16: =Simulation!IC401-Futures!$D$1 -> -180.354036 | ID16: =Simulation!ID401-Futures!$D$1 -> -190.6873608 | IE16: =Simulation!IE401-Futures!$D$1 -> -182.9571023 | IF16: =Simulation!IF401-Futures!$D$1 -> -189.3297672 | IG16: =Simulation!IG401-Futures!$D$1 -> -187.7336263 | IH16: =Simulation!IH401-Futures!$D$1 -> -210.1753509 | II16: =Simulation!II401-Futures!$D$1 -> -241.7666807 | IJ16: =Simulation!IJ401-Futures!$D$1 -> -255.7086046 | IK16: =Simulation!IK401-Futures!$D$1 -> -253.8170983 | IL16: =Simulation!IL401-Futures!$D$1 -> -258.9872802 | IM16: =Simulation!IM401-Futures!$D$1 -> -274.8174892 | IN16: =Simulation!IN401-Futures!$D$1 -> -264.0159912 | IO16: =Simulation!IO401-Futures!$D$1 -> -254.5435098 | IP16: =Simulation!IP401-Futures!$D$1 -> -274.5454168 | IQ16: =Simulation!IQ401-Futures!$D$1 -> -271.9345104 | IR16: =Simulation!IR401-Futures!$D$1 -> -282.6329021 | IS16: =Simulation!IS401-Futures!$D$1 -> -304.432629 | IT16: =Simulation!IT401-Futures!$D$1 -> -296.1177437 | IU16: =Simulation!IU401-Futures!$D$1 -> -270.8745829 | IV16: =Simulation!IV401-Futures!$D$1 -> -231.8941724 | IW16: =Simulation!IW401-Futures!$D$1 -> -210.830204 | IX16: =Simulation!IX401-Futures!$D$1 -> -239.6032527 | IY16: =Simulation!IY401-Futures!$D$1 -> -248.1079383 | IZ16: =Simulation!IZ401-Futures!$D$1 -> -244.6587781 | JA16: =Simulation!JA401-Futures!$D$1 -> -210.3227203 | JB16: =Simulation!JB401-Futures!$D$1 -> -181.8266298 | JC16: =Simulation!JC401-Futures!$D$1 -> -191.9514659 | JD16: =Simulation!JD401-Futures!$D$1 -> -195.3587549 | JE16: =Simulation!JE401-Futures!$D$1 -> -209.9521458 | JF16: =Simulation!JF401-Futures!$D$1 -> -232.1548534 | JG16: =Simulation!JG401-Futures!$D$1 -> -218.9646442 | JH16: =Simulation!JH401-Futures!$D$1 -> -220.7010804 | JI16: =Simulation!JI401-Futures!$D$1 -> -210.0917571 | JJ16: =Simulation!JJ401-Futures!$D$1 -> -198.9889799 | JK16: =Simulation!JK401-Futures!$D$1 -> -228.2646098 | JL16: =Simulation!JL401-Futures!$D$1 -> -228.0820855 | JM16: =Simulation!JM401-Futures!$D$1 -> -225.0014932 | JN16: =Simulation!JN401-Futures!$D$1 -> -225.6831193 | JO16: =Simulation!JO401-Futures!$D$1 -> -233.2102791 | JP16: =Simulation!JP401-Futures!$D$1 -> -247.063162 | JQ16: =Simulation!JQ401-Futures!$D$1 -> -253.5182442 | JR16: =Simulation!JR401-Futures!$D$1 -> -256.2909296 | JS16: =Simulation!JS401-Futures!$D$1 -> -257.2560216 | JT16: =Simulation!JT401-Futures!$D$1 -> -283.7354401 | JU16: =Simulation!JU401-Futures!$D$1 -> -271.9203876 | JV16: =Simulation!JV401-Futures!$D$1 -> -269.5361434 | JW16: =Simulation!JW401-Futures!$D$1 -> -271.19058 | JX16: =Simulation!JX401-Futures!$D$1 -> -252.4441896 | JY16: =Simulation!JY401-Futures!$D$1 -> -220.102974 | JZ16: =Simulation!JZ401-Futures!$D$1 -> -213.1421245 | KA16: =Simulation!KA401-Futures!$D$1 -> -213.9128883 | KB16: =Simulation!KB401-Futures!$D$1 -> -204.1475757 | KC16: =Simulation!KC401-Futures!$D$1 -> -203.0371209 | KD16: =Simulation!KD401-Futures!$D$1 -> -202.4149827 | KE16: =Simulation!KE401-Futures!$D$1 -> -204.3443074 | KF16: =Simulation!KF401-Futures!$D$1 -> -188.4854431 | KG16: =Simulation!KG401-Futures!$D$1 -> -199.8637403 | KH16: =Simulation!KH401-Futures!$D$1 -> -182.6598431 | KI16: =Simulation!KI401-Futures!$D$1 -> -172.9549596 | KJ16: =Simulation!KJ401-Futures!$D$1 -> -184.4023884 | KK16: =Simulation!KK401-Futures!$D$1 -> -178.4552284 | KL16: =Simulation!KL401-Futures!$D$1 -> -196.6388284 | KM16: =Simulation!KM401-Futures!$D$1 -> -201.7169638 | KN16: =Simulation!KN401-Futures!$D$1 -> -194.7983539 | KO16: =Simulation!KO401-Futures!$D$1 -> -190.5701347 | KP16: =Simulation!KP401-Futures!$D$1 -> -178.7204196 | KQ16: =Simulation!KQ401-Futures!$D$1 -> -174.3258644 | KR16: =Simulation!KR401-Futures!$D$1 -> -186.3116528 | KS16: =Simulation!KS401-Futures!$D$1 -> -211.20247 | KT16: =Simulation!KT401-Futures!$D$1 -> -211.2016274 | KU16: =Simulation!KU401-Futures!$D$1 -> -214.9190135 | KV16: =Simulation!KV401-Futures!$D$1 -> -223.9416761 | KW16: =Simulation!KW401-Futures!$D$1 -> -238.5629194 | KX16: =Simulation!KX401-Futures!$D$1 -> -242.9287604 | KY16: =Simulation!KY401-Futures!$D$1 -> -272.6457459 | KZ16: =Simulation!KZ401-Futures!$D$1 -> -271.69825 | LA16: =Simulation!LA401-Futures!$D$1 -> -277.0178357 | LB16: =Simulation!LB401-Futures!$D$1 -> -285.4853912 | LC16: =Simulation!LC401-Futures!$D$1 -> -294.8390158 | LD16: =Simulation!LD401-Futures!$D$1 -> -280.0470087 | LE16: =Simulation!LE401-Futures!$D$1 -> -287.7462329 | LF16: =Simulation!LF401-Futures!$D$1 -> -286.5328252 | LG16: =Simulation!LG401-Futures!$D$1 -> -276.8639807 | LH16: =Simulation!LH401-Futures!$D$1 -> -288.882239 | LI16: =Simulation!LI401-Futures!$D$1 -> -285.8793785 | LJ16: =Simulation!LJ401-Futures!$D$1 -> -279.2899323 | LK16: =Simulation!LK401-Futures!$D$1 -> -267.6513905 | LL16: =Simulation!LL401-Futures!$D$1 -> -284.9886955 | LM16: =Simulation!LM401-Futures!$D$1 -> -278.1788303 | LN16: =Simulation!LN401-Futures!$D$1 -> -290.553345 | LO16: =Simulation!LO401-Futures!$D$1 -> -284.1466559 | LP16: =Simulation!LP401-Futures!$D$1 -> -310.2862762 | LQ16: =Simulation!LQ401-Futures!$D$1 -> -316.8818444 | LR16: =Simulation!LR401-Futures!$D$1 -> -310.9085262 | LS16: =Simulation!LS401-Futures!$D$1 -> -330.7473856 | LT16: =Simulation!LT401-Futures!$D$1 -> -303.1101329 | LU16: =Simulation!LU401-Futures!$D$1 -> -296.1522301 | LV16: =Simulation!LV401-Futures!$D$1 -> -285.7174978 | LW16: =Simulation!LW401-Futures!$D$1 -> -276.4476087 | LX16: =Simulation!LX401-Futures!$D$1 -> -249.3575735 | LY16: =Simulation!LY401-Futures!$D$1 -> -255.0049366 | LZ16: =Simulation!LZ401-Futures!$D$1 -> -258.2250349 | MA16: =Simulation!MA401-Futures!$D$1 -> -237.2764595 | MB16: =Simulation!MB401-Futures!$D$1 -> -235.9908533 | MC16: =Simulation!MC401-Futures!$D$1 -> -245.6925401 | MD16: =Simulation!MD401-Futures!$D$1 -> -247.5673042 | ME16: =Simulation!ME401-Futures!$D$1 -> -269.3433171 | MF16: =Simulation!MF401-Futures!$D$1 -> -274.2720038 | MG16: =Simulation!MG401-Futures!$D$1 -> -270.7301319 | MH16: =Simulation!MH401-Futures!$D$1 -> -308.7218357 | MI16: =Simulation!MI401-Futures!$D$1 -> -293.1772726 | MJ16: =Simulation!MJ401-Futures!$D$1 -> -307.1951389 | MK16: =Simulation!MK401-Futures!$D$1 -> -296.807491 | ML16: =Simulation!ML401-Futures!$D$1 -> -285.7532295 | MM16: =Simulation!MM401-Futures!$D$1 -> -264.0449969 | MN16: =Simulation!MN401-Futures!$D$1 -> -225.7892126 | MO16: =Simulation!MO401-Futures!$D$1 -> -236.7861429 | MP16: =Simulation!MP401-Futures!$D$1 -> -223.4129312 | MQ16: =Simulation!MQ401-Futures!$D$1 -> -182.4756006 | MR16: =Simulation!MR401-Futures!$D$1 -> -150.5515741 | MS16: =Simulation!MS401-Futures!$D$1 -> -148.5806115 | MT16: =Simulation!MT401-Futures!$D$1 -> -133.5369822 | MU16: =Simulation!MU401-Futures!$D$1 -> -108.5532785 | MV16: =Simulation!MV401-Futures!$D$1 -> -103.432705 | MW16: =Simulation!MW401-Futures!$D$1 -> -60.16625443 | MX16: =Simulation!MX401-Futures!$D$1 -> -56.94006594 | MY16: =Simulation!MY401-Futures!$D$1 -> -88.77080422 | MZ16: =Simulation!MZ401-Futures!$D$1 -> -2020 | NA16: =Simulation!NA401-Futures!$D$1 -> -2020 | NB16: =Simulation!NB401-Futures!$D$1 -> -2012
A17: 11 | B17: =Simulation!B402-Futures!$D$1 -> -48.07327838 | C17: =Simulation!C402-Futures!$D$1 -> -48.68088127 | D17: =Simulation!D402-Futures!$D$1 -> -44.76673252 | E17: =Simulation!E402-Futures!$D$1 -> -29.45305648 | F17: =Simulation!F402-Futures!$D$1 -> -12.60810916 | G17: =Simulation!G402-Futures!$D$1 -> 23.36537804 | H17: =Simulation!H402-Futures!$D$1 -> 26.43195556 | I17: =Simulation!I402-Futures!$D$1 -> 20.66739247 | J17: =Simulation!J402-Futures!$D$1 -> 44.70538946 | K17: =Simulation!K402-Futures!$D$1 -> 63.07176877 | L17: =Simulation!L402-Futures!$D$1 -> 40.41622783 | M17: =Simulation!M402-Futures!$D$1 -> 2.626156751 | N17: =Simulation!N402-Futures!$D$1 -> 21.25683504 | O17: =Simulation!O402-Futures!$D$1 -> 14.08038518 | P17: =Simulation!P402-Futures!$D$1 -> -4.535837485 | Q17: =Simulation!Q402-Futures!$D$1 -> -3.491751273 | R17: =Simulation!R402-Futures!$D$1 -> -29.81679773 | S17: =Simulation!S402-Futures!$D$1 -> -23.59837173 | T17: =Simulation!T402-Futures!$D$1 -> -8.992369926 | U17: =Simulation!U402-Futures!$D$1 -> -29.37014092 | V17: =Simulation!V402-Futures!$D$1 -> -42.44850881 | W17: =Simulation!W402-Futures!$D$1 -> -26.96917469 | X17: =Simulation!X402-Futures!$D$1 -> -21.84704704 | Y17: =Simulation!Y402-Futures!$D$1 -> -24.29775244 | Z17: =Simulation!Z402-Futures!$D$1 -> -44.59587808 | AA17: =Simulation!AA402-Futures!$D$1 -> -26.9870914 | AB17: =Simulation!AB402-Futures!$D$1 -> -51.3734062 | AC17: =Simulation!AC402-Futures!$D$1 -> -67.4951044 | AD17: =Simulation!AD402-Futures!$D$1 -> -76.07026725 | AE17: =Simulation!AE402-Futures!$D$1 -> -109.1414691 | AF17: =Simulation!AF402-Futures!$D$1 -> -111.2723943 | AG17: =Simulation!AG402-Futures!$D$1 -> -141.6754201 | AH17: =Simulation!AH402-Futures!$D$1 -> -114.3131177 | AI17: =Simulation!AI402-Futures!$D$1 -> -108.7527175 | AJ17: =Simulation!AJ402-Futures!$D$1 -> -97.54069819 | AK17: =Simulation!AK402-Futures!$D$1 -> -91.1238216 | AL17: =Simulation!AL402-Futures!$D$1 -> -92.16550656 | AM17: =Simulation!AM402-Futures!$D$1 -> -86.48734576 | AN17: =Simulation!AN402-Futures!$D$1 -> -101.1331426 | AO17: =Simulation!AO402-Futures!$D$1 -> -74.57805407 | AP17: =Simulation!AP402-Futures!$D$1 -> -73.72866783 | AQ17: =Simulation!AQ402-Futures!$D$1 -> -35.81146837 | AR17: =Simulation!AR402-Futures!$D$1 -> -2.697686738 | AS17: =Simulation!AS402-Futures!$D$1 -> -14.32984678 | AT17: =Simulation!AT402-Futures!$D$1 -> -41.41234652 | AU17: =Simulation!AU402-Futures!$D$1 -> -31.39344956 | AV17: =Simulation!AV402-Futures!$D$1 -> -24.56646336 | AW17: =Simulation!AW402-Futures!$D$1 -> -24.38288031 | AX17: =Simulation!AX402-Futures!$D$1 -> -29.11912635 | AY17: =Simulation!AY402-Futures!$D$1 -> -21.56426463 | AZ17: =Simulation!AZ402-Futures!$D$1 -> -10.78649984 | BA17: =Simulation!BA402-Futures!$D$1 -> -3.75626998 | BB17: =Simulation!BB402-Futures!$D$1 -> -23.07920745 | BC17: =Simulation!BC402-Futures!$D$1 -> 1.088541037 | BD17: =Simulation!BD402-Futures!$D$1 -> 3.270785301 | BE17: =Simulation!BE402-Futures!$D$1 -> 20.030645 | BF17: =Simulation!BF402-Futures!$D$1 -> 57.24366243 | BG17: =Simulation!BG402-Futures!$D$1 -> 51.16659944 | BH17: =Simulation!BH402-Futures!$D$1 -> 50.98235123 | BI17: =Simulation!BI402-Futures!$D$1 -> 62.54688786 | BJ17: =Simulation!BJ402-Futures!$D$1 -> 67.74888799 | BK17: =Simulation!BK402-Futures!$D$1 -> 62.93388286 | BL17: =Simulation!BL402-Futures!$D$1 -> 57.07248942 | BM17: =Simulation!BM402-Futures!$D$1 -> 43.15371965 | BN17: =Simulation!BN402-Futures!$D$1 -> 57.74249454 | BO17: =Simulation!BO402-Futures!$D$1 -> 76.30463137 | BP17: =Simulation!BP402-Futures!$D$1 -> 88.02440779 | BQ17: =Simulation!BQ402-Futures!$D$1 -> 82.33719113 | BR17: =Simulation!BR402-Futures!$D$1 -> 133.7041656 | BS17: =Simulation!BS402-Futures!$D$1 -> 120.0460947 | BT17: =Simulation!BT402-Futures!$D$1 -> 102.600931 | BU17: =Simulation!BU402-Futures!$D$1 -> 121.9174047 | BV17: =Simulation!BV402-Futures!$D$1 -> 108.1316706 | BW17: =Simulation!BW402-Futures!$D$1 -> 126.9376581 | BX17: =Simulation!BX402-Futures!$D$1 -> 134.4023734 | BY17: =Simulation!BY402-Futures!$D$1 -> 150.3144131 | BZ17: =Simulation!BZ402-Futures!$D$1 -> 132.7101376 | CA17: =Simulation!CA402-Futures!$D$1 -> 111.4486651 | CB17: =Simulation!CB402-Futures!$D$1 -> 123.6991823 | CC17: =Simulation!CC402-Futures!$D$1 -> 114.1149979 | CD17: =Simulation!CD402-Futures!$D$1 -> 105.5432609 | CE17: =Simulation!CE402-Futures!$D$1 -> 97.19518936 | CF17: =Simulation!CF402-Futures!$D$1 -> 84.24343742 | CG17: =Simulation!CG402-Futures!$D$1 -> 86.46640417 | CH17: =Simulation!CH402-Futures!$D$1 -> 89.6074181 | CI17: =Simulation!CI402-Futures!$D$1 -> 86.03724031 | CJ17: =Simulation!CJ402-Futures!$D$1 -> 96.57251523 | CK17: =Simulation!CK402-Futures!$D$1 -> 83.74236927 | CL17: =Simulation!CL402-Futures!$D$1 -> 76.94363866 | CM17: =Simulation!CM402-Futures!$D$1 -> 124.2979697 | CN17: =Simulation!CN402-Futures!$D$1 -> 129.2607079 | CO17: =Simulation!CO402-Futures!$D$1 -> 93.98328574 | CP17: =Simulation!CP402-Futures!$D$1 -> 77.1402422 | CQ17: =Simulation!CQ402-Futures!$D$1 -> 60.70678363 | CR17: =Simulation!CR402-Futures!$D$1 -> 95.44396474 | CS17: =Simulation!CS402-Futures!$D$1 -> 105.0171649 | CT17: =Simulation!CT402-Futures!$D$1 -> 115.6194953 | CU17: =Simulation!CU402-Futures!$D$1 -> 99.36900503 | CV17: =Simulation!CV402-Futures!$D$1 -> 95.08645737 | CW17: =Simulation!CW402-Futures!$D$1 -> 114.8731607 | CX17: =Simulation!CX402-Futures!$D$1 -> 115.8941909 | CY17: =Simulation!CY402-Futures!$D$1 -> 126.5707336 | CZ17: =Simulation!CZ402-Futures!$D$1 -> 143.8046137 | DA17: =Simulation!DA402-Futures!$D$1 -> 166.5884548 | DB17: =Simulation!DB402-Futures!$D$1 -> 199.2366308 | DC17: =Simulation!DC402-Futures!$D$1 -> 168.637095 | DD17: =Simulation!DD402-Futures!$D$1 -> 171.3296617 | DE17: =Simulation!DE402-Futures!$D$1 -> 180.8380446 | DF17: =Simulation!DF402-Futures!$D$1 -> 162.417174 | DG17: =Simulation!DG402-Futures!$D$1 -> 151.008199 | DH17: =Simulation!DH402-Futures!$D$1 -> 147.7698094 | DI17: =Simulation!DI402-Futures!$D$1 -> 148.2587947 | DJ17: =Simulation!DJ402-Futures!$D$1 -> 136.6516825 | DK17: =Simulation!DK402-Futures!$D$1 -> 107.3819445 | DL17: =Simulation!DL402-Futures!$D$1 -> 117.467817 | DM17: =Simulation!DM402-Futures!$D$1 -> 120.0134038 | DN17: =Simulation!DN402-Futures!$D$1 -> 125.8807623 | DO17: =Simulation!DO402-Futures!$D$1 -> 132.9689776 | DP17: =Simulation!DP402-Futures!$D$1 -> 145.2925479 | DQ17: =Simulation!DQ402-Futures!$D$1 -> 159.1669168 | DR17: =Simulation!DR402-Futures!$D$1 -> 198.2098069 | DS17: =Simulation!DS402-Futures!$D$1 -> 175.8072256 | DT17: =Simulation!DT402-Futures!$D$1 -> 159.746981 | DU17: =Simulation!DU402-Futures!$D$1 -> 157.3954582 | DV17: =Simulation!DV402-Futures!$D$1 -> 182.8246792 | DW17: =Simulation!DW402-Futures!$D$1 -> 177.4285313 | DX17: =Simulation!DX402-Futures!$D$1 -> 168.7930078 | DY17: =Simulation!DY402-Futures!$D$1 -> 181.5193166 | DZ17: =Simulation!DZ402-Futures!$D$1 -> 195.6357971 | EA17: =Simulation!EA402-Futures!$D$1 -> 218.3525134 | EB17: =Simulation!EB402-Futures!$D$1 -> 205.9735802 | EC17: =Simulation!EC402-Futures!$D$1 -> 212.4620302 | ED17: =Simulation!ED402-Futures!$D$1 -> 199.8457944 | EE17: =Simulation!EE402-Futures!$D$1 -> 222.03642 | EF17: =Simulation!EF402-Futures!$D$1 -> 230.3086134 | EG17: =Simulation!EG402-Futures!$D$1 -> 194.2061015 | EH17: =Simulation!EH402-Futures!$D$1 -> 219.3350992 | EI17: =Simulation!EI402-Futures!$D$1 -> 246.2659925 | EJ17: =Simulation!EJ402-Futures!$D$1 -> 234.7852175 | EK17: =Simulation!EK402-Futures!$D$1 -> 239.6641054 | EL17: =Simulation!EL402-Futures!$D$1 -> 267.9084987 | EM17: =Simulation!EM402-Futures!$D$1 -> 249.5164777 | EN17: =Simulation!EN402-Futures!$D$1 -> 245.8520969 | EO17: =Simulation!EO402-Futures!$D$1 -> 242.6057356 | EP17: =Simulation!EP402-Futures!$D$1 -> 212.2675347 | EQ17: =Simulation!EQ402-Futures!$D$1 -> 187.373517 | ER17: =Simulation!ER402-Futures!$D$1 -> 166.3975503 | ES17: =Simulation!ES402-Futures!$D$1 -> 174.2662035 | ET17: =Simulation!ET402-Futures!$D$1 -> 170.1579552 | EU17: =Simulation!EU402-Futures!$D$1 -> 155.2254258 | EV17: =Simulation!EV402-Futures!$D$1 -> 139.6820568 | EW17: =Simulation!EW402-Futures!$D$1 -> 139.5438821 | EX17: =Simulation!EX402-Futures!$D$1 -> 165.7407564 | EY17: =Simulation!EY402-Futures!$D$1 -> 159.2324974 | EZ17: =Simulation!EZ402-Futures!$D$1 -> 151.2966331 | FA17: =Simulation!FA402-Futures!$D$1 -> 168.3444885 | FB17: =Simulation!FB402-Futures!$D$1 -> 168.8974208 | FC17: =Simulation!FC402-Futures!$D$1 -> 144.3119497 | FD17: =Simulation!FD402-Futures!$D$1 -> 158.9762142 | FE17: =Simulation!FE402-Futures!$D$1 -> 137.4188731 | FF17: =Simulation!FF402-Futures!$D$1 -> 121.7718994 | FG17: =Simulation!FG402-Futures!$D$1 -> 115.8296926 | FH17: =Simulation!FH402-Futures!$D$1 -> 174.232018 | FI17: =Simulation!FI402-Futures!$D$1 -> 165.6029173 | FJ17: =Simulation!FJ402-Futures!$D$1 -> 162.8125441 | FK17: =Simulation!FK402-Futures!$D$1 -> 186.1945029 | FL17: =Simulation!FL402-Futures!$D$1 -> 211.6580981 | FM17: =Simulation!FM402-Futures!$D$1 -> 231.13753 | FN17: =Simulation!FN402-Futures!$D$1 -> 214.7212907 | FO17: =Simulation!FO402-Futures!$D$1 -> 240.7751756 | FP17: =Simulation!FP402-Futures!$D$1 -> 242.4680057 | FQ17: =Simulation!FQ402-Futures!$D$1 -> 204.3878826 | FR17: =Simulation!FR402-Futures!$D$1 -> 204.5056634 | FS17: =Simulation!FS402-Futures!$D$1 -> 193.5093742 | FT17: =Simulation!FT402-Futures!$D$1 -> 225.7692103 | FU17: =Simulation!FU402-Futures!$D$1 -> 251.6650804 | FV17: =Simulation!FV402-Futures!$D$1 -> 248.5339551 | FW17: =Simulation!FW402-Futures!$D$1 -> 256.6101272 | FX17: =Simulation!FX402-Futures!$D$1 -> 289.1422969 | FY17: =Simulation!FY402-Futures!$D$1 -> 294.3099381 | FZ17: =Simulation!FZ402-Futures!$D$1 -> 314.5927554 | GA17: =Simulation!GA402-Futures!$D$1 -> 309.4824452 | GB17: =Simulation!GB402-Futures!$D$1 -> 315.39317 | GC17: =Simulation!GC402-Futures!$D$1 -> 321.4823983 | GD17: =Simulation!GD402-Futures!$D$1 -> 292.3320781 | GE17: =Simulation!GE402-Futures!$D$1 -> 285.9074677 | GF17: =Simulation!GF402-Futures!$D$1 -> 286.0803985 | GG17: =Simulation!GG402-Futures!$D$1 -> 279.7668369 | GH17: =Simulation!GH402-Futures!$D$1 -> 279.6385271 | GI17: =Simulation!GI402-Futures!$D$1 -> 282.4270851 | GJ17: =Simulation!GJ402-Futures!$D$1 -> 261.4634982 | GK17: =Simulation!GK402-Futures!$D$1 -> 266.1185323 | GL17: =Simulation!GL402-Futures!$D$1 -> 304.3791755 | GM17: =Simulation!GM402-Futures!$D$1 -> 280.0899608 | GN17: =Simulation!GN402-Futures!$D$1 -> 278.6596791 | GO17: =Simulation!GO402-Futures!$D$1 -> 290.4237458 | GP17: =Simulation!GP402-Futures!$D$1 -> 279.1812554 | GQ17: =Simulation!GQ402-Futures!$D$1 -> 303.1767112 | GR17: =Simulation!GR402-Futures!$D$1 -> 314.0282399 | GS17: =Simulation!GS402-Futures!$D$1 -> 301.6903572 | GT17: =Simulation!GT402-Futures!$D$1 -> 293.7462711 | GU17: =Simulation!GU402-Futures!$D$1 -> 288.8132559 | GV17: =Simulation!GV402-Futures!$D$1 -> 288.8647391 | GW17: =Simulation!GW402-Futures!$D$1 -> 251.0042314 | GX17: =Simulation!GX402-Futures!$D$1 -> 227.9869637 | GY17: =Simulation!GY402-Futures!$D$1 -> 226.9019209 | GZ17: =Simulation!GZ402-Futures!$D$1 -> 216.560933 | HA17: =Simulation!HA402-Futures!$D$1 -> 244.3283894 | HB17: =Simulation!HB402-Futures!$D$1 -> 239.44589 | HC17: =Simulation!HC402-Futures!$D$1 -> 221.9696609 | HD17: =Simulation!HD402-Futures!$D$1 -> 233.4453127 | HE17: =Simulation!HE402-Futures!$D$1 -> 224.2673892 | HF17: =Simulation!HF402-Futures!$D$1 -> 218.8142994 | HG17: =Simulation!HG402-Futures!$D$1 -> 237.5607962 | HH17: =Simulation!HH402-Futures!$D$1 -> 216.3390828 | HI17: =Simulation!HI402-Futures!$D$1 -> 214.0465155 | HJ17: =Simulation!HJ402-Futures!$D$1 -> 228.7900392 | HK17: =Simulation!HK402-Futures!$D$1 -> 260.8118933 | HL17: =Simulation!HL402-Futures!$D$1 -> 227.2125295 | HM17: =Simulation!HM402-Futures!$D$1 -> 206.9850749 | HN17: =Simulation!HN402-Futures!$D$1 -> 199.5195706 | HO17: =Simulation!HO402-Futures!$D$1 -> 201.0883395 | HP17: =Simulation!HP402-Futures!$D$1 -> 215.9607109 | HQ17: =Simulation!HQ402-Futures!$D$1 -> 230.7808173 | HR17: =Simulation!HR402-Futures!$D$1 -> 248.7220854 | HS17: =Simulation!HS402-Futures!$D$1 -> 241.7373798 | HT17: =Simulation!HT402-Futures!$D$1 -> 229.2385015 | HU17: =Simulation!HU402-Futures!$D$1 -> 267.358934 | HV17: =Simulation!HV402-Futures!$D$1 -> 260.4149824 | HW17: =Simulation!HW402-Futures!$D$1 -> 276.9208302 | HX17: =Simulation!HX402-Futures!$D$1 -> 240.5366944 | HY17: =Simulation!HY402-Futures!$D$1 -> 210.1920651 | HZ17: =Simulation!HZ402-Futures!$D$1 -> 205.0722872 | IA17: =Simulation!IA402-Futures!$D$1 -> 198.975109 | IB17: =Simulation!IB402-Futures!$D$1 -> 186.5550792 | IC17: =Simulation!IC402-Futures!$D$1 -> 220.1316437 | ID17: =Simulation!ID402-Futures!$D$1 -> 243.4153912 | IE17: =Simulation!IE402-Futures!$D$1 -> 230.8143899 | IF17: =Simulation!IF402-Futures!$D$1 -> 238.9831446 | IG17: =Simulation!IG402-Futures!$D$1 -> 236.6134451 | IH17: =Simulation!IH402-Futures!$D$1 -> 233.5892986 | II17: =Simulation!II402-Futures!$D$1 -> 232.818246 | IJ17: =Simulation!IJ402-Futures!$D$1 -> 249.9544937 | IK17: =Simulation!IK402-Futures!$D$1 -> 244.8454488 | IL17: =Simulation!IL402-Futures!$D$1 -> 259.7211121 | IM17: =Simulation!IM402-Futures!$D$1 -> 212.8727608 | IN17: =Simulation!IN402-Futures!$D$1 -> 196.5802007 | IO17: =Simulation!IO402-Futures!$D$1 -> 153.6836764 | IP17: =Simulation!IP402-Futures!$D$1 -> 164.6067877 | IQ17: =Simulation!IQ402-Futures!$D$1 -> 154.6478016 | IR17: =Simulation!IR402-Futures!$D$1 -> 148.8464318 | IS17: =Simulation!IS402-Futures!$D$1 -> 146.3167801 | IT17: =Simulation!IT402-Futures!$D$1 -> 175.0195201 | IU17: =Simulation!IU402-Futures!$D$1 -> 187.6365857 | IV17: =Simulation!IV402-Futures!$D$1 -> 198.9185162 | IW17: =Simulation!IW402-Futures!$D$1 -> 195.4517628 | IX17: =Simulation!IX402-Futures!$D$1 -> 203.1048091 | IY17: =Simulation!IY402-Futures!$D$1 -> 201.3761878 | IZ17: =Simulation!IZ402-Futures!$D$1 -> 215.097243 | JA17: =Simulation!JA402-Futures!$D$1 -> 201.5159199 | JB17: =Simulation!JB402-Futures!$D$1 -> 174.7021341 | JC17: =Simulation!JC402-Futures!$D$1 -> 172.1618304 | JD17: =Simulation!JD402-Futures!$D$1 -> 168.5353088 | JE17: =Simulation!JE402-Futures!$D$1 -> 160.5037154 | JF17: =Simulation!JF402-Futures!$D$1 -> 171.9257913 | JG17: =Simulation!JG402-Futures!$D$1 -> 185.9248939 | JH17: =Simulation!JH402-Futures!$D$1 -> 186.9195717 | JI17: =Simulation!JI402-Futures!$D$1 -> 179.3857359 | JJ17: =Simulation!JJ402-Futures!$D$1 -> 167.7192543 | JK17: =Simulation!JK402-Futures!$D$1 -> 146.2294439 | JL17: =Simulation!JL402-Futures!$D$1 -> 134.1136748 | JM17: =Simulation!JM402-Futures!$D$1 -> 117.3557072 | JN17: =Simulation!JN402-Futures!$D$1 -> 136.5064262 | JO17: =Simulation!JO402-Futures!$D$1 -> 155.6405577 | JP17: =Simulation!JP402-Futures!$D$1 -> 143.7749367 | JQ17: =Simulation!JQ402-Futures!$D$1 -> 148.54552 | JR17: =Simulation!JR402-Futures!$D$1 -> 142.4796669 | JS17: =Simulation!JS402-Futures!$D$1 -> 117.5350678 | JT17: =Simulation!JT402-Futures!$D$1 -> 142.0369813 | JU17: =Simulation!JU402-Futures!$D$1 -> 141.5410231 | JV17: =Simulation!JV402-Futures!$D$1 -> 129.785153 | JW17: =Simulation!JW402-Futures!$D$1 -> 119.6392157 | JX17: =Simulation!JX402-Futures!$D$1 -> 123.1008245 | JY17: =Simulation!JY402-Futures!$D$1 -> 115.7181362 | JZ17: =Simulation!JZ402-Futures!$D$1 -> 96.01495794 | KA17: =Simulation!KA402-Futures!$D$1 -> 57.99561218 | KB17: =Simulation!KB402-Futures!$D$1 -> 51.95604831 | KC17: =Simulation!KC402-Futures!$D$1 -> 77.2942745 | KD17: =Simulation!KD402-Futures!$D$1 -> 68.35985952 | KE17: =Simulation!KE402-Futures!$D$1 -> 69.15702627 | KF17: =Simulation!KF402-Futures!$D$1 -> 56.75421195 | KG17: =Simulation!KG402-Futures!$D$1 -> 58.80957709 | KH17: =Simulation!KH402-Futures!$D$1 -> 35.26941557 | KI17: =Simulation!KI402-Futures!$D$1 -> 27.16043699 | KJ17: =Simulation!KJ402-Futures!$D$1 -> 26.44754569 | KK17: =Simulation!KK402-Futures!$D$1 -> 20.22032999 | KL17: =Simulation!KL402-Futures!$D$1 -> 33.88517675 | KM17: =Simulation!KM402-Futures!$D$1 -> 46.615604 | KN17: =Simulation!KN402-Futures!$D$1 -> 68.28682856 | KO17: =Simulation!KO402-Futures!$D$1 -> 48.50614184 | KP17: =Simulation!KP402-Futures!$D$1 -> 69.12072102 | KQ17: =Simulation!KQ402-Futures!$D$1 -> 64.87542964 | KR17: =Simulation!KR402-Futures!$D$1 -> 98.58422279 | KS17: =Simulation!KS402-Futures!$D$1 -> 73.24812221 | KT17: =Simulation!KT402-Futures!$D$1 -> 90.78742037 | KU17: =Simulation!KU402-Futures!$D$1 -> 89.90429991 | KV17: =Simulation!KV402-Futures!$D$1 -> 108.3455908 | KW17: =Simulation!KW402-Futures!$D$1 -> 121.3494837 | KX17: =Simulation!KX402-Futures!$D$1 -> 137.2790622 | KY17: =Simulation!KY402-Futures!$D$1 -> 144.8790427 | KZ17: =Simulation!KZ402-Futures!$D$1 -> 135.3239465 | LA17: =Simulation!LA402-Futures!$D$1 -> 133.1931604 | LB17: =Simulation!LB402-Futures!$D$1 -> 126.9632422 | LC17: =Simulation!LC402-Futures!$D$1 -> 137.734707 | LD17: =Simulation!LD402-Futures!$D$1 -> 157.4377763 | LE17: =Simulation!LE402-Futures!$D$1 -> 143.3782745 | LF17: =Simulation!LF402-Futures!$D$1 -> 128.1235164 | LG17: =Simulation!LG402-Futures!$D$1 -> 126.931367 | LH17: =Simulation!LH402-Futures!$D$1 -> 116.2683954 | LI17: =Simulation!LI402-Futures!$D$1 -> 92.52044716 | LJ17: =Simulation!LJ402-Futures!$D$1 -> 67.04590737 | LK17: =Simulation!LK402-Futures!$D$1 -> 54.62932596 | LL17: =Simulation!LL402-Futures!$D$1 -> 45.89137715 | LM17: =Simulation!LM402-Futures!$D$1 -> 28.01441372 | LN17: =Simulation!LN402-Futures!$D$1 -> 53.46047027 | LO17: =Simulation!LO402-Futures!$D$1 -> 52.5245796 | LP17: =Simulation!LP402-Futures!$D$1 -> 69.44951138 | LQ17: =Simulation!LQ402-Futures!$D$1 -> 69.86113896 | LR17: =Simulation!LR402-Futures!$D$1 -> 70.7340282 | LS17: =Simulation!LS402-Futures!$D$1 -> 88.64711624 | LT17: =Simulation!LT402-Futures!$D$1 -> 110.7893915 | LU17: =Simulation!LU402-Futures!$D$1 -> 115.2905866 | LV17: =Simulation!LV402-Futures!$D$1 -> 104.0472356 | LW17: =Simulation!LW402-Futures!$D$1 -> 144.4949202 | LX17: =Simulation!LX402-Futures!$D$1 -> 121.1092584 | LY17: =Simulation!LY402-Futures!$D$1 -> 108.0635999 | LZ17: =Simulation!LZ402-Futures!$D$1 -> 102.1500228 | MA17: =Simulation!MA402-Futures!$D$1 -> 121.7072959 | MB17: =Simulation!MB402-Futures!$D$1 -> 119.4705739 | MC17: =Simulation!MC402-Futures!$D$1 -> 129.5528219 | MD17: =Simulation!MD402-Futures!$D$1 -> 117.5750991 | ME17: =Simulation!ME402-Futures!$D$1 -> 105.9446177 | MF17: =Simulation!MF402-Futures!$D$1 -> 92.92545274 | MG17: =Simulation!MG402-Futures!$D$1 -> 80.55813969 | MH17: =Simulation!MH402-Futures!$D$1 -> 45.20315911 | MI17: =Simulation!MI402-Futures!$D$1 -> 57.49698735 | MJ17: =Simulation!MJ402-Futures!$D$1 -> 67.43248984 | MK17: =Simulation!MK402-Futures!$D$1 -> 72.24489553 | ML17: =Simulation!ML402-Futures!$D$1 -> 71.1277373 | MM17: =Simulation!MM402-Futures!$D$1 -> 48.19883352 | MN17: =Simulation!MN402-Futures!$D$1 -> 32.39681844 | MO17: =Simulation!MO402-Futures!$D$1 -> 37.32856943 | MP17: =Simulation!MP402-Futures!$D$1 -> 36.14398935 | MQ17: =Simulation!MQ402-Futures!$D$1 -> 29.30190498 | MR17: =Simulation!MR402-Futures!$D$1 -> 30.43297804 | MS17: =Simulation!MS402-Futures!$D$1 -> 35.76968861 | MT17: =Simulation!MT402-Futures!$D$1 -> 30.70773356 | MU17: =Simulation!MU402-Futures!$D$1 -> 24.22284764 | MV17: =Simulation!MV402-Futures!$D$1 -> 14.73716726 | MW17: =Simulation!MW402-Futures!$D$1 -> 19.03236059 | MX17: =Simulation!MX402-Futures!$D$1 -> -13.66439122 | MY17: =Simulation!MY402-Futures!$D$1 -> -42.05580571 | MZ17: =Simulation!MZ402-Futures!$D$1 -> -2020 | NA17: =Simulation!NA402-Futures!$D$1 -> -2020 | NB17: =Simulation!NB402-Futures!$D$1 -> -2012
A18: 12 | B18: =Simulation!B403-Futures!$D$1 -> -13.63967852 | C18: =Simulation!C403-Futures!$D$1 -> -17.94509804 | D18: =Simulation!D403-Futures!$D$1 -> -25.6740111 | E18: =Simulation!E403-Futures!$D$1 -> -11.954463 | F18: =Simulation!F403-Futures!$D$1 -> -30.94893964 | G18: =Simulation!G403-Futures!$D$1 -> -16.54956453 | H18: =Simulation!H403-Futures!$D$1 -> -18.74858731 | I18: =Simulation!I403-Futures!$D$1 -> -17.92154699 | J18: =Simulation!J403-Futures!$D$1 -> -38.51412739 | K18: =Simulation!K403-Futures!$D$1 -> -9.011400589 | L18: =Simulation!L403-Futures!$D$1 -> 13.6285864 | M18: =Simulation!M403-Futures!$D$1 -> 14.65640093 | N18: =Simulation!N403-Futures!$D$1 -> -1.785292727 | O18: =Simulation!O403-Futures!$D$1 -> -10.21828472 | P18: =Simulation!P403-Futures!$D$1 -> 4.67209017 | Q18: =Simulation!Q403-Futures!$D$1 -> -7.042184749 | R18: =Simulation!R403-Futures!$D$1 -> -50.78633757 | S18: =Simulation!S403-Futures!$D$1 -> -11.50891243 | T18: =Simulation!T403-Futures!$D$1 -> -24.653454 | U18: =Simulation!U403-Futures!$D$1 -> -22.33348281 | V18: =Simulation!V403-Futures!$D$1 -> 0.04454220416 | W18: =Simulation!W403-Futures!$D$1 -> -4.777842067 | X18: =Simulation!X403-Futures!$D$1 -> -7.907021882 | Y18: =Simulation!Y403-Futures!$D$1 -> -23.42131616 | Z18: =Simulation!Z403-Futures!$D$1 -> -38.03596689 | AA18: =Simulation!AA403-Futures!$D$1 -> -64.93487151 | AB18: =Simulation!AB403-Futures!$D$1 -> -73.39371085 | AC18: =Simulation!AC403-Futures!$D$1 -> -81.55788195 | AD18: =Simulation!AD403-Futures!$D$1 -> -78.83546281 | AE18: =Simulation!AE403-Futures!$D$1 -> -81.7446399 | AF18: =Simulation!AF403-Futures!$D$1 -> -72.31169582 | AG18: =Simulation!AG403-Futures!$D$1 -> -28.4013774 | AH18: =Simulation!AH403-Futures!$D$1 -> -38.17226572 | AI18: =Simulation!AI403-Futures!$D$1 -> -20.65768125 | AJ18: =Simulation!AJ403-Futures!$D$1 -> -41.70832747 | AK18: =Simulation!AK403-Futures!$D$1 -> -32.40178307 | AL18: =Simulation!AL403-Futures!$D$1 -> -16.10463664 | AM18: =Simulation!AM403-Futures!$D$1 -> 17.49743127 | AN18: =Simulation!AN403-Futures!$D$1 -> 15.44226527 | AO18: =Simulation!AO403-Futures!$D$1 -> -23.59713145 | AP18: =Simulation!AP403-Futures!$D$1 -> -14.70815271 | AQ18: =Simulation!AQ403-Futures!$D$1 -> -17.18842852 | AR18: =Simulation!AR403-Futures!$D$1 -> 1.471439195 | AS18: =Simulation!AS403-Futures!$D$1 -> 22.79525092 | AT18: =Simulation!AT403-Futures!$D$1 -> 14.54912512 | AU18: =Simulation!AU403-Futures!$D$1 -> 25.54547009 | AV18: =Simulation!AV403-Futures!$D$1 -> 40.6394703 | AW18: =Simulation!AW403-Futures!$D$1 -> 30.40763931 | AX18: =Simulation!AX403-Futures!$D$1 -> 47.84030974 | AY18: =Simulation!AY403-Futures!$D$1 -> 55.36609605 | AZ18: =Simulation!AZ403-Futures!$D$1 -> 75.21406383 | BA18: =Simulation!BA403-Futures!$D$1 -> 66.69683593 | BB18: =Simulation!BB403-Futures!$D$1 -> 35.66624171 | BC18: =Simulation!BC403-Futures!$D$1 -> 10.02739409 | BD18: =Simulation!BD403-Futures!$D$1 -> -22.75598008 | BE18: =Simulation!BE403-Futures!$D$1 -> -17.28583023 | BF18: =Simulation!BF403-Futures!$D$1 -> -59.15831407 | BG18: =Simulation!BG403-Futures!$D$1 -> -50.07655355 | BH18: =Simulation!BH403-Futures!$D$1 -> -75.63348012 | BI18: =Simulation!BI403-Futures!$D$1 -> -53.40327757 | BJ18: =Simulation!BJ403-Futures!$D$1 -> -43.41615195 | BK18: =Simulation!BK403-Futures!$D$1 -> -10.30555903 | BL18: =Simulation!BL403-Futures!$D$1 -> -21.00735688 | BM18: =Simulation!BM403-Futures!$D$1 -> -40.18582204 | BN18: =Simulation!BN403-Futures!$D$1 -> -33.95278277 | BO18: =Simulation!BO403-Futures!$D$1 -> -69.41595128 | BP18: =Simulation!BP403-Futures!$D$1 -> -88.84914956 | BQ18: =Simulation!BQ403-Futures!$D$1 -> -93.61902011 | BR18: =Simulation!BR403-Futures!$D$1 -> -86.83381311 | BS18: =Simulation!BS403-Futures!$D$1 -> -67.66230422 | BT18: =Simulation!BT403-Futures!$D$1 -> -53.5904204 | BU18: =Simulation!BU403-Futures!$D$1 -> -47.90126284 | BV18: =Simulation!BV403-Futures!$D$1 -> -51.7020067 | BW18: =Simulation!BW403-Futures!$D$1 -> -51.53910412 | BX18: =Simulation!BX403-Futures!$D$1 -> -87.27687972 | BY18: =Simulation!BY403-Futures!$D$1 -> -87.93855563 | BZ18: =Simulation!BZ403-Futures!$D$1 -> -78.60813744 | CA18: =Simulation!CA403-Futures!$D$1 -> -82.67512516 | CB18: =Simulation!CB403-Futures!$D$1 -> -74.48332181 | CC18: =Simulation!CC403-Futures!$D$1 -> -82.91245255 | CD18: =Simulation!CD403-Futures!$D$1 -> -79.61059504 | CE18: =Simulation!CE403-Futures!$D$1 -> -81.3647279 | CF18: =Simulation!CF403-Futures!$D$1 -> -93.62986506 | CG18: =Simulation!CG403-Futures!$D$1 -> -93.33370952 | CH18: =Simulation!CH403-Futures!$D$1 -> -81.31345119 | CI18: =Simulation!CI403-Futures!$D$1 -> -73.68224274 | CJ18: =Simulation!CJ403-Futures!$D$1 -> -94.72654068 | CK18: =Simulation!CK403-Futures!$D$1 -> -78.40883514 | CL18: =Simulation!CL403-Futures!$D$1 -> -94.50861142 | CM18: =Simulation!CM403-Futures!$D$1 -> -94.13535058 | CN18: =Simulation!CN403-Futures!$D$1 -> -98.35055774 | CO18: =Simulation!CO403-Futures!$D$1 -> -97.54024788 | CP18: =Simulation!CP403-Futures!$D$1 -> -76.5049205 | CQ18: =Simulation!CQ403-Futures!$D$1 -> -76.40242097 | CR18: =Simulation!CR403-Futures!$D$1 -> -90.32973782 | CS18: =Simulation!CS403-Futures!$D$1 -> -56.78414356 | CT18: =Simulation!CT403-Futures!$D$1 -> -50.24780905 | CU18: =Simulation!CU403-Futures!$D$1 -> -37.49255869 | CV18: =Simulation!CV403-Futures!$D$1 -> -62.6480996 | CW18: =Simulation!CW403-Futures!$D$1 -> -58.36760762 | CX18: =Simulation!CX403-Futures!$D$1 -> -22.38228383 | CY18: =Simulation!CY403-Futures!$D$1 -> -5.410461228 | CZ18: =Simulation!CZ403-Futures!$D$1 -> 27.27917869 | DA18: =Simulation!DA403-Futures!$D$1 -> 31.04248309 | DB18: =Simulation!DB403-Futures!$D$1 -> 49.94205986 | DC18: =Simulation!DC403-Futures!$D$1 -> 71.18259503 | DD18: =Simulation!DD403-Futures!$D$1 -> 47.65167686 | DE18: =Simulation!DE403-Futures!$D$1 -> 40.07274026 | DF18: =Simulation!DF403-Futures!$D$1 -> 38.27816994 | DG18: =Simulation!DG403-Futures!$D$1 -> 56.43271348 | DH18: =Simulation!DH403-Futures!$D$1 -> 45.66080837 | DI18: =Simulation!DI403-Futures!$D$1 -> 58.38451866 | DJ18: =Simulation!DJ403-Futures!$D$1 -> 30.02204744 | DK18: =Simulation!DK403-Futures!$D$1 -> 48.23114905 | DL18: =Simulation!DL403-Futures!$D$1 -> 59.63061675 | DM18: =Simulation!DM403-Futures!$D$1 -> 80.32841182 | DN18: =Simulation!DN403-Futures!$D$1 -> 58.65249155 | DO18: =Simulation!DO403-Futures!$D$1 -> 49.10097387 | DP18: =Simulation!DP403-Futures!$D$1 -> 18.08676264 | DQ18: =Simulation!DQ403-Futures!$D$1 -> 28.6629779 | DR18: =Simulation!DR403-Futures!$D$1 -> 42.93685251 | DS18: =Simulation!DS403-Futures!$D$1 -> 68.07038696 | DT18: =Simulation!DT403-Futures!$D$1 -> 48.01716706 | DU18: =Simulation!DU403-Futures!$D$1 -> 73.44481493 | DV18: =Simulation!DV403-Futures!$D$1 -> 67.21557205 | DW18: =Simulation!DW403-Futures!$D$1 -> 62.88951311 | DX18: =Simulation!DX403-Futures!$D$1 -> 93.14097153 | DY18: =Simulation!DY403-Futures!$D$1 -> 68.88904084 | DZ18: =Simulation!DZ403-Futures!$D$1 -> 67.46089831 | EA18: =Simulation!EA403-Futures!$D$1 -> 65.15730736 | EB18: =Simulation!EB403-Futures!$D$1 -> 44.57173462 | EC18: =Simulation!EC403-Futures!$D$1 -> 36.85382795 | ED18: =Simulation!ED403-Futures!$D$1 -> 81.99036924 | EE18: =Simulation!EE403-Futures!$D$1 -> 98.12972789 | EF18: =Simulation!EF403-Futures!$D$1 -> 111.4084343 | EG18: =Simulation!EG403-Futures!$D$1 -> 146.2378141 | EH18: =Simulation!EH403-Futures!$D$1 -> 133.8257336 | EI18: =Simulation!EI403-Futures!$D$1 -> 138.4280452 | EJ18: =Simulation!EJ403-Futures!$D$1 -> 139.1607511 | EK18: =Simulation!EK403-Futures!$D$1 -> 121.8243669 | EL18: =Simulation!EL403-Futures!$D$1 -> 129.1336522 | EM18: =Simulation!EM403-Futures!$D$1 -> 102.7229229 | EN18: =Simulation!EN403-Futures!$D$1 -> 95.80642224 | EO18: =Simulation!EO403-Futures!$D$1 -> 73.04582127 | EP18: =Simulation!EP403-Futures!$D$1 -> 66.76273721 | EQ18: =Simulation!EQ403-Futures!$D$1 -> 98.85217385 | ER18: =Simulation!ER403-Futures!$D$1 -> 95.60361088 | ES18: =Simulation!ES403-Futures!$D$1 -> 136.4583125 | ET18: =Simulation!ET403-Futures!$D$1 -> 133.4598744 | EU18: =Simulation!EU403-Futures!$D$1 -> 101.3969409 | EV18: =Simulation!EV403-Futures!$D$1 -> 128.8052001 | EW18: =Simulation!EW403-Futures!$D$1 -> 129.1161481 | EX18: =Simulation!EX403-Futures!$D$1 -> 137.8920509 | EY18: =Simulation!EY403-Futures!$D$1 -> 134.0286764 | EZ18: =Simulation!EZ403-Futures!$D$1 -> 107.5326654 | FA18: =Simulation!FA403-Futures!$D$1 -> 76.42395206 | FB18: =Simulation!FB403-Futures!$D$1 -> 67.40147938 | FC18: =Simulation!FC403-Futures!$D$1 -> 51.87781703 | FD18: =Simulation!FD403-Futures!$D$1 -> 51.81093271 | FE18: =Simulation!FE403-Futures!$D$1 -> 32.44996192 | FF18: =Simulation!FF403-Futures!$D$1 -> 45.84633392 | FG18: =Simulation!FG403-Futures!$D$1 -> 9.527421068 | FH18: =Simulation!FH403-Futures!$D$1 -> 6.299882707 | FI18: =Simulation!FI403-Futures!$D$1 -> 18.78282883 | FJ18: =Simulation!FJ403-Futures!$D$1 -> -10.48489616 | FK18: =Simulation!FK403-Futures!$D$1 -> 0.9977018603 | FL18: =Simulation!FL403-Futures!$D$1 -> -4.690296941 | FM18: =Simulation!FM403-Futures!$D$1 -> 13.84179474 | FN18: =Simulation!FN403-Futures!$D$1 -> 11.12395934 | FO18: =Simulation!FO403-Futures!$D$1 -> 15.71642756 | FP18: =Simulation!FP403-Futures!$D$1 -> 15.66267598 | FQ18: =Simulation!FQ403-Futures!$D$1 -> 28.37204243 | FR18: =Simulation!FR403-Futures!$D$1 -> 25.90963036 | FS18: =Simulation!FS403-Futures!$D$1 -> 2.247784859 | FT18: =Simulation!FT403-Futures!$D$1 -> -16.9121591 | FU18: =Simulation!FU403-Futures!$D$1 -> -37.43282392 | FV18: =Simulation!FV403-Futures!$D$1 -> -51.16630941 | FW18: =Simulation!FW403-Futures!$D$1 -> -79.377914 | FX18: =Simulation!FX403-Futures!$D$1 -> -96.40001406 | FY18: =Simulation!FY403-Futures!$D$1 -> -85.62696923 | FZ18: =Simulation!FZ403-Futures!$D$1 -> -94.12898547 | GA18: =Simulation!GA403-Futures!$D$1 -> -97.21838024 | GB18: =Simulation!GB403-Futures!$D$1 -> -117.1737844 | GC18: =Simulation!GC403-Futures!$D$1 -> -104.1006027 | GD18: =Simulation!GD403-Futures!$D$1 -> -108.0438857 | GE18: =Simulation!GE403-Futures!$D$1 -> -119.9439732 | GF18: =Simulation!GF403-Futures!$D$1 -> -115.4253897 | GG18: =Simulation!GG403-Futures!$D$1 -> -101.0920208 | GH18: =Simulation!GH403-Futures!$D$1 -> -83.33097499 | GI18: =Simulation!GI403-Futures!$D$1 -> -68.59520913 | GJ18: =Simulation!GJ403-Futures!$D$1 -> -57.29477326 | GK18: =Simulation!GK403-Futures!$D$1 -> -51.04537131 | GL18: =Simulation!GL403-Futures!$D$1 -> -53.85756816 | GM18: =Simulation!GM403-Futures!$D$1 -> -52.15037395 | GN18: =Simulation!GN403-Futures!$D$1 -> -40.44625021 | GO18: =Simulation!GO403-Futures!$D$1 -> -29.6433781 | GP18: =Simulation!GP403-Futures!$D$1 -> -29.40217038 | GQ18: =Simulation!GQ403-Futures!$D$1 -> -20.09625397 | GR18: =Simulation!GR403-Futures!$D$1 -> -8.107164656 | GS18: =Simulation!GS403-Futures!$D$1 -> 4.912939178 | GT18: =Simulation!GT403-Futures!$D$1 -> 25.80981496 | GU18: =Simulation!GU403-Futures!$D$1 -> 6.432287291 | GV18: =Simulation!GV403-Futures!$D$1 -> -26.24094515 | GW18: =Simulation!GW403-Futures!$D$1 -> -29.26332569 | GX18: =Simulation!GX403-Futures!$D$1 -> -46.93375131 | GY18: =Simulation!GY403-Futures!$D$1 -> -58.71407913 | GZ18: =Simulation!GZ403-Futures!$D$1 -> -48.41107981 | HA18: =Simulation!HA403-Futures!$D$1 -> -84.19682492 | HB18: =Simulation!HB403-Futures!$D$1 -> -55.68235198 | HC18: =Simulation!HC403-Futures!$D$1 -> -75.25154424 | HD18: =Simulation!HD403-Futures!$D$1 -> -51.27188412 | HE18: =Simulation!HE403-Futures!$D$1 -> -33.83813927 | HF18: =Simulation!HF403-Futures!$D$1 -> -16.42033807 | HG18: =Simulation!HG403-Futures!$D$1 -> -17.47036059 | HH18: =Simulation!HH403-Futures!$D$1 -> -36.64742061 | HI18: =Simulation!HI403-Futures!$D$1 -> -39.88912396 | HJ18: =Simulation!HJ403-Futures!$D$1 -> -45.39199961 | HK18: =Simulation!HK403-Futures!$D$1 -> -45.30527062 | HL18: =Simulation!HL403-Futures!$D$1 -> -37.34051308 | HM18: =Simulation!HM403-Futures!$D$1 -> -35.33923309 | HN18: =Simulation!HN403-Futures!$D$1 -> -20.71553384 | HO18: =Simulation!HO403-Futures!$D$1 -> -45.16887312 | HP18: =Simulation!HP403-Futures!$D$1 -> -48.65332944 | HQ18: =Simulation!HQ403-Futures!$D$1 -> -41.51618598 | HR18: =Simulation!HR403-Futures!$D$1 -> -77.93496925 | HS18: =Simulation!HS403-Futures!$D$1 -> -84.69450812 | HT18: =Simulation!HT403-Futures!$D$1 -> -93.03555641 | HU18: =Simulation!HU403-Futures!$D$1 -> -98.79646271 | HV18: =Simulation!HV403-Futures!$D$1 -> -105.2286347 | HW18: =Simulation!HW403-Futures!$D$1 -> -131.6831932 | HX18: =Simulation!HX403-Futures!$D$1 -> -134.5031207 | HY18: =Simulation!HY403-Futures!$D$1 -> -111.7570906 | HZ18: =Simulation!HZ403-Futures!$D$1 -> -113.2199883 | IA18: =Simulation!IA403-Futures!$D$1 -> -111.2516836 | IB18: =Simulation!IB403-Futures!$D$1 -> -138.4136843 | IC18: =Simulation!IC403-Futures!$D$1 -> -148.1790644 | ID18: =Simulation!ID403-Futures!$D$1 -> -163.6831275 | IE18: =Simulation!IE403-Futures!$D$1 -> -139.3811352 | IF18: =Simulation!IF403-Futures!$D$1 -> -133.9048278 | IG18: =Simulation!IG403-Futures!$D$1 -> -135.2487011 | IH18: =Simulation!IH403-Futures!$D$1 -> -152.7515483 | II18: =Simulation!II403-Futures!$D$1 -> -151.9417918 | IJ18: =Simulation!IJ403-Futures!$D$1 -> -150.5583927 | IK18: =Simulation!IK403-Futures!$D$1 -> -132.5194816 | IL18: =Simulation!IL403-Futures!$D$1 -> -152.65265 | IM18: =Simulation!IM403-Futures!$D$1 -> -172.1566664 | IN18: =Simulation!IN403-Futures!$D$1 -> -179.4412185 | IO18: =Simulation!IO403-Futures!$D$1 -> -167.9329902 | IP18: =Simulation!IP403-Futures!$D$1 -> -173.2292102 | IQ18: =Simulation!IQ403-Futures!$D$1 -> -148.8711092 | IR18: =Simulation!IR403-Futures!$D$1 -> -133.5959367 | IS18: =Simulation!IS403-Futures!$D$1 -> -108.4523062 | IT18: =Simulation!IT403-Futures!$D$1 -> -90.81736424 | IU18: =Simulation!IU403-Futures!$D$1 -> -109.1398293 | IV18: =Simulation!IV403-Futures!$D$1 -> -121.0215512 | IW18: =Simulation!IW403-Futures!$D$1 -> -79.93642836 | IX18: =Simulation!IX403-Futures!$D$1 -> -96.99424212 | IY18: =Simulation!IY403-Futures!$D$1 -> -75.0812452 | IZ18: =Simulation!IZ403-Futures!$D$1 -> -60.09520123 | JA18: =Simulation!JA403-Futures!$D$1 -> -31.40727954 | JB18: =Simulation!JB403-Futures!$D$1 -> -4.92828583 | JC18: =Simulation!JC403-Futures!$D$1 -> -48.91330131 | JD18: =Simulation!JD403-Futures!$D$1 -> -47.82664267 | JE18: =Simulation!JE403-Futures!$D$1 -> -46.86143117 | JF18: =Simulation!JF403-Futures!$D$1 -> -59.84222587 | JG18: =Simulation!JG403-Futures!$D$1 -> -58.35588077 | JH18: =Simulation!JH403-Futures!$D$1 -> -46.18845432 | JI18: =Simulation!JI403-Futures!$D$1 -> -39.54876452 | JJ18: =Simulation!JJ403-Futures!$D$1 -> -42.12635062 | JK18: =Simulation!JK403-Futures!$D$1 -> -27.98942183 | JL18: =Simulation!JL403-Futures!$D$1 -> -29.8599668 | JM18: =Simulation!JM403-Futures!$D$1 -> 10.6960518 | JN18: =Simulation!JN403-Futures!$D$1 -> -22.45246508 | JO18: =Simulation!JO403-Futures!$D$1 -> 1.483494232 | JP18: =Simulation!JP403-Futures!$D$1 -> -35.12248836 | JQ18: =Simulation!JQ403-Futures!$D$1 -> -48.9776241 | JR18: =Simulation!JR403-Futures!$D$1 -> -34.91006003 | JS18: =Simulation!JS403-Futures!$D$1 -> -71.67723412 | JT18: =Simulation!JT403-Futures!$D$1 -> -67.54370249 | JU18: =Simulation!JU403-Futures!$D$1 -> -68.12234829 | JV18: =Simulation!JV403-Futures!$D$1 -> -87.90179428 | JW18: =Simulation!JW403-Futures!$D$1 -> -90.71475516 | JX18: =Simulation!JX403-Futures!$D$1 -> -85.27350173 | JY18: =Simulation!JY403-Futures!$D$1 -> -113.8513398 | JZ18: =Simulation!JZ403-Futures!$D$1 -> -135.0892275 | KA18: =Simulation!KA403-Futures!$D$1 -> -127.7965016 | KB18: =Simulation!KB403-Futures!$D$1 -> -127.9608576 | KC18: =Simulation!KC403-Futures!$D$1 -> -142.9065824 | KD18: =Simulation!KD403-Futures!$D$1 -> -167.740063 | KE18: =Simulation!KE403-Futures!$D$1 -> -166.3277171 | KF18: =Simulation!KF403-Futures!$D$1 -> -157.3975823 | KG18: =Simulation!KG403-Futures!$D$1 -> -164.0838848 | KH18: =Simulation!KH403-Futures!$D$1 -> -189.7252968 | KI18: =Simulation!KI403-Futures!$D$1 -> -194.7140006 | KJ18: =Simulation!KJ403-Futures!$D$1 -> -198.6731093 | KK18: =Simulation!KK403-Futures!$D$1 -> -195.1934661 | KL18: =Simulation!KL403-Futures!$D$1 -> -166.6052103 | KM18: =Simulation!KM403-Futures!$D$1 -> -179.6824202 | KN18: =Simulation!KN403-Futures!$D$1 -> -190.8344875 | KO18: =Simulation!KO403-Futures!$D$1 -> -219.3447385 | KP18: =Simulation!KP403-Futures!$D$1 -> -225.9429354 | KQ18: =Simulation!KQ403-Futures!$D$1 -> -186.2987321 | KR18: =Simulation!KR403-Futures!$D$1 -> -183.6134223 | KS18: =Simulation!KS403-Futures!$D$1 -> -176.6108884 | KT18: =Simulation!KT403-Futures!$D$1 -> -147.3181157 | KU18: =Simulation!KU403-Futures!$D$1 -> -141.4922169 | KV18: =Simulation!KV403-Futures!$D$1 -> -102.8699619 | KW18: =Simulation!KW403-Futures!$D$1 -> -95.26436473 | KX18: =Simulation!KX403-Futures!$D$1 -> -94.9017614 | KY18: =Simulation!KY403-Futures!$D$1 -> -90.89196068 | KZ18: =Simulation!KZ403-Futures!$D$1 -> -103.550282 | LA18: =Simulation!LA403-Futures!$D$1 -> -102.3561014 | LB18: =Simulation!LB403-Futures!$D$1 -> -68.37653133 | LC18: =Simulation!LC403-Futures!$D$1 -> -54.56991111 | LD18: =Simulation!LD403-Futures!$D$1 -> -62.45583366 | LE18: =Simulation!LE403-Futures!$D$1 -> -61.08007397 | LF18: =Simulation!LF403-Futures!$D$1 -> -62.09681032 | LG18: =Simulation!LG403-Futures!$D$1 -> -44.99619737 | LH18: =Simulation!LH403-Futures!$D$1 -> -63.33033358 | LI18: =Simulation!LI403-Futures!$D$1 -> -82.23298861 | LJ18: =Simulation!LJ403-Futures!$D$1 -> -84.69667887 | LK18: =Simulation!LK403-Futures!$D$1 -> -77.03086277 | LL18: =Simulation!LL403-Futures!$D$1 -> -72.80256367 | LM18: =Simulation!LM403-Futures!$D$1 -> -74.09859979 | LN18: =Simulation!LN403-Futures!$D$1 -> -73.53660036 | LO18: =Simulation!LO403-Futures!$D$1 -> -61.39065705 | LP18: =Simulation!LP403-Futures!$D$1 -> -58.19169016 | LQ18: =Simulation!LQ403-Futures!$D$1 -> -48.53006301 | LR18: =Simulation!LR403-Futures!$D$1 -> -34.74621801 | LS18: =Simulation!LS403-Futures!$D$1 -> -21.31553689 | LT18: =Simulation!LT403-Futures!$D$1 -> -36.98006316 | LU18: =Simulation!LU403-Futures!$D$1 -> -15.42686753 | LV18: =Simulation!LV403-Futures!$D$1 -> -12.96244967 | LW18: =Simulation!LW403-Futures!$D$1 -> -22.63512698 | LX18: =Simulation!LX403-Futures!$D$1 -> -6.34707473 | LY18: =Simulation!LY403-Futures!$D$1 -> -4.493057516 | LZ18: =Simulation!LZ403-Futures!$D$1 -> -21.97847121 | MA18: =Simulation!MA403-Futures!$D$1 -> -39.11204208 | MB18: =Simulation!MB403-Futures!$D$1 -> -31.07438358 | MC18: =Simulation!MC403-Futures!$D$1 -> -27.53275094 | MD18: =Simulation!MD403-Futures!$D$1 -> -19.220821 | ME18: =Simulation!ME403-Futures!$D$1 -> -15.49854693 | MF18: =Simulation!MF403-Futures!$D$1 -> 2.75695883 | MG18: =Simulation!MG403-Futures!$D$1 -> -6.544586118 | MH18: =Simulation!MH403-Futures!$D$1 -> 16.06452445 | MI18: =Simulation!MI403-Futures!$D$1 -> 9.05796851 | MJ18: =Simulation!MJ403-Futures!$D$1 -> -6.758380527 | MK18: =Simulation!MK403-Futures!$D$1 -> 5.4435816 | ML18: =Simulation!ML403-Futures!$D$1 -> -18.10063435 | MM18: =Simulation!MM403-Futures!$D$1 -> -23.25471081 | MN18: =Simulation!MN403-Futures!$D$1 -> -18.74607967 | MO18: =Simulation!MO403-Futures!$D$1 -> 1.281850342 | MP18: =Simulation!MP403-Futures!$D$1 -> 5.760308384 | MQ18: =Simulation!MQ403-Futures!$D$1 -> 14.82733233 | MR18: =Simulation!MR403-Futures!$D$1 -> 4.540409479 | MS18: =Simulation!MS403-Futures!$D$1 -> -6.390730239 | MT18: =Simulation!MT403-Futures!$D$1 -> -0.1118500243 | MU18: =Simulation!MU403-Futures!$D$1 -> -12.07205775 | MV18: =Simulation!MV403-Futures!$D$1 -> -40.26366128 | MW18: =Simulation!MW403-Futures!$D$1 -> -5.260371319 | MX18: =Simulation!MX403-Futures!$D$1 -> -13.80626874 | MY18: =Simulation!MY403-Futures!$D$1 -> 8.326672391 | MZ18: =Simulation!MZ403-Futures!$D$1 -> -2020 | NA18: =Simulation!NA403-Futures!$D$1 -> -2020 | NB18: =Simulation!NB403-Futures!$D$1 -> -2012
A19: 13 | B19: =Simulation!B404-Futures!$D$1 -> 103.034393 | C19: =Simulation!C404-Futures!$D$1 -> 113.7282326 | D19: =Simulation!D404-Futures!$D$1 -> 117.295166 | E19: =Simulation!E404-Futures!$D$1 -> 112.6486589 | F19: =Simulation!F404-Futures!$D$1 -> 136.4126268 | G19: =Simulation!G404-Futures!$D$1 -> 151.9296725 | H19: =Simulation!H404-Futures!$D$1 -> 121.5058299 | I19: =Simulation!I404-Futures!$D$1 -> 111.9675099 | J19: =Simulation!J404-Futures!$D$1 -> 89.82671601 | K19: =Simulation!K404-Futures!$D$1 -> 79.68098672 | L19: =Simulation!L404-Futures!$D$1 -> 56.52554992 | M19: =Simulation!M404-Futures!$D$1 -> 72.39262276 | N19: =Simulation!N404-Futures!$D$1 -> 55.95581576 | O19: =Simulation!O404-Futures!$D$1 -> 51.44266121 | P19: =Simulation!P404-Futures!$D$1 -> 77.67858103 | Q19: =Simulation!Q404-Futures!$D$1 -> 82.62069434 | R19: =Simulation!R404-Futures!$D$1 -> 75.04677307 | S19: =Simulation!S404-Futures!$D$1 -> 82.87221219 | T19: =Simulation!T404-Futures!$D$1 -> 82.51387263 | U19: =Simulation!U404-Futures!$D$1 -> 105.0125453 | V19: =Simulation!V404-Futures!$D$1 -> 101.1132942 | W19: =Simulation!W404-Futures!$D$1 -> 73.0854673 | X19: =Simulation!X404-Futures!$D$1 -> 95.70111233 | Y19: =Simulation!Y404-Futures!$D$1 -> 100.2993214 | Z19: =Simulation!Z404-Futures!$D$1 -> 88.53915809 | AA19: =Simulation!AA404-Futures!$D$1 -> 82.7520011 | AB19: =Simulation!AB404-Futures!$D$1 -> 77.87405435 | AC19: =Simulation!AC404-Futures!$D$1 -> 91.78741062 | AD19: =Simulation!AD404-Futures!$D$1 -> 87.04489336 | AE19: =Simulation!AE404-Futures!$D$1 -> 55.43770106 | AF19: =Simulation!AF404-Futures!$D$1 -> 56.51285582 | AG19: =Simulation!AG404-Futures!$D$1 -> 21.88804284 | AH19: =Simulation!AH404-Futures!$D$1 -> 24.45694885 | AI19: =Simulation!AI404-Futures!$D$1 -> 0.329637004 | AJ19: =Simulation!AJ404-Futures!$D$1 -> -26.0595578 | AK19: =Simulation!AK404-Futures!$D$1 -> -13.98388786 | AL19: =Simulation!AL404-Futures!$D$1 -> 18.67664233 | AM19: =Simulation!AM404-Futures!$D$1 -> 49.52458806 | AN19: =Simulation!AN404-Futures!$D$1 -> 51.59470558 | AO19: =Simulation!AO404-Futures!$D$1 -> 28.21258005 | AP19: =Simulation!AP404-Futures!$D$1 -> 29.1856992 | AQ19: =Simulation!AQ404-Futures!$D$1 -> 23.11689353 | AR19: =Simulation!AR404-Futures!$D$1 -> 18.23141546 | AS19: =Simulation!AS404-Futures!$D$1 -> 43.37011885 | AT19: =Simulation!AT404-Futures!$D$1 -> 22.24279271 | AU19: =Simulation!AU404-Futures!$D$1 -> 52.21316265 | AV19: =Simulation!AV404-Futures!$D$1 -> 39.33611166 | AW19: =Simulation!AW404-Futures!$D$1 -> 52.28026273 | AX19: =Simulation!AX404-Futures!$D$1 -> 65.0332638 | AY19: =Simulation!AY404-Futures!$D$1 -> 45.35077209 | AZ19: =Simulation!AZ404-Futures!$D$1 -> 37.608978 | BA19: =Simulation!BA404-Futures!$D$1 -> -7.63642703 | BB19: =Simulation!BB404-Futures!$D$1 -> 4.897155924 | BC19: =Simulation!BC404-Futures!$D$1 -> 20.7119787 | BD19: =Simulation!BD404-Futures!$D$1 -> 49.32784232 | BE19: =Simulation!BE404-Futures!$D$1 -> 51.69868863 | BF19: =Simulation!BF404-Futures!$D$1 -> 55.41179965 | BG19: =Simulation!BG404-Futures!$D$1 -> 80.63442355 | BH19: =Simulation!BH404-Futures!$D$1 -> 52.11184191 | BI19: =Simulation!BI404-Futures!$D$1 -> 36.85048685 | BJ19: =Simulation!BJ404-Futures!$D$1 -> 27.60703482 | BK19: =Simulation!BK404-Futures!$D$1 -> 16.27768602 | BL19: =Simulation!BL404-Futures!$D$1 -> 4.423406305 | BM19: =Simulation!BM404-Futures!$D$1 -> 2.552318002 | BN19: =Simulation!BN404-Futures!$D$1 -> -11.44332476 | BO19: =Simulation!BO404-Futures!$D$1 -> -15.08410007 | BP19: =Simulation!BP404-Futures!$D$1 -> 1.245776163 | BQ19: =Simulation!BQ404-Futures!$D$1 -> -10.09862881 | BR19: =Simulation!BR404-Futures!$D$1 -> -0.9342144105 | BS19: =Simulation!BS404-Futures!$D$1 -> -7.223061794 | BT19: =Simulation!BT404-Futures!$D$1 -> -20.16466996 | BU19: =Simulation!BU404-Futures!$D$1 -> -20.73804221 | BV19: =Simulation!BV404-Futures!$D$1 -> -16.22940422 | BW19: =Simulation!BW404-Futures!$D$1 -> -44.58978254 | BX19: =Simulation!BX404-Futures!$D$1 -> -66.53960075 | BY19: =Simulation!BY404-Futures!$D$1 -> -93.13418621 | BZ19: =Simulation!BZ404-Futures!$D$1 -> -112.5247543 | CA19: =Simulation!CA404-Futures!$D$1 -> -126.4052835 | CB19: =Simulation!CB404-Futures!$D$1 -> -107.8090383 | CC19: =Simulation!CC404-Futures!$D$1 -> -121.6236455 | CD19: =Simulation!CD404-Futures!$D$1 -> -127.8828239 | CE19: =Simulation!CE404-Futures!$D$1 -> -106.7466634 | CF19: =Simulation!CF404-Futures!$D$1 -> -113.6099714 | CG19: =Simulation!CG404-Futures!$D$1 -> -93.87754821 | CH19: =Simulation!CH404-Futures!$D$1 -> -101.39618 | CI19: =Simulation!CI404-Futures!$D$1 -> -114.8187066 | CJ19: =Simulation!CJ404-Futures!$D$1 -> -88.17136805 | CK19: =Simulation!CK404-Futures!$D$1 -> -81.91023378 | CL19: =Simulation!CL404-Futures!$D$1 -> -58.63883588 | CM19: =Simulation!CM404-Futures!$D$1 -> -58.85448703 | CN19: =Simulation!CN404-Futures!$D$1 -> -75.11774268 | CO19: =Simulation!CO404-Futures!$D$1 -> -67.56238013 | CP19: =Simulation!CP404-Futures!$D$1 -> -52.85890594 | CQ19: =Simulation!CQ404-Futures!$D$1 -> -62.4003951 | CR19: =Simulation!CR404-Futures!$D$1 -> -71.06833491 | CS19: =Simulation!CS404-Futures!$D$1 -> -78.40885494 | CT19: =Simulation!CT404-Futures!$D$1 -> -72.23592201 | CU19: =Simulation!CU404-Futures!$D$1 -> -87.49507954 | CV19: =Simulation!CV404-Futures!$D$1 -> -92.12195979 | CW19: =Simulation!CW404-Futures!$D$1 -> -96.16147032 | CX19: =Simulation!CX404-Futures!$D$1 -> -85.68676903 | CY19: =Simulation!CY404-Futures!$D$1 -> -100.0164452 | CZ19: =Simulation!CZ404-Futures!$D$1 -> -103.2829521 | DA19: =Simulation!DA404-Futures!$D$1 -> -92.94042151 | DB19: =Simulation!DB404-Futures!$D$1 -> -79.45089894 | DC19: =Simulation!DC404-Futures!$D$1 -> -67.4040588 | DD19: =Simulation!DD404-Futures!$D$1 -> -79.82799911 | DE19: =Simulation!DE404-Futures!$D$1 -> -51.17437671 | DF19: =Simulation!DF404-Futures!$D$1 -> -66.63413698 | DG19: =Simulation!DG404-Futures!$D$1 -> -74.06591522 | DH19: =Simulation!DH404-Futures!$D$1 -> -71.97678137 | DI19: =Simulation!DI404-Futures!$D$1 -> -118.5826963 | DJ19: =Simulation!DJ404-Futures!$D$1 -> -128.987077 | DK19: =Simulation!DK404-Futures!$D$1 -> -102.3469258 | DL19: =Simulation!DL404-Futures!$D$1 -> -93.87473145 | DM19: =Simulation!DM404-Futures!$D$1 -> -109.7965664 | DN19: =Simulation!DN404-Futures!$D$1 -> -105.371016 | DO19: =Simulation!DO404-Futures!$D$1 -> -92.11156289 | DP19: =Simulation!DP404-Futures!$D$1 -> -112.6468348 | DQ19: =Simulation!DQ404-Futures!$D$1 -> -101.8211608 | DR19: =Simulation!DR404-Futures!$D$1 -> -94.31720716 | DS19: =Simulation!DS404-Futures!$D$1 -> -95.59568223 | DT19: =Simulation!DT404-Futures!$D$1 -> -66.65843134 | DU19: =Simulation!DU404-Futures!$D$1 -> -71.27903007 | DV19: =Simulation!DV404-Futures!$D$1 -> -71.19834751 | DW19: =Simulation!DW404-Futures!$D$1 -> -65.50516344 | DX19: =Simulation!DX404-Futures!$D$1 -> -66.21000237 | DY19: =Simulation!DY404-Futures!$D$1 -> -54.33882645 | DZ19: =Simulation!DZ404-Futures!$D$1 -> -73.8608657 | EA19: =Simulation!EA404-Futures!$D$1 -> -84.7395801 | EB19: =Simulation!EB404-Futures!$D$1 -> -55.24468123 | EC19: =Simulation!EC404-Futures!$D$1 -> -60.02204628 | ED19: =Simulation!ED404-Futures!$D$1 -> -61.46188087 | EE19: =Simulation!EE404-Futures!$D$1 -> -77.64700186 | EF19: =Simulation!EF404-Futures!$D$1 -> -91.6320299 | EG19: =Simulation!EG404-Futures!$D$1 -> -79.51811596 | EH19: =Simulation!EH404-Futures!$D$1 -> -98.25259576 | EI19: =Simulation!EI404-Futures!$D$1 -> -122.6803191 | EJ19: =Simulation!EJ404-Futures!$D$1 -> -134.537832 | EK19: =Simulation!EK404-Futures!$D$1 -> -156.1767565 | EL19: =Simulation!EL404-Futures!$D$1 -> -161.6858147 | EM19: =Simulation!EM404-Futures!$D$1 -> -165.9199984 | EN19: =Simulation!EN404-Futures!$D$1 -> -151.2534214 | EO19: =Simulation!EO404-Futures!$D$1 -> -161.1455803 | EP19: =Simulation!EP404-Futures!$D$1 -> -174.2386859 | EQ19: =Simulation!EQ404-Futures!$D$1 -> -168.8080538 | ER19: =Simulation!ER404-Futures!$D$1 -> -158.5099056 | ES19: =Simulation!ES404-Futures!$D$1 -> -139.4441828 | ET19: =Simulation!ET404-Futures!$D$1 -> -146.4399251 | EU19: =Simulation!EU404-Futures!$D$1 -> -135.2307519 | EV19: =Simulation!EV404-Futures!$D$1 -> -133.3274832 | EW19: =Simulation!EW404-Futures!$D$1 -> -137.8487418 | EX19: =Simulation!EX404-Futures!$D$1 -> -132.1296336 | EY19: =Simulation!EY404-Futures!$D$1 -> -149.6041087 | EZ19: =Simulation!EZ404-Futures!$D$1 -> -163.5041151 | FA19: =Simulation!FA404-Futures!$D$1 -> -183.4796235 | FB19: =Simulation!FB404-Futures!$D$1 -> -193.8203377 | FC19: =Simulation!FC404-Futures!$D$1 -> -171.8851469 | FD19: =Simulation!FD404-Futures!$D$1 -> -195.9378272 | FE19: =Simulation!FE404-Futures!$D$1 -> -196.3979968 | FF19: =Simulation!FF404-Futures!$D$1 -> -160.4373804 | FG19: =Simulation!FG404-Futures!$D$1 -> -201.1510328 | FH19: =Simulation!FH404-Futures!$D$1 -> -216.2404473 | FI19: =Simulation!FI404-Futures!$D$1 -> -203.9374169 | FJ19: =Simulation!FJ404-Futures!$D$1 -> -203.8957776 | FK19: =Simulation!FK404-Futures!$D$1 -> -207.9293747 | FL19: =Simulation!FL404-Futures!$D$1 -> -229.3489973 | FM19: =Simulation!FM404-Futures!$D$1 -> -226.1396088 | FN19: =Simulation!FN404-Futures!$D$1 -> -233.8415567 | FO19: =Simulation!FO404-Futures!$D$1 -> -226.2435106 | FP19: =Simulation!FP404-Futures!$D$1 -> -233.1616248 | FQ19: =Simulation!FQ404-Futures!$D$1 -> -223.8402119 | FR19: =Simulation!FR404-Futures!$D$1 -> -244.4130907 | FS19: =Simulation!FS404-Futures!$D$1 -> -219.5798639 | FT19: =Simulation!FT404-Futures!$D$1 -> -212.1434311 | FU19: =Simulation!FU404-Futures!$D$1 -> -209.6641681 | FV19: =Simulation!FV404-Futures!$D$1 -> -214.9073073 | FW19: =Simulation!FW404-Futures!$D$1 -> -221.9173798 | FX19: =Simulation!FX404-Futures!$D$1 -> -208.9815448 | FY19: =Simulation!FY404-Futures!$D$1 -> -180.4842544 | FZ19: =Simulation!FZ404-Futures!$D$1 -> -167.0988625 | GA19: =Simulation!GA404-Futures!$D$1 -> -170.8745195 | GB19: =Simulation!GB404-Futures!$D$1 -> -167.2334127 | GC19: =Simulation!GC404-Futures!$D$1 -> -156.9318751 | GD19: =Simulation!GD404-Futures!$D$1 -> -168.7173733 | GE19: =Simulation!GE404-Futures!$D$1 -> -143.7798943 | GF19: =Simulation!GF404-Futures!$D$1 -> -154.3122897 | GG19: =Simulation!GG404-Futures!$D$1 -> -197.9171194 | GH19: =Simulation!GH404-Futures!$D$1 -> -173.749822 | GI19: =Simulation!GI404-Futures!$D$1 -> -159.6730922 | GJ19: =Simulation!GJ404-Futures!$D$1 -> -183.23061 | GK19: =Simulation!GK404-Futures!$D$1 -> -175.2553748 | GL19: =Simulation!GL404-Futures!$D$1 -> -169.6237556 | GM19: =Simulation!GM404-Futures!$D$1 -> -181.0771296 | GN19: =Simulation!GN404-Futures!$D$1 -> -178.4324743 | GO19: =Simulation!GO404-Futures!$D$1 -> -160.6018749 | GP19: =Simulation!GP404-Futures!$D$1 -> -144.5079629 | GQ19: =Simulation!GQ404-Futures!$D$1 -> -149.5488327 | GR19: =Simulation!GR404-Futures!$D$1 -> -155.8873669 | GS19: =Simulation!GS404-Futures!$D$1 -> -167.862154 | GT19: =Simulation!GT404-Futures!$D$1 -> -181.9672196 | GU19: =Simulation!GU404-Futures!$D$1 -> -172.6730951 | GV19: =Simulation!GV404-Futures!$D$1 -> -170.6894333 | GW19: =Simulation!GW404-Futures!$D$1 -> -160.8630859 | GX19: =Simulation!GX404-Futures!$D$1 -> -130.485499 | GY19: =Simulation!GY404-Futures!$D$1 -> -121.5123571 | GZ19: =Simulation!GZ404-Futures!$D$1 -> -136.1422391 | HA19: =Simulation!HA404-Futures!$D$1 -> -136.7994497 | HB19: =Simulation!HB404-Futures!$D$1 -> -117.2950843 | HC19: =Simulation!HC404-Futures!$D$1 -> -142.3817442 | HD19: =Simulation!HD404-Futures!$D$1 -> -146.0165468 | HE19: =Simulation!HE404-Futures!$D$1 -> -170.1226143 | HF19: =Simulation!HF404-Futures!$D$1 -> -174.3062514 | HG19: =Simulation!HG404-Futures!$D$1 -> -147.7471896 | HH19: =Simulation!HH404-Futures!$D$1 -> -130.5479593 | HI19: =Simulation!HI404-Futures!$D$1 -> -143.2121678 | HJ19: =Simulation!HJ404-Futures!$D$1 -> -146.9867446 | HK19: =Simulation!HK404-Futures!$D$1 -> -136.8327397 | HL19: =Simulation!HL404-Futures!$D$1 -> -157.3195918 | HM19: =Simulation!HM404-Futures!$D$1 -> -180.8132577 | HN19: =Simulation!HN404-Futures!$D$1 -> -198.2780691 | HO19: =Simulation!HO404-Futures!$D$1 -> -177.2181492 | HP19: =Simulation!HP404-Futures!$D$1 -> -158.9532055 | HQ19: =Simulation!HQ404-Futures!$D$1 -> -157.6766576 | HR19: =Simulation!HR404-Futures!$D$1 -> -147.6024338 | HS19: =Simulation!HS404-Futures!$D$1 -> -144.2759578 | HT19: =Simulation!HT404-Futures!$D$1 -> -130.8497179 | HU19: =Simulation!HU404-Futures!$D$1 -> -116.5364028 | HV19: =Simulation!HV404-Futures!$D$1 -> -131.8593306 | HW19: =Simulation!HW404-Futures!$D$1 -> -130.028204 | HX19: =Simulation!HX404-Futures!$D$1 -> -140.7138847 | HY19: =Simulation!HY404-Futures!$D$1 -> -127.7215627 | HZ19: =Simulation!HZ404-Futures!$D$1 -> -126.7412913 | IA19: =Simulation!IA404-Futures!$D$1 -> -105.7509723 | IB19: =Simulation!IB404-Futures!$D$1 -> -134.3843128 | IC19: =Simulation!IC404-Futures!$D$1 -> -153.2799335 | ID19: =Simulation!ID404-Futures!$D$1 -> -139.608816 | IE19: =Simulation!IE404-Futures!$D$1 -> -140.6488237 | IF19: =Simulation!IF404-Futures!$D$1 -> -153.4595412 | IG19: =Simulation!IG404-Futures!$D$1 -> -121.2900781 | IH19: =Simulation!IH404-Futures!$D$1 -> -161.382592 | II19: =Simulation!II404-Futures!$D$1 -> -154.3005068 | IJ19: =Simulation!IJ404-Futures!$D$1 -> -150.4682893 | IK19: =Simulation!IK404-Futures!$D$1 -> -155.5450349 | IL19: =Simulation!IL404-Futures!$D$1 -> -129.1850738 | IM19: =Simulation!IM404-Futures!$D$1 -> -116.0747704 | IN19: =Simulation!IN404-Futures!$D$1 -> -128.6104916 | IO19: =Simulation!IO404-Futures!$D$1 -> -149.1318901 | IP19: =Simulation!IP404-Futures!$D$1 -> -187.7284187 | IQ19: =Simulation!IQ404-Futures!$D$1 -> -182.0985349 | IR19: =Simulation!IR404-Futures!$D$1 -> -171.8316596 | IS19: =Simulation!IS404-Futures!$D$1 -> -156.7426703 | IT19: =Simulation!IT404-Futures!$D$1 -> -156.6850847 | IU19: =Simulation!IU404-Futures!$D$1 -> -170.4956835 | IV19: =Simulation!IV404-Futures!$D$1 -> -193.8436192 | IW19: =Simulation!IW404-Futures!$D$1 -> -222.9715286 | IX19: =Simulation!IX404-Futures!$D$1 -> -239.2848822 | IY19: =Simulation!IY404-Futures!$D$1 -> -243.3983504 | IZ19: =Simulation!IZ404-Futures!$D$1 -> -268.0227446 | JA19: =Simulation!JA404-Futures!$D$1 -> -270.844026 | JB19: =Simulation!JB404-Futures!$D$1 -> -273.2571853 | JC19: =Simulation!JC404-Futures!$D$1 -> -266.7074861 | JD19: =Simulation!JD404-Futures!$D$1 -> -279.1671615 | JE19: =Simulation!JE404-Futures!$D$1 -> -264.9610058 | JF19: =Simulation!JF404-Futures!$D$1 -> -247.5125373 | JG19: =Simulation!JG404-Futures!$D$1 -> -256.2132839 | JH19: =Simulation!JH404-Futures!$D$1 -> -264.7019209 | JI19: =Simulation!JI404-Futures!$D$1 -> -279.2910032 | JJ19: =Simulation!JJ404-Futures!$D$1 -> -296.4043041 | JK19: =Simulation!JK404-Futures!$D$1 -> -314.0381971 | JL19: =Simulation!JL404-Futures!$D$1 -> -335.3349115 | JM19: =Simulation!JM404-Futures!$D$1 -> -330.6410219 | JN19: =Simulation!JN404-Futures!$D$1 -> -321.6007471 | JO19: =Simulation!JO404-Futures!$D$1 -> -314.1959455 | JP19: =Simulation!JP404-Futures!$D$1 -> -307.2845882 | JQ19: =Simulation!JQ404-Futures!$D$1 -> -327.8595635 | JR19: =Simulation!JR404-Futures!$D$1 -> -322.3059821 | JS19: =Simulation!JS404-Futures!$D$1 -> -317.4970645 | JT19: =Simulation!JT404-Futures!$D$1 -> -288.1016892 | JU19: =Simulation!JU404-Futures!$D$1 -> -305.95913 | JV19: =Simulation!JV404-Futures!$D$1 -> -298.2258779 | JW19: =Simulation!JW404-Futures!$D$1 -> -274.6897575 | JX19: =Simulation!JX404-Futures!$D$1 -> -234.8211266 | JY19: =Simulation!JY404-Futures!$D$1 -> -233.0554676 | JZ19: =Simulation!JZ404-Futures!$D$1 -> -226.5287764 | KA19: =Simulation!KA404-Futures!$D$1 -> -260.2336523 | KB19: =Simulation!KB404-Futures!$D$1 -> -265.1584033 | KC19: =Simulation!KC404-Futures!$D$1 -> -269.3974096 | KD19: =Simulation!KD404-Futures!$D$1 -> -302.0861226 | KE19: =Simulation!KE404-Futures!$D$1 -> -277.2145624 | KF19: =Simulation!KF404-Futures!$D$1 -> -277.88295 | KG19: =Simulation!KG404-Futures!$D$1 -> -299.5571798 | KH19: =Simulation!KH404-Futures!$D$1 -> -280.5585378 | KI19: =Simulation!KI404-Futures!$D$1 -> -282.8704148 | KJ19: =Simulation!KJ404-Futures!$D$1 -> -282.9910357 | KK19: =Simulation!KK404-Futures!$D$1 -> -281.0967398 | KL19: =Simulation!KL404-Futures!$D$1 -> -270.5398185 | KM19: =Simulation!KM404-Futures!$D$1 -> -262.7009523 | KN19: =Simulation!KN404-Futures!$D$1 -> -246.4412044 | KO19: =Simulation!KO404-Futures!$D$1 -> -244.3523651 | KP19: =Simulation!KP404-Futures!$D$1 -> -242.0231954 | KQ19: =Simulation!KQ404-Futures!$D$1 -> -239.8452912 | KR19: =Simulation!KR404-Futures!$D$1 -> -229.590491 | KS19: =Simulation!KS404-Futures!$D$1 -> -222.1800378 | KT19: =Simulation!KT404-Futures!$D$1 -> -213.2835569 | KU19: =Simulation!KU404-Futures!$D$1 -> -225.2090044 | KV19: =Simulation!KV404-Futures!$D$1 -> -223.5397967 | KW19: =Simulation!KW404-Futures!$D$1 -> -218.7487692 | KX19: =Simulation!KX404-Futures!$D$1 -> -206.944949 | KY19: =Simulation!KY404-Futures!$D$1 -> -192.7828746 | KZ19: =Simulation!KZ404-Futures!$D$1 -> -202.6720662 | LA19: =Simulation!LA404-Futures!$D$1 -> -201.6556339 | LB19: =Simulation!LB404-Futures!$D$1 -> -198.0704158 | LC19: =Simulation!LC404-Futures!$D$1 -> -179.0700325 | LD19: =Simulation!LD404-Futures!$D$1 -> -216.8608024 | LE19: =Simulation!LE404-Futures!$D$1 -> -232.1554244 | LF19: =Simulation!LF404-Futures!$D$1 -> -244.0648587 | LG19: =Simulation!LG404-Futures!$D$1 -> -247.2980627 | LH19: =Simulation!LH404-Futures!$D$1 -> -240.8669593 | LI19: =Simulation!LI404-Futures!$D$1 -> -243.1376355 | LJ19: =Simulation!LJ404-Futures!$D$1 -> -237.5560101 | LK19: =Simulation!LK404-Futures!$D$1 -> -218.5621885 | LL19: =Simulation!LL404-Futures!$D$1 -> -204.2887946 | LM19: =Simulation!LM404-Futures!$D$1 -> -184.9783537 | LN19: =Simulation!LN404-Futures!$D$1 -> -188.9470634 | LO19: =Simulation!LO404-Futures!$D$1 -> -222.01615 | LP19: =Simulation!LP404-Futures!$D$1 -> -231.1012282 | LQ19: =Simulation!LQ404-Futures!$D$1 -> -240.0599547 | LR19: =Simulation!LR404-Futures!$D$1 -> -230.0636956 | LS19: =Simulation!LS404-Futures!$D$1 -> -213.4998736 | LT19: =Simulation!LT404-Futures!$D$1 -> -218.0539109 | LU19: =Simulation!LU404-Futures!$D$1 -> -250.4687409 | LV19: =Simulation!LV404-Futures!$D$1 -> -236.9287177 | LW19: =Simulation!LW404-Futures!$D$1 -> -225.9055908 | LX19: =Simulation!LX404-Futures!$D$1 -> -219.5221914 | LY19: =Simulation!LY404-Futures!$D$1 -> -212.1245508 | LZ19: =Simulation!LZ404-Futures!$D$1 -> -243.2179945 | MA19: =Simulation!MA404-Futures!$D$1 -> -220.2399614 | MB19: =Simulation!MB404-Futures!$D$1 -> -233.1209047 | MC19: =Simulation!MC404-Futures!$D$1 -> -251.0805393 | MD19: =Simulation!MD404-Futures!$D$1 -> -231.3813486 | ME19: =Simulation!ME404-Futures!$D$1 -> -243.8580935 | MF19: =Simulation!MF404-Futures!$D$1 -> -258.7823034 | MG19: =Simulation!MG404-Futures!$D$1 -> -255.8996898 | MH19: =Simulation!MH404-Futures!$D$1 -> -247.3010706 | MI19: =Simulation!MI404-Futures!$D$1 -> -253.5062612 | MJ19: =Simulation!MJ404-Futures!$D$1 -> -262.5416446 | MK19: =Simulation!MK404-Futures!$D$1 -> -267.4723738 | ML19: =Simulation!ML404-Futures!$D$1 -> -243.2293381 | MM19: =Simulation!MM404-Futures!$D$1 -> -235.8214703 | MN19: =Simulation!MN404-Futures!$D$1 -> -219.3622622 | MO19: =Simulation!MO404-Futures!$D$1 -> -234.7583066 | MP19: =Simulation!MP404-Futures!$D$1 -> -234.3301057 | MQ19: =Simulation!MQ404-Futures!$D$1 -> -203.14919 | MR19: =Simulation!MR404-Futures!$D$1 -> -205.8395814 | MS19: =Simulation!MS404-Futures!$D$1 -> -178.8023094 | MT19: =Simulation!MT404-Futures!$D$1 -> -177.6918701 | MU19: =Simulation!MU404-Futures!$D$1 -> -184.1071333 | MV19: =Simulation!MV404-Futures!$D$1 -> -187.5381063 | MW19: =Simulation!MW404-Futures!$D$1 -> -176.0030399 | MX19: =Simulation!MX404-Futures!$D$1 -> -158.2897079 | MY19: =Simulation!MY404-Futures!$D$1 -> -139.9296242 | MZ19: =Simulation!MZ404-Futures!$D$1 -> -2020 | NA19: =Simulation!NA404-Futures!$D$1 -> -2020 | NB19: =Simulation!NB404-Futures!$D$1 -> -2012
